Workbook

Sheet Portada

Sheet Índice
E3: Consejo Monetario Centroamericano
E4: Secretaría Ejecutiva
E5: www.secmca.org
B15: REPORTE MENSUAL DE INDICADORES DE COYUNTURA DE LA ECONOMÍA INTERNACIONAL
J18: Al mes de:
B23: CONTENIDO
B25: Principales Indicadores macroeconómicos de países seleccionados
D27: PIB trimestral
D28: Inflación mensual | J28: ='Cuadro Comparativo AL'!I3 -> JUNIO
D29: Inflación América Latina
D30: Cuadro Comparativo América Latina
D31: Tasas de interés de referencia y M3
D32: Indices de confianza | J32: 2017
D33: Tasas de desempleo
D34: Precios de commodities
D35: Tipos de Cambio nominales
D36: Indices Bursátiles
D37: Series Mensuales
D38: Series Trimestrales
D39: Notas Técnicas
B43: ADVERTENCIA El Consejo Monetario Centroamericano y su Secretaría Ejecutiva autorizan la reproducción total, gráficos y cifras de esta publicación, siempre que se mencione la fuente. No obstante, no asumen responsabilidad legal alguna o de cualquier otra índole, por la manipulación, interpretación personal y uso de dicha información. Derechos Reservados © 2017

Sheet Datos mensuales (hidden)
A1: Datos | C1: Inflación Interanual medida por el Indice de Precios al Consumidor | P1: Aceleración | AC1: Gráfico Dinámico | AE1: Commodities | AQ1: Indice de tipo de cambio nominal, enero 2007=100 | BB1: Tipos de Cambio | BN1: Depósitos 6 Meses | BP1: Depósitos 3 meses | BS1: Bonos Gobierno 10 años | BV1: Agregado Monetario (M3) | CE1: Variación interanual medida por el Índice de Agregados Monetarios (M3) | CN1: Indices de Confianza del Consumidor | CX1: Indices de Confianza del Productor | DI1: Índices bursátiles | DL1: Tasa de Desempleo Abierto | DV1: Variación mensual del desempleo en puntos porcentuales (pp.)
A2: Mensuales | C2: 1 | D2: 2 | E2: 3 | F2: 4 | G2: 5 | H2: 6 | I2: 7 | J2: 8 | K2: 9 | L2: 10 | M2: 11 | N2: 12 | O2: 13 | P2: 1 | Q2: 2 | R2: 3 | S2: 4 | T2: 5 | U2: 6 | V2: 7 | W2: 8 | X2: 9 | Y2: 10 | Z2: 11 | AA2: 12 | AB2: 13 | AE2: a | AF2: b | AG2: a-b | BB2: 1 | BC2: 2 | BD2: 3 | BE2: 4 | BF2: 5 | BG2: 6 | BH2: 7 | BI2: 8 | BJ2: 9 | BK2: 10 | BL2: 11 | BM2: 12 | CN2: Países miembros del G-7 | CS2: Países de mercados emergentes
A3: Año | B3: Mes | C3: Estados Unidos | D3: EuroZona | E3: Alemania | F3: Francia | G3: Reino Unido | H3: Japón | I3: Rusia | J3: Brasil | K3: China | L3: India | M3: Sudáfrica | N3: México | O3: Colombia | P3: Estados Unidos | Q3: EuroZona | R3: Alemania | S3: Francia | T3: Reino Unido | U3: Japón | V3: Rusia | W3: Brasil | X3: China | Y3: India | Z3: Sudáfrica | AA3: México | AB3: Colombia | AC3: =IF(Inflación!$K$6="Estados Unidos",LOOKUP(1,C2:O2,C3:O3),IF(Inflación!$K$6="EuroZona",LOOKUP(2,C2:N2,C3:O3),IF(Inflación!$K$6="Alemania",LOOKUP(3,C2:N2,C3:O3),IF(Inflación!$K$6="Francia",LOOKUP(4,C2:N2,C3:O3),IF(Inflación!$K$6="Reino Unido",LOOKUP(5,C2:N2,C3:O3),IF(Inflación!$K$6="Japón",LOOKUP(6,C2:N2,C3:O3),IF(Inflación!$K$6="Rusia",LOOKUP(7,C2:N2,C3:O3),IF(Inflación!$K$6="Brasil",LOOKUP(8,C2:N2,C3:O3),IF(Inflación!$K$6="China",LOOKUP(9,C2:N2,C3:O3),IF(Inflación!$K$6="India",LOOKUP(10,C2:N2,C3:O3),IF(Inflación!$K$6="Sudáfrica",LOOKUP(11,C2:N2,C3:N3),IF(Inflación!$K$6="México",LOOKUP(12,C2:N2,C3:N3),IF(Inflación!$K$6="Colombia",LOOKUP(13,C2:O2,C3:O3)))))))))))))) -> Alemania | AE3: WTI-NY | AF3: Brent | AG3: Diferen-cial | AH3: Oro | AI3: Azúcar | AJ3: Algodón | AK3: Café | AL3: Trigo | AM3: Aceite de Palma | AN3: Maíz | AO3: Arroz | AP3: Banano | AQ3: EuroZona | AR3: Reino Unido | AS3: Japón | AT3: Canadá | AU3: Rusia | AV3: Brasil | AW3: China | AX3: India | AY3: Sudáfrica | AZ3: México | BA3: Colombia | BB3: EuroZona | BC3: Reino Unido | BD3: Japón | BE3: Canadá | BF3: Rusia | BG3: Brasil | BH3: China | BI3: India | BJ3: Sudáfrica | BK3: México | BL3: Colombia | BM3: =IF('Tipos de Cambio'!$M$9="EuroZona",LOOKUP(1,BB2:BL2,BB3:BL3),IF('Tipos de Cambio'!$M$9="Reino Unido",LOOKUP(2,BB2:BL2,BB3:BL3),IF('Tipos de Cambio'!$M$9="Japón",LOOKUP(3,BB2:BL2,BB3:BL3),IF('Tipos de Cambio'!$M$9="Canadá",LOOKUP(4,BB2:BL2,BB3:BL3),IF('Tipos de Cambio'!$M$9="Rusia",LOOKUP(5,BB2:BL2,BB3:BL3),IF('Tipos de Cambio'!$M$9="Brasil",LOOKUP(6,BB2:BL2,BB3:BL3),IF('Tipos de Cambio'!$M$9="China",LOOKUP(7,BB2:BL2,BB3:BL3),IF('Tipos de Cambio'!$M$9="India",LOOKUP(8,BB2:BL2,BB3:BL3),IF('Tipos de Cambio'!$M$9="Sudáfrica",LOOKUP(9,BB2:BL2,BB3:BL3),IF('Tipos de Cambio'!$M$9="México",LOOKUP(10,BB2:BL2,BB3:BL3),IF('Tipos de Cambio'!$M$9="Colombia",LOOKUP(11,BB2:BL2,BB3:BL3)))))))))))) -> Brasil | BN3: LIBOR | BO3: Letras Tesoro US | BP3: Estados Unidos | BQ3: EuroZona | BR3: Japón | BS3: Estados Unidos | BT3: EuroZona | BU3: Japón | BV3: Estados Unidos | BW3: Japón | BX3: Reino Unido | BY3: Rusia | BZ3: Brasil | CA3: México | CB3: China | CC3: India | CD3: Sudáfrica | CE3: Estados Unidos | CF3: Japón | CG3: Reino Unido | CH3: Rusia | CI3: Brasil | CJ3: México | CK3: China | CL3: India | CM3: Sudáfrica | CN3: Estados Unidos | CO3: Alemania | CP3: Francia | CQ3: Japón | CR3: Reino Unido | CS3: Brasil | CT3: México | CU3: China | CV3: Sudáfrica | CX3: Estados Unidos | CY3: Alemania | CZ3: Francia | DA3: Japón | DB3: Reino Unido | DC3: Brasil | DD3: México | DE3: Rusia | DF3: India | DG3: China | DH3: Sudáfrica | DI3: Dow Jones | DJ3: Nasdaq Composite | DK3: Standard & Poor's 500 | DL3: Estados Unidos | DM3: Reino Unido | DN3: Japón | DO3: Euro Zona | DP3: Alemania | DQ3: Francia | DR3: Brasil | DS3: Rusia | DT3: Sudáfrica | DU3: México | DV3: Estados Unidos | DW3: Reino Unido | DX3: Japón | DY3: Zona Euro | DZ3: Alemania | EA3: Francia | EB3: México | EC3: Rusia
A4: Fecha \ Unidad | C4: % | D4: % | E4: % | F4: % | G4: % | H4: % | I4: % | J4: % | K4: % | L4: % | M4: % | N4: % | O4: % | P4: % | Q4: % | R4: % | S4: % | T4: % | U4: % | V4: % | W4: % | X4: % | Y4: % | Z4: % | AA4: % | AB4: % | AC4: Var. Interanual | AD4: Aceleración | AE4: US$ por barril | AF4: US$ por barril | AG4: de los barriles | AH4: $/toz | AI4: US centavos/Kilo | AJ4: US centavos/libra | AK4: US centavos/libra | AL4: (US$/tm) | AM4: (US$/tm) | AN4: (US$/tm) | AO4: (US$/tm) | AP4: (US$/tm) | BB4: ME/MN | BC4: ME/MN | BD4: MN/ME | BE4: MN/ME | BF4: MN/ME | BG4: MN/ME | BH4: MN/ME | BI4: MN/ME | BJ4: MN/ME | BK4: MN/ME | BL4: MN/ME | BM4: MN/ME | BN4: % | BO4: % | BP4: % | BQ4: % | BR4: % | BS4: % | BT4: % | BU4: % | BV4: Índice | BW4: Índice | BX4: Índice | BY4: Índice | BZ4: Índice | CA4: Índice | CB4: Índice | CC4: Índice | CD4: Índice | CE4: % | CF4: % | CG4: % | CH4: % | CI4: % | CJ4: % | CK4: % | CL4: % | CM4: % | CN4: Índice | CO4: Índice | CP4: Índice | CQ4: Índice | CR4: Índice | CS4: Índice | CT4: Índice | CU4: Índice | CV4: Índice | CX4: % | CY4: % | CZ4: % | DA4: % | DB4: % | DC4: % | DD4: % | DE4: % | DF4: % | DG4: % | DH4: % | DI4: Índice | DJ4: Índice | DK4: Índice | DL4: % | DM4: % | DN4: % | DO4: % | DP4: % | DQ4: % | DR4: % | DS4: % | DT4: % | DU4: % | DV4: pp. | DW4: pp. | DX4: pp. | DY4: pp. | DZ4: pp. | EA4: pp. | EB4: pp. | EC4: pp.
A5: 1990 | B5: enero | C5: n.d. | D5: n.d. | E5: n.d. | F5: n.d. | G5: n.d. | H5: n.d. | I5: n.d. | J5: n.d. | K5: n.d. | L5: n.d. | M5: n.d. | N5: n.d. | O5: n.d. | P5: n.d | Q5: n.d | R5: n.d | S5: n.d | T5: n.d | U5: n.d | V5: n.d | W5: n.d | X5: n.d | Y5: n.d | Z5: n.d | AA5: n.d | AB5: n.d | AE5: 22.86 | AF5: n.d. | AG5: =IF(OR(AE5="",AF5="n.d."),"",AF5-AE5) ->  | AH5: n.d. | AI5: n.d. | AJ5: n.d. | AK5: n.d. | AL5: n.d. | AM5: 230.56 | AN5: n.d. | AO5: n.d. | AP5: n.d. | AQ5: n.d. | AR5: n.d. | AS5: n.d. | AT5: n.d. | AU5: n.d. | AV5: n.d. | AW5: n.d. | AX5: n.d. | AY5: n.d. | AZ5: n.d. | BA5: n.d. | BB5: n.d. | BC5: n.d. | BD5: n.d. | BE5: n.d. | BF5: n.d. | BG5: n.d. | BH5: n.d. | BI5: n.d. | BJ5: n.d. | BK5: n.d. | BL5: n.d. | BM5: =IF('Tipos de Cambio'!$M$9="EuroZona",LOOKUP(1,$BB$2:$BL$2,BB5:BL5),IF('Tipos de Cambio'!$M$9="Reino Unido",LOOKUP(2,$BB$2:$BL$2,BB5:BL5),IF('Tipos de Cambio'!$M$9="Japón",LOOKUP(3,$BB$2:$BL$2,BB5:BL5),IF('Tipos de Cambio'!$M$9="Canadá",LOOKUP(4,$BB$2:$BL$2,BB5:BL5),IF('Tipos de Cambio'!$M$9="Rusia",LOOKUP(5,$BB$2:$BL$2,BB5:BL5),IF('Tipos de Cambio'!$M$9="Brasil",LOOKUP(6,$BB$2:$BL$2,BB5:BL5),IF('Tipos de Cambio'!$M$9="China",LOOKUP(7,$BB$2:$BL$2,BB5:BL5),IF('Tipos de Cambio'!$M$9="India",LOOKUP(8,$BB$2:$BL$2,BB5:BL5),IF('Tipos de Cambio'!$M$9="Sudáfrica",LOOKUP(9,$BB$2:$BL$2,BB5:BL5),IF('Tipos de Cambio'!$M$9="México",LOOKUP(10,$BB$2:$BL$2,BB5:BL5),IF('Tipos de Cambio'!$M$9="Colombia",LOOKUP(11,$BB$2:$BL$2,BB5:BL5)))))))))))) -> n.d. | BN5: n.d. | BO5: n.d. | BP5: n.d. | BQ5: n.d. | BR5: n.d. | BS5: n.d. | BT5: n.d. | BU5: n.d. | BV5: n.d. | BW5: n.d. | BX5: n.d. | BY5: n.d. | BZ5: n.d. | CA5: n.d. | CB5: n.d. | CC5: n.d. | CD5: n.d. | CN5: n.d. | CO5: n.d. | CP5: n.d. | CQ5: n.d. | CR5: n.d. | CS5: n.d. | CT5: n.d. | CU5: n.d. | CV5: n.d. | CW5: 100 | CX5: n.d. | CY5: n.d. | CZ5: n.d. | DA5: n.d. | DB5: n.d. | DC5: n.d. | DD5: n.d. | DE5: n.d. | DF5: n.d. | DG5: n.d. | DH5: n.d. | DI5: 2590.54 | DJ5: 415.81 | DK5: 329.08 | DL5: n.d. | DM5: n.d. | DN5: n.d. | DO5: n.d. | DP5: n.d. | DQ5: n.d. | DR5: n.d. | DS5: n.d. | DT5: n.d. | DU5: n.d.
B6: febrero | C6: n.d. | D6: n.d. | E6: n.d. | F6: n.d. | G6: n.d. | H6: n.d. | I6: n.d. | J6: n.d. | K6: n.d. | L6: n.d. | M6: n.d. | N6: n.d. | O6: n.d. | P6: n.d | Q6: n.d | R6: n.d | S6: n.d | T6: n.d | U6: n.d | V6: n.d | W6: n.d | X6: n.d | Y6: n.d | Z6: n.d | AA6: n.d | AB6: n.d | AE6: 22.11 | AF6: n.d. | AG6: =IF(OR(AE6="",AF6="n.d."),"",AF6-AE6) ->  | AH6: n.d. | AI6: n.d. | AJ6: n.d. | AK6: n.d. | AL6: n.d. | AM6: 223.95 | AN6: n.d. | AO6: n.d. | AP6: n.d. | AQ6: n.d. | AR6: n.d. | AS6: n.d. | AT6: n.d. | AU6: n.d. | AV6: n.d. | AW6: n.d. | AX6: n.d. | AY6: n.d. | AZ6: n.d. | BA6: n.d. | BB6: n.d. | BC6: n.d. | BD6: n.d. | BE6: n.d. | BF6: n.d. | BG6: n.d. | BH6: n.d. | BI6: n.d. | BJ6: n.d. | BK6: n.d. | BL6: n.d. | BM6: =IF('Tipos de Cambio'!$M$9="EuroZona",LOOKUP(1,$BB$2:$BL$2,BB6:BL6),IF('Tipos de Cambio'!$M$9="Reino Unido",LOOKUP(2,$BB$2:$BL$2,BB6:BL6),IF('Tipos de Cambio'!$M$9="Japón",LOOKUP(3,$BB$2:$BL$2,BB6:BL6),IF('Tipos de Cambio'!$M$9="Canadá",LOOKUP(4,$BB$2:$BL$2,BB6:BL6),IF('Tipos de Cambio'!$M$9="Rusia",LOOKUP(5,$BB$2:$BL$2,BB6:BL6),IF('Tipos de Cambio'!$M$9="Brasil",LOOKUP(6,$BB$2:$BL$2,BB6:BL6),IF('Tipos de Cambio'!$M$9="China",LOOKUP(7,$BB$2:$BL$2,BB6:BL6),IF('Tipos de Cambio'!$M$9="India",LOOKUP(8,$BB$2:$BL$2,BB6:BL6),IF('Tipos de Cambio'!$M$9="Sudáfrica",LOOKUP(9,$BB$2:$BL$2,BB6:BL6),IF('Tipos de Cambio'!$M$9="México",LOOKUP(10,$BB$2:$BL$2,BB6:BL6),IF('Tipos de Cambio'!$M$9="Colombia",LOOKUP(11,$BB$2:$BL$2,BB6:BL6)))))))))))) -> n.d. | BN6: n.d. | BO6: n.d. | BP6: n.d. | BQ6: n.d. | BR6: n.d. | BS6: n.d. | BT6: n.d. | BU6: n.d. | BV6: n.d. | BW6: n.d. | BX6: n.d. | BY6: n.d. | BZ6: n.d. | CA6: n.d. | CB6: n.d. | CC6: n.d. | CD6: n.d. | CN6: n.d. | CO6: n.d. | CP6: n.d. | CQ6: n.d. | CR6: n.d. | CS6: n.d. | CT6: n.d. | CU6: n.d. | CV6: n.d. | CW6: 100 | CX6: n.d. | CY6: n.d. | CZ6: n.d. | DA6: n.d. | DB6: n.d. | DC6: n.d. | DD6: n.d. | DE6: n.d. | DF6: n.d. | DG6: n.d. | DH6: n.d. | DI6: 2627.25 | DJ6: 425.83 | DK6: 331.89 | DL6: n.d. | DM6: n.d. | DN6: n.d. | DO6: n.d. | DP6: n.d. | DQ6: n.d. | DR6: n.d. | DS6: n.d. | DT6: n.d. | DU6: n.d. | DV6: =IFERROR(DL6-DL5, "n.d.") -> n.d. | DW6: n.d. | DX6: n.d. | DY6: n.d. | DZ6: n.d. | EA6: n.d. | EB6: =IFERROR(DU6-DU5, "n.d.") -> n.d. | EC6: =IFERROR(DS6-DS5, "n.d.") -> n.d. | EH6: Gráfico AL
B7: marzo | C7: n.d. | D7: n.d. | E7: n.d. | F7: n.d. | G7: n.d. | H7: n.d. | I7: n.d. | J7: n.d. | K7: n.d. | L7: n.d. | M7: n.d. | N7: n.d. | O7: n.d. | P7: n.d | Q7: n.d | R7: n.d | S7: n.d | T7: n.d | U7: n.d | V7: n.d | W7: n.d | X7: n.d | Y7: n.d | Z7: n.d | AA7: n.d | AB7: n.d | AE7: 20.39 | AF7: n.d. | AH7: n.d. | AI7: n.d. | AJ7: n.d. | AK7: n.d. | AL7: n.d. | AM7: 236.34 | AN7: n.d. | AO7: n.d. | AP7: n.d. | AQ7: n.d. | AR7: n.d. | AS7: n.d. | AT7: n.d. | AU7: n.d. | AV7: n.d. | AW7: n.d. | AX7: n.d. | AY7: n.d. | AZ7: n.d. | BA7: n.d. | BB7: n.d. | BC7: n.d. | BD7: n.d. | BE7: n.d. | BF7: n.d. | BG7: n.d. | BH7: n.d. | BI7: n.d. | BJ7: n.d. | BK7: n.d. | BL7: n.d. | BM7: =IF('Tipos de Cambio'!$M$9="EuroZona",LOOKUP(1,$BB$2:$BL$2,BB7:BL7),IF('Tipos de Cambio'!$M$9="Reino Unido",LOOKUP(2,$BB$2:$BL$2,BB7:BL7),IF('Tipos de Cambio'!$M$9="Japón",LOOKUP(3,$BB$2:$BL$2,BB7:BL7),IF('Tipos de Cambio'!$M$9="Canadá",LOOKUP(4,$BB$2:$BL$2,BB7:BL7),IF('Tipos de Cambio'!$M$9="Rusia",LOOKUP(5,$BB$2:$BL$2,BB7:BL7),IF('Tipos de Cambio'!$M$9="Brasil",LOOKUP(6,$BB$2:$BL$2,BB7:BL7),IF('Tipos de Cambio'!$M$9="China",LOOKUP(7,$BB$2:$BL$2,BB7:BL7),IF('Tipos de Cambio'!$M$9="India",LOOKUP(8,$BB$2:$BL$2,BB7:BL7),IF('Tipos de Cambio'!$M$9="Sudáfrica",LOOKUP(9,$BB$2:$BL$2,BB7:BL7),IF('Tipos de Cambio'!$M$9="México",LOOKUP(10,$BB$2:$BL$2,BB7:BL7),IF('Tipos de Cambio'!$M$9="Colombia",LOOKUP(11,$BB$2:$BL$2,BB7:BL7)))))))))))) -> n.d. | BN7: n.d. | BO7: n.d. | BP7: n.d. | BQ7: n.d. | BR7: n.d. | BS7: n.d. | BT7: n.d. | BU7: n.d. | BV7: n.d. | BW7: n.d. | BX7: n.d. | BY7: n.d. | BZ7: n.d. | CA7: n.d. | CB7: n.d. | CC7: n.d. | CD7: n.d. | CN7: n.d. | CO7: n.d. | CP7: n.d. | CQ7: n.d. | CR7: n.d. | CS7: n.d. | CT7: n.d. | CU7: n.d. | CV7: n.d. | CW7: 100 | CX7: n.d. | CY7: n.d. | CZ7: n.d. | DA7: n.d. | DB7: n.d. | DC7: n.d. | DD7: n.d. | DE7: n.d. | DF7: n.d. | DG7: n.d. | DH7: n.d. | DI7: 2707.21 | DJ7: 435.54 | DK7: 339.94 | DL7: n.d. | DM7: n.d. | DN7: n.d. | DO7: n.d. | DP7: n.d. | DQ7: n.d. | DR7: n.d. | DS7: n.d. | DT7: n.d. | DU7: n.d. | DV7: n.d. | DW7: n.d. | DX7: n.d. | DY7: n.d. | DZ7: n.d. | EA7: n.d. | EB7: n.d. | EC7: n.d. | EH7: PAIS | EI7: INFLACIÓN | EK7: PAIS | EL7: INFLACIÓN
B8: abril | C8: n.d. | D8: n.d. | E8: n.d. | F8: n.d. | G8: n.d. | H8: n.d. | I8: n.d. | J8: n.d. | K8: n.d. | L8: n.d. | M8: n.d. | N8: n.d. | O8: n.d. | P8: n.d | Q8: n.d | R8: n.d | S8: n.d | T8: n.d | U8: n.d | V8: n.d | W8: n.d | X8: n.d | Y8: n.d | Z8: n.d | AA8: n.d | AB8: n.d | AE8: 18.43 | AF8: n.d. | AH8: n.d. | AI8: n.d. | AJ8: n.d. | AK8: n.d. | AL8: n.d. | AM8: 220.64 | AN8: n.d. | AO8: n.d. | AP8: n.d. | AQ8: n.d. | AR8: n.d. | AS8: n.d. | AT8: n.d. | AU8: n.d. | AV8: n.d. | AW8: n.d. | AX8: n.d. | AY8: n.d. | AZ8: n.d. | BA8: n.d. | BB8: n.d. | BC8: n.d. | BD8: n.d. | BE8: n.d. | BF8: n.d. | BG8: n.d. | BH8: n.d. | BI8: n.d. | BJ8: n.d. | BK8: n.d. | BL8: n.d. | BM8: =IF('Tipos de Cambio'!$M$9="EuroZona",LOOKUP(1,$BB$2:$BL$2,BB8:BL8),IF('Tipos de Cambio'!$M$9="Reino Unido",LOOKUP(2,$BB$2:$BL$2,BB8:BL8),IF('Tipos de Cambio'!$M$9="Japón",LOOKUP(3,$BB$2:$BL$2,BB8:BL8),IF('Tipos de Cambio'!$M$9="Canadá",LOOKUP(4,$BB$2:$BL$2,BB8:BL8),IF('Tipos de Cambio'!$M$9="Rusia",LOOKUP(5,$BB$2:$BL$2,BB8:BL8),IF('Tipos de Cambio'!$M$9="Brasil",LOOKUP(6,$BB$2:$BL$2,BB8:BL8),IF('Tipos de Cambio'!$M$9="China",LOOKUP(7,$BB$2:$BL$2,BB8:BL8),IF('Tipos de Cambio'!$M$9="India",LOOKUP(8,$BB$2:$BL$2,BB8:BL8),IF('Tipos de Cambio'!$M$9="Sudáfrica",LOOKUP(9,$BB$2:$BL$2,BB8:BL8),IF('Tipos de Cambio'!$M$9="México",LOOKUP(10,$BB$2:$BL$2,BB8:BL8),IF('Tipos de Cambio'!$M$9="Colombia",LOOKUP(11,$BB$2:$BL$2,BB8:BL8)))))))))))) -> n.d. | BN8: n.d. | BO8: n.d. | BP8: n.d. | BQ8: n.d. | BR8: n.d. | BS8: n.d. | BT8: n.d. | BU8: n.d. | BV8: n.d. | BW8: n.d. | BX8: n.d. | BY8: n.d. | BZ8: n.d. | CA8: n.d. | CB8: n.d. | CC8: n.d. | CD8: n.d. | CN8: n.d. | CO8: n.d. | CP8: n.d. | CQ8: n.d. | CR8: n.d. | CS8: n.d. | CT8: n.d. | CU8: n.d. | CV8: n.d. | CW8: 100 | CX8: n.d. | CY8: n.d. | CZ8: n.d. | DA8: n.d. | DB8: n.d. | DC8: n.d. | DD8: n.d. | DE8: n.d. | DF8: n.d. | DG8: n.d. | DH8: n.d. | DI8: 2656.76 | DJ8: 420.07 | DK8: 330.8 | DL8: n.d. | DM8: n.d. | DN8: n.d. | DO8: n.d. | DP8: n.d. | DQ8: n.d. | DR8: n.d. | DS8: n.d. | DT8: n.d. | DU8: n.d. | DV8: n.d. | DW8: n.d. | DX8: n.d. | DY8: n.d. | DZ8: n.d. | EA8: n.d. | EB8: n.d. | EC8: n.d. | EH8: Argentina | EI8: ='Cuadro Comparativo AL'!G33 -> 21.7 | EK8: Ecuador | EL8: 0.1567957715
B9: mayo | C9: n.d. | D9: n.d. | E9: n.d. | F9: n.d. | G9: n.d. | H9: n.d. | I9: n.d. | J9: n.d. | K9: n.d. | L9: n.d. | M9: n.d. | N9: n.d. | O9: n.d. | P9: n.d | Q9: n.d | R9: n.d | S9: n.d | T9: n.d | U9: n.d | V9: n.d | W9: n.d | X9: n.d | Y9: n.d | Z9: n.d | AA9: n.d | AB9: n.d | AE9: 18.2 | AF9: n.d. | AH9: n.d. | AI9: n.d. | AJ9: n.d. | AK9: n.d. | AL9: n.d. | AM9: 232.21 | AN9: n.d. | AO9: n.d. | AP9: n.d. | AQ9: n.d. | AR9: n.d. | AS9: n.d. | AT9: n.d. | AU9: n.d. | AV9: n.d. | AW9: n.d. | AX9: n.d. | AY9: n.d. | AZ9: n.d. | BA9: n.d. | BB9: n.d. | BC9: n.d. | BD9: n.d. | BE9: n.d. | BF9: n.d. | BG9: n.d. | BH9: n.d. | BI9: n.d. | BJ9: n.d. | BK9: n.d. | BL9: n.d. | BM9: =IF('Tipos de Cambio'!$M$9="EuroZona",LOOKUP(1,$BB$2:$BL$2,BB9:BL9),IF('Tipos de Cambio'!$M$9="Reino Unido",LOOKUP(2,$BB$2:$BL$2,BB9:BL9),IF('Tipos de Cambio'!$M$9="Japón",LOOKUP(3,$BB$2:$BL$2,BB9:BL9),IF('Tipos de Cambio'!$M$9="Canadá",LOOKUP(4,$BB$2:$BL$2,BB9:BL9),IF('Tipos de Cambio'!$M$9="Rusia",LOOKUP(5,$BB$2:$BL$2,BB9:BL9),IF('Tipos de Cambio'!$M$9="Brasil",LOOKUP(6,$BB$2:$BL$2,BB9:BL9),IF('Tipos de Cambio'!$M$9="China",LOOKUP(7,$BB$2:$BL$2,BB9:BL9),IF('Tipos de Cambio'!$M$9="India",LOOKUP(8,$BB$2:$BL$2,BB9:BL9),IF('Tipos de Cambio'!$M$9="Sudáfrica",LOOKUP(9,$BB$2:$BL$2,BB9:BL9),IF('Tipos de Cambio'!$M$9="México",LOOKUP(10,$BB$2:$BL$2,BB9:BL9),IF('Tipos de Cambio'!$M$9="Colombia",LOOKUP(11,$BB$2:$BL$2,BB9:BL9)))))))))))) -> n.d. | BN9: n.d. | BO9: n.d. | BP9: n.d. | BQ9: n.d. | BR9: n.d. | BS9: n.d. | BT9: n.d. | BU9: n.d. | BV9: n.d. | BW9: n.d. | BX9: n.d. | BY9: n.d. | BZ9: n.d. | CA9: n.d. | CB9: n.d. | CC9: n.d. | CD9: n.d. | CN9: n.d. | CO9: n.d. | CP9: n.d. | CQ9: n.d. | CR9: n.d. | CS9: n.d. | CT9: n.d. | CU9: n.d. | CV9: n.d. | CW9: 100 | CX9: n.d. | CY9: n.d. | CZ9: n.d. | DA9: n.d. | DB9: n.d. | DC9: n.d. | DD9: n.d. | DE9: n.d. | DF9: n.d. | DG9: n.d. | DH9: n.d. | DI9: 2876.66 | DJ9: 458.97 | DK9: 361.23 | DL9: n.d. | DM9: n.d. | DN9: n.d. | DO9: n.d. | DP9: n.d. | DQ9: n.d. | DR9: n.d. | DS9: n.d. | DT9: n.d. | DU9: n.d. | DV9: n.d. | DW9: n.d. | DX9: n.d. | DY9: n.d. | DZ9: n.d. | EA9: n.d. | EB9: n.d. | EC9: n.d. | EH9: Bolivia | EI9: ='Cuadro Comparativo AL'!G34 -> 1.834359193 | EK9: Panamá | EL9: 0.6756756757
B10: junio | C10: n.d. | D10: n.d. | E10: n.d. | F10: n.d. | G10: n.d. | H10: n.d. | I10: n.d. | J10: n.d. | K10: n.d. | L10: n.d. | M10: n.d. | N10: n.d. | O10: n.d. | P10: n.d | Q10: n.d | R10: n.d | S10: n.d | T10: n.d | U10: n.d | V10: n.d | W10: n.d | X10: n.d | Y10: n.d | Z10: n.d | AA10: n.d | AB10: n.d | AE10: 16.7 | AF10: n.d. | AH10: n.d. | AI10: n.d. | AJ10: n.d. | AK10: n.d. | AL10: n.d. | AM10: 224.77 | AN10: n.d. | AO10: n.d. | AP10: n.d. | AQ10: n.d. | AR10: n.d. | AS10: n.d. | AT10: n.d. | AU10: n.d. | AV10: n.d. | AW10: n.d. | AX10: n.d. | AY10: n.d. | AZ10: n.d. | BA10: n.d. | BB10: n.d. | BC10: n.d. | BD10: n.d. | BE10: n.d. | BF10: n.d. | BG10: n.d. | BH10: n.d. | BI10: n.d. | BJ10: n.d. | BK10: n.d. | BL10: n.d. | BM10: =IF('Tipos de Cambio'!$M$9="EuroZona",LOOKUP(1,$BB$2:$BL$2,BB10:BL10),IF('Tipos de Cambio'!$M$9="Reino Unido",LOOKUP(2,$BB$2:$BL$2,BB10:BL10),IF('Tipos de Cambio'!$M$9="Japón",LOOKUP(3,$BB$2:$BL$2,BB10:BL10),IF('Tipos de Cambio'!$M$9="Canadá",LOOKUP(4,$BB$2:$BL$2,BB10:BL10),IF('Tipos de Cambio'!$M$9="Rusia",LOOKUP(5,$BB$2:$BL$2,BB10:BL10),IF('Tipos de Cambio'!$M$9="Brasil",LOOKUP(6,$BB$2:$BL$2,BB10:BL10),IF('Tipos de Cambio'!$M$9="China",LOOKUP(7,$BB$2:$BL$2,BB10:BL10),IF('Tipos de Cambio'!$M$9="India",LOOKUP(8,$BB$2:$BL$2,BB10:BL10),IF('Tipos de Cambio'!$M$9="Sudáfrica",LOOKUP(9,$BB$2:$BL$2,BB10:BL10),IF('Tipos de Cambio'!$M$9="México",LOOKUP(10,$BB$2:$BL$2,BB10:BL10),IF('Tipos de Cambio'!$M$9="Colombia",LOOKUP(11,$BB$2:$BL$2,BB10:BL10)))))))))))) -> n.d. | BN10: n.d. | BO10: n.d. | BP10: n.d. | BQ10: n.d. | BR10: n.d. | BS10: n.d. | BT10: n.d. | BU10: n.d. | BV10: n.d. | BW10: n.d. | BX10: n.d. | BY10: n.d. | BZ10: n.d. | CA10: n.d. | CB10: n.d. | CC10: n.d. | CD10: n.d. | CN10: n.d. | CO10: n.d. | CP10: n.d. | CQ10: n.d. | CR10: n.d. | CS10: n.d. | CT10: n.d. | CU10: n.d. | CV10: n.d. | CW10: 100 | CX10: n.d. | CY10: n.d. | CZ10: n.d. | DA10: n.d. | DB10: n.d. | DC10: n.d. | DD10: n.d. | DE10: n.d. | DF10: n.d. | DG10: n.d. | DH10: n.d. | DI10: 2880.69 | DJ10: 462.29 | DK10: 358.02 | DL10: n.d. | DM10: n.d. | DN10: n.d. | DO10: n.d. | DP10: n.d. | DQ10: n.d. | DR10: n.d. | DS10: n.d. | DT10: n.d. | DU10: n.d. | DV10: n.d. | DW10: n.d. | DX10: n.d. | DY10: n.d. | DZ10: n.d. | EA10: n.d. | EB10: n.d. | EC10: n.d. | EH10: Brasil | EI10: ='Cuadro Comparativo AL'!G24 -> 2.998556992 | EK10: El Salvador | EL10: 0.9252539913
B11: julio | C11: n.d. | D11: n.d. | E11: n.d. | F11: n.d. | G11: n.d. | H11: n.d. | I11: n.d. | J11: n.d. | K11: n.d. | L11: n.d. | M11: n.d. | N11: n.d. | O11: n.d. | P11: n.d | Q11: n.d | R11: n.d | S11: n.d | T11: n.d | U11: n.d | V11: n.d | W11: n.d | X11: n.d | Y11: n.d | Z11: n.d | AA11: n.d | AB11: n.d | AE11: 18.45 | AF11: n.d. | AH11: n.d. | AI11: n.d. | AJ11: n.d. | AK11: n.d. | AL11: n.d. | AM11: 230.56 | AN11: n.d. | AO11: n.d. | AP11: n.d. | AQ11: n.d. | AR11: n.d. | AS11: n.d. | AT11: n.d. | AU11: n.d. | AV11: n.d. | AW11: n.d. | AX11: n.d. | AY11: n.d. | AZ11: n.d. | BA11: n.d. | BB11: n.d. | BC11: n.d. | BD11: n.d. | BE11: n.d. | BF11: n.d. | BG11: n.d. | BH11: n.d. | BI11: n.d. | BJ11: n.d. | BK11: n.d. | BL11: n.d. | BM11: =IF('Tipos de Cambio'!$M$9="EuroZona",LOOKUP(1,$BB$2:$BL$2,BB11:BL11),IF('Tipos de Cambio'!$M$9="Reino Unido",LOOKUP(2,$BB$2:$BL$2,BB11:BL11),IF('Tipos de Cambio'!$M$9="Japón",LOOKUP(3,$BB$2:$BL$2,BB11:BL11),IF('Tipos de Cambio'!$M$9="Canadá",LOOKUP(4,$BB$2:$BL$2,BB11:BL11),IF('Tipos de Cambio'!$M$9="Rusia",LOOKUP(5,$BB$2:$BL$2,BB11:BL11),IF('Tipos de Cambio'!$M$9="Brasil",LOOKUP(6,$BB$2:$BL$2,BB11:BL11),IF('Tipos de Cambio'!$M$9="China",LOOKUP(7,$BB$2:$BL$2,BB11:BL11),IF('Tipos de Cambio'!$M$9="India",LOOKUP(8,$BB$2:$BL$2,BB11:BL11),IF('Tipos de Cambio'!$M$9="Sudáfrica",LOOKUP(9,$BB$2:$BL$2,BB11:BL11),IF('Tipos de Cambio'!$M$9="México",LOOKUP(10,$BB$2:$BL$2,BB11:BL11),IF('Tipos de Cambio'!$M$9="Colombia",LOOKUP(11,$BB$2:$BL$2,BB11:BL11)))))))))))) -> n.d. | BN11: n.d. | BO11: n.d. | BP11: n.d. | BQ11: n.d. | BR11: n.d. | BS11: n.d. | BT11: n.d. | BU11: n.d. | BV11: n.d. | BW11: n.d. | BX11: n.d. | BY11: n.d. | BZ11: n.d. | CA11: n.d. | CB11: n.d. | CC11: n.d. | CD11: n.d. | CN11: n.d. | CO11: n.d. | CP11: n.d. | CQ11: n.d. | CR11: n.d. | CS11: n.d. | CT11: n.d. | CU11: n.d. | CV11: n.d. | CW11: 100 | CX11: n.d. | CY11: n.d. | CZ11: n.d. | DA11: n.d. | DB11: n.d. | DC11: n.d. | DD11: n.d. | DE11: n.d. | DF11: n.d. | DG11: n.d. | DH11: n.d. | DI11: 2905.2 | DJ11: 438.24 | DK11: 356.15 | DL11: n.d. | DM11: n.d. | DN11: n.d. | DO11: n.d. | DP11: n.d. | DQ11: n.d. | DR11: n.d. | DS11: n.d. | DT11: n.d. | DU11: n.d. | DV11: n.d. | DW11: n.d. | DX11: n.d. | DY11: n.d. | DZ11: n.d. | EA11: n.d. | EB11: n.d. | EC11: n.d. | EH11: Chile | EI11: ='Cuadro Comparativo AL'!G26 -> 1.697375169 | EK11: Chile | EL11: 1.697375169
B12: agosto | C12: n.d. | D12: n.d. | E12: n.d. | F12: n.d. | G12: n.d. | H12: n.d. | I12: n.d. | J12: n.d. | K12: n.d. | L12: n.d. | M12: n.d. | N12: n.d. | O12: n.d. | P12: n.d | Q12: n.d | R12: n.d | S12: n.d | T12: n.d | U12: n.d | V12: n.d | W12: n.d | X12: n.d | Y12: n.d | Z12: n.d | AA12: n.d | AB12: n.d | AE12: 27.31 | AF12: n.d. | AH12: n.d. | AI12: n.d. | AJ12: n.d. | AK12: n.d. | AL12: n.d. | AM12: 240.47 | AN12: n.d. | AO12: n.d. | AP12: n.d. | AQ12: n.d. | AR12: n.d. | AS12: n.d. | AT12: n.d. | AU12: n.d. | AV12: n.d. | AW12: n.d. | AX12: n.d. | AY12: n.d. | AZ12: n.d. | BA12: n.d. | BB12: n.d. | BC12: n.d. | BD12: n.d. | BE12: n.d. | BF12: n.d. | BG12: n.d. | BH12: n.d. | BI12: n.d. | BJ12: n.d. | BK12: n.d. | BL12: n.d. | BM12: =IF('Tipos de Cambio'!$M$9="EuroZona",LOOKUP(1,$BB$2:$BL$2,BB12:BL12),IF('Tipos de Cambio'!$M$9="Reino Unido",LOOKUP(2,$BB$2:$BL$2,BB12:BL12),IF('Tipos de Cambio'!$M$9="Japón",LOOKUP(3,$BB$2:$BL$2,BB12:BL12),IF('Tipos de Cambio'!$M$9="Canadá",LOOKUP(4,$BB$2:$BL$2,BB12:BL12),IF('Tipos de Cambio'!$M$9="Rusia",LOOKUP(5,$BB$2:$BL$2,BB12:BL12),IF('Tipos de Cambio'!$M$9="Brasil",LOOKUP(6,$BB$2:$BL$2,BB12:BL12),IF('Tipos de Cambio'!$M$9="China",LOOKUP(7,$BB$2:$BL$2,BB12:BL12),IF('Tipos de Cambio'!$M$9="India",LOOKUP(8,$BB$2:$BL$2,BB12:BL12),IF('Tipos de Cambio'!$M$9="Sudáfrica",LOOKUP(9,$BB$2:$BL$2,BB12:BL12),IF('Tipos de Cambio'!$M$9="México",LOOKUP(10,$BB$2:$BL$2,BB12:BL12),IF('Tipos de Cambio'!$M$9="Colombia",LOOKUP(11,$BB$2:$BL$2,BB12:BL12)))))))))))) -> n.d. | BN12: n.d. | BO12: n.d. | BP12: n.d. | BQ12: n.d. | BR12: n.d. | BS12: n.d. | BT12: n.d. | BU12: n.d. | BV12: n.d. | BW12: n.d. | BX12: n.d. | BY12: n.d. | BZ12: n.d. | CA12: n.d. | CB12: n.d. | CC12: n.d. | CD12: n.d. | CN12: n.d. | CO12: n.d. | CP12: n.d. | CQ12: n.d. | CR12: n.d. | CS12: n.d. | CT12: n.d. | CU12: n.d. | CV12: n.d. | CW12: 100 | CX12: n.d. | CY12: n.d. | CZ12: n.d. | DA12: n.d. | DB12: n.d. | DC12: n.d. | DD12: n.d. | DE12: n.d. | DF12: n.d. | DG12: n.d. | DH12: n.d. | DI12: 2614.36 | DJ12: 381.21 | DK12: 322.56 | DL12: n.d. | DM12: n.d. | DN12: n.d. | DO12: n.d. | DP12: n.d. | DQ12: n.d. | DR12: n.d. | DS12: n.d. | DT12: n.d. | DU12: n.d. | DV12: n.d. | DW12: n.d. | DX12: n.d. | DY12: n.d. | DZ12: n.d. | EA12: n.d. | EB12: n.d. | EC12: n.d. | EH12: Colombia | EI12: ='Cuadro Comparativo AL'!G25 -> 3.987368925 | EK12: Costa Rica | EL12: 1.774317039
B13: septiembre | C13: n.d. | D13: n.d. | E13: n.d. | F13: n.d. | G13: n.d. | H13: n.d. | I13: n.d. | J13: n.d. | K13: n.d. | L13: n.d. | M13: n.d. | N13: n.d. | O13: n.d. | P13: n.d | Q13: n.d | R13: n.d | S13: n.d | T13: n.d | U13: n.d | V13: n.d | W13: n.d | X13: n.d | Y13: n.d | Z13: n.d | AA13: n.d | AB13: n.d | AE13: 33.51 | AF13: n.d. | AH13: n.d. | AI13: n.d. | AJ13: n.d. | AK13: n.d. | AL13: n.d. | AM13: 234.69 | AN13: n.d. | AO13: n.d. | AP13: n.d. | AQ13: n.d. | AR13: n.d. | AS13: n.d. | AT13: n.d. | AU13: n.d. | AV13: n.d. | AW13: n.d. | AX13: n.d. | AY13: n.d. | AZ13: n.d. | BA13: n.d. | BB13: n.d. | BC13: n.d. | BD13: n.d. | BE13: n.d. | BF13: n.d. | BG13: n.d. | BH13: n.d. | BI13: n.d. | BJ13: n.d. | BK13: n.d. | BL13: n.d. | BM13: =IF('Tipos de Cambio'!$M$9="EuroZona",LOOKUP(1,$BB$2:$BL$2,BB13:BL13),IF('Tipos de Cambio'!$M$9="Reino Unido",LOOKUP(2,$BB$2:$BL$2,BB13:BL13),IF('Tipos de Cambio'!$M$9="Japón",LOOKUP(3,$BB$2:$BL$2,BB13:BL13),IF('Tipos de Cambio'!$M$9="Canadá",LOOKUP(4,$BB$2:$BL$2,BB13:BL13),IF('Tipos de Cambio'!$M$9="Rusia",LOOKUP(5,$BB$2:$BL$2,BB13:BL13),IF('Tipos de Cambio'!$M$9="Brasil",LOOKUP(6,$BB$2:$BL$2,BB13:BL13),IF('Tipos de Cambio'!$M$9="China",LOOKUP(7,$BB$2:$BL$2,BB13:BL13),IF('Tipos de Cambio'!$M$9="India",LOOKUP(8,$BB$2:$BL$2,BB13:BL13),IF('Tipos de Cambio'!$M$9="Sudáfrica",LOOKUP(9,$BB$2:$BL$2,BB13:BL13),IF('Tipos de Cambio'!$M$9="México",LOOKUP(10,$BB$2:$BL$2,BB13:BL13),IF('Tipos de Cambio'!$M$9="Colombia",LOOKUP(11,$BB$2:$BL$2,BB13:BL13)))))))))))) -> n.d. | BN13: n.d. | BO13: n.d. | BP13: n.d. | BQ13: n.d. | BR13: n.d. | BS13: n.d. | BT13: n.d. | BU13: n.d. | BV13: n.d. | BW13: n.d. | BX13: n.d. | BY13: n.d. | BZ13: n.d. | CA13: n.d. | CB13: n.d. | CC13: n.d. | CD13: n.d. | CN13: n.d. | CO13: n.d. | CP13: n.d. | CQ13: n.d. | CR13: n.d. | CS13: n.d. | CT13: n.d. | CU13: n.d. | CV13: n.d. | CW13: 100 | CX13: n.d. | CY13: n.d. | CZ13: n.d. | DA13: n.d. | DB13: n.d. | DC13: n.d. | DD13: n.d. | DE13: n.d. | DF13: n.d. | DG13: n.d. | DH13: n.d. | DI13: 2452.48 | DJ13: 344.51 | DK13: 306.05 | DL13: n.d. | DM13: n.d. | DN13: n.d. | DO13: n.d. | DP13: n.d. | DQ13: n.d. | DR13: n.d. | DS13: n.d. | DT13: n.d. | DU13: n.d. | DV13: n.d. | DW13: n.d. | DX13: n.d. | DY13: n.d. | DZ13: n.d. | EA13: n.d. | EB13: n.d. | EC13: n.d. | EH13: Costa Rica | EI13: ='Cuadro Comparativo AL'!G14 -> 1.774317039 | EK13: Bolivia | EL13: 1.834359193
B14: octubre | C14: n.d. | D14: n.d. | E14: n.d. | F14: n.d. | G14: n.d. | H14: n.d. | I14: n.d. | J14: n.d. | K14: n.d. | L14: n.d. | M14: n.d. | N14: n.d. | O14: n.d. | P14: n.d | Q14: n.d | R14: n.d | S14: n.d | T14: n.d | U14: n.d | V14: n.d | W14: n.d | X14: n.d | Y14: n.d | Z14: n.d | AA14: n.d | AB14: n.d | AE14: 36.04 | AF14: n.d. | AH14: n.d. | AI14: n.d. | AJ14: n.d. | AK14: n.d. | AL14: n.d. | AM14: 239.65 | AN14: n.d. | AO14: n.d. | AP14: n.d. | AQ14: n.d. | AR14: n.d. | AS14: n.d. | AT14: n.d. | AU14: n.d. | AV14: n.d. | AW14: n.d. | AX14: n.d. | AY14: n.d. | AZ14: n.d. | BA14: n.d. | BB14: n.d. | BC14: n.d. | BD14: n.d. | BE14: n.d. | BF14: n.d. | BG14: n.d. | BH14: n.d. | BI14: n.d. | BJ14: n.d. | BK14: n.d. | BL14: n.d. | BM14: =IF('Tipos de Cambio'!$M$9="EuroZona",LOOKUP(1,$BB$2:$BL$2,BB14:BL14),IF('Tipos de Cambio'!$M$9="Reino Unido",LOOKUP(2,$BB$2:$BL$2,BB14:BL14),IF('Tipos de Cambio'!$M$9="Japón",LOOKUP(3,$BB$2:$BL$2,BB14:BL14),IF('Tipos de Cambio'!$M$9="Canadá",LOOKUP(4,$BB$2:$BL$2,BB14:BL14),IF('Tipos de Cambio'!$M$9="Rusia",LOOKUP(5,$BB$2:$BL$2,BB14:BL14),IF('Tipos de Cambio'!$M$9="Brasil",LOOKUP(6,$BB$2:$BL$2,BB14:BL14),IF('Tipos de Cambio'!$M$9="China",LOOKUP(7,$BB$2:$BL$2,BB14:BL14),IF('Tipos de Cambio'!$M$9="India",LOOKUP(8,$BB$2:$BL$2,BB14:BL14),IF('Tipos de Cambio'!$M$9="Sudáfrica",LOOKUP(9,$BB$2:$BL$2,BB14:BL14),IF('Tipos de Cambio'!$M$9="México",LOOKUP(10,$BB$2:$BL$2,BB14:BL14),IF('Tipos de Cambio'!$M$9="Colombia",LOOKUP(11,$BB$2:$BL$2,BB14:BL14)))))))))))) -> n.d. | BN14: n.d. | BO14: n.d. | BP14: n.d. | BQ14: n.d. | BR14: n.d. | BS14: n.d. | BT14: n.d. | BU14: n.d. | BV14: n.d. | BW14: n.d. | BX14: n.d. | BY14: n.d. | BZ14: n.d. | CA14: n.d. | CB14: n.d. | CC14: n.d. | CD14: n.d. | CN14: n.d. | CO14: n.d. | CP14: n.d. | CQ14: n.d. | CR14: n.d. | CS14: n.d. | CT14: n.d. | CU14: n.d. | CV14: n.d. | CW14: 100 | CX14: n.d. | CY14: n.d. | CZ14: n.d. | DA14: n.d. | DB14: n.d. | DC14: n.d. | DD14: n.d. | DE14: n.d. | DF14: n.d. | DG14: n.d. | DH14: n.d. | DI14: 2442.33 | DJ14: 329.84 | DK14: 304 | DL14: n.d. | DM14: n.d. | DN14: n.d. | DO14: n.d. | DP14: n.d. | DQ14: n.d. | DR14: n.d. | DS14: n.d. | DT14: n.d. | DU14: n.d. | DV14: n.d. | DW14: n.d. | DX14: n.d. | DY14: n.d. | DZ14: n.d. | EA14: n.d. | EB14: n.d. | EC14: n.d. | EH14: Ecuador | EI14: ='Cuadro Comparativo AL'!G38 -> 0.1567957715 | EK14: Región CAPARD | EL14: 2.533049839
B15: noviembre | C15: n.d. | D15: n.d. | E15: n.d. | F15: n.d. | G15: n.d. | H15: n.d. | I15: n.d. | J15: n.d. | K15: n.d. | L15: n.d. | M15: n.d. | N15: n.d. | O15: n.d. | P15: n.d | Q15: n.d | R15: n.d | S15: n.d | T15: n.d | U15: n.d | V15: n.d | W15: n.d | X15: n.d | Y15: n.d | Z15: n.d | AA15: n.d | AB15: n.d | AE15: 32.33 | AF15: n.d. | AH15: n.d. | AI15: n.d. | AJ15: n.d. | AK15: n.d. | AL15: n.d. | AM15: 274.35 | AN15: n.d. | AO15: n.d. | AP15: n.d. | AQ15: n.d. | AR15: n.d. | AS15: n.d. | AT15: n.d. | AU15: n.d. | AV15: n.d. | AW15: n.d. | AX15: n.d. | AY15: n.d. | AZ15: n.d. | BA15: n.d. | BB15: n.d. | BC15: n.d. | BD15: n.d. | BE15: n.d. | BF15: n.d. | BG15: n.d. | BH15: n.d. | BI15: n.d. | BJ15: n.d. | BK15: n.d. | BL15: n.d. | BM15: =IF('Tipos de Cambio'!$M$9="EuroZona",LOOKUP(1,$BB$2:$BL$2,BB15:BL15),IF('Tipos de Cambio'!$M$9="Reino Unido",LOOKUP(2,$BB$2:$BL$2,BB15:BL15),IF('Tipos de Cambio'!$M$9="Japón",LOOKUP(3,$BB$2:$BL$2,BB15:BL15),IF('Tipos de Cambio'!$M$9="Canadá",LOOKUP(4,$BB$2:$BL$2,BB15:BL15),IF('Tipos de Cambio'!$M$9="Rusia",LOOKUP(5,$BB$2:$BL$2,BB15:BL15),IF('Tipos de Cambio'!$M$9="Brasil",LOOKUP(6,$BB$2:$BL$2,BB15:BL15),IF('Tipos de Cambio'!$M$9="China",LOOKUP(7,$BB$2:$BL$2,BB15:BL15),IF('Tipos de Cambio'!$M$9="India",LOOKUP(8,$BB$2:$BL$2,BB15:BL15),IF('Tipos de Cambio'!$M$9="Sudáfrica",LOOKUP(9,$BB$2:$BL$2,BB15:BL15),IF('Tipos de Cambio'!$M$9="México",LOOKUP(10,$BB$2:$BL$2,BB15:BL15),IF('Tipos de Cambio'!$M$9="Colombia",LOOKUP(11,$BB$2:$BL$2,BB15:BL15)))))))))))) -> n.d. | BN15: n.d. | BO15: n.d. | BP15: n.d. | BQ15: n.d. | BR15: n.d. | BS15: n.d. | BT15: n.d. | BU15: n.d. | BV15: n.d. | BW15: n.d. | BX15: n.d. | BY15: n.d. | BZ15: n.d. | CA15: n.d. | CB15: n.d. | CC15: n.d. | CD15: n.d. | CN15: n.d. | CO15: n.d. | CP15: n.d. | CQ15: n.d. | CR15: n.d. | CS15: n.d. | CT15: n.d. | CU15: n.d. | CV15: n.d. | CW15: 100 | CX15: n.d. | CY15: n.d. | CZ15: n.d. | DA15: n.d. | DB15: n.d. | DC15: n.d. | DD15: n.d. | DE15: n.d. | DF15: n.d. | DG15: n.d. | DH15: n.d. | DI15: 2559.65 | DJ15: 359.06 | DK15: 322.22 | DL15: n.d. | DM15: n.d. | DN15: n.d. | DO15: n.d. | DP15: n.d. | DQ15: n.d. | DR15: n.d. | DS15: n.d. | DT15: n.d. | DU15: n.d. | DV15: n.d. | DW15: n.d. | DX15: n.d. | DY15: n.d. | DZ15: n.d. | EA15: n.d. | EB15: n.d. | EC15: n.d. | EH15: El Salvador | EI15: ='Cuadro Comparativo AL'!G18 -> 0.9252539913 | EK15: República Dominicana | EL15: 2.550978288
B16: diciembre | C16: n.d. | D16: n.d. | E16: n.d. | F16: n.d. | G16: n.d. | H16: n.d. | I16: n.d. | J16: n.d. | K16: n.d. | L16: n.d. | M16: n.d. | N16: n.d. | O16: n.d. | P16: n.d | Q16: n.d | R16: n.d | S16: n.d | T16: n.d | U16: n.d | V16: n.d | W16: n.d | X16: n.d | Y16: n.d | Z16: n.d | AA16: n.d | AB16: n.d | AE16: 27.28 | AF16: n.d. | AH16: n.d. | AI16: n.d. | AJ16: n.d. | AK16: n.d. | AL16: n.d. | AM16: 285.92 | AN16: n.d. | AO16: n.d. | AP16: n.d. | AQ16: n.d. | AR16: n.d. | AS16: n.d. | AT16: n.d. | AU16: n.d. | AV16: n.d. | AW16: n.d. | AX16: n.d. | AY16: n.d. | AZ16: n.d. | BA16: n.d. | BB16: 0.6702412869 | BC16: n.d. | BD16: 133.55 | BE16: 1.16 | BF16: n.d. | BG16: n.d. | BH16: n.d. | BI16: n.d. | BJ16: n.d. | BK16: 2.9409 | BL16: n.d. | BM16: =IF('Tipos de Cambio'!$M$9="EuroZona",LOOKUP(1,$BB$2:$BL$2,BB16:BL16),IF('Tipos de Cambio'!$M$9="Reino Unido",LOOKUP(2,$BB$2:$BL$2,BB16:BL16),IF('Tipos de Cambio'!$M$9="Japón",LOOKUP(3,$BB$2:$BL$2,BB16:BL16),IF('Tipos de Cambio'!$M$9="Canadá",LOOKUP(4,$BB$2:$BL$2,BB16:BL16),IF('Tipos de Cambio'!$M$9="Rusia",LOOKUP(5,$BB$2:$BL$2,BB16:BL16),IF('Tipos de Cambio'!$M$9="Brasil",LOOKUP(6,$BB$2:$BL$2,BB16:BL16),IF('Tipos de Cambio'!$M$9="China",LOOKUP(7,$BB$2:$BL$2,BB16:BL16),IF('Tipos de Cambio'!$M$9="India",LOOKUP(8,$BB$2:$BL$2,BB16:BL16),IF('Tipos de Cambio'!$M$9="Sudáfrica",LOOKUP(9,$BB$2:$BL$2,BB16:BL16),IF('Tipos de Cambio'!$M$9="México",LOOKUP(10,$BB$2:$BL$2,BB16:BL16),IF('Tipos de Cambio'!$M$9="Colombia",LOOKUP(11,$BB$2:$BL$2,BB16:BL16)))))))))))) -> n.d. | BN16: n.d. | BO16: n.d. | BP16: n.d. | BQ16: n.d. | BR16: n.d. | BS16: n.d. | BT16: n.d. | BU16: n.d. | BV16: n.d. | BW16: n.d. | BX16: n.d. | BY16: n.d. | BZ16: n.d. | CA16: n.d. | CB16: n.d. | CC16: n.d. | CD16: n.d. | CN16: n.d. | CO16: n.d. | CP16: n.d. | CQ16: n.d. | CR16: n.d. | CS16: n.d. | CT16: n.d. | CU16: n.d. | CV16: n.d. | CW16: 100 | CX16: n.d. | CY16: n.d. | CZ16: n.d. | DA16: n.d. | DB16: n.d. | DC16: n.d. | DD16: n.d. | DE16: n.d. | DF16: n.d. | DG16: n.d. | DH16: n.d. | DI16: 2633.66 | DJ16: 373.84 | DK16: 330.22 | DL16: n.d. | DM16: n.d. | DN16: n.d. | DO16: n.d. | DP16: n.d. | DQ16: n.d. | DR16: n.d. | DS16: n.d. | DT16: n.d. | DU16: n.d. | DV16: n.d. | DW16: n.d. | DX16: n.d. | DY16: n.d. | DZ16: n.d. | EA16: n.d. | EB16: n.d. | EC16: n.d. | EH16: Guatemala | EI16: ='Cuadro Comparativo AL'!G15 -> 4.364920164 | EK16: Perú | EL16: 2.732443918
A17: 1991 | B17: enero | C17: 5.651491366 | D17: 3.897685749 | E17: n.d. | F17: n.d. | G17: n.d. | H17: 4.10654828 | I17: n.d. | J17: n.d. | K17: n.d. | L17: n.d. | M17: n.d. | N17: 27.1068992 | O17: n.d. | P17: n.d | Q17: n.d | R17: n.d | S17: n.d | T17: n.d | U17: n.d | V17: n.d | W17: n.d | X17: n.d | Y17: n.d | Z17: n.d | AA17: n.d | AB17: n.d | AE17: 25.23 | AF17: n.d. | AH17: n.d. | AI17: n.d. | AJ17: n.d. | AK17: n.d. | AL17: n.d. | AM17: 288.4 | AN17: n.d. | AO17: n.d. | AP17: n.d. | AQ17: n.d. | AR17: n.d. | AS17: n.d. | AT17: n.d. | AU17: n.d. | AV17: n.d. | AW17: n.d. | AX17: n.d. | AY17: n.d. | AZ17: n.d. | BA17: n.d. | BB17: 0.6622516556 | BC17: n.d. | BD17: 133.7 | BE17: 1.1559 | BF17: n.d. | BG17: n.d. | BH17: n.d. | BI17: n.d. | BJ17: n.d. | BK17: 2.9532 | BL17: n.d. | BM17: =IF('Tipos de Cambio'!$M$9="EuroZona",LOOKUP(1,$BB$2:$BL$2,BB17:BL17),IF('Tipos de Cambio'!$M$9="Reino Unido",LOOKUP(2,$BB$2:$BL$2,BB17:BL17),IF('Tipos de Cambio'!$M$9="Japón",LOOKUP(3,$BB$2:$BL$2,BB17:BL17),IF('Tipos de Cambio'!$M$9="Canadá",LOOKUP(4,$BB$2:$BL$2,BB17:BL17),IF('Tipos de Cambio'!$M$9="Rusia",LOOKUP(5,$BB$2:$BL$2,BB17:BL17),IF('Tipos de Cambio'!$M$9="Brasil",LOOKUP(6,$BB$2:$BL$2,BB17:BL17),IF('Tipos de Cambio'!$M$9="China",LOOKUP(7,$BB$2:$BL$2,BB17:BL17),IF('Tipos de Cambio'!$M$9="India",LOOKUP(8,$BB$2:$BL$2,BB17:BL17),IF('Tipos de Cambio'!$M$9="Sudáfrica",LOOKUP(9,$BB$2:$BL$2,BB17:BL17),IF('Tipos de Cambio'!$M$9="México",LOOKUP(10,$BB$2:$BL$2,BB17:BL17),IF('Tipos de Cambio'!$M$9="Colombia",LOOKUP(11,$BB$2:$BL$2,BB17:BL17)))))))))))) -> n.d. | BN17: n.d. | BO17: n.d. | BP17: n.d. | BQ17: n.d. | BR17: n.d. | BS17: n.d. | BT17: n.d. | BU17: n.d. | BV17: n.d. | BW17: n.d. | BX17: n.d. | BY17: n.d. | BZ17: n.d. | CA17: n.d. | CB17: n.d. | CC17: n.d. | CD17: n.d. | CE17: =IFERROR((BV17/BV5-1)*100,"n.d.") -> n.d. | CF17: n.d. | CG17: n.d. | CH17: n.d. | CI17: n.d. | CJ17: n.d. | CK17: n.d. | CL17: n.d. | CM17: n.d. | CN17: n.d. | CO17: n.d. | CP17: n.d. | CQ17: n.d. | CR17: n.d. | CS17: n.d. | CT17: n.d. | CU17: n.d. | CV17: n.d. | CW17: 100 | CX17: n.d. | CY17: n.d. | CZ17: n.d. | DA17: n.d. | DB17: n.d. | DC17: n.d. | DD17: n.d. | DE17: n.d. | DF17: n.d. | DG17: n.d. | DH17: n.d. | DI17: 2736.39 | DJ17: 414.2 | DK17: 343.93 | DL17: n.d. | DM17: n.d. | DN17: n.d. | DO17: n.d. | DP17: n.d. | DQ17: n.d. | DR17: n.d. | DS17: n.d. | DT17: n.d. | DU17: n.d. | DV17: n.d. | DW17: n.d. | DX17: n.d. | DY17: n.d. | DZ17: n.d. | EA17: n.d. | EB17: n.d. | EC17: n.d. | EH17: Honduras | EI17: ='Cuadro Comparativo AL'!G19 -> 3.650631184 | EK17: Región CARD | EL17: 2.864109357
B18: febrero | C18: 5.3125 | D18: 4.126213592 | E18: n.d. | F18: n.d. | G18: n.d. | H18: 3.543743079 | I18: n.d. | J18: n.d. | K18: n.d. | L18: n.d. | M18: n.d. | N18: 26.46218753 | O18: n.d. | P18: n.d | Q18: n.d | R18: n.d | S18: n.d | T18: n.d | U18: n.d | V18: n.d | W18: n.d | X18: n.d | Y18: n.d | Z18: n.d | AA18: n.d | AB18: n.d | AE18: 20.48 | AF18: n.d. | AH18: n.d. | AI18: n.d. | AJ18: n.d. | AK18: n.d. | AL18: n.d. | AM18: 279.31 | AN18: n.d. | AO18: n.d. | AP18: n.d. | AQ18: n.d. | AR18: n.d. | AS18: n.d. | AT18: n.d. | AU18: n.d. | AV18: n.d. | AW18: n.d. | AX18: n.d. | AY18: n.d. | AZ18: n.d. | BA18: n.d. | BB18: 0.6757213325 | BC18: n.d. | BD18: 130.54 | BE18: 1.1546 | BF18: n.d. | BG18: n.d. | BH18: n.d. | BI18: n.d. | BJ18: n.d. | BK18: 2.965 | BL18: n.d. | BM18: =IF('Tipos de Cambio'!$M$9="EuroZona",LOOKUP(1,$BB$2:$BL$2,BB18:BL18),IF('Tipos de Cambio'!$M$9="Reino Unido",LOOKUP(2,$BB$2:$BL$2,BB18:BL18),IF('Tipos de Cambio'!$M$9="Japón",LOOKUP(3,$BB$2:$BL$2,BB18:BL18),IF('Tipos de Cambio'!$M$9="Canadá",LOOKUP(4,$BB$2:$BL$2,BB18:BL18),IF('Tipos de Cambio'!$M$9="Rusia",LOOKUP(5,$BB$2:$BL$2,BB18:BL18),IF('Tipos de Cambio'!$M$9="Brasil",LOOKUP(6,$BB$2:$BL$2,BB18:BL18),IF('Tipos de Cambio'!$M$9="China",LOOKUP(7,$BB$2:$BL$2,BB18:BL18),IF('Tipos de Cambio'!$M$9="India",LOOKUP(8,$BB$2:$BL$2,BB18:BL18),IF('Tipos de Cambio'!$M$9="Sudáfrica",LOOKUP(9,$BB$2:$BL$2,BB18:BL18),IF('Tipos de Cambio'!$M$9="México",LOOKUP(10,$BB$2:$BL$2,BB18:BL18),IF('Tipos de Cambio'!$M$9="Colombia",LOOKUP(11,$BB$2:$BL$2,BB18:BL18)))))))))))) -> n.d. | BN18: n.d. | BO18: n.d. | BP18: n.d. | BQ18: n.d. | BR18: n.d. | BS18: n.d. | BT18: n.d. | BU18: n.d. | BV18: n.d. | BW18: n.d. | BX18: n.d. | BY18: n.d. | BZ18: n.d. | CA18: n.d. | CB18: n.d. | CC18: n.d. | CD18: n.d. | CE18: n.d. | CF18: n.d. | CG18: n.d. | CH18: n.d. | CI18: n.d. | CJ18: n.d. | CK18: n.d. | CL18: n.d. | CM18: n.d. | CN18: n.d. | CO18: n.d. | CP18: n.d. | CQ18: n.d. | CR18: n.d. | CS18: n.d. | CT18: n.d. | CU18: n.d. | CV18: n.d. | CW18: 100 | CX18: n.d. | CY18: n.d. | CZ18: n.d. | DA18: n.d. | DB18: n.d. | DC18: n.d. | DD18: n.d. | DE18: n.d. | DF18: n.d. | DG18: n.d. | DH18: n.d. | DI18: 2882.18 | DJ18: 453.05 | DK18: 367.07 | DL18: n.d. | DM18: n.d. | DN18: n.d. | DO18: n.d. | DP18: n.d. | DQ18: n.d. | DR18: n.d. | DS18: n.d. | DT18: n.d. | DU18: n.d. | DV18: n.d. | DW18: n.d. | DX18: n.d. | DY18: n.d. | DZ18: n.d. | EA18: n.d. | EB18: n.d. | EC18: n.d. | EH18: México | EI18: ='Cuadro Comparativo AL'!G29 -> 6.313655899 | EK18: Paraguay | EL18: 2.923181509
B19: marzo | C19: 4.895104895 | D19: 3.87409201 | E19: n.d. | F19: n.d. | G19: n.d. | H19: 3.642384106 | I19: n.d. | J19: n.d. | K19: n.d. | L19: n.d. | M19: n.d. | N19: 26.0436111 | O19: n.d. | P19: n.d | Q19: n.d | R19: n.d | S19: n.d | T19: n.d | U19: n.d | V19: n.d | W19: n.d | X19: n.d | Y19: n.d | Z19: n.d | AA19: n.d | AB19: n.d | AE19: 19.9 | AF19: n.d. | AH19: n.d. | AI19: n.d. | AJ19: n.d. | AK19: n.d. | AL19: n.d. | AM19: 287.58 | AN19: n.d. | AO19: n.d. | AP19: n.d. | AQ19: n.d. | AR19: n.d. | AS19: n.d. | AT19: n.d. | AU19: n.d. | AV19: n.d. | AW19: n.d. | AX19: n.d. | AY19: n.d. | AZ19: n.d. | BA19: n.d. | BB19: 0.624141805 | BC19: n.d. | BD19: 137.39 | BE19: 1.1569 | BF19: n.d. | BG19: n.d. | BH19: n.d. | BI19: n.d. | BJ19: n.d. | BK19: 2.9769 | BL19: n.d. | BM19: =IF('Tipos de Cambio'!$M$9="EuroZona",LOOKUP(1,$BB$2:$BL$2,BB19:BL19),IF('Tipos de Cambio'!$M$9="Reino Unido",LOOKUP(2,$BB$2:$BL$2,BB19:BL19),IF('Tipos de Cambio'!$M$9="Japón",LOOKUP(3,$BB$2:$BL$2,BB19:BL19),IF('Tipos de Cambio'!$M$9="Canadá",LOOKUP(4,$BB$2:$BL$2,BB19:BL19),IF('Tipos de Cambio'!$M$9="Rusia",LOOKUP(5,$BB$2:$BL$2,BB19:BL19),IF('Tipos de Cambio'!$M$9="Brasil",LOOKUP(6,$BB$2:$BL$2,BB19:BL19),IF('Tipos de Cambio'!$M$9="China",LOOKUP(7,$BB$2:$BL$2,BB19:BL19),IF('Tipos de Cambio'!$M$9="India",LOOKUP(8,$BB$2:$BL$2,BB19:BL19),IF('Tipos de Cambio'!$M$9="Sudáfrica",LOOKUP(9,$BB$2:$BL$2,BB19:BL19),IF('Tipos de Cambio'!$M$9="México",LOOKUP(10,$BB$2:$BL$2,BB19:BL19),IF('Tipos de Cambio'!$M$9="Colombia",LOOKUP(11,$BB$2:$BL$2,BB19:BL19)))))))))))) -> n.d. | BN19: n.d. | BO19: n.d. | BP19: n.d. | BQ19: n.d. | BR19: n.d. | BS19: n.d. | BT19: n.d. | BU19: n.d. | BV19: n.d. | BW19: n.d. | BX19: n.d. | BY19: n.d. | BZ19: n.d. | CA19: n.d. | CB19: n.d. | CC19: n.d. | CD19: n.d. | CE19: n.d. | CF19: n.d. | CG19: n.d. | CH19: n.d. | CI19: n.d. | CJ19: n.d. | CK19: n.d. | CL19: n.d. | CM19: n.d. | CN19: n.d. | CO19: n.d. | CP19: n.d. | CQ19: n.d. | CR19: n.d. | CS19: n.d. | CT19: n.d. | CU19: n.d. | CV19: n.d. | CW19: 100 | CX19: n.d. | CY19: n.d. | CZ19: n.d. | DA19: n.d. | DB19: n.d. | DC19: n.d. | DD19: n.d. | DE19: n.d. | DF19: n.d. | DG19: n.d. | DH19: n.d. | DI19: 2913.86 | DJ19: 482.3 | DK19: 375.22 | DL19: n.d. | DM19: n.d. | DN19: n.d. | DO19: n.d. | DP19: n.d. | DQ19: n.d. | DR19: n.d. | DS19: n.d. | DT19: n.d. | DU19: n.d. | DV19: n.d. | DW19: n.d. | DX19: n.d. | DY19: n.d. | DZ19: n.d. | EA19: n.d. | EB19: n.d. | EC19: n.d. | EH19: Nicaragua | EI19: ='Cuadro Comparativo AL'!G20 -> 3.06106757 | EK19: Brasil | EL19: 2.998556992
B20: abril | C20: 4.887509697 | D20: 3.860072376 | E20: n.d. | F20: n.d. | G20: n.d. | H20: 3.387978142 | I20: n.d. | J20: n.d. | K20: n.d. | L20: n.d. | M20: n.d. | N20: 25.45460707 | O20: n.d. | P20: n.d | Q20: n.d | R20: n.d | S20: n.d | T20: n.d | U20: n.d | V20: n.d | W20: n.d | X20: n.d | Y20: n.d | Z20: n.d | AA20: n.d | AB20: n.d | AE20: 20.83 | AF20: n.d. | AH20: n.d. | AI20: n.d. | AJ20: n.d. | AK20: n.d. | AL20: n.d. | AM20: 263.61 | AN20: n.d. | AO20: n.d. | AP20: n.d. | AQ20: n.d. | AR20: n.d. | AS20: n.d. | AT20: n.d. | AU20: n.d. | AV20: n.d. | AW20: n.d. | AX20: n.d. | AY20: n.d. | AZ20: n.d. | BA20: n.d. | BB20: 0.5871645822 | BC20: n.d. | BD20: 137.11 | BE20: 1.1533 | BF20: n.d. | BG20: n.d. | BH20: n.d. | BI20: n.d. | BJ20: n.d. | BK20: 2.989 | BL20: n.d. | BM20: =IF('Tipos de Cambio'!$M$9="EuroZona",LOOKUP(1,$BB$2:$BL$2,BB20:BL20),IF('Tipos de Cambio'!$M$9="Reino Unido",LOOKUP(2,$BB$2:$BL$2,BB20:BL20),IF('Tipos de Cambio'!$M$9="Japón",LOOKUP(3,$BB$2:$BL$2,BB20:BL20),IF('Tipos de Cambio'!$M$9="Canadá",LOOKUP(4,$BB$2:$BL$2,BB20:BL20),IF('Tipos de Cambio'!$M$9="Rusia",LOOKUP(5,$BB$2:$BL$2,BB20:BL20),IF('Tipos de Cambio'!$M$9="Brasil",LOOKUP(6,$BB$2:$BL$2,BB20:BL20),IF('Tipos de Cambio'!$M$9="China",LOOKUP(7,$BB$2:$BL$2,BB20:BL20),IF('Tipos de Cambio'!$M$9="India",LOOKUP(8,$BB$2:$BL$2,BB20:BL20),IF('Tipos de Cambio'!$M$9="Sudáfrica",LOOKUP(9,$BB$2:$BL$2,BB20:BL20),IF('Tipos de Cambio'!$M$9="México",LOOKUP(10,$BB$2:$BL$2,BB20:BL20),IF('Tipos de Cambio'!$M$9="Colombia",LOOKUP(11,$BB$2:$BL$2,BB20:BL20)))))))))))) -> n.d. | BN20: n.d. | BO20: n.d. | BP20: n.d. | BQ20: n.d. | BR20: n.d. | BS20: n.d. | BT20: n.d. | BU20: n.d. | BV20: n.d. | BW20: n.d. | BX20: n.d. | BY20: n.d. | BZ20: n.d. | CA20: n.d. | CB20: n.d. | CC20: n.d. | CD20: n.d. | CE20: n.d. | CF20: n.d. | CG20: n.d. | CH20: n.d. | CI20: n.d. | CJ20: n.d. | CK20: n.d. | CL20: n.d. | CM20: n.d. | CN20: n.d. | CO20: n.d. | CP20: n.d. | CQ20: n.d. | CR20: n.d. | CS20: n.d. | CT20: n.d. | CU20: n.d. | CV20: n.d. | CW20: 100 | CX20: n.d. | CY20: n.d. | CZ20: n.d. | DA20: n.d. | DB20: n.d. | DC20: n.d. | DD20: n.d. | DE20: n.d. | DF20: n.d. | DG20: n.d. | DH20: n.d. | DI20: 2887.87 | DJ20: 484.72 | DK20: 375.35 | DL20: n.d. | DM20: n.d. | DN20: n.d. | DO20: n.d. | DP20: n.d. | DQ20: n.d. | DR20: n.d. | DS20: n.d. | DT20: n.d. | DU20: n.d. | DV20: n.d. | DW20: n.d. | DX20: n.d. | DY20: n.d. | DZ20: n.d. | EA20: n.d. | EB20: n.d. | EC20: n.d. | EH20: Panamá | EI20: ='Cuadro Comparativo AL'!G21 -> 0.6756756757 | EK20: Nicaragua | EL20: 3.06106757
B21: mayo | C21: 4.953560372 | D21: 4.091456077 | E21: n.d. | F21: n.d. | G21: n.d. | H21: 3.373231774 | I21: n.d. | J21: n.d. | K21: n.d. | L21: n.d. | M21: n.d. | N21: 24.50823996 | O21: n.d. | P21: n.d | Q21: n.d | R21: n.d | S21: n.d | T21: n.d | U21: n.d | V21: n.d | W21: n.d | X21: n.d | Y21: n.d | Z21: n.d | AA21: n.d | AB21: n.d | AE21: 21.23 | AF21: n.d. | AH21: n.d. | AI21: n.d. | AJ21: n.d. | AK21: n.d. | AL21: n.d. | AM21: 262.78 | AN21: n.d. | AO21: n.d. | AP21: n.d. | AQ21: n.d. | AR21: n.d. | AS21: n.d. | AT21: n.d. | AU21: n.d. | AV21: n.d. | AW21: n.d. | AX21: n.d. | AY21: n.d. | AZ21: n.d. | BA21: n.d. | BB21: 0.5824111823 | BC21: n.d. | BD21: 138.22 | BE21: 1.1497 | BF21: n.d. | BG21: n.d. | BH21: n.d. | BI21: n.d. | BJ21: n.d. | BK21: 3.0012 | BL21: n.d. | BM21: =IF('Tipos de Cambio'!$M$9="EuroZona",LOOKUP(1,$BB$2:$BL$2,BB21:BL21),IF('Tipos de Cambio'!$M$9="Reino Unido",LOOKUP(2,$BB$2:$BL$2,BB21:BL21),IF('Tipos de Cambio'!$M$9="Japón",LOOKUP(3,$BB$2:$BL$2,BB21:BL21),IF('Tipos de Cambio'!$M$9="Canadá",LOOKUP(4,$BB$2:$BL$2,BB21:BL21),IF('Tipos de Cambio'!$M$9="Rusia",LOOKUP(5,$BB$2:$BL$2,BB21:BL21),IF('Tipos de Cambio'!$M$9="Brasil",LOOKUP(6,$BB$2:$BL$2,BB21:BL21),IF('Tipos de Cambio'!$M$9="China",LOOKUP(7,$BB$2:$BL$2,BB21:BL21),IF('Tipos de Cambio'!$M$9="India",LOOKUP(8,$BB$2:$BL$2,BB21:BL21),IF('Tipos de Cambio'!$M$9="Sudáfrica",LOOKUP(9,$BB$2:$BL$2,BB21:BL21),IF('Tipos de Cambio'!$M$9="México",LOOKUP(10,$BB$2:$BL$2,BB21:BL21),IF('Tipos de Cambio'!$M$9="Colombia",LOOKUP(11,$BB$2:$BL$2,BB21:BL21)))))))))))) -> n.d. | BN21: n.d. | BO21: n.d. | BP21: n.d. | BQ21: n.d. | BR21: n.d. | BS21: n.d. | BT21: n.d. | BU21: n.d. | BV21: n.d. | BW21: n.d. | BX21: n.d. | BY21: n.d. | BZ21: n.d. | CA21: n.d. | CB21: n.d. | CC21: n.d. | CD21: n.d. | CE21: n.d. | CF21: n.d. | CG21: n.d. | CH21: n.d. | CI21: n.d. | CJ21: n.d. | CK21: n.d. | CL21: n.d. | CM21: n.d. | CN21: n.d. | CO21: n.d. | CP21: n.d. | CQ21: n.d. | CR21: n.d. | CS21: n.d. | CT21: n.d. | CU21: n.d. | CV21: n.d. | CW21: 100 | CX21: n.d. | CY21: n.d. | CZ21: n.d. | DA21: n.d. | DB21: n.d. | DC21: n.d. | DD21: n.d. | DE21: n.d. | DF21: n.d. | DG21: n.d. | DH21: n.d. | DI21: 3027.5 | DJ21: 506.11 | DK21: 389.83 | DL21: n.d. | DM21: n.d. | DN21: n.d. | DO21: n.d. | DP21: n.d. | DQ21: n.d. | DR21: n.d. | DS21: n.d. | DT21: n.d. | DU21: n.d. | DV21: n.d. | DW21: n.d. | DX21: n.d. | DY21: n.d. | DZ21: n.d. | EA21: n.d. | EB21: n.d. | EC21: n.d. | EH21: Paraguay | EI21: ='Cuadro Comparativo AL'!G27 -> 2.923181509 | EK21: Honduras | EL21: 3.650631184
B22: junio | C22: 4.695919938 | D22: 4.326923077 | E22: n.d. | F22: n.d. | G22: n.d. | H22: 3.501094092 | I22: n.d. | J22: n.d. | K22: n.d. | L22: n.d. | M22: n.d. | N22: 23.10339672 | O22: n.d. | P22: n.d | Q22: n.d | R22: n.d | S22: n.d | T22: n.d | U22: n.d | V22: n.d | W22: n.d | X22: n.d | Y22: n.d | Z22: n.d | AA22: n.d | AB22: n.d | AE22: 20.19 | AF22: n.d. | AH22: n.d. | AI22: n.d. | AJ22: n.d. | AK22: n.d. | AL22: n.d. | AM22: 257 | AN22: n.d. | AO22: n.d. | AP22: n.d. | AQ22: n.d. | AR22: n.d. | AS22: n.d. | AT22: n.d. | AU22: n.d. | AV22: n.d. | AW22: n.d. | AX22: n.d. | AY22: n.d. | AZ22: n.d. | BA22: n.d. | BB22: 0.5604438715 | BC22: n.d. | BD22: 139.75 | BE22: 1.1437 | BF22: n.d. | BG22: n.d. | BH22: n.d. | BI22: n.d. | BJ22: n.d. | BK22: 3.0134 | BL22: n.d. | BM22: =IF('Tipos de Cambio'!$M$9="EuroZona",LOOKUP(1,$BB$2:$BL$2,BB22:BL22),IF('Tipos de Cambio'!$M$9="Reino Unido",LOOKUP(2,$BB$2:$BL$2,BB22:BL22),IF('Tipos de Cambio'!$M$9="Japón",LOOKUP(3,$BB$2:$BL$2,BB22:BL22),IF('Tipos de Cambio'!$M$9="Canadá",LOOKUP(4,$BB$2:$BL$2,BB22:BL22),IF('Tipos de Cambio'!$M$9="Rusia",LOOKUP(5,$BB$2:$BL$2,BB22:BL22),IF('Tipos de Cambio'!$M$9="Brasil",LOOKUP(6,$BB$2:$BL$2,BB22:BL22),IF('Tipos de Cambio'!$M$9="China",LOOKUP(7,$BB$2:$BL$2,BB22:BL22),IF('Tipos de Cambio'!$M$9="India",LOOKUP(8,$BB$2:$BL$2,BB22:BL22),IF('Tipos de Cambio'!$M$9="Sudáfrica",LOOKUP(9,$BB$2:$BL$2,BB22:BL22),IF('Tipos de Cambio'!$M$9="México",LOOKUP(10,$BB$2:$BL$2,BB22:BL22),IF('Tipos de Cambio'!$M$9="Colombia",LOOKUP(11,$BB$2:$BL$2,BB22:BL22)))))))))))) -> n.d. | BN22: n.d. | BO22: n.d. | BP22: n.d. | BQ22: n.d. | BR22: n.d. | BS22: n.d. | BT22: n.d. | BU22: n.d. | BV22: n.d. | BW22: n.d. | BX22: n.d. | BY22: n.d. | BZ22: n.d. | CA22: n.d. | CB22: n.d. | CC22: n.d. | CD22: n.d. | CE22: n.d. | CF22: n.d. | CG22: n.d. | CH22: n.d. | CI22: n.d. | CJ22: n.d. | CK22: n.d. | CL22: n.d. | CM22: n.d. | CN22: n.d. | CO22: n.d. | CP22: n.d. | CQ22: n.d. | CR22: n.d. | CS22: n.d. | CT22: n.d. | CU22: n.d. | CV22: n.d. | CW22: 100 | CX22: n.d. | CY22: n.d. | CZ22: n.d. | DA22: n.d. | DB22: n.d. | DC22: n.d. | DD22: n.d. | DE22: n.d. | DF22: n.d. | DG22: n.d. | DH22: n.d. | DI22: 2906.75 | DJ22: 475.92 | DK22: 371.16 | DL22: n.d. | DM22: n.d. | DN22: n.d. | DO22: n.d. | DP22: n.d. | DQ22: n.d. | DR22: n.d. | DS22: n.d. | DT22: n.d. | DU22: n.d. | DV22: =IFERROR(DL22-DL21, "n.d.") -> n.d. | DW22: n.d. | DX22: n.d. | DY22: n.d. | DZ22: n.d. | EA22: n.d. | EB22: n.d. | EC22: n.d. | EH22: Perú | EI22: ='Cuadro Comparativo AL'!G28 -> 2.732443918 | EK22: Colombia | EL22: 3.987368925
B23: julio | C23: 4.447852761 | D23: 5.048076923 | E23: n.d. | F23: n.d. | G23: n.d. | H23: 3.504928806 | I23: n.d. | J23: n.d. | K23: n.d. | L23: n.d. | M23: n.d. | N23: 21.96698108 | O23: n.d. | P23: n.d | Q23: n.d | R23: n.d | S23: n.d | T23: n.d | U23: n.d | V23: n.d | W23: n.d | X23: n.d | Y23: n.d | Z23: n.d | AA23: n.d | AB23: n.d | AE23: 21.4 | AF23: n.d. | AH23: n.d. | AI23: n.d. | AJ23: n.d. | AK23: n.d. | AL23: n.d. | AM23: 281.79 | AN23: n.d. | AO23: n.d. | AP23: n.d. | AQ23: n.d. | AR23: n.d. | AS23: n.d. | AT23: n.d. | AU23: n.d. | AV23: n.d. | AW23: n.d. | AX23: n.d. | AY23: n.d. | AZ23: n.d. | BA23: n.d. | BB23: 0.5590652429 | BC23: n.d. | BD23: 137.83 | BE23: 1.1491 | BF23: n.d. | BG23: n.d. | BH23: n.d. | BI23: n.d. | BJ23: n.d. | BK23: 3.0322 | BL23: n.d. | BM23: =IF('Tipos de Cambio'!$M$9="EuroZona",LOOKUP(1,$BB$2:$BL$2,BB23:BL23),IF('Tipos de Cambio'!$M$9="Reino Unido",LOOKUP(2,$BB$2:$BL$2,BB23:BL23),IF('Tipos de Cambio'!$M$9="Japón",LOOKUP(3,$BB$2:$BL$2,BB23:BL23),IF('Tipos de Cambio'!$M$9="Canadá",LOOKUP(4,$BB$2:$BL$2,BB23:BL23),IF('Tipos de Cambio'!$M$9="Rusia",LOOKUP(5,$BB$2:$BL$2,BB23:BL23),IF('Tipos de Cambio'!$M$9="Brasil",LOOKUP(6,$BB$2:$BL$2,BB23:BL23),IF('Tipos de Cambio'!$M$9="China",LOOKUP(7,$BB$2:$BL$2,BB23:BL23),IF('Tipos de Cambio'!$M$9="India",LOOKUP(8,$BB$2:$BL$2,BB23:BL23),IF('Tipos de Cambio'!$M$9="Sudáfrica",LOOKUP(9,$BB$2:$BL$2,BB23:BL23),IF('Tipos de Cambio'!$M$9="México",LOOKUP(10,$BB$2:$BL$2,BB23:BL23),IF('Tipos de Cambio'!$M$9="Colombia",LOOKUP(11,$BB$2:$BL$2,BB23:BL23)))))))))))) -> n.d. | BN23: n.d. | BO23: n.d. | BP23: n.d. | BQ23: n.d. | BR23: n.d. | BS23: n.d. | BT23: n.d. | BU23: n.d. | BV23: n.d. | BW23: n.d. | BX23: n.d. | BY23: n.d. | BZ23: n.d. | CA23: n.d. | CB23: n.d. | CC23: n.d. | CD23: n.d. | CE23: n.d. | CF23: n.d. | CG23: n.d. | CH23: n.d. | CI23: n.d. | CJ23: n.d. | CK23: n.d. | CL23: n.d. | CM23: n.d. | CN23: n.d. | CO23: n.d. | CP23: n.d. | CQ23: n.d. | CR23: n.d. | CS23: n.d. | CT23: n.d. | CU23: n.d. | CV23: n.d. | CW23: 100 | CX23: n.d. | CY23: n.d. | CZ23: n.d. | DA23: n.d. | DB23: n.d. | DC23: n.d. | DD23: n.d. | DE23: n.d. | DF23: n.d. | DG23: n.d. | DH23: n.d. | DI23: 3024.82 | DJ23: 502.04 | DK23: 387.81 | DL23: n.d. | DM23: n.d. | DN23: n.d. | DO23: n.d. | DP23: n.d. | DQ23: n.d. | DR23: n.d. | DS23: n.d. | DT23: n.d. | DU23: n.d. | DV23: n.d. | DW23: n.d. | DX23: n.d. | DY23: n.d. | DZ23: n.d. | EA23: n.d. | EB23: n.d. | EC23: n.d. | EH23: Región CARD | EI23: =+'Cuadro Comparativo AL'!G11 -> 2.864109357 | EK23: Guatemala | EL23: 4.364920164
B24: agosto | C24: 3.799392097 | D24: 4.540023895 | E24: n.d. | F24: n.d. | G24: n.d. | H24: 3.384279476 | I24: n.d. | J24: n.d. | K24: n.d. | L24: n.d. | M24: n.d. | N24: 20.75825504 | O24: n.d. | P24: n.d | Q24: n.d | R24: n.d | S24: n.d | T24: n.d | U24: n.d | V24: n.d | W24: n.d | X24: n.d | Y24: n.d | Z24: n.d | AA24: n.d | AB24: n.d | AE24: 21.69 | AF24: n.d. | AH24: n.d. | AI24: n.d. | AJ24: n.d. | AK24: n.d. | AL24: n.d. | AM24: 279.31 | AN24: n.d. | AO24: n.d. | AP24: n.d. | AQ24: n.d. | AR24: n.d. | AS24: n.d. | AT24: n.d. | AU24: n.d. | AV24: n.d. | AW24: n.d. | AX24: n.d. | AY24: n.d. | AZ24: n.d. | BA24: n.d. | BB24: 0.5730002292 | BC24: n.d. | BD24: 136.82 | BE24: 1.1447 | BF24: n.d. | BG24: n.d. | BH24: n.d. | BI24: n.d. | BJ24: n.d. | BK24: 3.038 | BL24: n.d. | BM24: =IF('Tipos de Cambio'!$M$9="EuroZona",LOOKUP(1,$BB$2:$BL$2,BB24:BL24),IF('Tipos de Cambio'!$M$9="Reino Unido",LOOKUP(2,$BB$2:$BL$2,BB24:BL24),IF('Tipos de Cambio'!$M$9="Japón",LOOKUP(3,$BB$2:$BL$2,BB24:BL24),IF('Tipos de Cambio'!$M$9="Canadá",LOOKUP(4,$BB$2:$BL$2,BB24:BL24),IF('Tipos de Cambio'!$M$9="Rusia",LOOKUP(5,$BB$2:$BL$2,BB24:BL24),IF('Tipos de Cambio'!$M$9="Brasil",LOOKUP(6,$BB$2:$BL$2,BB24:BL24),IF('Tipos de Cambio'!$M$9="China",LOOKUP(7,$BB$2:$BL$2,BB24:BL24),IF('Tipos de Cambio'!$M$9="India",LOOKUP(8,$BB$2:$BL$2,BB24:BL24),IF('Tipos de Cambio'!$M$9="Sudáfrica",LOOKUP(9,$BB$2:$BL$2,BB24:BL24),IF('Tipos de Cambio'!$M$9="México",LOOKUP(10,$BB$2:$BL$2,BB24:BL24),IF('Tipos de Cambio'!$M$9="Colombia",LOOKUP(11,$BB$2:$BL$2,BB24:BL24)))))))))))) -> n.d. | BN24: n.d. | BO24: n.d. | BP24: n.d. | BQ24: n.d. | BR24: n.d. | BS24: n.d. | BT24: n.d. | BU24: n.d. | BV24: n.d. | BW24: n.d. | BX24: n.d. | BY24: n.d. | BZ24: n.d. | CA24: n.d. | CB24: n.d. | CC24: n.d. | CD24: n.d. | CE24: n.d. | CF24: n.d. | CG24: n.d. | CH24: n.d. | CI24: n.d. | CJ24: n.d. | CK24: n.d. | CL24: n.d. | CM24: n.d. | CN24: n.d. | CO24: n.d. | CP24: n.d. | CQ24: n.d. | CR24: n.d. | CS24: n.d. | CT24: n.d. | CU24: n.d. | CV24: n.d. | CW24: 100 | CX24: n.d. | CY24: n.d. | CZ24: n.d. | DA24: n.d. | DB24: n.d. | DC24: n.d. | DD24: n.d. | DE24: n.d. | DF24: n.d. | DG24: n.d. | DH24: n.d. | DI24: 3043.6 | DJ24: 525.68 | DK24: 395.43 | DL24: n.d. | DM24: n.d. | DN24: n.d. | DO24: n.d. | DP24: n.d. | DQ24: n.d. | DR24: n.d. | DS24: n.d. | DT24: n.d. | DU24: n.d. | DV24: n.d. | DW24: n.d. | DX24: n.d. | DY24: n.d. | DZ24: n.d. | EA24: n.d. | EB24: n.d. | EC24: n.d. | EH24: Región CAPARD | EI24: =+'Cuadro Comparativo AL'!G12 -> 2.533049839 | EK24: Uruguay | EL24: 5.313919482
B25: septiembre | C25: 3.391107762 | D25: 3.914590747 | E25: n.d. | F25: n.d. | G25: n.d. | H25: 2.705627706 | I25: n.d. | J25: n.d. | K25: n.d. | L25: n.d. | M25: n.d. | N25: 20.24714789 | O25: n.d. | P25: n.d | Q25: n.d | R25: n.d | S25: n.d | T25: n.d | U25: n.d | V25: n.d | W25: n.d | X25: n.d | Y25: n.d | Z25: n.d | AA25: n.d | AB25: n.d | AE25: 21.89 | AF25: n.d. | AH25: n.d. | AI25: n.d. | AJ25: n.d. | AK25: n.d. | AL25: n.d. | AM25: 266.92 | AN25: n.d. | AO25: n.d. | AP25: n.d. | AQ25: n.d. | AR25: n.d. | AS25: n.d. | AT25: n.d. | AU25: n.d. | AV25: n.d. | AW25: n.d. | AX25: n.d. | AY25: n.d. | AZ25: n.d. | BA25: n.d. | BB25: 0.5888934692 | BC25: n.d. | BD25: 134.3 | BE25: 1.1368 | BF25: n.d. | BG25: n.d. | BH25: n.d. | BI25: n.d. | BJ25: n.d. | BK25: 3.0502 | BL25: n.d. | BM25: =IF('Tipos de Cambio'!$M$9="EuroZona",LOOKUP(1,$BB$2:$BL$2,BB25:BL25),IF('Tipos de Cambio'!$M$9="Reino Unido",LOOKUP(2,$BB$2:$BL$2,BB25:BL25),IF('Tipos de Cambio'!$M$9="Japón",LOOKUP(3,$BB$2:$BL$2,BB25:BL25),IF('Tipos de Cambio'!$M$9="Canadá",LOOKUP(4,$BB$2:$BL$2,BB25:BL25),IF('Tipos de Cambio'!$M$9="Rusia",LOOKUP(5,$BB$2:$BL$2,BB25:BL25),IF('Tipos de Cambio'!$M$9="Brasil",LOOKUP(6,$BB$2:$BL$2,BB25:BL25),IF('Tipos de Cambio'!$M$9="China",LOOKUP(7,$BB$2:$BL$2,BB25:BL25),IF('Tipos de Cambio'!$M$9="India",LOOKUP(8,$BB$2:$BL$2,BB25:BL25),IF('Tipos de Cambio'!$M$9="Sudáfrica",LOOKUP(9,$BB$2:$BL$2,BB25:BL25),IF('Tipos de Cambio'!$M$9="México",LOOKUP(10,$BB$2:$BL$2,BB25:BL25),IF('Tipos de Cambio'!$M$9="Colombia",LOOKUP(11,$BB$2:$BL$2,BB25:BL25)))))))))))) -> n.d. | BN25: n.d. | BO25: n.d. | BP25: n.d. | BQ25: n.d. | BR25: n.d. | BS25: n.d. | BT25: n.d. | BU25: n.d. | BV25: n.d. | BW25: n.d. | BX25: n.d. | BY25: n.d. | BZ25: n.d. | CA25: n.d. | CB25: n.d. | CC25: n.d. | CD25: n.d. | CE25: n.d. | CF25: n.d. | CG25: n.d. | CH25: n.d. | CI25: n.d. | CJ25: n.d. | CK25: n.d. | CL25: n.d. | CM25: n.d. | CN25: n.d. | CO25: n.d. | CP25: n.d. | CQ25: n.d. | CR25: n.d. | CS25: n.d. | CT25: n.d. | CU25: n.d. | CV25: n.d. | CW25: 100 | CX25: n.d. | CY25: n.d. | CZ25: n.d. | DA25: n.d. | DB25: n.d. | DC25: n.d. | DD25: n.d. | DE25: n.d. | DF25: n.d. | DG25: n.d. | DH25: n.d. | DI25: 3016.77 | DJ25: 526.88 | DK25: 387.86 | DL25: n.d. | DM25: n.d. | DN25: n.d. | DO25: n.d. | DP25: n.d. | DQ25: n.d. | DR25: n.d. | DS25: n.d. | DT25: n.d. | DU25: n.d. | DV25: n.d. | DW25: n.d. | DX25: n.d. | DY25: n.d. | DZ25: n.d. | EA25: n.d. | EB25: n.d. | EC25: n.d. | EH25: República Dominicana | EI25: ='Cuadro Comparativo AL'!G16 -> 2.550978288 | EK25: México | EL25: 6.313655899
B26: octubre | C26: 2.921348315 | D26: 3.655660377 | E26: n.d. | F26: n.d. | G26: n.d. | H26: 2.56684492 | I26: n.d. | J26: n.d. | K26: n.d. | L26: n.d. | M26: n.d. | N26: 19.92167568 | O26: n.d. | P26: n.d | Q26: n.d | R26: n.d | S26: n.d | T26: n.d | U26: n.d | V26: n.d | W26: n.d | X26: n.d | Y26: n.d | Z26: n.d | AA26: n.d | AB26: n.d | AE26: 23.23 | AF26: n.d. | AH26: n.d. | AI26: n.d. | AJ26: n.d. | AK26: n.d. | AL26: n.d. | AM26: 285.1 | AN26: n.d. | AO26: n.d. | AP26: n.d. | AQ26: n.d. | AR26: n.d. | AS26: n.d. | AT26: n.d. | AU26: n.d. | AV26: n.d. | AW26: n.d. | AX26: n.d. | AY26: n.d. | AZ26: n.d. | BA26: n.d. | BB26: 0.58910162 | BC26: n.d. | BD26: 130.77 | BE26: 1.1279 | BF26: n.d. | BG26: n.d. | BH26: n.d. | BI26: n.d. | BJ26: n.d. | BK26: 3.0624 | BL26: n.d. | BM26: =IF('Tipos de Cambio'!$M$9="EuroZona",LOOKUP(1,$BB$2:$BL$2,BB26:BL26),IF('Tipos de Cambio'!$M$9="Reino Unido",LOOKUP(2,$BB$2:$BL$2,BB26:BL26),IF('Tipos de Cambio'!$M$9="Japón",LOOKUP(3,$BB$2:$BL$2,BB26:BL26),IF('Tipos de Cambio'!$M$9="Canadá",LOOKUP(4,$BB$2:$BL$2,BB26:BL26),IF('Tipos de Cambio'!$M$9="Rusia",LOOKUP(5,$BB$2:$BL$2,BB26:BL26),IF('Tipos de Cambio'!$M$9="Brasil",LOOKUP(6,$BB$2:$BL$2,BB26:BL26),IF('Tipos de Cambio'!$M$9="China",LOOKUP(7,$BB$2:$BL$2,BB26:BL26),IF('Tipos de Cambio'!$M$9="India",LOOKUP(8,$BB$2:$BL$2,BB26:BL26),IF('Tipos de Cambio'!$M$9="Sudáfrica",LOOKUP(9,$BB$2:$BL$2,BB26:BL26),IF('Tipos de Cambio'!$M$9="México",LOOKUP(10,$BB$2:$BL$2,BB26:BL26),IF('Tipos de Cambio'!$M$9="Colombia",LOOKUP(11,$BB$2:$BL$2,BB26:BL26)))))))))))) -> n.d. | BN26: n.d. | BO26: n.d. | BP26: n.d. | BQ26: n.d. | BR26: n.d. | BS26: n.d. | BT26: n.d. | BU26: n.d. | BV26: n.d. | BW26: n.d. | BX26: n.d. | BY26: n.d. | BZ26: n.d. | CA26: n.d. | CB26: n.d. | CC26: n.d. | CD26: n.d. | CE26: n.d. | CF26: n.d. | CG26: n.d. | CH26: n.d. | CI26: n.d. | CJ26: n.d. | CK26: n.d. | CL26: n.d. | CM26: n.d. | CN26: n.d. | CO26: n.d. | CP26: n.d. | CQ26: n.d. | CR26: n.d. | CS26: n.d. | CT26: n.d. | CU26: n.d. | CV26: n.d. | CW26: 100 | CX26: n.d. | CY26: n.d. | CZ26: n.d. | DA26: n.d. | DB26: n.d. | DC26: n.d. | DD26: n.d. | DE26: n.d. | DF26: n.d. | DG26: n.d. | DH26: n.d. | DI26: 3069.1 | DJ26: 542.98 | DK26: 392.46 | DL26: n.d. | DM26: n.d. | DN26: n.d. | DO26: n.d. | DP26: n.d. | DQ26: n.d. | DR26: n.d. | DS26: n.d. | DT26: n.d. | DU26: n.d. | DV26: n.d. | DW26: n.d. | DX26: n.d. | DY26: n.d. | DZ26: n.d. | EA26: n.d. | EB26: n.d. | EC26: n.d. | EH26: Uruguay | EI26: ='Cuadro Comparativo AL'!G30 -> 5.313919482 | EK26: Argentina | EL26: 21.7
B27: noviembre | C27: 2.989536622 | D27: 4.127358491 | E27: n.d. | F27: n.d. | G27: n.d. | H27: 3.001071811 | I27: n.d. | J27: n.d. | K27: n.d. | L27: n.d. | M27: n.d. | N27: 19.7207363 | O27: n.d. | P27: n.d | Q27: n.d | R27: n.d | S27: n.d | T27: n.d | U27: n.d | V27: n.d | W27: n.d | X27: n.d | Y27: n.d | Z27: n.d | AA27: n.d | AB27: n.d | AE27: 22.46 | AF27: n.d. | AH27: n.d. | AI27: n.d. | AJ27: n.d. | AK27: n.d. | AL27: n.d. | AM27: 299.14 | AN27: n.d. | AO27: n.d. | AP27: n.d. | AQ27: n.d. | AR27: n.d. | AS27: n.d. | AT27: n.d. | AU27: n.d. | AV27: n.d. | AW27: n.d. | AX27: n.d. | AY27: n.d. | AZ27: n.d. | BA27: n.d. | BB27: 0.6153846154 | BC27: n.d. | BD27: 127 | BE27: 1.1303 | BF27: n.d. | BG27: n.d. | BH27: n.d. | BI27: n.d. | BJ27: n.d. | BK27: 3.0698 | BL27: n.d. | BM27: =IF('Tipos de Cambio'!$M$9="EuroZona",LOOKUP(1,$BB$2:$BL$2,BB27:BL27),IF('Tipos de Cambio'!$M$9="Reino Unido",LOOKUP(2,$BB$2:$BL$2,BB27:BL27),IF('Tipos de Cambio'!$M$9="Japón",LOOKUP(3,$BB$2:$BL$2,BB27:BL27),IF('Tipos de Cambio'!$M$9="Canadá",LOOKUP(4,$BB$2:$BL$2,BB27:BL27),IF('Tipos de Cambio'!$M$9="Rusia",LOOKUP(5,$BB$2:$BL$2,BB27:BL27),IF('Tipos de Cambio'!$M$9="Brasil",LOOKUP(6,$BB$2:$BL$2,BB27:BL27),IF('Tipos de Cambio'!$M$9="China",LOOKUP(7,$BB$2:$BL$2,BB27:BL27),IF('Tipos de Cambio'!$M$9="India",LOOKUP(8,$BB$2:$BL$2,BB27:BL27),IF('Tipos de Cambio'!$M$9="Sudáfrica",LOOKUP(9,$BB$2:$BL$2,BB27:BL27),IF('Tipos de Cambio'!$M$9="México",LOOKUP(10,$BB$2:$BL$2,BB27:BL27),IF('Tipos de Cambio'!$M$9="Colombia",LOOKUP(11,$BB$2:$BL$2,BB27:BL27)))))))))))) -> n.d. | BN27: n.d. | BO27: n.d. | BP27: n.d. | BQ27: n.d. | BR27: n.d. | BS27: n.d. | BT27: n.d. | BU27: n.d. | BV27: n.d. | BW27: n.d. | BX27: n.d. | BY27: n.d. | BZ27: n.d. | CA27: n.d. | CB27: n.d. | CC27: n.d. | CD27: n.d. | CE27: n.d. | CF27: n.d. | CG27: n.d. | CH27: n.d. | CI27: n.d. | CJ27: n.d. | CK27: n.d. | CL27: n.d. | CM27: n.d. | CN27: n.d. | CO27: n.d. | CP27: n.d. | CQ27: n.d. | CR27: n.d. | CS27: n.d. | CT27: n.d. | CU27: n.d. | CV27: n.d. | CW27: 100 | CX27: n.d. | CY27: n.d. | CZ27: n.d. | DA27: n.d. | DB27: n.d. | DC27: n.d. | DD27: n.d. | DE27: n.d. | DF27: n.d. | DG27: n.d. | DH27: n.d. | DI27: 2894.68 | DJ27: 523.9 | DK27: 375.22 | DL27: n.d. | DM27: n.d. | DN27: n.d. | DO27: n.d. | DP27: n.d. | DQ27: n.d. | DR27: n.d. | DS27: n.d. | DT27: n.d. | DU27: n.d. | DV27: n.d. | DW27: n.d. | DX27: n.d. | DY27: n.d. | DZ27: n.d. | EA27: n.d. | EB27: n.d. | EC27: n.d.
B28: diciembre | C28: 3.064275037 | D28: 4.127358491 | E28: n.d. | F28: n.d. | G28: n.d. | H28: 2.792696026 | I28: n.d. | J28: n.d. | K28: n.d. | L28: n.d. | M28: n.d. | N28: 18.79462234 | O28: n.d. | P28: n.d | Q28: n.d | R28: n.d | S28: n.d | T28: n.d | U28: n.d | V28: n.d | W28: n.d | X28: n.d | Y28: n.d | Z28: n.d | AA28: n.d | AB28: n.d | AE28: 19.5 | AF28: n.d. | AH28: n.d. | AI28: n.d. | AJ28: n.d. | AK28: n.d. | AL28: n.d. | AM28: 310.71 | AN28: n.d. | AO28: n.d. | AP28: n.d. | AQ28: n.d. | AR28: n.d. | AS28: n.d. | AT28: n.d. | AU28: n.d. | AV28: n.d. | AW28: n.d. | AX28: n.d. | AY28: n.d. | AZ28: n.d. | BA28: n.d. | BB28: 0.6371455878 | BC28: n.d. | BD28: 128.11 | BE28: 1.1457 | BF28: n.d. | BG28: n.d. | BH28: n.d. | BI28: n.d. | BJ28: n.d. | BK28: 3.07 | BL28: n.d. | BM28: =IF('Tipos de Cambio'!$M$9="EuroZona",LOOKUP(1,$BB$2:$BL$2,BB28:BL28),IF('Tipos de Cambio'!$M$9="Reino Unido",LOOKUP(2,$BB$2:$BL$2,BB28:BL28),IF('Tipos de Cambio'!$M$9="Japón",LOOKUP(3,$BB$2:$BL$2,BB28:BL28),IF('Tipos de Cambio'!$M$9="Canadá",LOOKUP(4,$BB$2:$BL$2,BB28:BL28),IF('Tipos de Cambio'!$M$9="Rusia",LOOKUP(5,$BB$2:$BL$2,BB28:BL28),IF('Tipos de Cambio'!$M$9="Brasil",LOOKUP(6,$BB$2:$BL$2,BB28:BL28),IF('Tipos de Cambio'!$M$9="China",LOOKUP(7,$BB$2:$BL$2,BB28:BL28),IF('Tipos de Cambio'!$M$9="India",LOOKUP(8,$BB$2:$BL$2,BB28:BL28),IF('Tipos de Cambio'!$M$9="Sudáfrica",LOOKUP(9,$BB$2:$BL$2,BB28:BL28),IF('Tipos de Cambio'!$M$9="México",LOOKUP(10,$BB$2:$BL$2,BB28:BL28),IF('Tipos de Cambio'!$M$9="Colombia",LOOKUP(11,$BB$2:$BL$2,BB28:BL28)))))))))))) -> n.d. | BN28: n.d. | BO28: n.d. | BP28: n.d. | BQ28: n.d. | BR28: n.d. | BS28: n.d. | BT28: n.d. | BU28: n.d. | BV28: n.d. | BW28: n.d. | BX28: n.d. | BY28: n.d. | BZ28: n.d. | CA28: n.d. | CB28: n.d. | CC28: n.d. | CD28: n.d. | CE28: n.d. | CF28: n.d. | CG28: n.d. | CH28: n.d. | CI28: n.d. | CJ28: n.d. | CK28: n.d. | CL28: n.d. | CM28: n.d. | CN28: n.d. | CO28: n.d. | CP28: n.d. | CQ28: n.d. | CR28: n.d. | CS28: n.d. | CT28: n.d. | CU28: n.d. | CV28: n.d. | CW28: 100 | CX28: n.d. | CY28: n.d. | CZ28: n.d. | DA28: n.d. | DB28: n.d. | DC28: n.d. | DD28: n.d. | DE28: n.d. | DF28: n.d. | DG28: n.d. | DH28: n.d. | DI28: 3168.83 | DJ28: 586.34 | DK28: 417.09 | DL28: n.d. | DM28: n.d. | DN28: n.d. | DO28: n.d. | DP28: n.d. | DQ28: n.d. | DR28: n.d. | DS28: n.d. | DT28: n.d. | DU28: n.d. | DV28: n.d. | DW28: n.d. | DX28: n.d. | DY28: n.d. | DZ28: n.d. | EA28: n.d. | EB28: n.d. | EC28: n.d.
A29: 1992 | B29: enero | C29: 2.600297177 | D29: 3.86869871 | E29: n.d. | F29: n.d. | G29: n.d. | H29: 1.70575693 | I29: n.d. | J29: n.d. | K29: n.d. | L29: n.d. | M29: n.d. | N29: 17.947391 | O29: n.d. | P29: n.d | Q29: n.d | R29: n.d | S29: n.d | T29: n.d | U29: n.d | V29: n.d | W29: n.d | X29: n.d | Y29: n.d | Z29: n.d | AA29: n.d | AB29: n.d | AE29: 18.79 | AF29: n.d. | AH29: n.d. | AI29: n.d. | AJ29: n.d. | AK29: n.d. | AL29: n.d. | AM29: 316.5 | AN29: n.d. | AO29: n.d. | AP29: n.d. | AQ29: n.d. | AR29: n.d. | AS29: n.d. | AT29: n.d. | AU29: n.d. | AV29: n.d. | AW29: n.d. | AX29: n.d. | AY29: n.d. | AZ29: n.d. | BA29: n.d. | BB29: 0.6339546089 | BC29: n.d. | BD29: 130 | BE29: 1.1565 | BF29: n.d. | BG29: n.d. | BH29: n.d. | BI29: n.d. | BJ29: n.d. | BK29: 3.0685 | BL29: n.d. | BM29: =IF('Tipos de Cambio'!$M$9="EuroZona",LOOKUP(1,$BB$2:$BL$2,BB29:BL29),IF('Tipos de Cambio'!$M$9="Reino Unido",LOOKUP(2,$BB$2:$BL$2,BB29:BL29),IF('Tipos de Cambio'!$M$9="Japón",LOOKUP(3,$BB$2:$BL$2,BB29:BL29),IF('Tipos de Cambio'!$M$9="Canadá",LOOKUP(4,$BB$2:$BL$2,BB29:BL29),IF('Tipos de Cambio'!$M$9="Rusia",LOOKUP(5,$BB$2:$BL$2,BB29:BL29),IF('Tipos de Cambio'!$M$9="Brasil",LOOKUP(6,$BB$2:$BL$2,BB29:BL29),IF('Tipos de Cambio'!$M$9="China",LOOKUP(7,$BB$2:$BL$2,BB29:BL29),IF('Tipos de Cambio'!$M$9="India",LOOKUP(8,$BB$2:$BL$2,BB29:BL29),IF('Tipos de Cambio'!$M$9="Sudáfrica",LOOKUP(9,$BB$2:$BL$2,BB29:BL29),IF('Tipos de Cambio'!$M$9="México",LOOKUP(10,$BB$2:$BL$2,BB29:BL29),IF('Tipos de Cambio'!$M$9="Colombia",LOOKUP(11,$BB$2:$BL$2,BB29:BL29)))))))))))) -> n.d. | BN29: n.d. | BO29: n.d. | BP29: n.d. | BQ29: n.d. | BR29: n.d. | BS29: n.d. | BT29: n.d. | BU29: n.d. | BV29: n.d. | BW29: n.d. | BX29: n.d. | BY29: n.d. | BZ29: n.d. | CA29: n.d. | CB29: n.d. | CC29: n.d. | CD29: n.d. | CE29: n.d. | CF29: n.d. | CG29: n.d. | CH29: n.d. | CI29: n.d. | CJ29: n.d. | CK29: n.d. | CL29: n.d. | CM29: n.d. | CN29: n.d. | CO29: n.d. | CP29: n.d. | CQ29: n.d. | CR29: n.d. | CS29: n.d. | CT29: n.d. | CU29: n.d. | CV29: n.d. | CW29: 100 | CX29: n.d. | CY29: n.d. | CZ29: n.d. | DA29: n.d. | DB29: n.d. | DC29: n.d. | DD29: n.d. | DE29: n.d. | DF29: n.d. | DG29: n.d. | DH29: n.d. | DI29: 3223.39 | DJ29: 620.21 | DK29: 408.79 | DL29: n.d. | DM29: n.d. | DN29: n.d. | DO29: n.d. | DP29: n.d. | DQ29: n.d. | DR29: n.d. | DS29: n.d. | DT29: n.d. | DU29: n.d. | DV29: n.d. | DW29: n.d. | DX29: n.d. | DY29: n.d. | DZ29: n.d. | EA29: n.d. | EB29: n.d. | EC29: n.d.
B30: febrero | C30: 2.818991098 | D30: 3.846153846 | E30: n.d. | F30: n.d. | G30: n.d. | H30: 1.92513369 | I30: n.d. | J30: n.d. | K30: n.d. | L30: n.d. | M30: n.d. | N30: 17.2971584 | O30: n.d. | P30: n.d | Q30: n.d | R30: n.d | S30: n.d | T30: n.d | U30: n.d | V30: n.d | W30: n.d | X30: n.d | Y30: n.d | Z30: n.d | AA30: n.d | AB30: n.d | AE30: 19.01 | AF30: n.d. | AH30: n.d. | AI30: n.d. | AJ30: n.d. | AK30: n.d. | AL30: n.d. | AM30: 315.67 | AN30: n.d. | AO30: n.d. | AP30: n.d. | AQ30: n.d. | AR30: n.d. | AS30: n.d. | AT30: n.d. | AU30: n.d. | AV30: n.d. | AW30: n.d. | AX30: n.d. | AY30: n.d. | AZ30: n.d. | BA30: n.d. | BB30: 0.6173982836 | BC30: n.d. | BD30: 130.5 | BE30: 1.1825 | BF30: n.d. | BG30: n.d. | BH30: n.d. | BI30: n.d. | BJ30: n.d. | BK30: 3.0636 | BL30: n.d. | BM30: =IF('Tipos de Cambio'!$M$9="EuroZona",LOOKUP(1,$BB$2:$BL$2,BB30:BL30),IF('Tipos de Cambio'!$M$9="Reino Unido",LOOKUP(2,$BB$2:$BL$2,BB30:BL30),IF('Tipos de Cambio'!$M$9="Japón",LOOKUP(3,$BB$2:$BL$2,BB30:BL30),IF('Tipos de Cambio'!$M$9="Canadá",LOOKUP(4,$BB$2:$BL$2,BB30:BL30),IF('Tipos de Cambio'!$M$9="Rusia",LOOKUP(5,$BB$2:$BL$2,BB30:BL30),IF('Tipos de Cambio'!$M$9="Brasil",LOOKUP(6,$BB$2:$BL$2,BB30:BL30),IF('Tipos de Cambio'!$M$9="China",LOOKUP(7,$BB$2:$BL$2,BB30:BL30),IF('Tipos de Cambio'!$M$9="India",LOOKUP(8,$BB$2:$BL$2,BB30:BL30),IF('Tipos de Cambio'!$M$9="Sudáfrica",LOOKUP(9,$BB$2:$BL$2,BB30:BL30),IF('Tipos de Cambio'!$M$9="México",LOOKUP(10,$BB$2:$BL$2,BB30:BL30),IF('Tipos de Cambio'!$M$9="Colombia",LOOKUP(11,$BB$2:$BL$2,BB30:BL30)))))))))))) -> n.d. | BN30: n.d. | BO30: n.d. | BP30: n.d. | BQ30: n.d. | BR30: n.d. | BS30: n.d. | BT30: n.d. | BU30: n.d. | BV30: n.d. | BW30: n.d. | BX30: n.d. | BY30: n.d. | BZ30: n.d. | CA30: n.d. | CB30: n.d. | CC30: n.d. | CD30: n.d. | CE30: n.d. | CF30: n.d. | CG30: n.d. | CH30: n.d. | CI30: n.d. | CJ30: n.d. | CK30: n.d. | CL30: n.d. | CM30: n.d. | CN30: n.d. | CO30: n.d. | CP30: n.d. | CQ30: n.d. | CR30: n.d. | CS30: n.d. | CT30: n.d. | CU30: n.d. | CV30: n.d. | CW30: 100 | CX30: n.d. | CY30: n.d. | CZ30: n.d. | DA30: n.d. | DB30: n.d. | DC30: n.d. | DD30: n.d. | DE30: n.d. | DF30: n.d. | DG30: n.d. | DH30: n.d. | DI30: 3267.67 | DJ30: 633.47 | DK30: 412.7 | DL30: n.d. | DM30: n.d. | DN30: n.d. | DO30: n.d. | DP30: n.d. | DQ30: n.d. | DR30: n.d. | DS30: n.d. | DT30: n.d. | DU30: n.d. | DV30: n.d. | DW30: n.d. | DX30: n.d. | DY30: n.d. | DZ30: n.d. | EA30: n.d. | EB30: n.d. | EC30: n.d.
B31: marzo | C31: 3.185185185 | D31: 4.312354312 | E31: n.d. | F31: n.d. | G31: n.d. | H31: 1.916932907 | I31: n.d. | J31: n.d. | K31: n.d. | L31: n.d. | M31: n.d. | N31: 16.82485349 | O31: n.d. | P31: n.d | Q31: n.d | R31: n.d | S31: n.d | T31: n.d | U31: n.d | V31: n.d | W31: n.d | X31: n.d | Y31: n.d | Z31: n.d | AA31: n.d | AB31: n.d | AE31: 18.92 | AF31: n.d. | AH31: n.d. | AI31: n.d. | AJ31: n.d. | AK31: n.d. | AL31: n.d. | AM31: 327.24 | AN31: n.d. | AO31: n.d. | AP31: n.d. | AQ31: n.d. | AR31: n.d. | AS31: n.d. | AT31: n.d. | AU31: n.d. | AV31: n.d. | AW31: n.d. | AX31: n.d. | AY31: n.d. | AZ31: n.d. | BA31: n.d. | BB31: 0.6020107158 | BC31: n.d. | BD31: 132.86 | BE31: 1.1926 | BF31: n.d. | BG31: n.d. | BH31: n.d. | BI31: n.d. | BJ31: n.d. | BK31: 3.0672 | BL31: n.d. | BM31: =IF('Tipos de Cambio'!$M$9="EuroZona",LOOKUP(1,$BB$2:$BL$2,BB31:BL31),IF('Tipos de Cambio'!$M$9="Reino Unido",LOOKUP(2,$BB$2:$BL$2,BB31:BL31),IF('Tipos de Cambio'!$M$9="Japón",LOOKUP(3,$BB$2:$BL$2,BB31:BL31),IF('Tipos de Cambio'!$M$9="Canadá",LOOKUP(4,$BB$2:$BL$2,BB31:BL31),IF('Tipos de Cambio'!$M$9="Rusia",LOOKUP(5,$BB$2:$BL$2,BB31:BL31),IF('Tipos de Cambio'!$M$9="Brasil",LOOKUP(6,$BB$2:$BL$2,BB31:BL31),IF('Tipos de Cambio'!$M$9="China",LOOKUP(7,$BB$2:$BL$2,BB31:BL31),IF('Tipos de Cambio'!$M$9="India",LOOKUP(8,$BB$2:$BL$2,BB31:BL31),IF('Tipos de Cambio'!$M$9="Sudáfrica",LOOKUP(9,$BB$2:$BL$2,BB31:BL31),IF('Tipos de Cambio'!$M$9="México",LOOKUP(10,$BB$2:$BL$2,BB31:BL31),IF('Tipos de Cambio'!$M$9="Colombia",LOOKUP(11,$BB$2:$BL$2,BB31:BL31)))))))))))) -> n.d. | BN31: n.d. | BO31: n.d. | BP31: n.d. | BQ31: n.d. | BR31: n.d. | BS31: n.d. | BT31: n.d. | BU31: n.d. | BV31: n.d. | BW31: n.d. | BX31: n.d. | BY31: n.d. | BZ31: n.d. | CA31: n.d. | CB31: n.d. | CC31: n.d. | CD31: n.d. | CE31: n.d. | CF31: n.d. | CG31: n.d. | CH31: n.d. | CI31: n.d. | CJ31: n.d. | CK31: n.d. | CL31: n.d. | CM31: n.d. | CN31: n.d. | CO31: n.d. | CP31: n.d. | CQ31: n.d. | CR31: n.d. | CS31: n.d. | CT31: n.d. | CU31: n.d. | CV31: n.d. | CW31: 100 | CX31: n.d. | CY31: n.d. | CZ31: n.d. | DA31: n.d. | DB31: n.d. | DC31: n.d. | DD31: n.d. | DE31: n.d. | DF31: n.d. | DG31: n.d. | DH31: n.d. | DI31: 3235.47 | DJ31: 603.77 | DK31: 403.69 | DL31: n.d. | DM31: n.d. | DN31: n.d. | DO31: n.d. | DP31: n.d. | DQ31: n.d. | DR31: n.d. | DS31: n.d. | DT31: n.d. | DU31: n.d. | DV31: n.d. | DW31: n.d. | DX31: n.d. | DY31: n.d. | DZ31: n.d. | EA31: n.d. | EB31: n.d. | EC31: n.d.
B32: abril | C32: 3.180473373 | D32: 4.181184669 | E32: n.d. | F32: n.d. | G32: n.d. | H32: 2.431289641 | I32: n.d. | J32: n.d. | K32: n.d. | L32: n.d. | M32: n.d. | N32: 16.64437541 | O32: n.d. | P32: n.d | Q32: n.d | R32: n.d | S32: n.d | T32: n.d | U32: n.d | V32: n.d | W32: n.d | X32: n.d | Y32: n.d | Z32: n.d | AA32: n.d | AB32: n.d | AE32: 20.23 | AF32: n.d. | AH32: n.d. | AI32: n.d. | AJ32: n.d. | AK32: n.d. | AL32: n.d. | AM32: 333.03 | AN32: n.d. | AO32: n.d. | AP32: n.d. | AQ32: n.d. | AR32: n.d. | AS32: n.d. | AT32: n.d. | AU32: n.d. | AV32: n.d. | AW32: n.d. | AX32: n.d. | AY32: n.d. | AZ32: n.d. | BA32: n.d. | BB32: 0.6066856762 | BC32: n.d. | BD32: 133.54 | BE32: 1.1875 | BF32: n.d. | BG32: n.d. | BH32: n.d. | BI32: n.d. | BJ32: n.d. | BK32: 3.0675 | BL32: n.d. | BM32: =IF('Tipos de Cambio'!$M$9="EuroZona",LOOKUP(1,$BB$2:$BL$2,BB32:BL32),IF('Tipos de Cambio'!$M$9="Reino Unido",LOOKUP(2,$BB$2:$BL$2,BB32:BL32),IF('Tipos de Cambio'!$M$9="Japón",LOOKUP(3,$BB$2:$BL$2,BB32:BL32),IF('Tipos de Cambio'!$M$9="Canadá",LOOKUP(4,$BB$2:$BL$2,BB32:BL32),IF('Tipos de Cambio'!$M$9="Rusia",LOOKUP(5,$BB$2:$BL$2,BB32:BL32),IF('Tipos de Cambio'!$M$9="Brasil",LOOKUP(6,$BB$2:$BL$2,BB32:BL32),IF('Tipos de Cambio'!$M$9="China",LOOKUP(7,$BB$2:$BL$2,BB32:BL32),IF('Tipos de Cambio'!$M$9="India",LOOKUP(8,$BB$2:$BL$2,BB32:BL32),IF('Tipos de Cambio'!$M$9="Sudáfrica",LOOKUP(9,$BB$2:$BL$2,BB32:BL32),IF('Tipos de Cambio'!$M$9="México",LOOKUP(10,$BB$2:$BL$2,BB32:BL32),IF('Tipos de Cambio'!$M$9="Colombia",LOOKUP(11,$BB$2:$BL$2,BB32:BL32)))))))))))) -> n.d. | BN32: n.d. | BO32: n.d. | BP32: n.d. | BQ32: n.d. | BR32: n.d. | BS32: n.d. | BT32: n.d. | BU32: n.d. | BV32: n.d. | BW32: n.d. | BX32: n.d. | BY32: n.d. | BZ32: n.d. | CA32: n.d. | CB32: n.d. | CC32: n.d. | CD32: n.d. | CE32: n.d. | CF32: n.d. | CG32: n.d. | CH32: n.d. | CI32: n.d. | CJ32: n.d. | CK32: n.d. | CL32: n.d. | CM32: n.d. | CN32: n.d. | CO32: n.d. | CP32: n.d. | CQ32: n.d. | CR32: n.d. | CS32: n.d. | CT32: n.d. | CU32: n.d. | CV32: n.d. | CW32: 100 | CX32: n.d. | CY32: n.d. | CZ32: n.d. | DA32: n.d. | DB32: n.d. | DC32: n.d. | DD32: n.d. | DE32: n.d. | DF32: n.d. | DG32: n.d. | DH32: n.d. | DI32: 3359.12 | DJ32: 578.68 | DK32: 414.95 | DL32: n.d. | DM32: n.d. | DN32: n.d. | DO32: n.d. | DP32: n.d. | DQ32: n.d. | DR32: n.d. | DS32: n.d. | DT32: n.d. | DU32: n.d. | DV32: n.d. | DW32: n.d. | DX32: n.d. | DY32: n.d. | DZ32: n.d. | EA32: n.d. | EB32: n.d. | EC32: n.d.
B33: mayo | C33: 3.02359882 | D33: 4.046242775 | E33: n.d. | F33: n.d. | G33: n.d. | H33: 2.105263158 | I33: n.d. | J33: n.d. | K33: n.d. | L33: n.d. | M33: n.d. | N33: 16.27677843 | O33: n.d. | P33: n.d | Q33: n.d | R33: n.d | S33: n.d | T33: n.d | U33: n.d | V33: n.d | W33: n.d | X33: n.d | Y33: n.d | Z33: n.d | AA33: n.d | AB33: n.d | AE33: 20.98 | AF33: n.d. | AH33: n.d. | AI33: n.d. | AJ33: n.d. | AK33: n.d. | AL33: n.d. | AM33: 323.94 | AN33: n.d. | AO33: n.d. | AP33: n.d. | AQ33: n.d. | AR33: n.d. | AS33: n.d. | AT33: n.d. | AU33: n.d. | AV33: n.d. | AW33: n.d. | AX33: n.d. | AY33: n.d. | AZ33: n.d. | BA33: n.d. | BB33: 0.6170554116 | BC33: n.d. | BD33: 130.77 | BE33: 1.2 | BF33: n.d. | BG33: n.d. | BH33: n.d. | BI33: n.d. | BJ33: n.d. | BK33: 3.0982 | BL33: n.d. | BM33: =IF('Tipos de Cambio'!$M$9="EuroZona",LOOKUP(1,$BB$2:$BL$2,BB33:BL33),IF('Tipos de Cambio'!$M$9="Reino Unido",LOOKUP(2,$BB$2:$BL$2,BB33:BL33),IF('Tipos de Cambio'!$M$9="Japón",LOOKUP(3,$BB$2:$BL$2,BB33:BL33),IF('Tipos de Cambio'!$M$9="Canadá",LOOKUP(4,$BB$2:$BL$2,BB33:BL33),IF('Tipos de Cambio'!$M$9="Rusia",LOOKUP(5,$BB$2:$BL$2,BB33:BL33),IF('Tipos de Cambio'!$M$9="Brasil",LOOKUP(6,$BB$2:$BL$2,BB33:BL33),IF('Tipos de Cambio'!$M$9="China",LOOKUP(7,$BB$2:$BL$2,BB33:BL33),IF('Tipos de Cambio'!$M$9="India",LOOKUP(8,$BB$2:$BL$2,BB33:BL33),IF('Tipos de Cambio'!$M$9="Sudáfrica",LOOKUP(9,$BB$2:$BL$2,BB33:BL33),IF('Tipos de Cambio'!$M$9="México",LOOKUP(10,$BB$2:$BL$2,BB33:BL33),IF('Tipos de Cambio'!$M$9="Colombia",LOOKUP(11,$BB$2:$BL$2,BB33:BL33)))))))))))) -> n.d. | BN33: n.d. | BO33: n.d. | BP33: n.d. | BQ33: n.d. | BR33: n.d. | BS33: n.d. | BT33: n.d. | BU33: n.d. | BV33: n.d. | BW33: n.d. | BX33: n.d. | BY33: n.d. | BZ33: n.d. | CA33: n.d. | CB33: n.d. | CC33: n.d. | CD33: n.d. | CE33: =IFERROR((BV33/BV21-1)*100,"n.d.") -> n.d. | CF33: n.d. | CG33: n.d. | CH33: n.d. | CI33: n.d. | CJ33: n.d. | CK33: n.d. | CL33: n.d. | CM33: n.d. | CN33: n.d. | CO33: n.d. | CP33: n.d. | CQ33: n.d. | CR33: n.d. | CS33: n.d. | CT33: n.d. | CU33: n.d. | CV33: n.d. | CW33: 100 | CX33: n.d. | CY33: n.d. | CZ33: n.d. | DA33: n.d. | DB33: n.d. | DC33: n.d. | DD33: n.d. | DE33: n.d. | DF33: n.d. | DG33: n.d. | DH33: n.d. | DI33: 3396.88 | DJ33: 585.31 | DK33: 415.35 | DL33: n.d. | DM33: n.d. | DN33: n.d. | DO33: n.d. | DP33: n.d. | DQ33: n.d. | DR33: n.d. | DS33: n.d. | DT33: n.d. | DU33: n.d. | DV33: n.d. | DW33: n.d. | DX33: n.d. | DY33: n.d. | DZ33: n.d. | EA33: n.d. | EB33: n.d. | EC33: n.d.
B34: junio | C34: 3.088235294 | D34: 3.917050691 | E34: n.d. | F34: n.d. | G34: n.d. | H34: 2.21987315 | I34: n.d. | J34: n.d. | K34: n.d. | L34: n.d. | M34: n.d. | N34: 15.84818352 | O34: n.d. | P34: n.d | Q34: n.d | R34: n.d | S34: n.d | T34: n.d | U34: n.d | V34: n.d | W34: n.d | X34: n.d | Y34: n.d | Z34: n.d | AA34: n.d | AB34: n.d | AE34: 22.39 | AF34: n.d. | AH34: n.d. | AI34: n.d. | AJ34: n.d. | AK34: n.d. | AL34: n.d. | AM34: 333.85 | AN34: n.d. | AO34: n.d. | AP34: n.d. | AQ34: n.d. | AR34: n.d. | AS34: n.d. | AT34: n.d. | AU34: n.d. | AV34: n.d. | AW34: n.d. | AX34: n.d. | AY34: n.d. | AZ34: n.d. | BA34: n.d. | BB34: 0.6353240152 | BC34: n.d. | BD34: 126.84 | BE34: 1.2 | BF34: n.d. | BG34: n.d. | BH34: n.d. | BI34: n.d. | BJ34: n.d. | BK34: 3.1185 | BL34: n.d. | BM34: =IF('Tipos de Cambio'!$M$9="EuroZona",LOOKUP(1,$BB$2:$BL$2,BB34:BL34),IF('Tipos de Cambio'!$M$9="Reino Unido",LOOKUP(2,$BB$2:$BL$2,BB34:BL34),IF('Tipos de Cambio'!$M$9="Japón",LOOKUP(3,$BB$2:$BL$2,BB34:BL34),IF('Tipos de Cambio'!$M$9="Canadá",LOOKUP(4,$BB$2:$BL$2,BB34:BL34),IF('Tipos de Cambio'!$M$9="Rusia",LOOKUP(5,$BB$2:$BL$2,BB34:BL34),IF('Tipos de Cambio'!$M$9="Brasil",LOOKUP(6,$BB$2:$BL$2,BB34:BL34),IF('Tipos de Cambio'!$M$9="China",LOOKUP(7,$BB$2:$BL$2,BB34:BL34),IF('Tipos de Cambio'!$M$9="India",LOOKUP(8,$BB$2:$BL$2,BB34:BL34),IF('Tipos de Cambio'!$M$9="Sudáfrica",LOOKUP(9,$BB$2:$BL$2,BB34:BL34),IF('Tipos de Cambio'!$M$9="México",LOOKUP(10,$BB$2:$BL$2,BB34:BL34),IF('Tipos de Cambio'!$M$9="Colombia",LOOKUP(11,$BB$2:$BL$2,BB34:BL34)))))))))))) -> n.d. | BN34: n.d. | BO34: n.d. | BP34: n.d. | BQ34: n.d. | BR34: n.d. | BS34: n.d. | BT34: n.d. | BU34: n.d. | BV34: n.d. | BW34: n.d. | BX34: n.d. | BY34: n.d. | BZ34: n.d. | CA34: n.d. | CB34: n.d. | CC34: n.d. | CD34: n.d. | CE34: n.d. | CF34: n.d. | CG34: n.d. | CH34: n.d. | CI34: n.d. | CJ34: n.d. | CK34: n.d. | CL34: n.d. | CM34: n.d. | CN34: n.d. | CO34: n.d. | CP34: n.d. | CQ34: n.d. | CR34: n.d. | CS34: n.d. | CT34: n.d. | CU34: n.d. | CV34: n.d. | CW34: 100 | CX34: n.d. | CY34: n.d. | CZ34: n.d. | DA34: n.d. | DB34: n.d. | DC34: n.d. | DD34: n.d. | DE34: n.d. | DF34: n.d. | DG34: n.d. | DH34: n.d. | DI34: 3318.52 | DJ34: 563.6 | DK34: 408.14 | DL34: n.d. | DM34: n.d. | DN34: n.d. | DO34: n.d. | DP34: n.d. | DQ34: n.d. | DR34: n.d. | DS34: n.d. | DT34: n.d. | DU34: n.d. | DV34: n.d. | DW34: n.d. | DX34: n.d. | DY34: n.d. | DZ34: n.d. | EA34: n.d. | EB34: n.d. | EC34: n.d.
B35: julio | C35: 3.15712188 | D35: 3.318077803 | E35: n.d. | F35: n.d. | G35: n.d. | H35: 1.481481481 | I35: n.d. | J35: n.d. | K35: n.d. | L35: n.d. | M35: n.d. | N35: 15.55846208 | O35: n.d. | P35: n.d | Q35: n.d | R35: n.d | S35: n.d | T35: n.d | U35: n.d | V35: n.d | W35: n.d | X35: n.d | Y35: n.d | Z35: n.d | AA35: n.d | AB35: n.d | AE35: 21.78 | AF35: n.d. | AH35: n.d. | AI35: n.d. | AJ35: n.d. | AK35: n.d. | AL35: n.d. | AM35: 315.67 | AN35: n.d. | AO35: n.d. | AP35: n.d. | AQ35: n.d. | AR35: n.d. | AS35: n.d. | AT35: n.d. | AU35: n.d. | AV35: n.d. | AW35: n.d. | AX35: n.d. | AY35: n.d. | AZ35: n.d. | BA35: n.d. | BB35: 0.6707357972 | BC35: n.d. | BD35: 125.88 | BE35: 1.1917 | BF35: n.d. | BG35: n.d. | BH35: n.d. | BI35: n.d. | BJ35: n.d. | BK35: 3.1165 | BL35: n.d. | BM35: =IF('Tipos de Cambio'!$M$9="EuroZona",LOOKUP(1,$BB$2:$BL$2,BB35:BL35),IF('Tipos de Cambio'!$M$9="Reino Unido",LOOKUP(2,$BB$2:$BL$2,BB35:BL35),IF('Tipos de Cambio'!$M$9="Japón",LOOKUP(3,$BB$2:$BL$2,BB35:BL35),IF('Tipos de Cambio'!$M$9="Canadá",LOOKUP(4,$BB$2:$BL$2,BB35:BL35),IF('Tipos de Cambio'!$M$9="Rusia",LOOKUP(5,$BB$2:$BL$2,BB35:BL35),IF('Tipos de Cambio'!$M$9="Brasil",LOOKUP(6,$BB$2:$BL$2,BB35:BL35),IF('Tipos de Cambio'!$M$9="China",LOOKUP(7,$BB$2:$BL$2,BB35:BL35),IF('Tipos de Cambio'!$M$9="India",LOOKUP(8,$BB$2:$BL$2,BB35:BL35),IF('Tipos de Cambio'!$M$9="Sudáfrica",LOOKUP(9,$BB$2:$BL$2,BB35:BL35),IF('Tipos de Cambio'!$M$9="México",LOOKUP(10,$BB$2:$BL$2,BB35:BL35),IF('Tipos de Cambio'!$M$9="Colombia",LOOKUP(11,$BB$2:$BL$2,BB35:BL35)))))))))))) -> n.d. | BN35: n.d. | BO35: n.d. | BP35: n.d. | BQ35: n.d. | BR35: n.d. | BS35: n.d. | BT35: n.d. | BU35: n.d. | BV35: n.d. | BW35: n.d. | BX35: n.d. | BY35: n.d. | BZ35: n.d. | CA35: n.d. | CB35: n.d. | CC35: n.d. | CD35: n.d. | CE35: n.d. | CF35: n.d. | CG35: n.d. | CH35: n.d. | CI35: n.d. | CJ35: n.d. | CK35: n.d. | CL35: n.d. | CM35: n.d. | CN35: n.d. | CO35: n.d. | CP35: n.d. | CQ35: n.d. | CR35: n.d. | CS35: n.d. | CT35: n.d. | CU35: n.d. | CV35: n.d. | CW35: 100 | CX35: n.d. | CY35: n.d. | CZ35: n.d. | DA35: n.d. | DB35: n.d. | DC35: n.d. | DD35: n.d. | DE35: n.d. | DF35: n.d. | DG35: n.d. | DH35: n.d. | DI35: 3393.78 | DJ35: 580.83 | DK35: 424.21 | DL35: n.d. | DM35: n.d. | DN35: n.d. | DO35: n.d. | DP35: n.d. | DQ35: n.d. | DR35: n.d. | DS35: n.d. | DT35: n.d. | DU35: n.d. | DV35: n.d. | DW35: n.d. | DX35: n.d. | DY35: n.d. | DZ35: n.d. | EA35: n.d. | EB35: n.d. | EC35: n.d.
B36: agosto | C36: 3.147877013 | D36: 3.314285714 | E36: n.d. | F36: n.d. | G36: n.d. | H36: 1.583949314 | I36: n.d. | J36: n.d. | K36: n.d. | L36: n.d. | M36: n.d. | N36: 15.46479305 | O36: n.d. | P36: n.d | Q36: n.d | R36: n.d | S36: n.d | T36: n.d | U36: n.d | V36: n.d | W36: n.d | X36: n.d | Y36: n.d | Z36: n.d | AA36: n.d | AB36: n.d | AE36: 21.34 | AF36: n.d. | AH36: n.d. | AI36: n.d. | AJ36: n.d. | AK36: n.d. | AL36: n.d. | AM36: 315.67 | AN36: n.d. | AO36: n.d. | AP36: n.d. | AQ36: n.d. | AR36: n.d. | AS36: n.d. | AT36: n.d. | AU36: n.d. | AV36: n.d. | AW36: n.d. | AX36: n.d. | AY36: n.d. | AZ36: n.d. | BA36: n.d. | BB36: 0.6891798759 | BC36: n.d. | BD36: 126.23 | BE36: 1.1909 | BF36: n.d. | BG36: n.d. | BH36: n.d. | BI36: n.d. | BJ36: n.d. | BK36: 3.0913 | BL36: n.d. | BM36: =IF('Tipos de Cambio'!$M$9="EuroZona",LOOKUP(1,$BB$2:$BL$2,BB36:BL36),IF('Tipos de Cambio'!$M$9="Reino Unido",LOOKUP(2,$BB$2:$BL$2,BB36:BL36),IF('Tipos de Cambio'!$M$9="Japón",LOOKUP(3,$BB$2:$BL$2,BB36:BL36),IF('Tipos de Cambio'!$M$9="Canadá",LOOKUP(4,$BB$2:$BL$2,BB36:BL36),IF('Tipos de Cambio'!$M$9="Rusia",LOOKUP(5,$BB$2:$BL$2,BB36:BL36),IF('Tipos de Cambio'!$M$9="Brasil",LOOKUP(6,$BB$2:$BL$2,BB36:BL36),IF('Tipos de Cambio'!$M$9="China",LOOKUP(7,$BB$2:$BL$2,BB36:BL36),IF('Tipos de Cambio'!$M$9="India",LOOKUP(8,$BB$2:$BL$2,BB36:BL36),IF('Tipos de Cambio'!$M$9="Sudáfrica",LOOKUP(9,$BB$2:$BL$2,BB36:BL36),IF('Tipos de Cambio'!$M$9="México",LOOKUP(10,$BB$2:$BL$2,BB36:BL36),IF('Tipos de Cambio'!$M$9="Colombia",LOOKUP(11,$BB$2:$BL$2,BB36:BL36)))))))))))) -> n.d. | BN36: n.d. | BO36: n.d. | BP36: n.d. | BQ36: n.d. | BR36: n.d. | BS36: n.d. | BT36: n.d. | BU36: n.d. | BV36: n.d. | BW36: n.d. | BX36: n.d. | BY36: n.d. | BZ36: n.d. | CA36: n.d. | CB36: n.d. | CC36: n.d. | CD36: n.d. | CE36: n.d. | CF36: n.d. | CG36: n.d. | CH36: n.d. | CI36: n.d. | CJ36: n.d. | CK36: n.d. | CL36: n.d. | CM36: n.d. | CN36: n.d. | CO36: n.d. | CP36: n.d. | CQ36: n.d. | CR36: n.d. | CS36: n.d. | CT36: n.d. | CU36: n.d. | CV36: n.d. | CW36: 100 | CX36: n.d. | CY36: n.d. | CZ36: n.d. | DA36: n.d. | DB36: n.d. | DC36: n.d. | DD36: n.d. | DE36: n.d. | DF36: n.d. | DG36: n.d. | DH36: n.d. | DI36: 3257.35 | DJ36: 563.12 | DK36: 414.03 | DL36: n.d. | DM36: n.d. | DN36: n.d. | DO36: n.d. | DP36: n.d. | DQ36: n.d. | DR36: n.d. | DS36: n.d. | DT36: n.d. | DU36: n.d. | DV36: n.d. | DW36: n.d. | DX36: n.d. | DY36: n.d. | DZ36: n.d. | EA36: n.d. | EB36: n.d. | EC36: n.d.
B37: septiembre | C37: 2.988338192 | D37: 3.310502283 | E37: n.d. | F37: n.d. | G37: n.d. | H37: 2.002107482 | I37: n.d. | J37: n.d. | K37: n.d. | L37: n.d. | M37: n.d. | N37: 15.32038066 | O37: n.d. | P37: n.d | Q37: n.d | R37: n.d | S37: n.d | T37: n.d | U37: n.d | V37: n.d | W37: n.d | X37: n.d | Y37: n.d | Z37: n.d | AA37: n.d | AB37: n.d | AE37: 21.88 | AF37: n.d. | AH37: n.d. | AI37: n.d. | AJ37: n.d. | AK37: n.d. | AL37: n.d. | AM37: 323.32 | AN37: n.d. | AO37: n.d. | AP37: n.d. | AQ37: n.d. | AR37: n.d. | AS37: n.d. | AT37: n.d. | AU37: n.d. | AV37: n.d. | AW37: n.d. | AX37: n.d. | AY37: n.d. | AZ37: n.d. | BA37: n.d. | BB37: 0.6907508462 | BC37: n.d. | BD37: 123.3530769 | BE37: 1.2223 | BF37: n.d. | BG37: n.d. | BH37: n.d. | BI37: n.d. | BJ37: n.d. | BK37: 3.0857 | BL37: n.d. | BM37: =IF('Tipos de Cambio'!$M$9="EuroZona",LOOKUP(1,$BB$2:$BL$2,BB37:BL37),IF('Tipos de Cambio'!$M$9="Reino Unido",LOOKUP(2,$BB$2:$BL$2,BB37:BL37),IF('Tipos de Cambio'!$M$9="Japón",LOOKUP(3,$BB$2:$BL$2,BB37:BL37),IF('Tipos de Cambio'!$M$9="Canadá",LOOKUP(4,$BB$2:$BL$2,BB37:BL37),IF('Tipos de Cambio'!$M$9="Rusia",LOOKUP(5,$BB$2:$BL$2,BB37:BL37),IF('Tipos de Cambio'!$M$9="Brasil",LOOKUP(6,$BB$2:$BL$2,BB37:BL37),IF('Tipos de Cambio'!$M$9="China",LOOKUP(7,$BB$2:$BL$2,BB37:BL37),IF('Tipos de Cambio'!$M$9="India",LOOKUP(8,$BB$2:$BL$2,BB37:BL37),IF('Tipos de Cambio'!$M$9="Sudáfrica",LOOKUP(9,$BB$2:$BL$2,BB37:BL37),IF('Tipos de Cambio'!$M$9="México",LOOKUP(10,$BB$2:$BL$2,BB37:BL37),IF('Tipos de Cambio'!$M$9="Colombia",LOOKUP(11,$BB$2:$BL$2,BB37:BL37)))))))))))) -> n.d. | BN37: n.d. | BO37: n.d. | BP37: n.d. | BQ37: n.d. | BR37: n.d. | BS37: n.d. | BT37: n.d. | BU37: n.d. | BV37: n.d. | BW37: n.d. | BX37: n.d. | BY37: n.d. | BZ37: n.d. | CA37: n.d. | CB37: n.d. | CC37: n.d. | CD37: n.d. | CE37: n.d. | CF37: n.d. | CG37: n.d. | CH37: n.d. | CI37: n.d. | CJ37: n.d. | CK37: n.d. | CL37: n.d. | CM37: n.d. | CN37: n.d. | CO37: n.d. | CP37: n.d. | CQ37: n.d. | CR37: n.d. | CS37: n.d. | CT37: n.d. | CU37: n.d. | CV37: n.d. | CW37: 100 | CX37: n.d. | CY37: n.d. | CZ37: n.d. | DA37: n.d. | DB37: n.d. | DC37: n.d. | DD37: n.d. | DE37: n.d. | DF37: n.d. | DG37: n.d. | DH37: n.d. | DI37: 3271.66 | DJ37: 583.27 | DK37: 417.8 | DL37: n.d. | DM37: n.d. | DN37: n.d. | DO37: n.d. | DP37: n.d. | DQ37: n.d. | DR37: n.d. | DS37: n.d. | DT37: n.d. | DU37: n.d. | DV37: n.d. | DW37: n.d. | DX37: n.d. | DY37: n.d. | DZ37: n.d. | EA37: n.d. | EB37: n.d. | EC37: n.d.
B38: octubre | C38: 3.202328967 | D38: 3.185437998 | E38: n.d. | F38: n.d. | G38: n.d. | H38: 0.9384775808 | I38: n.d. | J38: n.d. | K38: n.d. | L38: n.d. | M38: n.d. | N38: 14.81539186 | O38: n.d. | P38: n.d | Q38: n.d | R38: n.d | S38: n.d | T38: n.d | U38: n.d | V38: n.d | W38: n.d | X38: n.d | Y38: n.d | Z38: n.d | AA38: n.d | AB38: n.d | AE38: 21.69 | AF38: n.d. | AH38: n.d. | AI38: n.d. | AJ38: n.d. | AK38: n.d. | AL38: n.d. | AM38: 326.41 | AN38: n.d. | AO38: n.d. | AP38: n.d. | AQ38: n.d. | AR38: n.d. | AS38: n.d. | AT38: n.d. | AU38: n.d. | AV38: n.d. | AW38: n.d. | AX38: n.d. | AY38: n.d. | AZ38: n.d. | BA38: n.d. | BB38: 0.6749460043 | BC38: n.d. | BD38: 121.0508333 | BE38: 1.2451 | BF38: n.d. | BG38: n.d. | BH38: n.d. | BI38: n.d. | BJ38: n.d. | BK38: 3.1238 | BL38: n.d. | BM38: =IF('Tipos de Cambio'!$M$9="EuroZona",LOOKUP(1,$BB$2:$BL$2,BB38:BL38),IF('Tipos de Cambio'!$M$9="Reino Unido",LOOKUP(2,$BB$2:$BL$2,BB38:BL38),IF('Tipos de Cambio'!$M$9="Japón",LOOKUP(3,$BB$2:$BL$2,BB38:BL38),IF('Tipos de Cambio'!$M$9="Canadá",LOOKUP(4,$BB$2:$BL$2,BB38:BL38),IF('Tipos de Cambio'!$M$9="Rusia",LOOKUP(5,$BB$2:$BL$2,BB38:BL38),IF('Tipos de Cambio'!$M$9="Brasil",LOOKUP(6,$BB$2:$BL$2,BB38:BL38),IF('Tipos de Cambio'!$M$9="China",LOOKUP(7,$BB$2:$BL$2,BB38:BL38),IF('Tipos de Cambio'!$M$9="India",LOOKUP(8,$BB$2:$BL$2,BB38:BL38),IF('Tipos de Cambio'!$M$9="Sudáfrica",LOOKUP(9,$BB$2:$BL$2,BB38:BL38),IF('Tipos de Cambio'!$M$9="México",LOOKUP(10,$BB$2:$BL$2,BB38:BL38),IF('Tipos de Cambio'!$M$9="Colombia",LOOKUP(11,$BB$2:$BL$2,BB38:BL38)))))))))))) -> n.d. | BN38: n.d. | BO38: n.d. | BP38: n.d. | BQ38: n.d. | BR38: n.d. | BS38: n.d. | BT38: n.d. | BU38: n.d. | BV38: n.d. | BW38: n.d. | BX38: n.d. | BY38: n.d. | BZ38: n.d. | CA38: n.d. | CB38: n.d. | CC38: n.d. | CD38: n.d. | CE38: n.d. | CF38: n.d. | CG38: n.d. | CH38: n.d. | CI38: n.d. | CJ38: n.d. | CK38: n.d. | CL38: n.d. | CM38: n.d. | CN38: n.d. | CO38: n.d. | CP38: n.d. | CQ38: n.d. | CR38: n.d. | CS38: n.d. | CT38: n.d. | CU38: n.d. | CV38: n.d. | CW38: 100 | CX38: n.d. | CY38: n.d. | CZ38: n.d. | DA38: n.d. | DB38: n.d. | DC38: n.d. | DD38: n.d. | DE38: n.d. | DF38: n.d. | DG38: n.d. | DH38: n.d. | DI38: 3226.28 | DJ38: 605.17 | DK38: 418.68 | DL38: n.d. | DM38: n.d. | DN38: n.d. | DO38: n.d. | DP38: n.d. | DQ38: n.d. | DR38: n.d. | DS38: n.d. | DT38: n.d. | DU38: n.d. | DV38: n.d. | DW38: n.d. | DX38: n.d. | DY38: n.d. | DZ38: n.d. | EA38: n.d. | EB38: n.d. | EC38: n.d.
B39: noviembre | C39: 3.047895501 | D39: 3.057757644 | E39: n.d. | F39: n.d. | G39: n.d. | H39: 0.4162330905 | I39: n.d. | J39: n.d. | K39: n.d. | L39: n.d. | M39: n.d. | N39: 12.96439965 | O39: n.d. | P39: n.d | Q39: n.d | R39: n.d | S39: n.d | T39: n.d | U39: n.d | V39: n.d | W39: n.d | X39: n.d | Y39: n.d | Z39: n.d | AA39: n.d | AB39: n.d | AE39: 20.34 | AF39: n.d. | AH39: n.d. | AI39: n.d. | AJ39: n.d. | AK39: n.d. | AL39: n.d. | AM39: 341.29 | AN39: n.d. | AO39: n.d. | AP39: n.d. | AQ39: n.d. | AR39: n.d. | AS39: n.d. | AT39: n.d. | AU39: n.d. | AV39: n.d. | AW39: n.d. | AX39: n.d. | AY39: n.d. | AZ39: n.d. | BA39: n.d. | BB39: 0.6298419097 | BC39: n.d. | BD39: 123.8342857 | BE39: 1.268 | BF39: n.d. | BG39: n.d. | BH39: n.d. | BI39: n.d. | BJ39: n.d. | BK39: 3.1198 | BL39: n.d. | BM39: =IF('Tipos de Cambio'!$M$9="EuroZona",LOOKUP(1,$BB$2:$BL$2,BB39:BL39),IF('Tipos de Cambio'!$M$9="Reino Unido",LOOKUP(2,$BB$2:$BL$2,BB39:BL39),IF('Tipos de Cambio'!$M$9="Japón",LOOKUP(3,$BB$2:$BL$2,BB39:BL39),IF('Tipos de Cambio'!$M$9="Canadá",LOOKUP(4,$BB$2:$BL$2,BB39:BL39),IF('Tipos de Cambio'!$M$9="Rusia",LOOKUP(5,$BB$2:$BL$2,BB39:BL39),IF('Tipos de Cambio'!$M$9="Brasil",LOOKUP(6,$BB$2:$BL$2,BB39:BL39),IF('Tipos de Cambio'!$M$9="China",LOOKUP(7,$BB$2:$BL$2,BB39:BL39),IF('Tipos de Cambio'!$M$9="India",LOOKUP(8,$BB$2:$BL$2,BB39:BL39),IF('Tipos de Cambio'!$M$9="Sudáfrica",LOOKUP(9,$BB$2:$BL$2,BB39:BL39),IF('Tipos de Cambio'!$M$9="México",LOOKUP(10,$BB$2:$BL$2,BB39:BL39),IF('Tipos de Cambio'!$M$9="Colombia",LOOKUP(11,$BB$2:$BL$2,BB39:BL39)))))))))))) -> n.d. | BN39: n.d. | BO39: n.d. | BP39: n.d. | BQ39: n.d. | BR39: n.d. | BS39: n.d. | BT39: n.d. | BU39: n.d. | BV39: n.d. | BW39: n.d. | BX39: n.d. | BY39: n.d. | BZ39: n.d. | CA39: n.d. | CB39: n.d. | CC39: n.d. | CD39: n.d. | CE39: n.d. | CF39: n.d. | CG39: n.d. | CH39: n.d. | CI39: n.d. | CJ39: n.d. | CK39: n.d. | CL39: n.d. | CM39: n.d. | CN39: n.d. | CO39: n.d. | CP39: n.d. | CQ39: n.d. | CR39: n.d. | CS39: n.d. | CT39: n.d. | CU39: n.d. | CV39: n.d. | CW39: 100 | CX39: n.d. | CY39: n.d. | CZ39: n.d. | DA39: n.d. | DB39: n.d. | DC39: n.d. | DD39: n.d. | DE39: n.d. | DF39: n.d. | DG39: n.d. | DH39: n.d. | DI39: 3305.16 | DJ39: 652.73 | DK39: 431.35 | DL39: n.d. | DM39: n.d. | DN39: n.d. | DO39: n.d. | DP39: n.d. | DQ39: n.d. | DR39: n.d. | DS39: n.d. | DT39: n.d. | DU39: n.d. | DV39: n.d. | DW39: n.d. | DX39: n.d. | DY39: n.d. | DZ39: n.d. | EA39: n.d. | EB39: n.d. | EC39: n.d.
B40: diciembre | C40: 2.900652647 | D40: 3.171007928 | E40: n.d. | F40: n.d. | G40: n.d. | H40: 0.8359456635 | I40: n.d. | J40: n.d. | K40: n.d. | L40: n.d. | M40: n.d. | N40: 11.93809461 | O40: n.d. | P40: n.d | Q40: n.d | R40: n.d | S40: n.d | T40: n.d | U40: n.d | V40: n.d | W40: n.d | X40: n.d | Y40: n.d | Z40: n.d | AA40: n.d | AB40: n.d | AE40: 19.41 | AF40: n.d. | AH40: n.d. | AI40: n.d. | AJ40: n.d. | AK40: n.d. | AL40: n.d. | AM40: 331.37 | AN40: n.d. | AO40: n.d. | AP40: n.d. | AQ40: n.d. | AR40: n.d. | AS40: n.d. | AT40: n.d. | AU40: n.d. | AV40: n.d. | AW40: n.d. | AX40: n.d. | AY40: n.d. | AZ40: n.d. | BA40: n.d. | BB40: 0.6329915179 | BC40: n.d. | BD40: 123.8153846 | BE40: 1.2727 | BF40: n.d. | BG40: n.d. | BH40: n.d. | BI40: n.d. | BJ40: n.d. | BK40: 3.1182 | BL40: n.d. | BM40: =IF('Tipos de Cambio'!$M$9="EuroZona",LOOKUP(1,$BB$2:$BL$2,BB40:BL40),IF('Tipos de Cambio'!$M$9="Reino Unido",LOOKUP(2,$BB$2:$BL$2,BB40:BL40),IF('Tipos de Cambio'!$M$9="Japón",LOOKUP(3,$BB$2:$BL$2,BB40:BL40),IF('Tipos de Cambio'!$M$9="Canadá",LOOKUP(4,$BB$2:$BL$2,BB40:BL40),IF('Tipos de Cambio'!$M$9="Rusia",LOOKUP(5,$BB$2:$BL$2,BB40:BL40),IF('Tipos de Cambio'!$M$9="Brasil",LOOKUP(6,$BB$2:$BL$2,BB40:BL40),IF('Tipos de Cambio'!$M$9="China",LOOKUP(7,$BB$2:$BL$2,BB40:BL40),IF('Tipos de Cambio'!$M$9="India",LOOKUP(8,$BB$2:$BL$2,BB40:BL40),IF('Tipos de Cambio'!$M$9="Sudáfrica",LOOKUP(9,$BB$2:$BL$2,BB40:BL40),IF('Tipos de Cambio'!$M$9="México",LOOKUP(10,$BB$2:$BL$2,BB40:BL40),IF('Tipos de Cambio'!$M$9="Colombia",LOOKUP(11,$BB$2:$BL$2,BB40:BL40)))))))))))) -> n.d. | BN40: n.d. | BO40: n.d. | BP40: n.d. | BQ40: n.d. | BR40: n.d. | BS40: n.d. | BT40: n.d. | BU40: n.d. | BV40: n.d. | BW40: n.d. | BX40: n.d. | BY40: n.d. | BZ40: n.d. | CA40: n.d. | CB40: n.d. | CC40: n.d. | CD40: n.d. | CE40: n.d. | CF40: n.d. | CG40: n.d. | CH40: n.d. | CI40: n.d. | CJ40: n.d. | CK40: n.d. | CL40: n.d. | CM40: n.d. | CN40: n.d. | CO40: n.d. | CP40: n.d. | CQ40: n.d. | CR40: n.d. | CS40: n.d. | CT40: n.d. | CU40: n.d. | CV40: n.d. | CW40: 100 | CX40: n.d. | CY40: n.d. | CZ40: n.d. | DA40: n.d. | DB40: n.d. | DC40: n.d. | DD40: n.d. | DE40: n.d. | DF40: n.d. | DG40: n.d. | DH40: n.d. | DI40: 3301.11 | DJ40: 676.95 | DK40: 435.71 | DL40: n.d. | DM40: n.d. | DN40: n.d. | DO40: n.d. | DP40: n.d. | DQ40: n.d. | DR40: n.d. | DS40: n.d. | DT40: n.d. | DU40: n.d. | DV40: n.d. | DW40: n.d. | DX40: n.d. | DY40: n.d. | DZ40: n.d. | EA40: n.d. | EB40: n.d. | EC40: n.d.
A41: 1993 | B41: enero | C41: 3.258508327 | D41: 3.386004515 | E41: n.d. | F41: n.d. | G41: n.d. | H41: 1.048218029 | I41: n.d. | J41: n.d. | K41: n.d. | L41: n.d. | M41: n.d. | N41: 11.3189773 | O41: n.d. | P41: n.d | Q41: n.d | R41: n.d | S41: n.d | T41: n.d | U41: n.d | V41: n.d | W41: n.d | X41: n.d | Y41: n.d | Z41: n.d | AA41: n.d | AB41: n.d | AE41: 19.03 | AF41: n.d. | AH41: n.d. | AI41: n.d. | AJ41: n.d. | AK41: n.d. | AL41: n.d. | AM41: 338.81 | AN41: n.d. | AO41: n.d. | AP41: n.d. | AQ41: n.d. | AR41: n.d. | AS41: n.d. | AT41: n.d. | AU41: n.d. | AV41: n.d. | AW41: n.d. | AX41: n.d. | AY41: n.d. | AZ41: n.d. | BA41: n.d. | BB41: 0.6188884763 | BC41: n.d. | BD41: 124.7857143 | BE41: 1.2776 | BF41: n.d. | BG41: n.d. | BH41: n.d. | BI41: n.d. | BJ41: n.d. | BK41: 3.1146 | BL41: n.d. | BM41: =IF('Tipos de Cambio'!$M$9="EuroZona",LOOKUP(1,$BB$2:$BL$2,BB41:BL41),IF('Tipos de Cambio'!$M$9="Reino Unido",LOOKUP(2,$BB$2:$BL$2,BB41:BL41),IF('Tipos de Cambio'!$M$9="Japón",LOOKUP(3,$BB$2:$BL$2,BB41:BL41),IF('Tipos de Cambio'!$M$9="Canadá",LOOKUP(4,$BB$2:$BL$2,BB41:BL41),IF('Tipos de Cambio'!$M$9="Rusia",LOOKUP(5,$BB$2:$BL$2,BB41:BL41),IF('Tipos de Cambio'!$M$9="Brasil",LOOKUP(6,$BB$2:$BL$2,BB41:BL41),IF('Tipos de Cambio'!$M$9="China",LOOKUP(7,$BB$2:$BL$2,BB41:BL41),IF('Tipos de Cambio'!$M$9="India",LOOKUP(8,$BB$2:$BL$2,BB41:BL41),IF('Tipos de Cambio'!$M$9="Sudáfrica",LOOKUP(9,$BB$2:$BL$2,BB41:BL41),IF('Tipos de Cambio'!$M$9="México",LOOKUP(10,$BB$2:$BL$2,BB41:BL41),IF('Tipos de Cambio'!$M$9="Colombia",LOOKUP(11,$BB$2:$BL$2,BB41:BL41)))))))))))) -> n.d. | BN41: n.d. | BO41: n.d. | BP41: n.d. | BQ41: n.d. | BR41: n.d. | BS41: n.d. | BT41: n.d. | BU41: n.d. | BV41: n.d. | BW41: n.d. | BX41: n.d. | BY41: n.d. | BZ41: n.d. | CA41: n.d. | CB41: n.d. | CC41: n.d. | CD41: n.d. | CE41: n.d. | CF41: n.d. | CG41: n.d. | CH41: n.d. | CI41: n.d. | CJ41: n.d. | CK41: n.d. | CL41: n.d. | CM41: n.d. | CN41: n.d. | CO41: n.d. | CP41: n.d. | CQ41: n.d. | CR41: n.d. | CS41: n.d. | CT41: n.d. | CU41: n.d. | CV41: n.d. | CW41: 100 | CX41: n.d. | CY41: n.d. | CZ41: n.d. | DA41: n.d. | DB41: n.d. | DC41: n.d. | DD41: n.d. | DE41: n.d. | DF41: n.d. | DG41: n.d. | DH41: n.d. | DI41: 3310.03 | DJ41: 696.34 | DK41: 438.78 | DL41: n.d. | DM41: n.d. | DN41: n.d. | DO41: n.d. | DP41: n.d. | DQ41: n.d. | DR41: n.d. | DS41: n.d. | DT41: n.d. | DU41: n.d. | DV41: n.d. | DW41: n.d. | DX41: n.d. | DY41: n.d. | DZ41: n.d. | EA41: n.d. | EB41: n.d. | EC41: n.d.
B42: febrero | C42: 3.246753247 | D42: 3.367003367 | E42: n.d. | F42: n.d. | G42: n.d. | H42: 1.259181532 | I42: n.d. | J42: n.d. | K42: n.d. | L42: n.d. | M42: n.d. | N42: 10.91434166 | O42: n.d. | P42: n.d | Q42: n.d | R42: n.d | S42: n.d | T42: n.d | U42: n.d | V42: n.d | W42: n.d | X42: n.d | Y42: n.d | Z42: n.d | AA42: n.d | AB42: n.d | AE42: 20.09 | AF42: n.d. | AH42: n.d. | AI42: n.d. | AJ42: n.d. | AK42: n.d. | AL42: n.d. | AM42: 351.21 | AN42: n.d. | AO42: n.d. | AP42: n.d. | AQ42: n.d. | AR42: n.d. | AS42: n.d. | AT42: n.d. | AU42: n.d. | AV42: n.d. | AW42: n.d. | AX42: n.d. | AY42: n.d. | AZ42: n.d. | BA42: n.d. | BB42: 0.6091617934 | BC42: n.d. | BD42: 120.9857143 | BE42: 1.2597 | BF42: n.d. | BG42: n.d. | BH42: n.d. | BI42: n.d. | BJ42: n.d. | BK42: 3.1049 | BL42: n.d. | BM42: =IF('Tipos de Cambio'!$M$9="EuroZona",LOOKUP(1,$BB$2:$BL$2,BB42:BL42),IF('Tipos de Cambio'!$M$9="Reino Unido",LOOKUP(2,$BB$2:$BL$2,BB42:BL42),IF('Tipos de Cambio'!$M$9="Japón",LOOKUP(3,$BB$2:$BL$2,BB42:BL42),IF('Tipos de Cambio'!$M$9="Canadá",LOOKUP(4,$BB$2:$BL$2,BB42:BL42),IF('Tipos de Cambio'!$M$9="Rusia",LOOKUP(5,$BB$2:$BL$2,BB42:BL42),IF('Tipos de Cambio'!$M$9="Brasil",LOOKUP(6,$BB$2:$BL$2,BB42:BL42),IF('Tipos de Cambio'!$M$9="China",LOOKUP(7,$BB$2:$BL$2,BB42:BL42),IF('Tipos de Cambio'!$M$9="India",LOOKUP(8,$BB$2:$BL$2,BB42:BL42),IF('Tipos de Cambio'!$M$9="Sudáfrica",LOOKUP(9,$BB$2:$BL$2,BB42:BL42),IF('Tipos de Cambio'!$M$9="México",LOOKUP(10,$BB$2:$BL$2,BB42:BL42),IF('Tipos de Cambio'!$M$9="Colombia",LOOKUP(11,$BB$2:$BL$2,BB42:BL42)))))))))))) -> n.d. | BN42: n.d. | BO42: n.d. | BP42: n.d. | BQ42: n.d. | BR42: n.d. | BS42: n.d. | BT42: n.d. | BU42: n.d. | BV42: n.d. | BW42: n.d. | BX42: n.d. | BY42: n.d. | BZ42: n.d. | CA42: n.d. | CB42: n.d. | CC42: n.d. | CD42: n.d. | CE42: n.d. | CF42: n.d. | CG42: n.d. | CH42: n.d. | CI42: n.d. | CJ42: n.d. | CK42: n.d. | CL42: n.d. | CM42: n.d. | CN42: n.d. | CO42: n.d. | CP42: n.d. | CQ42: n.d. | CR42: n.d. | CS42: n.d. | CT42: n.d. | CU42: n.d. | CV42: n.d. | CW42: 100 | CX42: n.d. | CY42: n.d. | CZ42: n.d. | DA42: n.d. | DB42: n.d. | DC42: n.d. | DD42: n.d. | DE42: n.d. | DF42: n.d. | DG42: n.d. | DH42: n.d. | DI42: 3370.81 | DJ42: 670.77 | DK42: 443.38 | DL42: n.d. | DM42: n.d. | DN42: n.d. | DO42: n.d. | DP42: n.d. | DQ42: n.d. | DR42: n.d. | DS42: n.d. | DT42: n.d. | DU42: n.d. | DV42: n.d. | DW42: n.d. | DX42: n.d. | DY42: n.d. | DZ42: n.d. | EA42: n.d. | EB42: n.d. | EC42: n.d.
B43: marzo | C43: 3.086862886 | D43: 3.240223464 | E43: n.d. | F43: n.d. | G43: n.d. | H43: 1.253918495 | I43: n.d. | J43: n.d. | K43: n.d. | L43: n.d. | M43: n.d. | N43: 10.43681962 | O43: n.d. | P43: n.d | Q43: n.d | R43: n.d | S43: n.d | T43: n.d | U43: n.d | V43: n.d | W43: n.d | X43: n.d | Y43: n.d | Z43: n.d | AA43: n.d | AB43: n.d | AE43: 20.32 | AF43: n.d. | AH43: n.d. | AI43: n.d. | AJ43: n.d. | AK43: n.d. | AL43: n.d. | AM43: 337.16 | AN43: n.d. | AO43: n.d. | AP43: n.d. | AQ43: n.d. | AR43: n.d. | AS43: n.d. | AT43: n.d. | AU43: n.d. | AV43: n.d. | AW43: n.d. | AX43: n.d. | AY43: n.d. | AZ43: n.d. | BA43: n.d. | BB43: 0.6070171179 | BC43: n.d. | BD43: 121 | BE43: 1.2469 | BF43: n.d. | BG43: n.d. | BH43: n.d. | BI43: n.d. | BJ43: n.d. | BK43: 3.1083 | BL43: n.d. | BM43: =IF('Tipos de Cambio'!$M$9="EuroZona",LOOKUP(1,$BB$2:$BL$2,BB43:BL43),IF('Tipos de Cambio'!$M$9="Reino Unido",LOOKUP(2,$BB$2:$BL$2,BB43:BL43),IF('Tipos de Cambio'!$M$9="Japón",LOOKUP(3,$BB$2:$BL$2,BB43:BL43),IF('Tipos de Cambio'!$M$9="Canadá",LOOKUP(4,$BB$2:$BL$2,BB43:BL43),IF('Tipos de Cambio'!$M$9="Rusia",LOOKUP(5,$BB$2:$BL$2,BB43:BL43),IF('Tipos de Cambio'!$M$9="Brasil",LOOKUP(6,$BB$2:$BL$2,BB43:BL43),IF('Tipos de Cambio'!$M$9="China",LOOKUP(7,$BB$2:$BL$2,BB43:BL43),IF('Tipos de Cambio'!$M$9="India",LOOKUP(8,$BB$2:$BL$2,BB43:BL43),IF('Tipos de Cambio'!$M$9="Sudáfrica",LOOKUP(9,$BB$2:$BL$2,BB43:BL43),IF('Tipos de Cambio'!$M$9="México",LOOKUP(10,$BB$2:$BL$2,BB43:BL43),IF('Tipos de Cambio'!$M$9="Colombia",LOOKUP(11,$BB$2:$BL$2,BB43:BL43)))))))))))) -> n.d. | BN43: n.d. | BO43: n.d. | BP43: n.d. | BQ43: n.d. | BR43: n.d. | BS43: n.d. | BT43: n.d. | BU43: n.d. | BV43: n.d. | BW43: n.d. | BX43: n.d. | BY43: n.d. | BZ43: n.d. | CA43: n.d. | CB43: n.d. | CC43: n.d. | CD43: n.d. | CE43: n.d. | CF43: n.d. | CG43: n.d. | CH43: n.d. | CI43: n.d. | CJ43: n.d. | CK43: n.d. | CL43: n.d. | CM43: n.d. | CN43: n.d. | CO43: n.d. | CP43: n.d. | CQ43: n.d. | CR43: n.d. | CS43: n.d. | CT43: n.d. | CU43: n.d. | CV43: n.d. | CW43: 100 | CX43: n.d. | CY43: n.d. | CZ43: n.d. | DA43: n.d. | DB43: n.d. | DC43: n.d. | DD43: n.d. | DE43: n.d. | DF43: n.d. | DG43: n.d. | DH43: n.d. | DI43: 3435.11 | DJ43: 690.13 | DK43: 451.67 | DL43: n.d. | DM43: n.d. | DN43: n.d. | DO43: n.d. | DP43: n.d. | DQ43: n.d. | DR43: n.d. | DS43: n.d. | DT43: n.d. | DU43: n.d. | DV43: n.d. | DW43: n.d. | DX43: n.d. | DY43: n.d. | DZ43: n.d. | EA43: n.d. | EB43: n.d. | EC43: n.d.
B44: abril | C44: 3.225806452 | D44: 3.232998885 | E44: n.d. | F44: n.d. | G44: n.d. | H44: 0.515995872 | I44: n.d. | J44: n.d. | K44: n.d. | L44: n.d. | M44: n.d. | N44: 10.09226247 | O44: n.d. | P44: n.d | Q44: n.d | R44: n.d | S44: n.d | T44: n.d | U44: n.d | V44: n.d | W44: n.d | X44: n.d | Y44: n.d | Z44: n.d | AA44: n.d | AB44: n.d | AE44: 20.25 | AF44: n.d. | AH44: n.d. | AI44: n.d. | AJ44: n.d. | AK44: n.d. | AL44: n.d. | AM44: 323.94 | AN44: n.d. | AO44: n.d. | AP44: n.d. | AQ44: n.d. | AR44: n.d. | AS44: n.d. | AT44: n.d. | AU44: n.d. | AV44: n.d. | AW44: n.d. | AX44: n.d. | AY44: n.d. | AZ44: n.d. | BA44: n.d. | BB44: 0.626566416 | BC44: n.d. | BD44: 112.42 | BE44: 1.262 | BF44: n.d. | BG44: n.d. | BH44: n.d. | BI44: n.d. | BJ44: n.d. | BK44: 3.0955 | BL44: n.d. | BM44: =IF('Tipos de Cambio'!$M$9="EuroZona",LOOKUP(1,$BB$2:$BL$2,BB44:BL44),IF('Tipos de Cambio'!$M$9="Reino Unido",LOOKUP(2,$BB$2:$BL$2,BB44:BL44),IF('Tipos de Cambio'!$M$9="Japón",LOOKUP(3,$BB$2:$BL$2,BB44:BL44),IF('Tipos de Cambio'!$M$9="Canadá",LOOKUP(4,$BB$2:$BL$2,BB44:BL44),IF('Tipos de Cambio'!$M$9="Rusia",LOOKUP(5,$BB$2:$BL$2,BB44:BL44),IF('Tipos de Cambio'!$M$9="Brasil",LOOKUP(6,$BB$2:$BL$2,BB44:BL44),IF('Tipos de Cambio'!$M$9="China",LOOKUP(7,$BB$2:$BL$2,BB44:BL44),IF('Tipos de Cambio'!$M$9="India",LOOKUP(8,$BB$2:$BL$2,BB44:BL44),IF('Tipos de Cambio'!$M$9="Sudáfrica",LOOKUP(9,$BB$2:$BL$2,BB44:BL44),IF('Tipos de Cambio'!$M$9="México",LOOKUP(10,$BB$2:$BL$2,BB44:BL44),IF('Tipos de Cambio'!$M$9="Colombia",LOOKUP(11,$BB$2:$BL$2,BB44:BL44)))))))))))) -> n.d. | BN44: n.d. | BO44: n.d. | BP44: n.d. | BQ44: n.d. | BR44: n.d. | BS44: n.d. | BT44: n.d. | BU44: n.d. | BV44: n.d. | BW44: n.d. | BX44: n.d. | BY44: n.d. | BZ44: n.d. | CA44: n.d. | CB44: n.d. | CC44: n.d. | CD44: n.d. | CE44: n.d. | CF44: n.d. | CG44: n.d. | CH44: n.d. | CI44: n.d. | CJ44: n.d. | CK44: n.d. | CL44: n.d. | CM44: n.d. | CN44: n.d. | CO44: n.d. | CP44: n.d. | CQ44: n.d. | CR44: n.d. | CS44: n.d. | CT44: n.d. | CU44: n.d. | CV44: n.d. | CW44: 100 | CX44: n.d. | CY44: n.d. | CZ44: n.d. | DA44: n.d. | DB44: n.d. | DC44: n.d. | DD44: n.d. | DE44: n.d. | DF44: n.d. | DG44: n.d. | DH44: n.d. | DI44: 3427.55 | DJ44: 661.42 | DK44: 440.19 | DL44: n.d. | DM44: n.d. | DN44: n.d. | DO44: n.d. | DP44: n.d. | DQ44: n.d. | DR44: n.d. | DS44: n.d. | DT44: n.d. | DU44: n.d. | DV44: n.d. | DW44: n.d. | DX44: n.d. | DY44: n.d. | DZ44: n.d. | EA44: n.d. | EB44: n.d. | EC44: n.d.
B45: mayo | C45: 3.221188261 | D45: 3.111111111 | E45: n.d. | F45: n.d. | G45: n.d. | H45: 0.618556701 | I45: n.d. | J45: n.d. | K45: n.d. | L45: n.d. | M45: n.d. | N45: 9.996329434 | O45: n.d. | P45: n.d | Q45: n.d | R45: n.d | S45: n.d | T45: n.d | U45: n.d | V45: n.d | W45: n.d | X45: n.d | Y45: n.d | Z45: n.d | AA45: n.d | AB45: n.d | AE45: 19.95 | AF45: n.d. | AH45: n.d. | AI45: n.d. | AJ45: n.d. | AK45: n.d. | AL45: n.d. | AM45: 305.76 | AN45: n.d. | AO45: n.d. | AP45: n.d. | AQ45: n.d. | AR45: n.d. | AS45: n.d. | AT45: n.d. | AU45: n.d. | AV45: n.d. | AW45: n.d. | AX45: n.d. | AY45: n.d. | AZ45: n.d. | BA45: n.d. | BB45: 0.6226262375 | BC45: n.d. | BD45: 110.4 | BE45: 1.27 | BF45: n.d. | BG45: n.d. | BH45: n.d. | BI45: n.d. | BJ45: n.d. | BK45: 3.1227 | BL45: n.d. | BM45: =IF('Tipos de Cambio'!$M$9="EuroZona",LOOKUP(1,$BB$2:$BL$2,BB45:BL45),IF('Tipos de Cambio'!$M$9="Reino Unido",LOOKUP(2,$BB$2:$BL$2,BB45:BL45),IF('Tipos de Cambio'!$M$9="Japón",LOOKUP(3,$BB$2:$BL$2,BB45:BL45),IF('Tipos de Cambio'!$M$9="Canadá",LOOKUP(4,$BB$2:$BL$2,BB45:BL45),IF('Tipos de Cambio'!$M$9="Rusia",LOOKUP(5,$BB$2:$BL$2,BB45:BL45),IF('Tipos de Cambio'!$M$9="Brasil",LOOKUP(6,$BB$2:$BL$2,BB45:BL45),IF('Tipos de Cambio'!$M$9="China",LOOKUP(7,$BB$2:$BL$2,BB45:BL45),IF('Tipos de Cambio'!$M$9="India",LOOKUP(8,$BB$2:$BL$2,BB45:BL45),IF('Tipos de Cambio'!$M$9="Sudáfrica",LOOKUP(9,$BB$2:$BL$2,BB45:BL45),IF('Tipos de Cambio'!$M$9="México",LOOKUP(10,$BB$2:$BL$2,BB45:BL45),IF('Tipos de Cambio'!$M$9="Colombia",LOOKUP(11,$BB$2:$BL$2,BB45:BL45)))))))))))) -> n.d. | BN45: n.d. | BO45: n.d. | BP45: n.d. | BQ45: n.d. | BR45: n.d. | BS45: n.d. | BT45: n.d. | BU45: n.d. | BV45: n.d. | BW45: n.d. | BX45: n.d. | BY45: n.d. | BZ45: n.d. | CA45: n.d. | CB45: n.d. | CC45: n.d. | CD45: n.d. | CE45: n.d. | CF45: n.d. | CG45: n.d. | CH45: n.d. | CI45: n.d. | CJ45: n.d. | CK45: n.d. | CL45: n.d. | CM45: n.d. | CN45: n.d. | CO45: n.d. | CP45: n.d. | CQ45: n.d. | CR45: n.d. | CS45: n.d. | CT45: n.d. | CU45: n.d. | CV45: n.d. | CW45: 100 | CX45: n.d. | CY45: n.d. | CZ45: n.d. | DA45: n.d. | DB45: n.d. | DC45: n.d. | DD45: n.d. | DE45: n.d. | DF45: n.d. | DG45: n.d. | DH45: n.d. | DI45: 3527.43 | DJ45: 700.53 | DK45: 450.19 | DL45: n.d. | DM45: n.d. | DN45: n.d. | DO45: n.d. | DP45: n.d. | DQ45: n.d. | DR45: n.d. | DS45: n.d. | DT45: n.d. | DU45: n.d. | DV45: n.d. | DW45: n.d. | DX45: n.d. | DY45: n.d. | DZ45: n.d. | EA45: n.d. | EB45: n.d. | EC45: n.d.
B46: junio | C46: 2.995720399 | D46: 3.10421286 | E46: n.d. | F46: n.d. | G46: n.d. | H46: 0.8273009307 | I46: n.d. | J46: n.d. | K46: n.d. | L46: n.d. | M46: n.d. | N46: 9.869636886 | O46: n.d. | P46: n.d | Q46: n.d | R46: n.d | S46: n.d | T46: n.d | U46: n.d | V46: n.d | W46: n.d | X46: n.d | Y46: n.d | Z46: n.d | AA46: n.d | AB46: n.d | AE46: 19.09 | AF46: n.d. | AH46: n.d. | AI46: n.d. | AJ46: n.d. | AK46: n.d. | AL46: n.d. | AM46: 294.19 | AN46: n.d. | AO46: n.d. | AP46: n.d. | AQ46: n.d. | AR46: n.d. | AS46: n.d. | AT46: n.d. | AU46: n.d. | AV46: n.d. | AW46: n.d. | AX46: n.d. | AY46: n.d. | AZ46: n.d. | BA46: n.d. | BB46: 0.6052536013 | BC46: n.d. | BD46: 107.34 | BE46: 1.28 | BF46: n.d. | BG46: n.d. | BH46: n.d. | BI46: n.d. | BJ46: n.d. | BK46: 3.1213 | BL46: n.d. | BM46: =IF('Tipos de Cambio'!$M$9="EuroZona",LOOKUP(1,$BB$2:$BL$2,BB46:BL46),IF('Tipos de Cambio'!$M$9="Reino Unido",LOOKUP(2,$BB$2:$BL$2,BB46:BL46),IF('Tipos de Cambio'!$M$9="Japón",LOOKUP(3,$BB$2:$BL$2,BB46:BL46),IF('Tipos de Cambio'!$M$9="Canadá",LOOKUP(4,$BB$2:$BL$2,BB46:BL46),IF('Tipos de Cambio'!$M$9="Rusia",LOOKUP(5,$BB$2:$BL$2,BB46:BL46),IF('Tipos de Cambio'!$M$9="Brasil",LOOKUP(6,$BB$2:$BL$2,BB46:BL46),IF('Tipos de Cambio'!$M$9="China",LOOKUP(7,$BB$2:$BL$2,BB46:BL46),IF('Tipos de Cambio'!$M$9="India",LOOKUP(8,$BB$2:$BL$2,BB46:BL46),IF('Tipos de Cambio'!$M$9="Sudáfrica",LOOKUP(9,$BB$2:$BL$2,BB46:BL46),IF('Tipos de Cambio'!$M$9="México",LOOKUP(10,$BB$2:$BL$2,BB46:BL46),IF('Tipos de Cambio'!$M$9="Colombia",LOOKUP(11,$BB$2:$BL$2,BB46:BL46)))))))))))) -> n.d. | BN46: n.d. | BO46: n.d. | BP46: n.d. | BQ46: n.d. | BR46: n.d. | BS46: n.d. | BT46: n.d. | BU46: n.d. | BV46: n.d. | BW46: n.d. | BX46: n.d. | BY46: n.d. | BZ46: n.d. | CA46: n.d. | CB46: n.d. | CC46: n.d. | CD46: n.d. | CE46: n.d. | CF46: n.d. | CG46: n.d. | CH46: n.d. | CI46: n.d. | CJ46: n.d. | CK46: n.d. | CL46: n.d. | CM46: n.d. | CN46: n.d. | CO46: n.d. | CP46: n.d. | CQ46: n.d. | CR46: n.d. | CS46: n.d. | CT46: n.d. | CU46: n.d. | CV46: n.d. | CW46: 100 | CX46: n.d. | CY46: n.d. | CZ46: n.d. | DA46: n.d. | DB46: n.d. | DC46: n.d. | DD46: n.d. | DE46: n.d. | DF46: n.d. | DG46: n.d. | DH46: n.d. | DI46: 3516.08 | DJ46: 703.95 | DK46: 450.53 | DL46: n.d. | DM46: n.d. | DN46: n.d. | DO46: n.d. | DP46: n.d. | DQ46: n.d. | DR46: n.d. | DS46: n.d. | DT46: n.d. | DU46: n.d. | DV46: n.d. | DW46: n.d. | DX46: n.d. | DY46: n.d. | DZ46: n.d. | EA46: n.d. | EB46: n.d. | EC46: n.d.
B47: julio | C47: 2.775800712 | D47: 3.322259136 | E47: n.d. | F47: n.d. | G47: n.d. | H47: 1.876955162 | I47: n.d. | J47: n.d. | K47: n.d. | L47: n.d. | M47: n.d. | N47: 9.704931389 | O47: n.d. | P47: n.d | Q47: n.d | R47: n.d | S47: n.d | T47: n.d | U47: n.d | V47: n.d | W47: n.d | X47: n.d | Y47: n.d | Z47: n.d | AA47: n.d | AB47: n.d | AE47: 17.89 | AF47: n.d. | AH47: n.d. | AI47: n.d. | AJ47: n.d. | AK47: n.d. | AL47: n.d. | AM47: 299.14 | AN47: n.d. | AO47: n.d. | AP47: n.d. | AQ47: n.d. | AR47: n.d. | AS47: n.d. | AT47: n.d. | AU47: n.d. | AV47: n.d. | AW47: n.d. | AX47: n.d. | AY47: n.d. | AZ47: n.d. | BA47: n.d. | BB47: 0.5831923952 | BC47: n.d. | BD47: 107.73 | BE47: 1.28 | BF47: n.d. | BG47: n.d. | BH47: n.d. | BI47: n.d. | BJ47: n.d. | BK47: 3.1236 | BL47: n.d. | BM47: =IF('Tipos de Cambio'!$M$9="EuroZona",LOOKUP(1,$BB$2:$BL$2,BB47:BL47),IF('Tipos de Cambio'!$M$9="Reino Unido",LOOKUP(2,$BB$2:$BL$2,BB47:BL47),IF('Tipos de Cambio'!$M$9="Japón",LOOKUP(3,$BB$2:$BL$2,BB47:BL47),IF('Tipos de Cambio'!$M$9="Canadá",LOOKUP(4,$BB$2:$BL$2,BB47:BL47),IF('Tipos de Cambio'!$M$9="Rusia",LOOKUP(5,$BB$2:$BL$2,BB47:BL47),IF('Tipos de Cambio'!$M$9="Brasil",LOOKUP(6,$BB$2:$BL$2,BB47:BL47),IF('Tipos de Cambio'!$M$9="China",LOOKUP(7,$BB$2:$BL$2,BB47:BL47),IF('Tipos de Cambio'!$M$9="India",LOOKUP(8,$BB$2:$BL$2,BB47:BL47),IF('Tipos de Cambio'!$M$9="Sudáfrica",LOOKUP(9,$BB$2:$BL$2,BB47:BL47),IF('Tipos de Cambio'!$M$9="México",LOOKUP(10,$BB$2:$BL$2,BB47:BL47),IF('Tipos de Cambio'!$M$9="Colombia",LOOKUP(11,$BB$2:$BL$2,BB47:BL47)))))))))))) -> n.d. | BN47: n.d. | BO47: n.d. | BP47: n.d. | BQ47: n.d. | BR47: n.d. | BS47: n.d. | BT47: n.d. | BU47: n.d. | BV47: n.d. | BW47: n.d. | BX47: n.d. | BY47: n.d. | BZ47: n.d. | CA47: n.d. | CB47: n.d. | CC47: n.d. | CD47: n.d. | CE47: n.d. | CF47: n.d. | CG47: n.d. | CH47: n.d. | CI47: n.d. | CJ47: n.d. | CK47: n.d. | CL47: n.d. | CM47: n.d. | CN47: n.d. | CO47: n.d. | CP47: n.d. | CQ47: n.d. | CR47: n.d. | CS47: n.d. | CT47: n.d. | CU47: n.d. | CV47: n.d. | CW47: 100 | CX47: n.d. | CY47: n.d. | CZ47: n.d. | DA47: n.d. | DB47: n.d. | DC47: n.d. | DD47: n.d. | DE47: n.d. | DF47: n.d. | DG47: n.d. | DH47: n.d. | DI47: 3539.47 | DJ47: 704.7 | DK47: 448.13 | DL47: n.d. | DM47: n.d. | DN47: n.d. | DO47: n.d. | DP47: n.d. | DQ47: n.d. | DR47: n.d. | DS47: n.d. | DT47: n.d. | DU47: n.d. | DV47: n.d. | DW47: n.d. | DX47: n.d. | DY47: n.d. | DZ47: n.d. | EA47: n.d. | EB47: n.d. | EC47: n.d.
B48: agosto | C48: 2.767920511 | D48: 3.318584071 | E48: n.d. | F48: n.d. | G48: n.d. | H48: 1.871101871 | I48: n.d. | J48: n.d. | K48: n.d. | L48: n.d. | M48: n.d. | N48: 9.618670439 | O48: n.d. | P48: n.d | Q48: n.d | R48: n.d | S48: n.d | T48: n.d | U48: n.d | V48: n.d | W48: n.d | X48: n.d | Y48: n.d | Z48: n.d | AA48: n.d | AB48: n.d | AE48: 18.01 | AF48: n.d. | AH48: n.d. | AI48: n.d. | AJ48: n.d. | AK48: n.d. | AL48: n.d. | AM48: 294.19 | AN48: n.d. | AO48: n.d. | AP48: n.d. | AQ48: n.d. | AR48: n.d. | AS48: n.d. | AT48: n.d. | AU48: n.d. | AV48: n.d. | AW48: n.d. | AX48: n.d. | AY48: n.d. | AZ48: n.d. | BA48: n.d. | BB48: 0.5897269564 | BC48: n.d. | BD48: 103.71 | BE48: 1.31 | BF48: n.d. | BG48: n.d. | BH48: n.d. | BI48: n.d. | BJ48: n.d. | BK48: 3.1126 | BL48: n.d. | BM48: =IF('Tipos de Cambio'!$M$9="EuroZona",LOOKUP(1,$BB$2:$BL$2,BB48:BL48),IF('Tipos de Cambio'!$M$9="Reino Unido",LOOKUP(2,$BB$2:$BL$2,BB48:BL48),IF('Tipos de Cambio'!$M$9="Japón",LOOKUP(3,$BB$2:$BL$2,BB48:BL48),IF('Tipos de Cambio'!$M$9="Canadá",LOOKUP(4,$BB$2:$BL$2,BB48:BL48),IF('Tipos de Cambio'!$M$9="Rusia",LOOKUP(5,$BB$2:$BL$2,BB48:BL48),IF('Tipos de Cambio'!$M$9="Brasil",LOOKUP(6,$BB$2:$BL$2,BB48:BL48),IF('Tipos de Cambio'!$M$9="China",LOOKUP(7,$BB$2:$BL$2,BB48:BL48),IF('Tipos de Cambio'!$M$9="India",LOOKUP(8,$BB$2:$BL$2,BB48:BL48),IF('Tipos de Cambio'!$M$9="Sudáfrica",LOOKUP(9,$BB$2:$BL$2,BB48:BL48),IF('Tipos de Cambio'!$M$9="México",LOOKUP(10,$BB$2:$BL$2,BB48:BL48),IF('Tipos de Cambio'!$M$9="Colombia",LOOKUP(11,$BB$2:$BL$2,BB48:BL48)))))))))))) -> n.d. | BN48: n.d. | BO48: n.d. | BP48: n.d. | BQ48: n.d. | BR48: n.d. | BS48: n.d. | BT48: n.d. | BU48: n.d. | BV48: n.d. | BW48: n.d. | BX48: n.d. | BY48: n.d. | BZ48: n.d. | CA48: n.d. | CB48: n.d. | CC48: n.d. | CD48: n.d. | CE48: n.d. | CF48: n.d. | CG48: n.d. | CH48: n.d. | CI48: n.d. | CJ48: n.d. | CK48: n.d. | CL48: n.d. | CM48: n.d. | CN48: n.d. | CO48: n.d. | CP48: n.d. | CQ48: n.d. | CR48: n.d. | CS48: n.d. | CT48: n.d. | CU48: n.d. | CV48: n.d. | CW48: 100 | CX48: n.d. | CY48: n.d. | CZ48: n.d. | DA48: n.d. | DB48: n.d. | DC48: n.d. | DD48: n.d. | DE48: n.d. | DF48: n.d. | DG48: n.d. | DH48: n.d. | DI48: 3651.25 | DJ48: 742.84 | DK48: 463.56 | DL48: n.d. | DM48: n.d. | DN48: n.d. | DO48: n.d. | DP48: n.d. | DQ48: n.d. | DR48: n.d. | DS48: n.d. | DT48: n.d. | DU48: n.d. | DV48: n.d. | DW48: n.d. | DX48: n.d. | DY48: n.d. | DZ48: n.d. | EA48: n.d. | EB48: n.d. | EC48: n.d.
B49: septiembre | C49: 2.689313517 | D49: 3.314917127 | E49: n.d. | F49: n.d. | G49: n.d. | H49: 1.342975207 | I49: n.d. | J49: n.d. | K49: n.d. | L49: n.d. | M49: n.d. | N49: 9.478212291 | O49: n.d. | P49: n.d | Q49: n.d | R49: n.d | S49: n.d | T49: n.d | U49: n.d | V49: n.d | W49: n.d | X49: n.d | Y49: n.d | Z49: n.d | AA49: n.d | AB49: n.d | AE49: 17.5 | AF49: n.d. | AH49: n.d. | AI49: n.d. | AJ49: n.d. | AK49: n.d. | AL49: n.d. | AM49: 290.88 | AN49: n.d. | AO49: n.d. | AP49: n.d. | AQ49: n.d. | AR49: n.d. | AS49: n.d. | AT49: n.d. | AU49: n.d. | AV49: n.d. | AW49: n.d. | AX49: n.d. | AY49: n.d. | AZ49: n.d. | BA49: n.d. | BB49: 0.6162948354 | BC49: n.d. | BD49: 105.28 | BE49: 1.32 | BF49: n.d. | BG49: n.d. | BH49: n.d. | BI49: n.d. | BJ49: n.d. | BK49: 3.1127 | BL49: n.d. | BM49: =IF('Tipos de Cambio'!$M$9="EuroZona",LOOKUP(1,$BB$2:$BL$2,BB49:BL49),IF('Tipos de Cambio'!$M$9="Reino Unido",LOOKUP(2,$BB$2:$BL$2,BB49:BL49),IF('Tipos de Cambio'!$M$9="Japón",LOOKUP(3,$BB$2:$BL$2,BB49:BL49),IF('Tipos de Cambio'!$M$9="Canadá",LOOKUP(4,$BB$2:$BL$2,BB49:BL49),IF('Tipos de Cambio'!$M$9="Rusia",LOOKUP(5,$BB$2:$BL$2,BB49:BL49),IF('Tipos de Cambio'!$M$9="Brasil",LOOKUP(6,$BB$2:$BL$2,BB49:BL49),IF('Tipos de Cambio'!$M$9="China",LOOKUP(7,$BB$2:$BL$2,BB49:BL49),IF('Tipos de Cambio'!$M$9="India",LOOKUP(8,$BB$2:$BL$2,BB49:BL49),IF('Tipos de Cambio'!$M$9="Sudáfrica",LOOKUP(9,$BB$2:$BL$2,BB49:BL49),IF('Tipos de Cambio'!$M$9="México",LOOKUP(10,$BB$2:$BL$2,BB49:BL49),IF('Tipos de Cambio'!$M$9="Colombia",LOOKUP(11,$BB$2:$BL$2,BB49:BL49)))))))))))) -> n.d. | BN49: n.d. | BO49: n.d. | BP49: n.d. | BQ49: n.d. | BR49: n.d. | BS49: n.d. | BT49: n.d. | BU49: n.d. | BV49: n.d. | BW49: n.d. | BX49: n.d. | BY49: n.d. | BZ49: n.d. | CA49: n.d. | CB49: n.d. | CC49: n.d. | CD49: n.d. | CE49: n.d. | CF49: n.d. | CG49: n.d. | CH49: n.d. | CI49: n.d. | CJ49: n.d. | CK49: n.d. | CL49: n.d. | CM49: n.d. | CN49: n.d. | CO49: n.d. | CP49: n.d. | CQ49: n.d. | CR49: n.d. | CS49: n.d. | CT49: n.d. | CU49: n.d. | CV49: n.d. | CW49: 100 | CX49: n.d. | CY49: n.d. | CZ49: n.d. | DA49: n.d. | DB49: n.d. | DC49: n.d. | DD49: n.d. | DE49: n.d. | DF49: n.d. | DG49: n.d. | DH49: n.d. | DI49: 3555.12 | DJ49: 762.78 | DK49: 458.93 | DL49: n.d. | DM49: n.d. | DN49: n.d. | DO49: n.d. | DP49: n.d. | DQ49: n.d. | DR49: n.d. | DS49: n.d. | DT49: n.d. | DU49: n.d. | DV49: n.d. | DW49: n.d. | DX49: n.d. | DY49: n.d. | DZ49: n.d. | EA49: n.d. | EB49: n.d. | EC49: n.d.
B50: octubre | C50: 2.750352609 | D50: 3.307607497 | E50: n.d. | F50: n.d. | G50: n.d. | H50: 1.239669421 | I50: n.d. | J50: n.d. | K50: n.d. | L50: n.d. | M50: n.d. | N50: 9.140076424 | O50: n.d. | P50: n.d | Q50: n.d | R50: n.d | S50: n.d | T50: n.d | U50: n.d | V50: n.d | W50: n.d | X50: n.d | Y50: n.d | Z50: n.d | AA50: n.d | AB50: n.d | AE50: 18.15 | AF50: n.d. | AH50: n.d. | AI50: n.d. | AJ50: n.d. | AK50: n.d. | AL50: n.d. | AM50: 275.18 | AN50: n.d. | AO50: n.d. | AP50: n.d. | AQ50: n.d. | AR50: n.d. | AS50: n.d. | AT50: n.d. | AU50: n.d. | AV50: n.d. | AW50: n.d. | AX50: n.d. | AY50: n.d. | AZ50: n.d. | BA50: n.d. | BB50: 0.6105006105 | BC50: n.d. | BD50: 106.92 | BE50: 1.33 | BF50: n.d. | BG50: n.d. | BH50: n.d. | BI50: n.d. | BJ50: n.d. | BK50: 3.1142 | BL50: n.d. | BM50: =IF('Tipos de Cambio'!$M$9="EuroZona",LOOKUP(1,$BB$2:$BL$2,BB50:BL50),IF('Tipos de Cambio'!$M$9="Reino Unido",LOOKUP(2,$BB$2:$BL$2,BB50:BL50),IF('Tipos de Cambio'!$M$9="Japón",LOOKUP(3,$BB$2:$BL$2,BB50:BL50),IF('Tipos de Cambio'!$M$9="Canadá",LOOKUP(4,$BB$2:$BL$2,BB50:BL50),IF('Tipos de Cambio'!$M$9="Rusia",LOOKUP(5,$BB$2:$BL$2,BB50:BL50),IF('Tipos de Cambio'!$M$9="Brasil",LOOKUP(6,$BB$2:$BL$2,BB50:BL50),IF('Tipos de Cambio'!$M$9="China",LOOKUP(7,$BB$2:$BL$2,BB50:BL50),IF('Tipos de Cambio'!$M$9="India",LOOKUP(8,$BB$2:$BL$2,BB50:BL50),IF('Tipos de Cambio'!$M$9="Sudáfrica",LOOKUP(9,$BB$2:$BL$2,BB50:BL50),IF('Tipos de Cambio'!$M$9="México",LOOKUP(10,$BB$2:$BL$2,BB50:BL50),IF('Tipos de Cambio'!$M$9="Colombia",LOOKUP(11,$BB$2:$BL$2,BB50:BL50)))))))))))) -> n.d. | BN50: n.d. | BO50: n.d. | BP50: n.d. | BQ50: n.d. | BR50: n.d. | BS50: n.d. | BT50: n.d. | BU50: n.d. | BV50: n.d. | BW50: n.d. | BX50: n.d. | BY50: n.d. | BZ50: n.d. | CA50: n.d. | CB50: n.d. | CC50: n.d. | CD50: n.d. | CE50: n.d. | CF50: n.d. | CG50: n.d. | CH50: n.d. | CI50: n.d. | CJ50: n.d. | CK50: n.d. | CL50: n.d. | CM50: n.d. | CN50: n.d. | CO50: n.d. | CP50: n.d. | CQ50: n.d. | CR50: n.d. | CS50: n.d. | CT50: n.d. | CU50: n.d. | CV50: n.d. | CW50: 100 | CX50: n.d. | CY50: n.d. | CZ50: n.d. | DA50: n.d. | DB50: n.d. | DC50: n.d. | DD50: n.d. | DE50: n.d. | DF50: n.d. | DG50: n.d. | DH50: n.d. | DI50: 3680.59 | DJ50: 779.26 | DK50: 467.83 | DL50: n.d. | DM50: n.d. | DN50: n.d. | DO50: n.d. | DP50: n.d. | DQ50: n.d. | DR50: n.d. | DS50: n.d. | DT50: n.d. | DU50: n.d. | DV50: n.d. | DW50: n.d. | DX50: n.d. | DY50: n.d. | DZ50: n.d. | EA50: n.d. | EB50: n.d. | EC50: n.d.
B51: noviembre | C51: 2.676056338 | D51: 3.186813187 | E51: n.d. | F51: n.d. | G51: n.d. | H51: 0.829015544 | I51: n.d. | J51: n.d. | K51: n.d. | L51: n.d. | M51: n.d. | N51: 8.718169779 | O51: n.d. | P51: n.d | Q51: n.d | R51: n.d | S51: n.d | T51: n.d | U51: n.d | V51: n.d | W51: n.d | X51: n.d | Y51: n.d | Z51: n.d | AA51: n.d | AB51: n.d | AE51: 16.61 | AF51: n.d. | AH51: n.d. | AI51: n.d. | AJ51: n.d. | AK51: n.d. | AL51: n.d. | AM51: 297.7 | AN51: n.d. | AO51: n.d. | AP51: n.d. | AQ51: n.d. | AR51: n.d. | AS51: n.d. | AT51: n.d. | AU51: n.d. | AV51: n.d. | AW51: n.d. | AX51: n.d. | AY51: n.d. | AZ51: n.d. | BA51: n.d. | BB51: 0.5882352941 | BC51: n.d. | BD51: 107.8 | BE51: 1.32 | BF51: n.d. | BG51: n.d. | BH51: n.d. | BI51: n.d. | BJ51: n.d. | BK51: 3.1553 | BL51: n.d. | BM51: =IF('Tipos de Cambio'!$M$9="EuroZona",LOOKUP(1,$BB$2:$BL$2,BB51:BL51),IF('Tipos de Cambio'!$M$9="Reino Unido",LOOKUP(2,$BB$2:$BL$2,BB51:BL51),IF('Tipos de Cambio'!$M$9="Japón",LOOKUP(3,$BB$2:$BL$2,BB51:BL51),IF('Tipos de Cambio'!$M$9="Canadá",LOOKUP(4,$BB$2:$BL$2,BB51:BL51),IF('Tipos de Cambio'!$M$9="Rusia",LOOKUP(5,$BB$2:$BL$2,BB51:BL51),IF('Tipos de Cambio'!$M$9="Brasil",LOOKUP(6,$BB$2:$BL$2,BB51:BL51),IF('Tipos de Cambio'!$M$9="China",LOOKUP(7,$BB$2:$BL$2,BB51:BL51),IF('Tipos de Cambio'!$M$9="India",LOOKUP(8,$BB$2:$BL$2,BB51:BL51),IF('Tipos de Cambio'!$M$9="Sudáfrica",LOOKUP(9,$BB$2:$BL$2,BB51:BL51),IF('Tipos de Cambio'!$M$9="México",LOOKUP(10,$BB$2:$BL$2,BB51:BL51),IF('Tipos de Cambio'!$M$9="Colombia",LOOKUP(11,$BB$2:$BL$2,BB51:BL51)))))))))))) -> n.d. | BN51: n.d. | BO51: n.d. | BP51: n.d. | BQ51: n.d. | BR51: n.d. | BS51: n.d. | BT51: n.d. | BU51: n.d. | BV51: n.d. | BW51: n.d. | BX51: n.d. | BY51: n.d. | BZ51: n.d. | CA51: n.d. | CB51: n.d. | CC51: n.d. | CD51: n.d. | CE51: n.d. | CF51: n.d. | CG51: n.d. | CH51: n.d. | CI51: n.d. | CJ51: n.d. | CK51: n.d. | CL51: n.d. | CM51: n.d. | CN51: n.d. | CO51: n.d. | CP51: n.d. | CQ51: n.d. | CR51: n.d. | CS51: n.d. | CT51: n.d. | CU51: n.d. | CV51: n.d. | CW51: 100 | CX51: n.d. | CY51: n.d. | CZ51: n.d. | DA51: n.d. | DB51: n.d. | DC51: n.d. | DD51: n.d. | DE51: n.d. | DF51: n.d. | DG51: n.d. | DH51: n.d. | DI51: 3683.95 | DJ51: 754.4 | DK51: 461.79 | DL51: n.d. | DM51: n.d. | DN51: n.d. | DO51: n.d. | DP51: n.d. | DQ51: n.d. | DR51: n.d. | DS51: n.d. | DT51: n.d. | DU51: n.d. | DV51: n.d. | DW51: n.d. | DX51: n.d. | DY51: n.d. | DZ51: n.d. | EA51: n.d. | EB51: n.d. | EC51: n.d.
B52: diciembre | C52: 2.748414376 | D52: 3.183315038 | E52: n.d. | F52: n.d. | G52: n.d. | H52: 0.829015544 | I52: n.d. | J52: n.d. | K52: n.d. | L52: n.d. | M52: n.d. | N52: 8.009184506 | O52: n.d. | P52: n.d | Q52: n.d | R52: n.d | S52: n.d | T52: n.d | U52: n.d | V52: n.d | W52: n.d | X52: n.d | Y52: n.d | Z52: n.d | AA52: n.d | AB52: n.d | AE52: 14.52 | AF52: n.d. | AH52: n.d. | AI52: n.d. | AJ52: n.d. | AK52: n.d. | AL52: n.d. | AM52: 337.57 | AN52: n.d. | AO52: n.d. | AP52: n.d. | AQ52: n.d. | AR52: n.d. | AS52: n.d. | AT52: n.d. | AU52: n.d. | AV52: n.d. | AW52: n.d. | AX52: n.d. | AY52: n.d. | AZ52: n.d. | BA52: n.d. | BB52: 0.5848979353 | BC52: n.d. | BD52: 109.7 | BE52: 1.33 | BF52: n.d. | BG52: n.d. | BH52: n.d. | BI52: n.d. | BJ52: n.d. | BK52: 3.1077 | BL52: n.d. | BM52: =IF('Tipos de Cambio'!$M$9="EuroZona",LOOKUP(1,$BB$2:$BL$2,BB52:BL52),IF('Tipos de Cambio'!$M$9="Reino Unido",LOOKUP(2,$BB$2:$BL$2,BB52:BL52),IF('Tipos de Cambio'!$M$9="Japón",LOOKUP(3,$BB$2:$BL$2,BB52:BL52),IF('Tipos de Cambio'!$M$9="Canadá",LOOKUP(4,$BB$2:$BL$2,BB52:BL52),IF('Tipos de Cambio'!$M$9="Rusia",LOOKUP(5,$BB$2:$BL$2,BB52:BL52),IF('Tipos de Cambio'!$M$9="Brasil",LOOKUP(6,$BB$2:$BL$2,BB52:BL52),IF('Tipos de Cambio'!$M$9="China",LOOKUP(7,$BB$2:$BL$2,BB52:BL52),IF('Tipos de Cambio'!$M$9="India",LOOKUP(8,$BB$2:$BL$2,BB52:BL52),IF('Tipos de Cambio'!$M$9="Sudáfrica",LOOKUP(9,$BB$2:$BL$2,BB52:BL52),IF('Tipos de Cambio'!$M$9="México",LOOKUP(10,$BB$2:$BL$2,BB52:BL52),IF('Tipos de Cambio'!$M$9="Colombia",LOOKUP(11,$BB$2:$BL$2,BB52:BL52)))))))))))) -> n.d. | BN52: n.d. | BO52: n.d. | BP52: n.d. | BQ52: n.d. | BR52: n.d. | BS52: n.d. | BT52: n.d. | BU52: n.d. | BV52: n.d. | BW52: n.d. | BX52: n.d. | BY52: n.d. | BZ52: n.d. | CA52: n.d. | CB52: n.d. | CC52: n.d. | CD52: n.d. | CE52: n.d. | CF52: n.d. | CG52: n.d. | CH52: n.d. | CI52: n.d. | CJ52: n.d. | CK52: n.d. | CL52: n.d. | CM52: n.d. | CN52: n.d. | CO52: n.d. | CP52: n.d. | CQ52: n.d. | CR52: n.d. | CS52: n.d. | CT52: n.d. | CU52: n.d. | CV52: n.d. | CW52: 100 | CX52: n.d. | CY52: n.d. | CZ52: n.d. | DA52: n.d. | DB52: n.d. | DC52: n.d. | DD52: n.d. | DE52: n.d. | DF52: n.d. | DG52: n.d. | DH52: n.d. | DI52: 3754.09 | DJ52: 776.82 | DK52: 466.45 | DL52: n.d. | DM52: n.d. | DN52: n.d. | DO52: n.d. | DP52: n.d. | DQ52: n.d. | DR52: n.d. | DS52: n.d. | DT52: n.d. | DU52: n.d. | DV52: n.d. | DW52: n.d. | DX52: n.d. | DY52: n.d. | DZ52: n.d. | EA52: n.d. | EB52: n.d. | EC52: n.d.
A53: 1994 | B53: enero | C53: 2.52454418 | D53: 2.947598253 | E53: n.d. | F53: n.d. | G53: n.d. | H53: 1.141078838 | I53: n.d. | J53: n.d. | K53: n.d. | L53: n.d. | M53: n.d. | N53: 7.498121603 | O53: n.d. | P53: n.d | Q53: n.d | R53: n.d | S53: n.d | T53: n.d | U53: n.d | V53: n.d | W53: n.d | X53: n.d | Y53: n.d | Z53: n.d | AA53: n.d | AB53: n.d | AE53: 15.03 | AF53: n.d. | AH53: n.d. | AI53: n.d. | AJ53: n.d. | AK53: n.d. | AL53: n.d. | AM53: 334.68 | AN53: n.d. | AO53: n.d. | AP53: n.d. | AQ53: n.d. | AR53: n.d. | AS53: n.d. | AT53: n.d. | AU53: n.d. | AV53: n.d. | AW53: n.d. | AX53: n.d. | AY53: n.d. | AZ53: n.d. | BA53: n.d. | BB53: 0.5736905513 | BC53: n.d. | BD53: 111.51 | BE53: 1.32 | BF53: n.d. | BG53: n.d. | BH53: n.d. | BI53: n.d. | BJ53: n.d. | BK53: 3.1075 | BL53: n.d. | BM53: =IF('Tipos de Cambio'!$M$9="EuroZona",LOOKUP(1,$BB$2:$BL$2,BB53:BL53),IF('Tipos de Cambio'!$M$9="Reino Unido",LOOKUP(2,$BB$2:$BL$2,BB53:BL53),IF('Tipos de Cambio'!$M$9="Japón",LOOKUP(3,$BB$2:$BL$2,BB53:BL53),IF('Tipos de Cambio'!$M$9="Canadá",LOOKUP(4,$BB$2:$BL$2,BB53:BL53),IF('Tipos de Cambio'!$M$9="Rusia",LOOKUP(5,$BB$2:$BL$2,BB53:BL53),IF('Tipos de Cambio'!$M$9="Brasil",LOOKUP(6,$BB$2:$BL$2,BB53:BL53),IF('Tipos de Cambio'!$M$9="China",LOOKUP(7,$BB$2:$BL$2,BB53:BL53),IF('Tipos de Cambio'!$M$9="India",LOOKUP(8,$BB$2:$BL$2,BB53:BL53),IF('Tipos de Cambio'!$M$9="Sudáfrica",LOOKUP(9,$BB$2:$BL$2,BB53:BL53),IF('Tipos de Cambio'!$M$9="México",LOOKUP(10,$BB$2:$BL$2,BB53:BL53),IF('Tipos de Cambio'!$M$9="Colombia",LOOKUP(11,$BB$2:$BL$2,BB53:BL53)))))))))))) -> n.d. | BN53: n.d. | BO53: n.d. | BP53: n.d. | BQ53: n.d. | BR53: n.d. | BS53: n.d. | BT53: n.d. | BU53: n.d. | BV53: n.d. | BW53: n.d. | BX53: n.d. | BY53: n.d. | BZ53: n.d. | CA53: n.d. | CB53: n.d. | CC53: n.d. | CD53: n.d. | CE53: n.d. | CF53: n.d. | CG53: n.d. | CH53: n.d. | CI53: n.d. | CJ53: n.d. | CK53: n.d. | CL53: n.d. | CM53: n.d. | CN53: n.d. | CO53: n.d. | CP53: n.d. | CQ53: n.d. | CR53: n.d. | CS53: n.d. | CT53: n.d. | CU53: n.d. | CV53: n.d. | CW53: 100 | CX53: n.d. | CY53: n.d. | CZ53: n.d. | DA53: n.d. | DB53: n.d. | DC53: n.d. | DD53: n.d. | DE53: n.d. | DF53: n.d. | DG53: n.d. | DH53: n.d. | DI53: 3978.36 | DJ53: 800.47 | DK53: 481.61 | DL53: n.d. | DM53: n.d. | DN53: n.d. | DO53: n.d. | DP53: n.d. | DQ53: n.d. | DR53: n.d. | DS53: n.d. | DT53: n.d. | DU53: n.d. | DV53: n.d. | DW53: n.d. | DX53: n.d. | DY53: n.d. | DZ53: n.d. | EA53: n.d. | EB53: n.d. | EC53: n.d.
B54: febrero | C54: 2.51572327 | D54: 2.931596091 | E54: n.d. | F54: n.d. | G54: n.d. | H54: 0.932642487 | I54: n.d. | J54: n.d. | K54: n.d. | L54: n.d. | M54: n.d. | N54: 7.175372422 | O54: n.d. | P54: n.d | Q54: n.d | R54: n.d | S54: n.d | T54: n.d | U54: n.d | V54: n.d | W54: n.d | X54: n.d | Y54: n.d | Z54: n.d | AA54: n.d | AB54: n.d | AE54: 14.78 | AF54: n.d. | AH54: n.d. | AI54: n.d. | AJ54: n.d. | AK54: n.d. | AL54: n.d. | AM54: 319.8 | AN54: n.d. | AO54: n.d. | AP54: n.d. | AQ54: n.d. | AR54: n.d. | AS54: n.d. | AT54: n.d. | AU54: n.d. | AV54: n.d. | AW54: n.d. | AX54: n.d. | AY54: n.d. | AZ54: n.d. | BA54: n.d. | BB54: 0.5756389592 | BC54: n.d. | BD54: 106.21 | BE54: 1.34 | BF54: n.d. | BG54: n.d. | BH54: n.d. | BI54: n.d. | BJ54: n.d. | BK54: 3.1115 | BL54: n.d. | BM54: =IF('Tipos de Cambio'!$M$9="EuroZona",LOOKUP(1,$BB$2:$BL$2,BB54:BL54),IF('Tipos de Cambio'!$M$9="Reino Unido",LOOKUP(2,$BB$2:$BL$2,BB54:BL54),IF('Tipos de Cambio'!$M$9="Japón",LOOKUP(3,$BB$2:$BL$2,BB54:BL54),IF('Tipos de Cambio'!$M$9="Canadá",LOOKUP(4,$BB$2:$BL$2,BB54:BL54),IF('Tipos de Cambio'!$M$9="Rusia",LOOKUP(5,$BB$2:$BL$2,BB54:BL54),IF('Tipos de Cambio'!$M$9="Brasil",LOOKUP(6,$BB$2:$BL$2,BB54:BL54),IF('Tipos de Cambio'!$M$9="China",LOOKUP(7,$BB$2:$BL$2,BB54:BL54),IF('Tipos de Cambio'!$M$9="India",LOOKUP(8,$BB$2:$BL$2,BB54:BL54),IF('Tipos de Cambio'!$M$9="Sudáfrica",LOOKUP(9,$BB$2:$BL$2,BB54:BL54),IF('Tipos de Cambio'!$M$9="México",LOOKUP(10,$BB$2:$BL$2,BB54:BL54),IF('Tipos de Cambio'!$M$9="Colombia",LOOKUP(11,$BB$2:$BL$2,BB54:BL54)))))))))))) -> n.d. | BN54: n.d. | BO54: n.d. | BP54: n.d. | BQ54: n.d. | BR54: n.d. | BS54: n.d. | BT54: n.d. | BU54: n.d. | BV54: n.d. | BW54: n.d. | BX54: n.d. | BY54: n.d. | BZ54: n.d. | CA54: n.d. | CB54: n.d. | CC54: n.d. | CD54: n.d. | CE54: n.d. | CF54: n.d. | CG54: n.d. | CH54: n.d. | CI54: n.d. | CJ54: n.d. | CK54: n.d. | CL54: n.d. | CM54: n.d. | CN54: n.d. | CO54: n.d. | CP54: n.d. | CQ54: n.d. | CR54: n.d. | CS54: n.d. | CT54: n.d. | CU54: n.d. | CV54: n.d. | CW54: 100 | CX54: n.d. | CY54: n.d. | CZ54: n.d. | DA54: n.d. | DB54: n.d. | DC54: n.d. | DD54: n.d. | DE54: n.d. | DF54: n.d. | DG54: n.d. | DH54: n.d. | DI54: 3832.02 | DJ54: 792.5 | DK54: 467.14 | DL54: n.d. | DM54: n.d. | DN54: n.d. | DO54: n.d. | DP54: n.d. | DQ54: n.d. | DR54: n.d. | DS54: n.d. | DT54: n.d. | DU54: n.d. | DV54: n.d. | DW54: n.d. | DX54: n.d. | DY54: n.d. | DZ54: n.d. | EA54: n.d. | EB54: n.d. | EC54: n.d.
B55: marzo | C55: 2.506963788 | D55: 2.813852814 | E55: n.d. | F55: n.d. | G55: n.d. | H55: 1.135190918 | I55: n.d. | J55: n.d. | K55: n.d. | L55: n.d. | M55: n.d. | N55: 7.10227911 | O55: n.d. | P55: n.d | Q55: n.d | R55: n.d | S55: n.d | T55: n.d | U55: n.d | V55: n.d | W55: n.d | X55: n.d | Y55: n.d | Z55: n.d | AA55: n.d | AB55: n.d | AE55: 14.68 | AF55: n.d. | AH55: n.d. | AI55: n.d. | AJ55: n.d. | AK55: n.d. | AL55: n.d. | AM55: 326.41 | AN55: n.d. | AO55: n.d. | AP55: n.d. | AQ55: n.d. | AR55: n.d. | AS55: n.d. | AT55: n.d. | AU55: n.d. | AV55: n.d. | AW55: n.d. | AX55: n.d. | AY55: n.d. | AZ55: n.d. | BA55: n.d. | BB55: 0.5909117769 | BC55: n.d. | BD55: 105.14 | BE55: 1.36 | BF55: n.d. | BG55: n.d. | BH55: n.d. | BI55: n.d. | BJ55: n.d. | BK55: 3.2841 | BL55: n.d. | BM55: =IF('Tipos de Cambio'!$M$9="EuroZona",LOOKUP(1,$BB$2:$BL$2,BB55:BL55),IF('Tipos de Cambio'!$M$9="Reino Unido",LOOKUP(2,$BB$2:$BL$2,BB55:BL55),IF('Tipos de Cambio'!$M$9="Japón",LOOKUP(3,$BB$2:$BL$2,BB55:BL55),IF('Tipos de Cambio'!$M$9="Canadá",LOOKUP(4,$BB$2:$BL$2,BB55:BL55),IF('Tipos de Cambio'!$M$9="Rusia",LOOKUP(5,$BB$2:$BL$2,BB55:BL55),IF('Tipos de Cambio'!$M$9="Brasil",LOOKUP(6,$BB$2:$BL$2,BB55:BL55),IF('Tipos de Cambio'!$M$9="China",LOOKUP(7,$BB$2:$BL$2,BB55:BL55),IF('Tipos de Cambio'!$M$9="India",LOOKUP(8,$BB$2:$BL$2,BB55:BL55),IF('Tipos de Cambio'!$M$9="Sudáfrica",LOOKUP(9,$BB$2:$BL$2,BB55:BL55),IF('Tipos de Cambio'!$M$9="México",LOOKUP(10,$BB$2:$BL$2,BB55:BL55),IF('Tipos de Cambio'!$M$9="Colombia",LOOKUP(11,$BB$2:$BL$2,BB55:BL55)))))))))))) -> n.d. | BN55: n.d. | BO55: n.d. | BP55: n.d. | BQ55: n.d. | BR55: n.d. | BS55: n.d. | BT55: n.d. | BU55: n.d. | BV55: n.d. | BW55: n.d. | BX55: n.d. | BY55: n.d. | BZ55: n.d. | CA55: n.d. | CB55: n.d. | CC55: n.d. | CD55: n.d. | CE55: n.d. | CF55: n.d. | CG55: n.d. | CH55: n.d. | CI55: n.d. | CJ55: n.d. | CK55: n.d. | CL55: n.d. | CM55: n.d. | CN55: n.d. | CO55: n.d. | CP55: n.d. | CQ55: n.d. | CR55: n.d. | CS55: n.d. | CT55: n.d. | CU55: n.d. | CV55: n.d. | CW55: 100 | CX55: n.d. | CY55: n.d. | CZ55: n.d. | DA55: n.d. | DB55: n.d. | DC55: n.d. | DD55: n.d. | DE55: n.d. | DF55: n.d. | DG55: n.d. | DH55: n.d. | DI55: 3635.96 | DJ55: 743.46 | DK55: 445.77 | DL55: n.d. | DM55: n.d. | DN55: n.d. | DO55: n.d. | DP55: n.d. | DQ55: n.d. | DR55: n.d. | DS55: n.d. | DT55: n.d. | DU55: n.d. | DV55: n.d. | DW55: n.d. | DX55: n.d. | DY55: n.d. | DZ55: n.d. | EA55: n.d. | EB55: n.d. | EC55: n.d.
B56: abril | C56: 2.361111111 | D56: 2.699784017 | E56: n.d. | F56: n.d. | G56: n.d. | H56: 0.7186858316 | I56: n.d. | J56: n.d. | K56: n.d. | L56: n.d. | M56: n.d. | N56: 7.009725927 | O56: n.d. | P56: n.d | Q56: n.d | R56: n.d | S56: n.d | T56: n.d | U56: n.d | V56: n.d | W56: n.d | X56: n.d | Y56: n.d | Z56: n.d | AA56: n.d | AB56: n.d | AE56: 16.42 | AF56: n.d. | AH56: n.d. | AI56: n.d. | AJ56: n.d. | AK56: n.d. | AL56: n.d. | AM56: 358.64 | AN56: n.d. | AO56: n.d. | AP56: n.d. | AQ56: n.d. | AR56: n.d. | AS56: n.d. | AT56: n.d. | AU56: n.d. | AV56: n.d. | AW56: n.d. | AX56: n.d. | AY56: n.d. | AZ56: n.d. | BA56: n.d. | BB56: 0.5888587917 | BC56: n.d. | BD56: 103.53 | BE56: 1.38 | BF56: n.d. | BG56: n.d. | BH56: n.d. | BI56: n.d. | BJ56: n.d. | BK56: 3.3536 | BL56: n.d. | BM56: =IF('Tipos de Cambio'!$M$9="EuroZona",LOOKUP(1,$BB$2:$BL$2,BB56:BL56),IF('Tipos de Cambio'!$M$9="Reino Unido",LOOKUP(2,$BB$2:$BL$2,BB56:BL56),IF('Tipos de Cambio'!$M$9="Japón",LOOKUP(3,$BB$2:$BL$2,BB56:BL56),IF('Tipos de Cambio'!$M$9="Canadá",LOOKUP(4,$BB$2:$BL$2,BB56:BL56),IF('Tipos de Cambio'!$M$9="Rusia",LOOKUP(5,$BB$2:$BL$2,BB56:BL56),IF('Tipos de Cambio'!$M$9="Brasil",LOOKUP(6,$BB$2:$BL$2,BB56:BL56),IF('Tipos de Cambio'!$M$9="China",LOOKUP(7,$BB$2:$BL$2,BB56:BL56),IF('Tipos de Cambio'!$M$9="India",LOOKUP(8,$BB$2:$BL$2,BB56:BL56),IF('Tipos de Cambio'!$M$9="Sudáfrica",LOOKUP(9,$BB$2:$BL$2,BB56:BL56),IF('Tipos de Cambio'!$M$9="México",LOOKUP(10,$BB$2:$BL$2,BB56:BL56),IF('Tipos de Cambio'!$M$9="Colombia",LOOKUP(11,$BB$2:$BL$2,BB56:BL56)))))))))))) -> n.d. | BN56: n.d. | BO56: n.d. | BP56: n.d. | BQ56: n.d. | BR56: n.d. | BS56: n.d. | BT56: n.d. | BU56: n.d. | BV56: n.d. | BW56: n.d. | BX56: n.d. | BY56: n.d. | BZ56: n.d. | CA56: n.d. | CB56: n.d. | CC56: n.d. | CD56: n.d. | CE56: n.d. | CF56: n.d. | CG56: n.d. | CH56: n.d. | CI56: n.d. | CJ56: n.d. | CK56: n.d. | CL56: n.d. | CM56: n.d. | CN56: n.d. | CO56: n.d. | CP56: n.d. | CQ56: n.d. | CR56: n.d. | CS56: n.d. | CT56: n.d. | CU56: n.d. | CV56: n.d. | CW56: 100 | CX56: n.d. | CY56: n.d. | CZ56: n.d. | DA56: n.d. | DB56: n.d. | DC56: n.d. | DD56: n.d. | DE56: n.d. | DF56: n.d. | DG56: n.d. | DH56: n.d. | DI56: 3681.69 | DJ56: 733.84 | DK56: 450.91 | DL56: n.d. | DM56: n.d. | DN56: n.d. | DO56: n.d. | DP56: n.d. | DQ56: n.d. | DR56: n.d. | DS56: n.d. | DT56: n.d. | DU56: n.d. | DV56: n.d. | DW56: n.d. | DX56: n.d. | DY56: n.d. | DZ56: n.d. | EA56: n.d. | EB56: n.d. | EC56: n.d.
B57: mayo | C57: 2.288488211 | D57: 2.801724138 | E57: n.d. | F57: n.d. | G57: n.d. | H57: 0.6147540984 | I57: n.d. | J57: n.d. | K57: n.d. | L57: n.d. | M57: n.d. | N57: 6.915597974 | O57: n.d. | P57: n.d | Q57: n.d | R57: n.d | S57: n.d | T57: n.d | U57: n.d | V57: n.d | W57: n.d | X57: n.d | Y57: n.d | Z57: n.d | AA57: n.d | AB57: n.d | AE57: 17.89 | AF57: n.d. | AH57: n.d. | AI57: n.d. | AJ57: n.d. | AK57: n.d. | AL57: n.d. | AM57: 403.27 | AN57: n.d. | AO57: n.d. | AP57: n.d. | AQ57: n.d. | AR57: n.d. | AS57: n.d. | AT57: n.d. | AU57: n.d. | AV57: n.d. | AW57: n.d. | AX57: n.d. | AY57: n.d. | AZ57: n.d. | BA57: n.d. | BB57: 0.6032090723 | BC57: n.d. | BD57: 103.73 | BE57: 1.38 | BF57: n.d. | BG57: n.d. | BH57: n.d. | BI57: n.d. | BJ57: n.d. | BK57: 3.312 | BL57: n.d. | BM57: =IF('Tipos de Cambio'!$M$9="EuroZona",LOOKUP(1,$BB$2:$BL$2,BB57:BL57),IF('Tipos de Cambio'!$M$9="Reino Unido",LOOKUP(2,$BB$2:$BL$2,BB57:BL57),IF('Tipos de Cambio'!$M$9="Japón",LOOKUP(3,$BB$2:$BL$2,BB57:BL57),IF('Tipos de Cambio'!$M$9="Canadá",LOOKUP(4,$BB$2:$BL$2,BB57:BL57),IF('Tipos de Cambio'!$M$9="Rusia",LOOKUP(5,$BB$2:$BL$2,BB57:BL57),IF('Tipos de Cambio'!$M$9="Brasil",LOOKUP(6,$BB$2:$BL$2,BB57:BL57),IF('Tipos de Cambio'!$M$9="China",LOOKUP(7,$BB$2:$BL$2,BB57:BL57),IF('Tipos de Cambio'!$M$9="India",LOOKUP(8,$BB$2:$BL$2,BB57:BL57),IF('Tipos de Cambio'!$M$9="Sudáfrica",LOOKUP(9,$BB$2:$BL$2,BB57:BL57),IF('Tipos de Cambio'!$M$9="México",LOOKUP(10,$BB$2:$BL$2,BB57:BL57),IF('Tipos de Cambio'!$M$9="Colombia",LOOKUP(11,$BB$2:$BL$2,BB57:BL57)))))))))))) -> n.d. | BN57: n.d. | BO57: n.d. | BP57: n.d. | BQ57: n.d. | BR57: n.d. | BS57: n.d. | BT57: n.d. | BU57: n.d. | BV57: n.d. | BW57: n.d. | BX57: n.d. | BY57: n.d. | BZ57: n.d. | CA57: n.d. | CB57: n.d. | CC57: n.d. | CD57: n.d. | CE57: n.d. | CF57: n.d. | CG57: n.d. | CH57: n.d. | CI57: n.d. | CJ57: n.d. | CK57: n.d. | CL57: n.d. | CM57: n.d. | CN57: n.d. | CO57: n.d. | CP57: n.d. | CQ57: n.d. | CR57: n.d. | CS57: n.d. | CT57: n.d. | CU57: n.d. | CV57: n.d. | CW57: 100 | CX57: n.d. | CY57: n.d. | CZ57: n.d. | DA57: n.d. | DB57: n.d. | DC57: n.d. | DD57: n.d. | DE57: n.d. | DF57: n.d. | DG57: n.d. | DH57: n.d. | DI57: 3758.37 | DJ57: 735.19 | DK57: 456.5 | DL57: n.d. | DM57: n.d. | DN57: n.d. | DO57: n.d. | DP57: n.d. | DQ57: n.d. | DR57: n.d. | DS57: n.d. | DT57: n.d. | DU57: n.d. | DV57: n.d. | DW57: n.d. | DX57: n.d. | DY57: n.d. | DZ57: n.d. | EA57: n.d. | EB57: n.d. | EC57: n.d.
B58: junio | C58: 2.493074792 | D58: 2.688172043 | E58: n.d. | F58: n.d. | G58: n.d. | H58: 0.3076923077 | I58: n.d. | J58: n.d. | K58: n.d. | L58: n.d. | M58: n.d. | N58: 6.851272564 | O58: n.d. | P58: n.d | Q58: n.d | R58: n.d | S58: n.d | T58: n.d | U58: n.d | V58: n.d | W58: n.d | X58: n.d | Y58: n.d | Z58: n.d | AA58: n.d | AB58: n.d | AE58: 19.06 | AF58: n.d. | AH58: n.d. | AI58: n.d. | AJ58: n.d. | AK58: n.d. | AL58: n.d. | AM58: 419.79 | AN58: n.d. | AO58: n.d. | AP58: n.d. | AQ58: n.d. | AR58: n.d. | AS58: n.d. | AT58: n.d. | AU58: n.d. | AV58: n.d. | AW58: n.d. | AX58: n.d. | AY58: n.d. | AZ58: n.d. | BA58: n.d. | BB58: 0.6138358603 | BC58: n.d. | BD58: 102.72 | BE58: 1.38 | BF58: n.d. | BG58: n.d. | BH58: n.d. | BI58: n.d. | BJ58: n.d. | BK58: 3.3607 | BL58: n.d. | BM58: =IF('Tipos de Cambio'!$M$9="EuroZona",LOOKUP(1,$BB$2:$BL$2,BB58:BL58),IF('Tipos de Cambio'!$M$9="Reino Unido",LOOKUP(2,$BB$2:$BL$2,BB58:BL58),IF('Tipos de Cambio'!$M$9="Japón",LOOKUP(3,$BB$2:$BL$2,BB58:BL58),IF('Tipos de Cambio'!$M$9="Canadá",LOOKUP(4,$BB$2:$BL$2,BB58:BL58),IF('Tipos de Cambio'!$M$9="Rusia",LOOKUP(5,$BB$2:$BL$2,BB58:BL58),IF('Tipos de Cambio'!$M$9="Brasil",LOOKUP(6,$BB$2:$BL$2,BB58:BL58),IF('Tipos de Cambio'!$M$9="China",LOOKUP(7,$BB$2:$BL$2,BB58:BL58),IF('Tipos de Cambio'!$M$9="India",LOOKUP(8,$BB$2:$BL$2,BB58:BL58),IF('Tipos de Cambio'!$M$9="Sudáfrica",LOOKUP(9,$BB$2:$BL$2,BB58:BL58),IF('Tipos de Cambio'!$M$9="México",LOOKUP(10,$BB$2:$BL$2,BB58:BL58),IF('Tipos de Cambio'!$M$9="Colombia",LOOKUP(11,$BB$2:$BL$2,BB58:BL58)))))))))))) -> n.d. | BN58: n.d. | BO58: n.d. | BP58: n.d. | BQ58: n.d. | BR58: n.d. | BS58: n.d. | BT58: n.d. | BU58: n.d. | BV58: n.d. | BW58: n.d. | BX58: n.d. | BY58: n.d. | BZ58: n.d. | CA58: n.d. | CB58: n.d. | CC58: n.d. | CD58: n.d. | CE58: n.d. | CF58: n.d. | CG58: n.d. | CH58: n.d. | CI58: n.d. | CJ58: n.d. | CK58: n.d. | CL58: n.d. | CM58: n.d. | CN58: n.d. | CO58: n.d. | CP58: n.d. | CQ58: n.d. | CR58: n.d. | CS58: n.d. | CT58: n.d. | CU58: n.d. | CV58: n.d. | CW58: 100 | CX58: n.d. | CY58: n.d. | CZ58: n.d. | DA58: n.d. | DB58: n.d. | DC58: n.d. | DD58: n.d. | DE58: n.d. | DF58: n.d. | DG58: n.d. | DH58: n.d. | DI58: 3624.96 | DJ58: 705.93 | DK58: 444.27 | DL58: n.d. | DM58: n.d. | DN58: n.d. | DO58: n.d. | DP58: n.d. | DQ58: n.d. | DR58: n.d. | DS58: n.d. | DT58: n.d. | DU58: n.d. | DV58: n.d. | DW58: n.d. | DX58: n.d. | DY58: n.d. | DZ58: n.d. | EA58: n.d. | EB58: n.d. | EC58: n.d.
B59: julio | C59: 2.770083102 | D59: 2.572347267 | E59: n.d. | F59: n.d. | G59: n.d. | H59: -0.4094165814 | I59: n.d. | J59: n.d. | K59: n.d. | L59: n.d. | M59: n.d. | N59: 6.811858148 | O59: n.d. | P59: n.d | Q59: n.d | R59: n.d | S59: n.d | T59: n.d | U59: n.d | V59: n.d | W59: n.d | X59: n.d | Y59: n.d | Z59: n.d | AA59: n.d | AB59: n.d | AE59: 19.66 | AF59: n.d. | AH59: n.d. | AI59: n.d. | AJ59: n.d. | AK59: n.d. | AL59: n.d. | AM59: 419.79 | AN59: n.d. | AO59: n.d. | AP59: n.d. | AQ59: n.d. | AR59: n.d. | AS59: n.d. | AT59: n.d. | AU59: n.d. | AV59: n.d. | AW59: n.d. | AX59: n.d. | AY59: n.d. | AZ59: n.d. | BA59: n.d. | BB59: 0.636577758 | BC59: n.d. | BD59: 98.5 | BE59: 1.38 | BF59: n.d. | BG59: n.d. | BH59: n.d. | BI59: n.d. | BJ59: n.d. | BK59: 3.4009 | BL59: n.d. | BM59: =IF('Tipos de Cambio'!$M$9="EuroZona",LOOKUP(1,$BB$2:$BL$2,BB59:BL59),IF('Tipos de Cambio'!$M$9="Reino Unido",LOOKUP(2,$BB$2:$BL$2,BB59:BL59),IF('Tipos de Cambio'!$M$9="Japón",LOOKUP(3,$BB$2:$BL$2,BB59:BL59),IF('Tipos de Cambio'!$M$9="Canadá",LOOKUP(4,$BB$2:$BL$2,BB59:BL59),IF('Tipos de Cambio'!$M$9="Rusia",LOOKUP(5,$BB$2:$BL$2,BB59:BL59),IF('Tipos de Cambio'!$M$9="Brasil",LOOKUP(6,$BB$2:$BL$2,BB59:BL59),IF('Tipos de Cambio'!$M$9="China",LOOKUP(7,$BB$2:$BL$2,BB59:BL59),IF('Tipos de Cambio'!$M$9="India",LOOKUP(8,$BB$2:$BL$2,BB59:BL59),IF('Tipos de Cambio'!$M$9="Sudáfrica",LOOKUP(9,$BB$2:$BL$2,BB59:BL59),IF('Tipos de Cambio'!$M$9="México",LOOKUP(10,$BB$2:$BL$2,BB59:BL59),IF('Tipos de Cambio'!$M$9="Colombia",LOOKUP(11,$BB$2:$BL$2,BB59:BL59)))))))))))) -> n.d. | BN59: n.d. | BO59: n.d. | BP59: n.d. | BQ59: n.d. | BR59: n.d. | BS59: n.d. | BT59: n.d. | BU59: n.d. | BV59: n.d. | BW59: n.d. | BX59: n.d. | BY59: n.d. | BZ59: n.d. | CA59: n.d. | CB59: n.d. | CC59: n.d. | CD59: n.d. | CE59: n.d. | CF59: n.d. | CG59: n.d. | CH59: n.d. | CI59: n.d. | CJ59: n.d. | CK59: n.d. | CL59: n.d. | CM59: n.d. | CN59: n.d. | CO59: n.d. | CP59: n.d. | CQ59: n.d. | CR59: n.d. | CS59: n.d. | CT59: n.d. | CU59: n.d. | CV59: n.d. | CW59: 100 | CX59: n.d. | CY59: n.d. | CZ59: n.d. | DA59: n.d. | DB59: n.d. | DC59: n.d. | DD59: n.d. | DE59: n.d. | DF59: n.d. | DG59: n.d. | DH59: n.d. | DI59: 3764.5 | DJ59: 722.16 | DK59: 458.26 | DL59: n.d. | DM59: n.d. | DN59: n.d. | DO59: n.d. | DP59: n.d. | DQ59: n.d. | DR59: n.d. | DS59: n.d. | DT59: n.d. | DU59: n.d. | DV59: n.d. | DW59: n.d. | DX59: n.d. | DY59: n.d. | DZ59: n.d. | EA59: n.d. | EB59: n.d. | EC59: n.d.
B60: agosto | C60: 2.900552486 | D60: 2.676659529 | E60: n.d. | F60: n.d. | G60: n.d. | H60: -0.2040816327 | I60: n.d. | J60: n.d. | K60: n.d. | L60: n.d. | M60: n.d. | N60: 6.738403272 | O60: n.d. | P60: n.d | Q60: n.d | R60: n.d | S60: n.d | T60: n.d | U60: n.d | V60: n.d | W60: n.d | X60: n.d | Y60: n.d | Z60: n.d | AA60: n.d | AB60: n.d | AE60: 18.38 | AF60: n.d. | AH60: n.d. | AI60: n.d. | AJ60: n.d. | AK60: n.d. | AL60: n.d. | AM60: 472.52 | AN60: n.d. | AO60: n.d. | AP60: n.d. | AQ60: n.d. | AR60: n.d. | AS60: n.d. | AT60: n.d. | AU60: n.d. | AV60: n.d. | AW60: n.d. | AX60: n.d. | AY60: n.d. | AZ60: n.d. | BA60: n.d. | BB60: 0.6391409945 | BC60: n.d. | BD60: 99.81 | BE60: 1.38 | BF60: n.d. | BG60: n.d. | BH60: n.d. | BI60: n.d. | BJ60: n.d. | BK60: 3.3821 | BL60: n.d. | BM60: =IF('Tipos de Cambio'!$M$9="EuroZona",LOOKUP(1,$BB$2:$BL$2,BB60:BL60),IF('Tipos de Cambio'!$M$9="Reino Unido",LOOKUP(2,$BB$2:$BL$2,BB60:BL60),IF('Tipos de Cambio'!$M$9="Japón",LOOKUP(3,$BB$2:$BL$2,BB60:BL60),IF('Tipos de Cambio'!$M$9="Canadá",LOOKUP(4,$BB$2:$BL$2,BB60:BL60),IF('Tipos de Cambio'!$M$9="Rusia",LOOKUP(5,$BB$2:$BL$2,BB60:BL60),IF('Tipos de Cambio'!$M$9="Brasil",LOOKUP(6,$BB$2:$BL$2,BB60:BL60),IF('Tipos de Cambio'!$M$9="China",LOOKUP(7,$BB$2:$BL$2,BB60:BL60),IF('Tipos de Cambio'!$M$9="India",LOOKUP(8,$BB$2:$BL$2,BB60:BL60),IF('Tipos de Cambio'!$M$9="Sudáfrica",LOOKUP(9,$BB$2:$BL$2,BB60:BL60),IF('Tipos de Cambio'!$M$9="México",LOOKUP(10,$BB$2:$BL$2,BB60:BL60),IF('Tipos de Cambio'!$M$9="Colombia",LOOKUP(11,$BB$2:$BL$2,BB60:BL60)))))))))))) -> n.d. | BN60: n.d. | BO60: n.d. | BP60: n.d. | BQ60: n.d. | BR60: n.d. | BS60: n.d. | BT60: n.d. | BU60: n.d. | BV60: n.d. | BW60: n.d. | BX60: n.d. | BY60: n.d. | BZ60: n.d. | CA60: n.d. | CB60: n.d. | CC60: n.d. | CD60: n.d. | CE60: n.d. | CF60: n.d. | CG60: n.d. | CH60: n.d. | CI60: n.d. | CJ60: n.d. | CK60: n.d. | CL60: n.d. | CM60: n.d. | CN60: n.d. | CO60: n.d. | CP60: n.d. | CQ60: n.d. | CR60: n.d. | CS60: n.d. | CT60: n.d. | CU60: n.d. | CV60: n.d. | CW60: 100 | CX60: n.d. | CY60: n.d. | CZ60: n.d. | DA60: n.d. | DB60: n.d. | DC60: n.d. | DD60: n.d. | DE60: n.d. | DF60: n.d. | DG60: n.d. | DH60: n.d. | DI60: 3913.42 | DJ60: 765.62 | DK60: 475.49 | DL60: n.d. | DM60: n.d. | DN60: n.d. | DO60: n.d. | DP60: n.d. | DQ60: n.d. | DR60: n.d. | DS60: n.d. | DT60: n.d. | DU60: n.d. | DV60: n.d. | DW60: n.d. | DX60: n.d. | DY60: n.d. | DZ60: n.d. | EA60: n.d. | EB60: n.d. | EC60: n.d.
B61: septiembre | C61: 2.963473467 | D61: 2.673796791 | E61: n.d. | F61: n.d. | G61: n.d. | H61: 0 | I61: n.d. | J61: n.d. | K61: n.d. | L61: n.d. | M61: n.d. | N61: 6.707227195 | O61: n.d. | P61: n.d | Q61: n.d | R61: n.d | S61: n.d | T61: n.d | U61: n.d | V61: n.d | W61: n.d | X61: n.d | Y61: n.d | Z61: n.d | AA61: n.d | AB61: n.d | AE61: 17.45 | AF61: n.d. | AH61: n.d. | AI61: n.d. | AJ61: n.d. | AK61: n.d. | AL61: n.d. | AM61: 507.39 | AN61: n.d. | AO61: n.d. | AP61: n.d. | AQ61: n.d. | AR61: n.d. | AS61: n.d. | AT61: n.d. | AU61: n.d. | AV61: n.d. | AW61: n.d. | AX61: n.d. | AY61: n.d. | AZ61: n.d. | BA61: n.d. | BB61: 0.6447868979 | BC61: n.d. | BD61: 98.31 | BE61: 1.35 | BF61: n.d. | BG61: n.d. | BH61: n.d. | BI61: n.d. | BJ61: n.d. | BK61: 3.3998 | BL61: n.d. | BM61: =IF('Tipos de Cambio'!$M$9="EuroZona",LOOKUP(1,$BB$2:$BL$2,BB61:BL61),IF('Tipos de Cambio'!$M$9="Reino Unido",LOOKUP(2,$BB$2:$BL$2,BB61:BL61),IF('Tipos de Cambio'!$M$9="Japón",LOOKUP(3,$BB$2:$BL$2,BB61:BL61),IF('Tipos de Cambio'!$M$9="Canadá",LOOKUP(4,$BB$2:$BL$2,BB61:BL61),IF('Tipos de Cambio'!$M$9="Rusia",LOOKUP(5,$BB$2:$BL$2,BB61:BL61),IF('Tipos de Cambio'!$M$9="Brasil",LOOKUP(6,$BB$2:$BL$2,BB61:BL61),IF('Tipos de Cambio'!$M$9="China",LOOKUP(7,$BB$2:$BL$2,BB61:BL61),IF('Tipos de Cambio'!$M$9="India",LOOKUP(8,$BB$2:$BL$2,BB61:BL61),IF('Tipos de Cambio'!$M$9="Sudáfrica",LOOKUP(9,$BB$2:$BL$2,BB61:BL61),IF('Tipos de Cambio'!$M$9="México",LOOKUP(10,$BB$2:$BL$2,BB61:BL61),IF('Tipos de Cambio'!$M$9="Colombia",LOOKUP(11,$BB$2:$BL$2,BB61:BL61)))))))))))) -> n.d. | BN61: n.d. | BO61: n.d. | BP61: n.d. | BQ61: n.d. | BR61: n.d. | BS61: n.d. | BT61: n.d. | BU61: n.d. | BV61: n.d. | BW61: n.d. | BX61: n.d. | BY61: n.d. | BZ61: n.d. | CA61: n.d. | CB61: n.d. | CC61: n.d. | CD61: n.d. | CE61: n.d. | CF61: n.d. | CG61: n.d. | CH61: =IFERROR((BY61/BY49-1)*100,"n.d.") -> n.d. | CI61: n.d. | CJ61: n.d. | CK61: n.d. | CL61: n.d. | CM61: n.d. | CN61: n.d. | CO61: n.d. | CP61: n.d. | CQ61: n.d. | CR61: n.d. | CS61: n.d. | CT61: n.d. | CU61: n.d. | CV61: n.d. | CW61: 100 | CX61: n.d. | CY61: n.d. | CZ61: n.d. | DA61: n.d. | DB61: n.d. | DC61: n.d. | DD61: n.d. | DE61: n.d. | DF61: n.d. | DG61: n.d. | DH61: n.d. | DI61: 3843.18 | DJ61: 764.42 | DK61: 462.69 | DL61: n.d. | DM61: n.d. | DN61: n.d. | DO61: n.d. | DP61: n.d. | DQ61: n.d. | DR61: n.d. | DS61: n.d. | DT61: n.d. | DU61: n.d. | DV61: n.d. | DW61: n.d. | DX61: n.d. | DY61: n.d. | DZ61: n.d. | EA61: n.d. | EB61: n.d. | EC61: n.d.
B62: octubre | C62: 2.608098833 | D62: 2.561366062 | E62: n.d. | F62: n.d. | G62: n.d. | H62: 0.5102040816 | I62: n.d. | J62: n.d. | K62: n.d. | L62: n.d. | M62: n.d. | N62: 6.830487802 | O62: n.d. | P62: n.d | Q62: n.d | R62: n.d | S62: n.d | T62: n.d | U62: n.d | V62: n.d | W62: n.d | X62: n.d | Y62: n.d | Z62: n.d | AA62: n.d | AB62: n.d | AE62: 17.72 | AF62: n.d. | AH62: n.d. | AI62: n.d. | AJ62: n.d. | AK62: n.d. | AL62: n.d. | AM62: 510.69 | AN62: n.d. | AO62: n.d. | AP62: n.d. | AQ62: n.d. | AR62: n.d. | AS62: n.d. | AT62: n.d. | AU62: n.d. | AV62: n.d. | AW62: n.d. | AX62: n.d. | AY62: n.d. | AZ62: n.d. | BA62: n.d. | BB62: 0.6585879874 | BC62: n.d. | BD62: 98.42 | BE62: 1.35 | BF62: n.d. | BG62: n.d. | BH62: n.d. | BI62: n.d. | BJ62: n.d. | BK62: 3.4158 | BL62: n.d. | BM62: =IF('Tipos de Cambio'!$M$9="EuroZona",LOOKUP(1,$BB$2:$BL$2,BB62:BL62),IF('Tipos de Cambio'!$M$9="Reino Unido",LOOKUP(2,$BB$2:$BL$2,BB62:BL62),IF('Tipos de Cambio'!$M$9="Japón",LOOKUP(3,$BB$2:$BL$2,BB62:BL62),IF('Tipos de Cambio'!$M$9="Canadá",LOOKUP(4,$BB$2:$BL$2,BB62:BL62),IF('Tipos de Cambio'!$M$9="Rusia",LOOKUP(5,$BB$2:$BL$2,BB62:BL62),IF('Tipos de Cambio'!$M$9="Brasil",LOOKUP(6,$BB$2:$BL$2,BB62:BL62),IF('Tipos de Cambio'!$M$9="China",LOOKUP(7,$BB$2:$BL$2,BB62:BL62),IF('Tipos de Cambio'!$M$9="India",LOOKUP(8,$BB$2:$BL$2,BB62:BL62),IF('Tipos de Cambio'!$M$9="Sudáfrica",LOOKUP(9,$BB$2:$BL$2,BB62:BL62),IF('Tipos de Cambio'!$M$9="México",LOOKUP(10,$BB$2:$BL$2,BB62:BL62),IF('Tipos de Cambio'!$M$9="Colombia",LOOKUP(11,$BB$2:$BL$2,BB62:BL62)))))))))))) -> n.d. | BN62: n.d. | BO62: n.d. | BP62: n.d. | BQ62: n.d. | BR62: n.d. | BS62: n.d. | BT62: n.d. | BU62: n.d. | BV62: n.d. | BW62: n.d. | BX62: n.d. | BY62: n.d. | BZ62: n.d. | CA62: n.d. | CB62: n.d. | CC62: n.d. | CD62: n.d. | CE62: =IFERROR((BV62/BV50-1)*100,"n.d.") -> n.d. | CF62: n.d. | CG62: n.d. | CH62: n.d. | CI62: n.d. | CJ62: n.d. | CK62: n.d. | CL62: n.d. | CM62: n.d. | CN62: n.d. | CO62: n.d. | CP62: n.d. | CQ62: n.d. | CR62: n.d. | CS62: n.d. | CT62: n.d. | CU62: n.d. | CV62: n.d. | CW62: 100 | CX62: n.d. | CY62: n.d. | CZ62: n.d. | DA62: n.d. | DB62: n.d. | DC62: n.d. | DD62: n.d. | DE62: n.d. | DF62: n.d. | DG62: n.d. | DH62: n.d. | DI62: 3908.12 | DJ62: 777.49 | DK62: 472.35 | DL62: n.d. | DM62: n.d. | DN62: n.d. | DO62: n.d. | DP62: n.d. | DQ62: n.d. | DR62: n.d. | DS62: n.d. | DT62: n.d. | DU62: n.d. | DV62: n.d. | DW62: n.d. | DX62: n.d. | DY62: n.d. | DZ62: n.d. | EA62: n.d. | EB62: n.d. | EC62: n.d.
B63: noviembre | C63: 2.674897119 | D63: 2.449414271 | E63: n.d. | F63: n.d. | G63: n.d. | H63: 0.9249743063 | I63: n.d. | J63: n.d. | K63: n.d. | L63: n.d. | M63: n.d. | N63: 6.929957395 | O63: n.d. | P63: n.d | Q63: n.d | R63: n.d | S63: n.d | T63: n.d | U63: n.d | V63: n.d | W63: n.d | X63: n.d | Y63: n.d | Z63: n.d | AA63: n.d | AB63: n.d | AE63: 18.07 | AF63: n.d. | AH63: n.d. | AI63: n.d. | AJ63: n.d. | AK63: n.d. | AL63: n.d. | AM63: 584.24 | AN63: n.d. | AO63: n.d. | AP63: n.d. | AQ63: n.d. | AR63: n.d. | AS63: n.d. | AT63: n.d. | AU63: n.d. | AV63: n.d. | AW63: n.d. | AX63: n.d. | AY63: n.d. | AZ63: n.d. | BA63: n.d. | BB63: 0.6498992656 | BC63: n.d. | BD63: 97.96 | BE63: 1.36 | BF63: n.d. | BG63: n.d. | BH63: n.d. | BI63: n.d. | BJ63: n.d. | BK63: 3.4426 | BL63: n.d. | BM63: =IF('Tipos de Cambio'!$M$9="EuroZona",LOOKUP(1,$BB$2:$BL$2,BB63:BL63),IF('Tipos de Cambio'!$M$9="Reino Unido",LOOKUP(2,$BB$2:$BL$2,BB63:BL63),IF('Tipos de Cambio'!$M$9="Japón",LOOKUP(3,$BB$2:$BL$2,BB63:BL63),IF('Tipos de Cambio'!$M$9="Canadá",LOOKUP(4,$BB$2:$BL$2,BB63:BL63),IF('Tipos de Cambio'!$M$9="Rusia",LOOKUP(5,$BB$2:$BL$2,BB63:BL63),IF('Tipos de Cambio'!$M$9="Brasil",LOOKUP(6,$BB$2:$BL$2,BB63:BL63),IF('Tipos de Cambio'!$M$9="China",LOOKUP(7,$BB$2:$BL$2,BB63:BL63),IF('Tipos de Cambio'!$M$9="India",LOOKUP(8,$BB$2:$BL$2,BB63:BL63),IF('Tipos de Cambio'!$M$9="Sudáfrica",LOOKUP(9,$BB$2:$BL$2,BB63:BL63),IF('Tipos de Cambio'!$M$9="México",LOOKUP(10,$BB$2:$BL$2,BB63:BL63),IF('Tipos de Cambio'!$M$9="Colombia",LOOKUP(11,$BB$2:$BL$2,BB63:BL63)))))))))))) -> n.d. | BN63: n.d. | BO63: n.d. | BP63: n.d. | BQ63: n.d. | BR63: n.d. | BS63: n.d. | BT63: n.d. | BU63: n.d. | BV63: n.d. | BW63: n.d. | BX63: n.d. | BY63: n.d. | BZ63: n.d. | CA63: n.d. | CB63: n.d. | CC63: n.d. | CD63: n.d. | CE63: n.d. | CF63: n.d. | CG63: n.d. | CH63: n.d. | CI63: n.d. | CJ63: n.d. | CK63: n.d. | CL63: n.d. | CM63: n.d. | CN63: n.d. | CO63: n.d. | CP63: n.d. | CQ63: n.d. | CR63: n.d. | CS63: n.d. | CT63: n.d. | CU63: n.d. | CV63: n.d. | CW63: 100 | CX63: n.d. | CY63: n.d. | CZ63: n.d. | DA63: n.d. | DB63: n.d. | DC63: n.d. | DD63: n.d. | DE63: n.d. | DF63: n.d. | DG63: n.d. | DH63: n.d. | DI63: 3739.22 | DJ63: 750.32 | DK63: 453.69 | DL63: n.d. | DM63: n.d. | DN63: n.d. | DO63: n.d. | DP63: n.d. | DQ63: n.d. | DR63: n.d. | DS63: n.d. | DT63: n.d. | DU63: n.d. | DV63: n.d. | DW63: n.d. | DX63: n.d. | DY63: n.d. | DZ63: n.d. | EA63: n.d. | EB63: n.d. | EC63: n.d.
B64: diciembre | C64: 2.674897119 | D64: 2.553191489 | E64: n.d. | F64: n.d. | G64: n.d. | H64: 0.5138746146 | I64: n.d. | J64: n.d. | K64: n.d. | L64: n.d. | M64: n.d. | N64: 7.05154663 | O64: n.d. | P64: n.d | Q64: n.d | R64: n.d | S64: n.d | T64: n.d | U64: n.d | V64: n.d | W64: n.d | X64: n.d | Y64: n.d | Z64: n.d | AA64: n.d | AB64: n.d | AE64: 17.16 | AF64: n.d. | AH64: n.d. | AI64: n.d. | AJ64: n.d. | AK64: n.d. | AL64: n.d. | AM64: 590.02 | AN64: n.d. | AO64: n.d. | AP64: n.d. | AQ64: n.d. | AR64: n.d. | AS64: n.d. | AT64: n.d. | AU64: n.d. | AV64: n.d. | AW64: n.d. | AX64: n.d. | AY64: n.d. | AZ64: n.d. | BA64: n.d. | BB64: 1.240815 | BC64: n.d. | BD64: 100.12 | BE64: 1.39 | BF64: n.d. | BG64: n.d. | BH64: n.d. | BI64: n.d. | BJ64: n.d. | BK64: 3.9308 | BL64: n.d. | BM64: =IF('Tipos de Cambio'!$M$9="EuroZona",LOOKUP(1,$BB$2:$BL$2,BB64:BL64),IF('Tipos de Cambio'!$M$9="Reino Unido",LOOKUP(2,$BB$2:$BL$2,BB64:BL64),IF('Tipos de Cambio'!$M$9="Japón",LOOKUP(3,$BB$2:$BL$2,BB64:BL64),IF('Tipos de Cambio'!$M$9="Canadá",LOOKUP(4,$BB$2:$BL$2,BB64:BL64),IF('Tipos de Cambio'!$M$9="Rusia",LOOKUP(5,$BB$2:$BL$2,BB64:BL64),IF('Tipos de Cambio'!$M$9="Brasil",LOOKUP(6,$BB$2:$BL$2,BB64:BL64),IF('Tipos de Cambio'!$M$9="China",LOOKUP(7,$BB$2:$BL$2,BB64:BL64),IF('Tipos de Cambio'!$M$9="India",LOOKUP(8,$BB$2:$BL$2,BB64:BL64),IF('Tipos de Cambio'!$M$9="Sudáfrica",LOOKUP(9,$BB$2:$BL$2,BB64:BL64),IF('Tipos de Cambio'!$M$9="México",LOOKUP(10,$BB$2:$BL$2,BB64:BL64),IF('Tipos de Cambio'!$M$9="Colombia",LOOKUP(11,$BB$2:$BL$2,BB64:BL64)))))))))))) -> n.d. | BN64: n.d. | BO64: n.d. | BP64: n.d. | BQ64: n.d. | BR64: n.d. | BS64: n.d. | BT64: n.d. | BU64: n.d. | BV64: n.d. | BW64: n.d. | BX64: n.d. | BY64: n.d. | BZ64: n.d. | CA64: n.d. | CB64: n.d. | CC64: n.d. | CD64: n.d. | CE64: n.d. | CF64: n.d. | CG64: n.d. | CH64: n.d. | CI64: n.d. | CJ64: n.d. | CK64: n.d. | CL64: n.d. | CM64: n.d. | CN64: n.d. | CO64: n.d. | CP64: n.d. | CQ64: n.d. | CR64: n.d. | CS64: n.d. | CT64: n.d. | CU64: n.d. | CV64: n.d. | CW64: 100 | CX64: n.d. | CY64: n.d. | CZ64: n.d. | DA64: n.d. | DB64: n.d. | DC64: n.d. | DD64: n.d. | DE64: n.d. | DF64: n.d. | DG64: n.d. | DH64: n.d. | DI64: 3834.44 | DJ64: 751.96 | DK64: 459.27 | DL64: n.d. | DM64: n.d. | DN64: n.d. | DO64: n.d. | DP64: n.d. | DQ64: n.d. | DR64: n.d. | DS64: n.d. | DT64: n.d. | DU64: n.d. | DV64: n.d. | DW64: n.d. | DX64: n.d. | DY64: =IFERROR(DO64-DO63, "n.d.") -> n.d. | DZ64: n.d. | EA64: n.d. | EB64: n.d. | EC64: n.d.
A65: 1995 | B65: enero | C65: 2.804377565 | D65: 2.43902439 | E65: n.d. | F65: n.d. | G65: n.d. | H65: 0.4102564103 | I65: n.d. | J65: n.d. | K65: n.d. | L65: n.d. | M65: n.d. | N65: 10.22636284 | O65: n.d. | P65: n.d | Q65: n.d | R65: n.d | S65: n.d | T65: n.d | U65: n.d | V65: n.d | W65: n.d | X65: n.d | Y65: n.d | Z65: n.d | AA65: n.d | AB65: n.d | AE65: 18.04 | AF65: n.d. | AH65: n.d. | AI65: n.d. | AJ65: n.d. | AK65: n.d. | AL65: n.d. | AM65: 541.27 | AN65: n.d. | AO65: n.d. | AP65: n.d. | AQ65: n.d. | AR65: n.d. | AS65: n.d. | AT65: n.d. | AU65: n.d. | AV65: n.d. | AW65: n.d. | AX65: n.d. | AY65: n.d. | AZ65: n.d. | BA65: n.d. | BB65: 1.240815 | BC65: n.d. | BD65: 99.75 | BE65: 1.41 | BF65: n.d. | BG65: n.d. | BH65: n.d. | BI65: n.d. | BJ65: n.d. | BK65: 5.5133 | BL65: n.d. | BM65: =IF('Tipos de Cambio'!$M$9="EuroZona",LOOKUP(1,$BB$2:$BL$2,BB65:BL65),IF('Tipos de Cambio'!$M$9="Reino Unido",LOOKUP(2,$BB$2:$BL$2,BB65:BL65),IF('Tipos de Cambio'!$M$9="Japón",LOOKUP(3,$BB$2:$BL$2,BB65:BL65),IF('Tipos de Cambio'!$M$9="Canadá",LOOKUP(4,$BB$2:$BL$2,BB65:BL65),IF('Tipos de Cambio'!$M$9="Rusia",LOOKUP(5,$BB$2:$BL$2,BB65:BL65),IF('Tipos de Cambio'!$M$9="Brasil",LOOKUP(6,$BB$2:$BL$2,BB65:BL65),IF('Tipos de Cambio'!$M$9="China",LOOKUP(7,$BB$2:$BL$2,BB65:BL65),IF('Tipos de Cambio'!$M$9="India",LOOKUP(8,$BB$2:$BL$2,BB65:BL65),IF('Tipos de Cambio'!$M$9="Sudáfrica",LOOKUP(9,$BB$2:$BL$2,BB65:BL65),IF('Tipos de Cambio'!$M$9="México",LOOKUP(10,$BB$2:$BL$2,BB65:BL65),IF('Tipos de Cambio'!$M$9="Colombia",LOOKUP(11,$BB$2:$BL$2,BB65:BL65)))))))))))) -> n.d. | BN65: 6.79501 | BO65: n.d. | BP65: n.d. | BQ65: n.d. | BR65: n.d. | BS65: n.d. | BT65: n.d. | BU65: n.d. | BV65: n.d. | BW65: n.d. | BX65: n.d. | BY65: n.d. | BZ65: n.d. | CA65: n.d. | CB65: n.d. | CC65: n.d. | CD65: n.d. | CE65: n.d. | CF65: n.d. | CG65: n.d. | CH65: n.d. | CI65: n.d. | CJ65: n.d. | CK65: n.d. | CL65: n.d. | CM65: n.d. | CN65: n.d. | CO65: n.d. | CP65: n.d. | CQ65: n.d. | CR65: n.d. | CS65: n.d. | CT65: n.d. | CU65: n.d. | CV65: n.d. | CW65: 100 | CX65: n.d. | CY65: n.d. | CZ65: n.d. | DA65: n.d. | DB65: n.d. | DC65: n.d. | DD65: n.d. | DE65: n.d. | DF65: n.d. | DG65: n.d. | DH65: n.d. | DI65: 3843.86 | DJ65: 755.2 | DK65: 470.42 | DL65: n.d. | DM65: n.d. | DN65: n.d. | DO65: n.d. | DP65: n.d. | DQ65: n.d. | DR65: n.d. | DS65: n.d. | DT65: n.d. | DU65: n.d. | DV65: =IFERROR(DL65-DL64, "n.d.") -> n.d. | DW65: n.d. | DX65: n.d. | DY65: n.d. | DZ65: n.d. | EA65: n.d. | EB65: n.d. | EC65: n.d.
B66: febrero | C66: 2.862985685 | D66: 2.426160338 | E66: n.d. | F66: n.d. | G66: n.d. | H66: 0.1026694045 | I66: n.d. | J66: n.d. | K66: n.d. | L66: n.d. | M66: n.d. | N66: 14.31012361 | O66: n.d. | P66: n.d | Q66: n.d | R66: n.d | S66: n.d | T66: n.d | U66: n.d | V66: n.d | W66: n.d | X66: n.d | Y66: n.d | Z66: n.d | AA66: n.d | AB66: n.d | AE66: 18.57 | AF66: n.d. | AH66: n.d. | AI66: n.d. | AJ66: n.d. | AK66: n.d. | AL66: n.d. | AM66: 546.23 | AN66: n.d. | AO66: n.d. | AP66: n.d. | AQ66: n.d. | AR66: n.d. | AS66: n.d. | AT66: n.d. | AU66: n.d. | AV66: n.d. | AW66: n.d. | AX66: n.d. | AY66: n.d. | AZ66: n.d. | BA66: n.d. | BB66: 1.258693999 | BC66: n.d. | BD66: 98.24 | BE66: 1.4 | BF66: n.d. | BG66: n.d. | BH66: n.d. | BI66: n.d. | BJ66: n.d. | BK66: 5.6851 | BL66: n.d. | BM66: =IF('Tipos de Cambio'!$M$9="EuroZona",LOOKUP(1,$BB$2:$BL$2,BB66:BL66),IF('Tipos de Cambio'!$M$9="Reino Unido",LOOKUP(2,$BB$2:$BL$2,BB66:BL66),IF('Tipos de Cambio'!$M$9="Japón",LOOKUP(3,$BB$2:$BL$2,BB66:BL66),IF('Tipos de Cambio'!$M$9="Canadá",LOOKUP(4,$BB$2:$BL$2,BB66:BL66),IF('Tipos de Cambio'!$M$9="Rusia",LOOKUP(5,$BB$2:$BL$2,BB66:BL66),IF('Tipos de Cambio'!$M$9="Brasil",LOOKUP(6,$BB$2:$BL$2,BB66:BL66),IF('Tipos de Cambio'!$M$9="China",LOOKUP(7,$BB$2:$BL$2,BB66:BL66),IF('Tipos de Cambio'!$M$9="India",LOOKUP(8,$BB$2:$BL$2,BB66:BL66),IF('Tipos de Cambio'!$M$9="Sudáfrica",LOOKUP(9,$BB$2:$BL$2,BB66:BL66),IF('Tipos de Cambio'!$M$9="México",LOOKUP(10,$BB$2:$BL$2,BB66:BL66),IF('Tipos de Cambio'!$M$9="Colombia",LOOKUP(11,$BB$2:$BL$2,BB66:BL66)))))))))))) -> n.d. | BN66: 6.54441 | BO66: n.d. | BP66: n.d. | BQ66: n.d. | BR66: n.d. | BS66: n.d. | BT66: n.d. | BU66: n.d. | BV66: n.d. | BW66: n.d. | BX66: n.d. | BY66: n.d. | BZ66: n.d. | CA66: n.d. | CB66: n.d. | CC66: n.d. | CD66: n.d. | CE66: n.d. | CF66: n.d. | CG66: n.d. | CH66: n.d. | CI66: n.d. | CJ66: n.d. | CK66: n.d. | CL66: n.d. | CM66: n.d. | CN66: n.d. | CO66: n.d. | CP66: n.d. | CQ66: n.d. | CR66: n.d. | CS66: n.d. | CT66: n.d. | CU66: n.d. | CV66: n.d. | CW66: 100 | CX66: n.d. | CY66: n.d. | CZ66: n.d. | DA66: n.d. | DB66: n.d. | DC66: n.d. | DD66: n.d. | DE66: n.d. | DF66: n.d. | DG66: n.d. | DH66: n.d. | DI66: 4011.05 | DJ66: 793.74 | DK66: 487.39 | DL66: n.d. | DM66: n.d. | DN66: n.d. | DO66: n.d. | DP66: n.d. | DQ66: n.d. | DR66: n.d. | DS66: n.d. | DT66: n.d. | DU66: n.d. | DV66: n.d. | DW66: n.d. | DX66: n.d. | DY66: n.d. | DZ66: n.d. | EA66: n.d. | EB66: n.d. | EC66: n.d.
B67: marzo | C67: 2.85326087 | D67: 2.526315789 | E67: n.d. | F67: n.d. | G67: n.d. | H67: -0.5102040816 | I67: n.d. | J67: n.d. | K67: n.d. | L67: n.d. | M67: n.d. | N67: 20.42959076 | O67: n.d. | P67: n.d | Q67: n.d | R67: n.d | S67: n.d | T67: n.d | U67: n.d | V67: n.d | W67: n.d | X67: n.d | Y67: n.d | Z67: n.d | AA67: n.d | AB67: n.d | AE67: 18.54 | AF67: n.d. | AH67: n.d. | AI67: n.d. | AJ67: n.d. | AK67: n.d. | AL67: n.d. | AM67: 567.71 | AN67: n.d. | AO67: n.d. | AP67: n.d. | AQ67: n.d. | AR67: n.d. | AS67: n.d. | AT67: n.d. | AU67: n.d. | AV67: n.d. | AW67: n.d. | AX67: n.d. | AY67: n.d. | AZ67: n.d. | BA67: n.d. | BB67: 1.317063001 | BC67: n.d. | BD67: 90.79 | BE67: 1.41 | BF67: n.d. | BG67: n.d. | BH67: n.d. | BI67: n.d. | BJ67: n.d. | BK67: 6.7019 | BL67: n.d. | BM67: =IF('Tipos de Cambio'!$M$9="EuroZona",LOOKUP(1,$BB$2:$BL$2,BB67:BL67),IF('Tipos de Cambio'!$M$9="Reino Unido",LOOKUP(2,$BB$2:$BL$2,BB67:BL67),IF('Tipos de Cambio'!$M$9="Japón",LOOKUP(3,$BB$2:$BL$2,BB67:BL67),IF('Tipos de Cambio'!$M$9="Canadá",LOOKUP(4,$BB$2:$BL$2,BB67:BL67),IF('Tipos de Cambio'!$M$9="Rusia",LOOKUP(5,$BB$2:$BL$2,BB67:BL67),IF('Tipos de Cambio'!$M$9="Brasil",LOOKUP(6,$BB$2:$BL$2,BB67:BL67),IF('Tipos de Cambio'!$M$9="China",LOOKUP(7,$BB$2:$BL$2,BB67:BL67),IF('Tipos de Cambio'!$M$9="India",LOOKUP(8,$BB$2:$BL$2,BB67:BL67),IF('Tipos de Cambio'!$M$9="Sudáfrica",LOOKUP(9,$BB$2:$BL$2,BB67:BL67),IF('Tipos de Cambio'!$M$9="México",LOOKUP(10,$BB$2:$BL$2,BB67:BL67),IF('Tipos de Cambio'!$M$9="Colombia",LOOKUP(11,$BB$2:$BL$2,BB67:BL67)))))))))))) -> n.d. | BN67: 6.46399 | BO67: n.d. | BP67: n.d. | BQ67: n.d. | BR67: n.d. | BS67: n.d. | BT67: n.d. | BU67: n.d. | BV67: n.d. | BW67: n.d. | BX67: n.d. | BY67: n.d. | BZ67: n.d. | CA67: n.d. | CB67: n.d. | CC67: n.d. | CD67: n.d. | CE67: n.d. | CF67: n.d. | CG67: n.d. | CH67: n.d. | CI67: n.d. | CJ67: n.d. | CK67: n.d. | CL67: n.d. | CM67: n.d. | CN67: n.d. | CO67: n.d. | CP67: n.d. | CQ67: n.d. | CR67: n.d. | CS67: n.d. | CT67: n.d. | CU67: n.d. | CV67: n.d. | CW67: 100 | CX67: n.d. | CY67: n.d. | CZ67: n.d. | DA67: n.d. | DB67: n.d. | DC67: n.d. | DD67: n.d. | DE67: n.d. | DF67: n.d. | DG67: n.d. | DH67: n.d. | DI67: 4157.69 | DJ67: 817.21 | DK67: 500.71 | DL67: n.d. | DM67: n.d. | DN67: n.d. | DO67: n.d. | DP67: n.d. | DQ67: n.d. | DR67: n.d. | DS67: n.d. | DT67: n.d. | DU67: n.d. | DV67: n.d. | DW67: n.d. | DX67: n.d. | DY67: n.d. | DZ67: n.d. | EA67: n.d. | EB67: n.d. | EC67: n.d.
B68: abril | C68: 3.052917232 | D68: 2.628811777 | E68: n.d. | F68: n.d. | G68: n.d. | H68: -0.3058103976 | I68: n.d. | J68: n.d. | K68: n.d. | L68: n.d. | M68: n.d. | N68: 29.39213505 | O68: n.d. | P68: n.d | Q68: n.d | R68: n.d | S68: n.d | T68: n.d | U68: n.d | V68: n.d | W68: n.d | X68: n.d | Y68: n.d | Z68: n.d | AA68: n.d | AB68: n.d | AE68: 19.9 | AF68: n.d. | AH68: n.d. | AI68: n.d. | AJ68: n.d. | AK68: n.d. | AL68: n.d. | AM68: 511.39 | AN68: n.d. | AO68: n.d. | AP68: n.d. | AQ68: n.d. | AR68: n.d. | AS68: n.d. | AT68: n.d. | AU68: n.d. | AV68: n.d. | AW68: n.d. | AX68: n.d. | AY68: n.d. | AZ68: n.d. | BA68: n.d. | BB68: 1.341432 | BC68: n.d. | BD68: 83.67 | BE68: 1.38 | BF68: n.d. | BG68: n.d. | BH68: n.d. | BI68: n.d. | BJ68: n.d. | BK68: 6.2996 | BL68: n.d. | BM68: =IF('Tipos de Cambio'!$M$9="EuroZona",LOOKUP(1,$BB$2:$BL$2,BB68:BL68),IF('Tipos de Cambio'!$M$9="Reino Unido",LOOKUP(2,$BB$2:$BL$2,BB68:BL68),IF('Tipos de Cambio'!$M$9="Japón",LOOKUP(3,$BB$2:$BL$2,BB68:BL68),IF('Tipos de Cambio'!$M$9="Canadá",LOOKUP(4,$BB$2:$BL$2,BB68:BL68),IF('Tipos de Cambio'!$M$9="Rusia",LOOKUP(5,$BB$2:$BL$2,BB68:BL68),IF('Tipos de Cambio'!$M$9="Brasil",LOOKUP(6,$BB$2:$BL$2,BB68:BL68),IF('Tipos de Cambio'!$M$9="China",LOOKUP(7,$BB$2:$BL$2,BB68:BL68),IF('Tipos de Cambio'!$M$9="India",LOOKUP(8,$BB$2:$BL$2,BB68:BL68),IF('Tipos de Cambio'!$M$9="Sudáfrica",LOOKUP(9,$BB$2:$BL$2,BB68:BL68),IF('Tipos de Cambio'!$M$9="México",LOOKUP(10,$BB$2:$BL$2,BB68:BL68),IF('Tipos de Cambio'!$M$9="Colombia",LOOKUP(11,$BB$2:$BL$2,BB68:BL68)))))))))))) -> n.d. | BN68: 6.39583 | BO68: n.d. | BP68: n.d. | BQ68: n.d. | BR68: n.d. | BS68: n.d. | BT68: n.d. | BU68: n.d. | BV68: n.d. | BW68: n.d. | BX68: n.d. | BY68: n.d. | BZ68: n.d. | CA68: n.d. | CB68: n.d. | CC68: n.d. | CD68: n.d. | CE68: n.d. | CF68: n.d. | CG68: n.d. | CH68: n.d. | CI68: n.d. | CJ68: n.d. | CK68: n.d. | CL68: n.d. | CM68: n.d. | CN68: n.d. | CO68: n.d. | CP68: n.d. | CQ68: n.d. | CR68: n.d. | CS68: n.d. | CT68: n.d. | CU68: n.d. | CV68: n.d. | CW68: 100 | CX68: n.d. | CY68: n.d. | CZ68: n.d. | DA68: n.d. | DB68: n.d. | DC68: n.d. | DD68: n.d. | DE68: n.d. | DF68: n.d. | DG68: n.d. | DH68: n.d. | DI68: 4321.27 | DJ68: 843.98 | DK68: 514.71 | DL68: n.d. | DM68: n.d. | DN68: n.d. | DO68: n.d. | DP68: n.d. | DQ68: n.d. | DR68: n.d. | DS68: n.d. | DT68: n.d. | DU68: n.d. | DV68: n.d. | DW68: n.d. | DX68: n.d. | DY68: n.d. | DZ68: n.d. | EA68: n.d. | EB68: n.d. | EC68: n.d.
B69: mayo | C69: 3.186440678 | D69: 2.410901468 | E69: n.d. | F69: n.d. | G69: n.d. | H69: -0.2036659878 | I69: n.d. | J69: n.d. | K69: n.d. | L69: n.d. | M69: n.d. | N69: 34.15202689 | O69: n.d. | P69: n.d | Q69: n.d | R69: n.d | S69: n.d | T69: n.d | U69: n.d | V69: n.d | W69: n.d | X69: n.d | Y69: n.d | Z69: n.d | AA69: n.d | AB69: n.d | AE69: 19.74 | AF69: n.d. | AH69: n.d. | AI69: n.d. | AJ69: n.d. | AK69: n.d. | AL69: n.d. | AM69: 491.14 | AN69: n.d. | AO69: n.d. | AP69: n.d. | AQ69: n.d. | AR69: n.d. | AS69: n.d. | AT69: n.d. | AU69: n.d. | AV69: n.d. | AW69: n.d. | AX69: n.d. | AY69: n.d. | AZ69: n.d. | BA69: n.d. | BB69: 1.321642999 | BC69: n.d. | BD69: 85 | BE69: 1.36 | BF69: n.d. | BG69: n.d. | BH69: n.d. | BI69: n.d. | BJ69: n.d. | BK69: 5.9627 | BL69: n.d. | BM69: =IF('Tipos de Cambio'!$M$9="EuroZona",LOOKUP(1,$BB$2:$BL$2,BB69:BL69),IF('Tipos de Cambio'!$M$9="Reino Unido",LOOKUP(2,$BB$2:$BL$2,BB69:BL69),IF('Tipos de Cambio'!$M$9="Japón",LOOKUP(3,$BB$2:$BL$2,BB69:BL69),IF('Tipos de Cambio'!$M$9="Canadá",LOOKUP(4,$BB$2:$BL$2,BB69:BL69),IF('Tipos de Cambio'!$M$9="Rusia",LOOKUP(5,$BB$2:$BL$2,BB69:BL69),IF('Tipos de Cambio'!$M$9="Brasil",LOOKUP(6,$BB$2:$BL$2,BB69:BL69),IF('Tipos de Cambio'!$M$9="China",LOOKUP(7,$BB$2:$BL$2,BB69:BL69),IF('Tipos de Cambio'!$M$9="India",LOOKUP(8,$BB$2:$BL$2,BB69:BL69),IF('Tipos de Cambio'!$M$9="Sudáfrica",LOOKUP(9,$BB$2:$BL$2,BB69:BL69),IF('Tipos de Cambio'!$M$9="México",LOOKUP(10,$BB$2:$BL$2,BB69:BL69),IF('Tipos de Cambio'!$M$9="Colombia",LOOKUP(11,$BB$2:$BL$2,BB69:BL69)))))))))))) -> n.d. | BN69: 6.17541 | BO69: n.d. | BP69: n.d. | BQ69: n.d. | BR69: n.d. | BS69: n.d. | BT69: n.d. | BU69: n.d. | BV69: n.d. | BW69: n.d. | BX69: n.d. | BY69: n.d. | BZ69: n.d. | CA69: n.d. | CB69: n.d. | CC69: n.d. | CD69: n.d. | CE69: n.d. | CF69: n.d. | CG69: n.d. | CH69: n.d. | CI69: n.d. | CJ69: n.d. | CK69: n.d. | CL69: n.d. | CM69: n.d. | CN69: n.d. | CO69: n.d. | CP69: n.d. | CQ69: n.d. | CR69: n.d. | CS69: n.d. | CT69: n.d. | CU69: n.d. | CV69: n.d. | CW69: 100 | CX69: n.d. | CY69: n.d. | CZ69: n.d. | DA69: n.d. | DB69: n.d. | DC69: n.d. | DD69: n.d. | DE69: n.d. | DF69: n.d. | DG69: n.d. | DH69: n.d. | DI69: 4465.14 | DJ69: 864.58 | DK69: 533.4 | DL69: n.d. | DM69: n.d. | DN69: n.d. | DO69: n.d. | DP69: n.d. | DQ69: n.d. | DR69: n.d. | DS69: n.d. | DT69: n.d. | DU69: n.d. | DV69: n.d. | DW69: n.d. | DX69: n.d. | DY69: n.d. | DZ69: n.d. | EA69: n.d. | EB69: n.d. | EC69: n.d.
B70: junio | C70: 3.040540541 | D70: 2.617801047 | E70: n.d. | F70: n.d. | G70: n.d. | H70: 0.1022494888 | I70: n.d. | J70: n.d. | K70: n.d. | L70: n.d. | M70: n.d. | N70: 37.72054442 | O70: n.d. | P70: n.d | Q70: n.d | R70: n.d | S70: n.d | T70: n.d | U70: n.d | V70: n.d | W70: n.d | X70: n.d | Y70: n.d | Z70: n.d | AA70: n.d | AB70: n.d | AE70: 18.45 | AF70: n.d. | AG70: =IF(OR(AE70="",AF70="n.d."),"",AF70-AE70) ->  | AH70: n.d. | AI70: n.d. | AJ70: n.d. | AK70: n.d. | AL70: n.d. | AM70: 521.99 | AN70: n.d. | AO70: n.d. | AP70: n.d. | AQ70: n.d. | AR70: n.d. | AS70: n.d. | AT70: n.d. | AU70: n.d. | AV70: n.d. | AW70: n.d. | AX70: n.d. | AY70: n.d. | AZ70: n.d. | BA70: n.d. | BB70: 1.331441001 | BC70: n.d. | BD70: 84.53 | BE70: 1.38 | BF70: n.d. | BG70: n.d. | BH70: n.d. | BI70: n.d. | BJ70: n.d. | BK70: 6.2232 | BL70: n.d. | BM70: =IF('Tipos de Cambio'!$M$9="EuroZona",LOOKUP(1,$BB$2:$BL$2,BB70:BL70),IF('Tipos de Cambio'!$M$9="Reino Unido",LOOKUP(2,$BB$2:$BL$2,BB70:BL70),IF('Tipos de Cambio'!$M$9="Japón",LOOKUP(3,$BB$2:$BL$2,BB70:BL70),IF('Tipos de Cambio'!$M$9="Canadá",LOOKUP(4,$BB$2:$BL$2,BB70:BL70),IF('Tipos de Cambio'!$M$9="Rusia",LOOKUP(5,$BB$2:$BL$2,BB70:BL70),IF('Tipos de Cambio'!$M$9="Brasil",LOOKUP(6,$BB$2:$BL$2,BB70:BL70),IF('Tipos de Cambio'!$M$9="China",LOOKUP(7,$BB$2:$BL$2,BB70:BL70),IF('Tipos de Cambio'!$M$9="India",LOOKUP(8,$BB$2:$BL$2,BB70:BL70),IF('Tipos de Cambio'!$M$9="Sudáfrica",LOOKUP(9,$BB$2:$BL$2,BB70:BL70),IF('Tipos de Cambio'!$M$9="México",LOOKUP(10,$BB$2:$BL$2,BB70:BL70),IF('Tipos de Cambio'!$M$9="Colombia",LOOKUP(11,$BB$2:$BL$2,BB70:BL70)))))))))))) -> n.d. | BN70: 5.90234 | BO70: n.d. | BP70: n.d. | BQ70: n.d. | BR70: n.d. | BS70: n.d. | BT70: n.d. | BU70: n.d. | BV70: n.d. | BW70: n.d. | BX70: n.d. | BY70: n.d. | BZ70: n.d. | CA70: n.d. | CB70: n.d. | CC70: n.d. | CD70: n.d. | CE70: n.d. | CF70: n.d. | CG70: n.d. | CH70: n.d. | CI70: n.d. | CJ70: n.d. | CK70: n.d. | CL70: n.d. | CM70: n.d. | CN70: n.d. | CO70: n.d. | CP70: n.d. | CQ70: n.d. | CR70: n.d. | CS70: n.d. | CT70: n.d. | CU70: n.d. | CV70: n.d. | CW70: 100 | CX70: n.d. | CY70: n.d. | CZ70: n.d. | DA70: n.d. | DB70: n.d. | DC70: n.d. | DD70: n.d. | DE70: n.d. | DF70: n.d. | DG70: n.d. | DH70: n.d. | DI70: 4556.09 | DJ70: 933.45 | DK70: 544.75 | DL70: n.d. | DM70: n.d. | DN70: n.d. | DO70: n.d. | DP70: n.d. | DQ70: n.d. | DR70: n.d. | DS70: n.d. | DT70: n.d. | DU70: n.d. | DV70: n.d. | DW70: n.d. | DX70: n.d. | DY70: n.d. | DZ70: n.d. | EA70: n.d. | EB70: =IFERROR(DU70-DU69, "n.d.") -> n.d. | EC70: =IFERROR(DS70-DS69, "n.d.") -> n.d.
B71: julio | C71: 2.762803235 | D71: 2.403343783 | E71: n.d. | F71: n.d. | G71: n.d. | H71: -0.1027749229 | I71: n.d. | J71: n.d. | K71: n.d. | L71: n.d. | M71: n.d. | N71: 39.90763733 | O71: n.d. | P71: n.d | Q71: n.d | R71: n.d | S71: n.d | T71: n.d | U71: n.d | V71: n.d | W71: n.d | X71: n.d | Y71: n.d | Z71: n.d | AA71: n.d | AB71: n.d | AE71: 17.33 | AF71: n.d. | AH71: n.d. | AI71: n.d. | AJ71: n.d. | AK71: n.d. | AL71: n.d. | AM71: 563.41 | AN71: n.d. | AO71: n.d. | AP71: n.d. | AQ71: n.d. | AR71: n.d. | AS71: n.d. | AT71: n.d. | AU71: n.d. | AV71: n.d. | AW71: n.d. | AX71: n.d. | AY71: n.d. | AZ71: n.d. | BA71: n.d. | BB71: 1.344815 | BC71: n.d. | BD71: 87.22 | BE71: 1.36 | BF71: n.d. | BG71: n.d. | BH71: n.d. | BI71: n.d. | BJ71: n.d. | BK71: 6.1394 | BL71: n.d. | BM71: =IF('Tipos de Cambio'!$M$9="EuroZona",LOOKUP(1,$BB$2:$BL$2,BB71:BL71),IF('Tipos de Cambio'!$M$9="Reino Unido",LOOKUP(2,$BB$2:$BL$2,BB71:BL71),IF('Tipos de Cambio'!$M$9="Japón",LOOKUP(3,$BB$2:$BL$2,BB71:BL71),IF('Tipos de Cambio'!$M$9="Canadá",LOOKUP(4,$BB$2:$BL$2,BB71:BL71),IF('Tipos de Cambio'!$M$9="Rusia",LOOKUP(5,$BB$2:$BL$2,BB71:BL71),IF('Tipos de Cambio'!$M$9="Brasil",LOOKUP(6,$BB$2:$BL$2,BB71:BL71),IF('Tipos de Cambio'!$M$9="China",LOOKUP(7,$BB$2:$BL$2,BB71:BL71),IF('Tipos de Cambio'!$M$9="India",LOOKUP(8,$BB$2:$BL$2,BB71:BL71),IF('Tipos de Cambio'!$M$9="Sudáfrica",LOOKUP(9,$BB$2:$BL$2,BB71:BL71),IF('Tipos de Cambio'!$M$9="México",LOOKUP(10,$BB$2:$BL$2,BB71:BL71),IF('Tipos de Cambio'!$M$9="Colombia",LOOKUP(11,$BB$2:$BL$2,BB71:BL71)))))))))))) -> n.d. | BN71: 5.85733 | BO71: n.d. | BP71: n.d. | BQ71: n.d. | BR71: n.d. | BS71: n.d. | BT71: n.d. | BU71: n.d. | BV71: n.d. | BW71: n.d. | BX71: n.d. | BY71: n.d. | BZ71: n.d. | CA71: n.d. | CB71: n.d. | CC71: n.d. | CD71: n.d. | CE71: n.d. | CF71: n.d. | CG71: n.d. | CH71: n.d. | CI71: n.d. | CJ71: n.d. | CK71: n.d. | CL71: n.d. | CM71: n.d. | CN71: n.d. | CO71: n.d. | CP71: n.d. | CQ71: n.d. | CR71: n.d. | CS71: n.d. | CT71: n.d. | CU71: n.d. | CV71: n.d. | CW71: 100 | CX71: n.d. | CY71: n.d. | CZ71: n.d. | DA71: n.d. | DB71: n.d. | DC71: n.d. | DD71: n.d. | DE71: n.d. | DF71: n.d. | DG71: n.d. | DH71: n.d. | DI71: 4708.47 | DJ71: 1001.21 | DK71: 562.06 | DL71: n.d. | DM71: n.d. | DN71: n.d. | DO71: n.d. | DP71: n.d. | DQ71: n.d. | DR71: n.d. | DS71: n.d. | DT71: n.d. | DU71: n.d. | DV71: n.d. | DW71: n.d. | DX71: n.d. | DY71: n.d. | DZ71: n.d. | EA71: n.d. | EB71: n.d. | EC71: n.d.
B72: agosto | C72: 2.617449664 | D72: 2.294056309 | E72: n.d. | F72: n.d. | G72: n.d. | H72: -0.5112474438 | I72: n.d. | J72: n.d. | K72: n.d. | L72: n.d. | M72: n.d. | N72: 41.56845747 | O72: n.d. | P72: n.d | Q72: n.d | R72: n.d | S72: n.d | T72: n.d | U72: n.d | V72: n.d | W72: n.d | X72: n.d | Y72: n.d | Z72: n.d | AA72: n.d | AB72: n.d | AE72: 18.02 | AF72: n.d. | AH72: n.d. | AI72: n.d. | AJ72: n.d. | AK72: n.d. | AL72: n.d. | AM72: 540.41 | AN72: n.d. | AO72: n.d. | AP72: n.d. | AQ72: n.d. | AR72: n.d. | AS72: n.d. | AT72: n.d. | AU72: n.d. | AV72: n.d. | AW72: n.d. | AX72: n.d. | AY72: n.d. | AZ72: n.d. | BA72: n.d. | BB72: 1.304411 | BC72: n.d. | BD72: 94.55 | BE72: 1.35 | BF72: n.d. | BG72: n.d. | BH72: n.d. | BI72: n.d. | BJ72: n.d. | BK72: 6.1909 | BL72: n.d. | BM72: =IF('Tipos de Cambio'!$M$9="EuroZona",LOOKUP(1,$BB$2:$BL$2,BB72:BL72),IF('Tipos de Cambio'!$M$9="Reino Unido",LOOKUP(2,$BB$2:$BL$2,BB72:BL72),IF('Tipos de Cambio'!$M$9="Japón",LOOKUP(3,$BB$2:$BL$2,BB72:BL72),IF('Tipos de Cambio'!$M$9="Canadá",LOOKUP(4,$BB$2:$BL$2,BB72:BL72),IF('Tipos de Cambio'!$M$9="Rusia",LOOKUP(5,$BB$2:$BL$2,BB72:BL72),IF('Tipos de Cambio'!$M$9="Brasil",LOOKUP(6,$BB$2:$BL$2,BB72:BL72),IF('Tipos de Cambio'!$M$9="China",LOOKUP(7,$BB$2:$BL$2,BB72:BL72),IF('Tipos de Cambio'!$M$9="India",LOOKUP(8,$BB$2:$BL$2,BB72:BL72),IF('Tipos de Cambio'!$M$9="Sudáfrica",LOOKUP(9,$BB$2:$BL$2,BB72:BL72),IF('Tipos de Cambio'!$M$9="México",LOOKUP(10,$BB$2:$BL$2,BB72:BL72),IF('Tipos de Cambio'!$M$9="Colombia",LOOKUP(11,$BB$2:$BL$2,BB72:BL72)))))))))))) -> n.d. | BN72: 5.93217 | BO72: n.d. | BP72: n.d. | BQ72: n.d. | BR72: n.d. | BS72: n.d. | BT72: n.d. | BU72: n.d. | BV72: n.d. | BW72: n.d. | BX72: n.d. | BY72: n.d. | BZ72: n.d. | CA72: n.d. | CB72: n.d. | CC72: n.d. | CD72: n.d. | CE72: n.d. | CF72: n.d. | CG72: n.d. | CH72: n.d. | CI72: n.d. | CJ72: n.d. | CK72: n.d. | CL72: n.d. | CM72: n.d. | CN72: n.d. | CO72: n.d. | CP72: n.d. | CQ72: n.d. | CR72: n.d. | CS72: n.d. | CT72: n.d. | CU72: n.d. | CV72: n.d. | CW72: 100 | CX72: n.d. | CY72: n.d. | CZ72: n.d. | DA72: n.d. | DB72: n.d. | DC72: n.d. | DD72: n.d. | DE72: n.d. | DF72: n.d. | DG72: n.d. | DH72: n.d. | DI72: 4610.56 | DJ72: 1020.11 | DK72: 561.88 | DL72: n.d. | DM72: n.d. | DN72: n.d. | DO72: n.d. | DP72: n.d. | DQ72: n.d. | DR72: n.d. | DS72: n.d. | DT72: n.d. | DU72: n.d. | DV72: n.d. | DW72: n.d. | DX72: n.d. | DY72: n.d. | DZ72: n.d. | EA72: n.d. | EB72: n.d. | EC72: n.d.
B73: septiembre | C73: 2.543507363 | D73: 2.395833333 | E73: n.d. | F73: n.d. | G73: n.d. | H73: -0.1019367992 | I73: n.d. | J73: n.d. | K73: n.d. | L73: n.d. | M73: n.d. | N73: 43.47642701 | O73: n.d. | P73: n.d | Q73: n.d | R73: n.d | S73: n.d | T73: n.d | U73: n.d | V73: n.d | W73: n.d | X73: n.d | Y73: n.d | Z73: n.d | AA73: n.d | AB73: n.d | AE73: 18.23 | AF73: n.d. | AH73: n.d. | AI73: n.d. | AJ73: n.d. | AK73: n.d. | AL73: n.d. | AM73: 524.82 | AN73: n.d. | AO73: n.d. | AP73: n.d. | AQ73: n.d. | AR73: n.d. | AS73: n.d. | AT73: n.d. | AU73: n.d. | AV73: n.d. | AW73: n.d. | AX73: n.d. | AY73: n.d. | AZ73: n.d. | BA73: n.d. | BB73: 1.288802 | BC73: n.d. | BD73: 100.49 | BE73: 1.35 | BF73: n.d. | BG73: n.d. | BH73: n.d. | BI73: n.d. | BJ73: n.d. | BK73: 6.3025 | BL73: n.d. | BM73: =IF('Tipos de Cambio'!$M$9="EuroZona",LOOKUP(1,$BB$2:$BL$2,BB73:BL73),IF('Tipos de Cambio'!$M$9="Reino Unido",LOOKUP(2,$BB$2:$BL$2,BB73:BL73),IF('Tipos de Cambio'!$M$9="Japón",LOOKUP(3,$BB$2:$BL$2,BB73:BL73),IF('Tipos de Cambio'!$M$9="Canadá",LOOKUP(4,$BB$2:$BL$2,BB73:BL73),IF('Tipos de Cambio'!$M$9="Rusia",LOOKUP(5,$BB$2:$BL$2,BB73:BL73),IF('Tipos de Cambio'!$M$9="Brasil",LOOKUP(6,$BB$2:$BL$2,BB73:BL73),IF('Tipos de Cambio'!$M$9="China",LOOKUP(7,$BB$2:$BL$2,BB73:BL73),IF('Tipos de Cambio'!$M$9="India",LOOKUP(8,$BB$2:$BL$2,BB73:BL73),IF('Tipos de Cambio'!$M$9="Sudáfrica",LOOKUP(9,$BB$2:$BL$2,BB73:BL73),IF('Tipos de Cambio'!$M$9="México",LOOKUP(10,$BB$2:$BL$2,BB73:BL73),IF('Tipos de Cambio'!$M$9="Colombia",LOOKUP(11,$BB$2:$BL$2,BB73:BL73)))))))))))) -> n.d. | BN73: 5.86793 | BO73: n.d. | BP73: n.d. | BQ73: n.d. | BR73: n.d. | BS73: n.d. | BT73: n.d. | BU73: n.d. | BV73: n.d. | BW73: n.d. | BX73: n.d. | BY73: n.d. | BZ73: n.d. | CA73: n.d. | CB73: n.d. | CC73: n.d. | CD73: n.d. | CE73: n.d. | CF73: n.d. | CG73: n.d. | CH73: n.d. | CI73: n.d. | CJ73: n.d. | CK73: n.d. | CL73: n.d. | CM73: n.d. | CN73: n.d. | CO73: n.d. | CP73: n.d. | CQ73: n.d. | CR73: n.d. | CS73: n.d. | CT73: n.d. | CU73: n.d. | CV73: n.d. | CW73: 100 | CX73: n.d. | CY73: n.d. | CZ73: n.d. | DA73: n.d. | DB73: n.d. | DC73: n.d. | DD73: n.d. | DE73: n.d. | DF73: n.d. | DG73: n.d. | DH73: n.d. | DI73: 4789.08 | DJ73: 1043.54 | DK73: 584.41 | DL73: n.d. | DM73: n.d. | DN73: n.d. | DO73: n.d. | DP73: n.d. | DQ73: n.d. | DR73: n.d. | DS73: n.d. | DT73: n.d. | DU73: n.d. | DV73: n.d. | DW73: n.d. | DX73: n.d. | DY73: n.d. | DZ73: n.d. | EA73: n.d. | EB73: n.d. | EC73: n.d.
B74: octubre | C74: 2.809364548 | D74: 2.393340271 | E74: n.d. | F74: n.d. | G74: n.d. | H74: -0.8121827411 | I74: n.d. | J74: n.d. | K74: n.d. | L74: n.d. | M74: n.d. | N74: 45.66387077 | O74: n.d. | P74: n.d | Q74: n.d | R74: n.d | S74: n.d | T74: n.d | U74: n.d | V74: n.d | W74: n.d | X74: n.d | Y74: n.d | Z74: n.d | AA74: n.d | AB74: n.d | AE74: 17.43 | AF74: n.d. | AH74: n.d. | AI74: n.d. | AJ74: n.d. | AK74: n.d. | AL74: n.d. | AM74: 553.62 | AN74: n.d. | AO74: n.d. | AP74: n.d. | AQ74: n.d. | AR74: n.d. | AS74: n.d. | AT74: n.d. | AU74: n.d. | AV74: n.d. | AW74: n.d. | AX74: n.d. | AY74: n.d. | AZ74: n.d. | BA74: n.d. | BB74: 1.322172 | BC74: n.d. | BD74: 100.65 | BE74: 1.35 | BF74: n.d. | BG74: n.d. | BH74: n.d. | BI74: n.d. | BJ74: n.d. | BK74: 6.6911 | BL74: n.d. | BM74: =IF('Tipos de Cambio'!$M$9="EuroZona",LOOKUP(1,$BB$2:$BL$2,BB74:BL74),IF('Tipos de Cambio'!$M$9="Reino Unido",LOOKUP(2,$BB$2:$BL$2,BB74:BL74),IF('Tipos de Cambio'!$M$9="Japón",LOOKUP(3,$BB$2:$BL$2,BB74:BL74),IF('Tipos de Cambio'!$M$9="Canadá",LOOKUP(4,$BB$2:$BL$2,BB74:BL74),IF('Tipos de Cambio'!$M$9="Rusia",LOOKUP(5,$BB$2:$BL$2,BB74:BL74),IF('Tipos de Cambio'!$M$9="Brasil",LOOKUP(6,$BB$2:$BL$2,BB74:BL74),IF('Tipos de Cambio'!$M$9="China",LOOKUP(7,$BB$2:$BL$2,BB74:BL74),IF('Tipos de Cambio'!$M$9="India",LOOKUP(8,$BB$2:$BL$2,BB74:BL74),IF('Tipos de Cambio'!$M$9="Sudáfrica",LOOKUP(9,$BB$2:$BL$2,BB74:BL74),IF('Tipos de Cambio'!$M$9="México",LOOKUP(10,$BB$2:$BL$2,BB74:BL74),IF('Tipos de Cambio'!$M$9="Colombia",LOOKUP(11,$BB$2:$BL$2,BB74:BL74)))))))))))) -> n.d. | BN74: 5.89631 | BO74: n.d. | BP74: n.d. | BQ74: n.d. | BR74: n.d. | BS74: n.d. | BT74: n.d. | BU74: n.d. | BV74: n.d. | BW74: n.d. | BX74: n.d. | BY74: n.d. | BZ74: n.d. | CA74: n.d. | CB74: n.d. | CC74: n.d. | CD74: n.d. | CE74: n.d. | CF74: n.d. | CG74: n.d. | CH74: n.d. | CI74: n.d. | CJ74: n.d. | CK74: n.d. | CL74: n.d. | CM74: n.d. | CN74: n.d. | CO74: n.d. | CP74: n.d. | CQ74: n.d. | CR74: n.d. | CS74: n.d. | CT74: n.d. | CU74: n.d. | CV74: n.d. | CW74: 100 | CX74: n.d. | CY74: n.d. | CZ74: n.d. | DA74: n.d. | DB74: n.d. | DC74: n.d. | DD74: n.d. | DE74: n.d. | DF74: n.d. | DG74: n.d. | DH74: n.d. | DI74: 4755.48 | DJ74: 1036.06 | DK74: 581.5 | DL74: n.d. | DM74: n.d. | DN74: n.d. | DO74: n.d. | DP74: n.d. | DQ74: n.d. | DR74: n.d. | DS74: n.d. | DT74: n.d. | DU74: n.d. | DV74: n.d. | DW74: n.d. | DX74: n.d. | DY74: n.d. | DZ74: n.d. | EA74: n.d. | EB74: n.d. | EC74: n.d.
B75: noviembre | C75: 2.605210421 | D75: 2.390852391 | E75: n.d. | F75: n.d. | G75: n.d. | H75: -0.916496945 | I75: n.d. | J75: n.d. | K75: n.d. | L75: n.d. | M75: n.d. | N75: 48.46203301 | O75: n.d. | P75: n.d | Q75: n.d | R75: n.d | S75: n.d | T75: n.d | U75: n.d | V75: n.d | W75: n.d | X75: n.d | Y75: n.d | Z75: n.d | AA75: n.d | AB75: n.d | AE75: 17.99 | AF75: n.d. | AH75: n.d. | AI75: n.d. | AJ75: n.d. | AK75: n.d. | AL75: n.d. | AM75: 549.55 | AN75: n.d. | AO75: n.d. | AP75: n.d. | AQ75: n.d. | AR75: n.d. | AS75: n.d. | AT75: n.d. | AU75: n.d. | AV75: n.d. | AW75: n.d. | AX75: n.d. | AY75: n.d. | AZ75: n.d. | BA75: n.d. | BB75: 1.323805 | BC75: n.d. | BD75: 101.92 | BE75: 1.35 | BF75: n.d. | BG75: n.d. | BH75: n.d. | BI75: n.d. | BJ75: n.d. | BK75: 7.6584 | BL75: n.d. | BM75: =IF('Tipos de Cambio'!$M$9="EuroZona",LOOKUP(1,$BB$2:$BL$2,BB75:BL75),IF('Tipos de Cambio'!$M$9="Reino Unido",LOOKUP(2,$BB$2:$BL$2,BB75:BL75),IF('Tipos de Cambio'!$M$9="Japón",LOOKUP(3,$BB$2:$BL$2,BB75:BL75),IF('Tipos de Cambio'!$M$9="Canadá",LOOKUP(4,$BB$2:$BL$2,BB75:BL75),IF('Tipos de Cambio'!$M$9="Rusia",LOOKUP(5,$BB$2:$BL$2,BB75:BL75),IF('Tipos de Cambio'!$M$9="Brasil",LOOKUP(6,$BB$2:$BL$2,BB75:BL75),IF('Tipos de Cambio'!$M$9="China",LOOKUP(7,$BB$2:$BL$2,BB75:BL75),IF('Tipos de Cambio'!$M$9="India",LOOKUP(8,$BB$2:$BL$2,BB75:BL75),IF('Tipos de Cambio'!$M$9="Sudáfrica",LOOKUP(9,$BB$2:$BL$2,BB75:BL75),IF('Tipos de Cambio'!$M$9="México",LOOKUP(10,$BB$2:$BL$2,BB75:BL75),IF('Tipos de Cambio'!$M$9="Colombia",LOOKUP(11,$BB$2:$BL$2,BB75:BL75)))))))))))) -> n.d. | BN75: 5.7342 | BO75: n.d. | BP75: n.d. | BQ75: n.d. | BR75: n.d. | BS75: n.d. | BT75: n.d. | BU75: n.d. | BV75: n.d. | BW75: n.d. | BX75: n.d. | BY75: n.d. | BZ75: n.d. | CA75: n.d. | CB75: n.d. | CC75: n.d. | CD75: n.d. | CE75: n.d. | CF75: n.d. | CG75: n.d. | CH75: n.d. | CI75: n.d. | CJ75: n.d. | CK75: n.d. | CL75: n.d. | CM75: n.d. | CN75: n.d. | CO75: n.d. | CP75: n.d. | CQ75: n.d. | CR75: n.d. | CS75: n.d. | CT75: n.d. | CU75: n.d. | CV75: n.d. | CW75: 100 | CX75: n.d. | CY75: n.d. | CZ75: n.d. | DA75: n.d. | DB75: n.d. | DC75: n.d. | DD75: n.d. | DE75: n.d. | DF75: n.d. | DG75: n.d. | DH75: n.d. | DI75: 5074.49 | DJ75: 1059.22 | DK75: 605.37 | DL75: n.d. | DM75: n.d. | DN75: n.d. | DO75: n.d. | DP75: n.d. | DQ75: n.d. | DR75: n.d. | DS75: n.d. | DT75: n.d. | DU75: n.d. | DV75: n.d. | DW75: n.d. | DX75: n.d. | DY75: n.d. | DZ75: n.d. | EA75: n.d. | EB75: n.d. | EC75: n.d.
B76: diciembre | C76: 2.538410154 | D76: 2.385892116 | E76: n.d. | F76: n.d. | G76: n.d. | H76: -0.5112474438 | I76: n.d. | J76: n.d. | K76: n.d. | L76: n.d. | M76: n.d. | N76: 51.96610231 | O76: n.d. | P76: n.d | Q76: n.d | R76: n.d | S76: n.d | T76: n.d | U76: n.d | V76: n.d | W76: n.d | X76: n.d | Y76: n.d | Z76: n.d | AA76: n.d | AB76: n.d | AE76: 19.03 | AF76: n.d. | AH76: n.d. | AI76: n.d. | AJ76: n.d. | AK76: n.d. | AL76: n.d. | AM76: 539.94 | AN76: n.d. | AO76: n.d. | AP76: n.d. | AQ76: n.d. | AR76: n.d. | AS76: n.d. | AT76: n.d. | AU76: n.d. | AV76: n.d. | AW76: n.d. | AX76: n.d. | AY76: n.d. | AZ76: n.d. | BA76: n.d. | BB76: 1.304303999 | BC76: n.d. | BD76: 101.81 | BE76: 1.37 | BF76: n.d. | BG76: n.d. | BH76: n.d. | BI76: n.d. | BJ76: n.d. | BK76: 7.6647 | BL76: n.d. | BM76: =IF('Tipos de Cambio'!$M$9="EuroZona",LOOKUP(1,$BB$2:$BL$2,BB76:BL76),IF('Tipos de Cambio'!$M$9="Reino Unido",LOOKUP(2,$BB$2:$BL$2,BB76:BL76),IF('Tipos de Cambio'!$M$9="Japón",LOOKUP(3,$BB$2:$BL$2,BB76:BL76),IF('Tipos de Cambio'!$M$9="Canadá",LOOKUP(4,$BB$2:$BL$2,BB76:BL76),IF('Tipos de Cambio'!$M$9="Rusia",LOOKUP(5,$BB$2:$BL$2,BB76:BL76),IF('Tipos de Cambio'!$M$9="Brasil",LOOKUP(6,$BB$2:$BL$2,BB76:BL76),IF('Tipos de Cambio'!$M$9="China",LOOKUP(7,$BB$2:$BL$2,BB76:BL76),IF('Tipos de Cambio'!$M$9="India",LOOKUP(8,$BB$2:$BL$2,BB76:BL76),IF('Tipos de Cambio'!$M$9="Sudáfrica",LOOKUP(9,$BB$2:$BL$2,BB76:BL76),IF('Tipos de Cambio'!$M$9="México",LOOKUP(10,$BB$2:$BL$2,BB76:BL76),IF('Tipos de Cambio'!$M$9="Colombia",LOOKUP(11,$BB$2:$BL$2,BB76:BL76)))))))))))) -> n.d. | BN76: 5.6141 | BO76: n.d. | BP76: n.d. | BQ76: n.d. | BR76: n.d. | BS76: n.d. | BT76: n.d. | BU76: n.d. | BV76: n.d. | BW76: n.d. | BX76: n.d. | BY76: n.d. | BZ76: n.d. | CA76: n.d. | CB76: n.d. | CC76: n.d. | CD76: n.d. | CE76: n.d. | CF76: n.d. | CG76: n.d. | CH76: n.d. | CI76: n.d. | CJ76: n.d. | CK76: n.d. | CL76: n.d. | CM76: n.d. | CN76: n.d. | CO76: n.d. | CP76: n.d. | CQ76: n.d. | CR76: n.d. | CS76: n.d. | CT76: n.d. | CU76: n.d. | CV76: n.d. | CW76: 100 | CX76: n.d. | CY76: n.d. | CZ76: n.d. | DA76: n.d. | DB76: n.d. | DC76: n.d. | DD76: n.d. | DE76: n.d. | DF76: n.d. | DG76: n.d. | DH76: n.d. | DI76: 5117.12 | DJ76: 1052.14 | DK76: 615.93 | DL76: n.d. | DM76: n.d. | DN76: n.d. | DO76: n.d. | DP76: n.d. | DQ76: n.d. | DR76: n.d. | DS76: n.d. | DT76: n.d. | DU76: n.d. | DV76: n.d. | DW76: n.d. | DX76: n.d. | DY76: n.d. | DZ76: n.d. | EA76: n.d. | EB76: n.d. | EC76: n.d.
A77: 1996 | B77: enero | C77: 2.727877578 | D77: 2.380952381 | E77: n.d. | F77: n.d. | G77: n.d. | H77: -0.8171603677 | I77: n.d. | J77: n.d. | K77: 6.508281079 | L77: n.d. | M77: n.d. | N77: 51.71858945 | O77: n.d. | P77: n.d | Q77: n.d | R77: n.d | S77: n.d | T77: n.d | U77: n.d | V77: n.d | W77: n.d | X77: n.d | Y77: n.d | Z77: n.d | AA77: n.d | AB77: n.d | AE77: 18.86 | AF77: n.d. | AH77: n.d. | AI77: n.d. | AJ77: n.d. | AK77: n.d. | AL77: n.d. | AM77: 482.3 | AN77: n.d. | AO77: n.d. | AP77: n.d. | AQ77: n.d. | AR77: n.d. | AS77: n.d. | AT77: n.d. | AU77: n.d. | AV77: n.d. | AW77: n.d. | AX77: n.d. | AY77: n.d. | AZ77: n.d. | BA77: n.d. | BB77: 1.291838 | BC77: n.d. | BD77: 105.84 | BE77: 1.37 | BF77: n.d. | BG77: n.d. | BH77: n.d. | BI77: n.d. | BJ77: n.d. | BK77: 7.5048 | BL77: n.d. | BM77: =IF('Tipos de Cambio'!$M$9="EuroZona",LOOKUP(1,$BB$2:$BL$2,BB77:BL77),IF('Tipos de Cambio'!$M$9="Reino Unido",LOOKUP(2,$BB$2:$BL$2,BB77:BL77),IF('Tipos de Cambio'!$M$9="Japón",LOOKUP(3,$BB$2:$BL$2,BB77:BL77),IF('Tipos de Cambio'!$M$9="Canadá",LOOKUP(4,$BB$2:$BL$2,BB77:BL77),IF('Tipos de Cambio'!$M$9="Rusia",LOOKUP(5,$BB$2:$BL$2,BB77:BL77),IF('Tipos de Cambio'!$M$9="Brasil",LOOKUP(6,$BB$2:$BL$2,BB77:BL77),IF('Tipos de Cambio'!$M$9="China",LOOKUP(7,$BB$2:$BL$2,BB77:BL77),IF('Tipos de Cambio'!$M$9="India",LOOKUP(8,$BB$2:$BL$2,BB77:BL77),IF('Tipos de Cambio'!$M$9="Sudáfrica",LOOKUP(9,$BB$2:$BL$2,BB77:BL77),IF('Tipos de Cambio'!$M$9="México",LOOKUP(10,$BB$2:$BL$2,BB77:BL77),IF('Tipos de Cambio'!$M$9="Colombia",LOOKUP(11,$BB$2:$BL$2,BB77:BL77)))))))))))) -> n.d. | BN77: 5.42472 | BO77: n.d. | BP77: n.d. | BQ77: n.d. | BR77: n.d. | BS77: n.d. | BT77: n.d. | BU77: n.d. | BV77: n.d. | BW77: n.d. | BX77: n.d. | BY77: n.d. | BZ77: n.d. | CA77: n.d. | CB77: n.d. | CC77: n.d. | CD77: n.d. | CE77: n.d. | CF77: n.d. | CG77: n.d. | CH77: n.d. | CI77: n.d. | CJ77: n.d. | CK77: n.d. | CL77: n.d. | CM77: n.d. | CN77: n.d. | CO77: n.d. | CP77: n.d. | CQ77: n.d. | CR77: n.d. | CS77: n.d. | CT77: n.d. | CU77: n.d. | CV77: n.d. | CW77: 100 | CX77: n.d. | CY77: n.d. | CZ77: n.d. | DA77: n.d. | DB77: n.d. | DC77: n.d. | DD77: n.d. | DE77: n.d. | DF77: n.d. | DG77: n.d. | DH77: n.d. | DI77: 5395.3 | DJ77: 1059.79 | DK77: 636.02 | DL77: n.d. | DM77: n.d. | DN77: n.d. | DO77: n.d. | DP77: n.d. | DQ77: n.d. | DR77: n.d. | DS77: n.d. | DT77: n.d. | DU77: n.d. | DV77: n.d. | DW77: n.d. | DX77: n.d. | DY77: n.d. | DZ77: n.d. | EA77: n.d. | EB77: n.d. | EC77: n.d.
B78: febrero | C78: 2.650762094 | D78: 2.36869207 | E78: n.d. | F78: n.d. | G78: n.d. | H78: -0.5128205128 | I78: n.d. | J78: n.d. | K78: 6.981581985 | L78: n.d. | M78: n.d. | N78: 48.94689578 | O78: n.d. | P78: n.d | Q78: n.d | R78: n.d | S78: n.d | T78: n.d | U78: n.d | V78: n.d | W78: n.d | X78: n.d | Y78: n.d | Z78: n.d | AA78: n.d | AB78: n.d | AE78: 19.09 | AF78: n.d. | AH78: n.d. | AI78: n.d. | AJ78: n.d. | AK78: n.d. | AL78: n.d. | AM78: 483.42 | AN78: n.d. | AO78: n.d. | AP78: n.d. | AQ78: n.d. | AR78: n.d. | AS78: n.d. | AT78: n.d. | AU78: n.d. | AV78: n.d. | AW78: n.d. | AX78: n.d. | AY78: n.d. | AZ78: n.d. | BA78: n.d. | BB78: 1.288603001 | BC78: n.d. | BD78: 105.73 | BE78: 1.38 | BF78: n.d. | BG78: n.d. | BH78: n.d. | BI78: n.d. | BJ78: n.d. | BK78: 7.5042 | BL78: n.d. | BM78: =IF('Tipos de Cambio'!$M$9="EuroZona",LOOKUP(1,$BB$2:$BL$2,BB78:BL78),IF('Tipos de Cambio'!$M$9="Reino Unido",LOOKUP(2,$BB$2:$BL$2,BB78:BL78),IF('Tipos de Cambio'!$M$9="Japón",LOOKUP(3,$BB$2:$BL$2,BB78:BL78),IF('Tipos de Cambio'!$M$9="Canadá",LOOKUP(4,$BB$2:$BL$2,BB78:BL78),IF('Tipos de Cambio'!$M$9="Rusia",LOOKUP(5,$BB$2:$BL$2,BB78:BL78),IF('Tipos de Cambio'!$M$9="Brasil",LOOKUP(6,$BB$2:$BL$2,BB78:BL78),IF('Tipos de Cambio'!$M$9="China",LOOKUP(7,$BB$2:$BL$2,BB78:BL78),IF('Tipos de Cambio'!$M$9="India",LOOKUP(8,$BB$2:$BL$2,BB78:BL78),IF('Tipos de Cambio'!$M$9="Sudáfrica",LOOKUP(9,$BB$2:$BL$2,BB78:BL78),IF('Tipos de Cambio'!$M$9="México",LOOKUP(10,$BB$2:$BL$2,BB78:BL78),IF('Tipos de Cambio'!$M$9="Colombia",LOOKUP(11,$BB$2:$BL$2,BB78:BL78)))))))))))) -> n.d. | BN78: 5.18043 | BO78: n.d. | BP78: n.d. | BQ78: n.d. | BR78: n.d. | BS78: n.d. | BT78: n.d. | BU78: n.d. | BV78: n.d. | BW78: n.d. | BX78: n.d. | BY78: n.d. | BZ78: n.d. | CA78: n.d. | CB78: n.d. | CC78: n.d. | CD78: n.d. | CE78: n.d. | CF78: n.d. | CG78: n.d. | CH78: n.d. | CI78: n.d. | CJ78: n.d. | CK78: n.d. | CL78: n.d. | CM78: n.d. | CN78: n.d. | CO78: n.d. | CP78: n.d. | CQ78: n.d. | CR78: n.d. | CS78: n.d. | CT78: n.d. | CU78: n.d. | CV78: n.d. | CW78: 100 | CX78: n.d. | CY78: n.d. | CZ78: n.d. | DA78: n.d. | DB78: n.d. | DC78: n.d. | DD78: n.d. | DE78: n.d. | DF78: n.d. | DG78: n.d. | DH78: n.d. | DI78: 5485.62 | DJ78: 1100.05 | DK78: 640.43 | DL78: n.d. | DM78: n.d. | DN78: n.d. | DO78: n.d. | DP78: n.d. | DQ78: n.d. | DR78: n.d. | DS78: n.d. | DT78: n.d. | DU78: n.d. | DV78: n.d. | DW78: n.d. | DX78: n.d. | DY78: n.d. | DZ78: n.d. | EA78: n.d. | EB78: n.d. | EC78: n.d.
B79: marzo | C79: 2.84015852 | D79: 2.361396304 | E79: n.d. | F79: n.d. | G79: n.d. | H79: -0.3076923077 | I79: n.d. | J79: n.d. | K79: 7.055126824 | L79: n.d. | M79: n.d. | N79: 43.75147966 | O79: n.d. | P79: n.d | Q79: n.d | R79: n.d | S79: n.d | T79: n.d | U79: n.d | V79: n.d | W79: n.d | X79: n.d | Y79: n.d | Z79: n.d | AA79: n.d | AB79: n.d | AE79: 21.33 | AF79: n.d. | AH79: n.d. | AI79: n.d. | AJ79: n.d. | AK79: n.d. | AL79: n.d. | AM79: 462.98 | AN79: n.d. | AO79: n.d. | AP79: n.d. | AQ79: n.d. | AR79: n.d. | AS79: n.d. | AT79: n.d. | AU79: n.d. | AV79: n.d. | AW79: n.d. | AX79: n.d. | AY79: n.d. | AZ79: n.d. | BA79: n.d. | BB79: 1.281337001 | BC79: n.d. | BD79: 105.82 | BE79: 1.37 | BF79: n.d. | BG79: n.d. | BH79: n.d. | BI79: n.d. | BJ79: n.d. | BK79: 7.5736 | BL79: n.d. | BM79: =IF('Tipos de Cambio'!$M$9="EuroZona",LOOKUP(1,$BB$2:$BL$2,BB79:BL79),IF('Tipos de Cambio'!$M$9="Reino Unido",LOOKUP(2,$BB$2:$BL$2,BB79:BL79),IF('Tipos de Cambio'!$M$9="Japón",LOOKUP(3,$BB$2:$BL$2,BB79:BL79),IF('Tipos de Cambio'!$M$9="Canadá",LOOKUP(4,$BB$2:$BL$2,BB79:BL79),IF('Tipos de Cambio'!$M$9="Rusia",LOOKUP(5,$BB$2:$BL$2,BB79:BL79),IF('Tipos de Cambio'!$M$9="Brasil",LOOKUP(6,$BB$2:$BL$2,BB79:BL79),IF('Tipos de Cambio'!$M$9="China",LOOKUP(7,$BB$2:$BL$2,BB79:BL79),IF('Tipos de Cambio'!$M$9="India",LOOKUP(8,$BB$2:$BL$2,BB79:BL79),IF('Tipos de Cambio'!$M$9="Sudáfrica",LOOKUP(9,$BB$2:$BL$2,BB79:BL79),IF('Tipos de Cambio'!$M$9="México",LOOKUP(10,$BB$2:$BL$2,BB79:BL79),IF('Tipos de Cambio'!$M$9="Colombia",LOOKUP(11,$BB$2:$BL$2,BB79:BL79)))))))))))) -> n.d. | BN79: 5.40848 | BO79: n.d. | BP79: n.d. | BQ79: n.d. | BR79: n.d. | BS79: n.d. | BT79: n.d. | BU79: n.d. | BV79: n.d. | BW79: n.d. | BX79: n.d. | BY79: n.d. | BZ79: n.d. | CA79: n.d. | CB79: n.d. | CC79: n.d. | CD79: n.d. | CE79: n.d. | CF79: n.d. | CG79: n.d. | CH79: n.d. | CI79: n.d. | CJ79: n.d. | CK79: n.d. | CL79: n.d. | CM79: n.d. | CN79: n.d. | CO79: n.d. | CP79: n.d. | CQ79: n.d. | CR79: n.d. | CS79: n.d. | CT79: n.d. | CU79: n.d. | CV79: n.d. | CW79: 100 | CX79: n.d. | CY79: n.d. | CZ79: n.d. | DA79: n.d. | DB79: n.d. | DC79: n.d. | DD79: n.d. | DE79: n.d. | DF79: n.d. | DG79: n.d. | DH79: n.d. | DI79: 5587.14 | DJ79: 1101.38 | DK79: 645.5 | DL79: n.d. | DM79: n.d. | DN79: n.d. | DO79: n.d. | DP79: n.d. | DQ79: n.d. | DR79: n.d. | DS79: n.d. | DT79: n.d. | DU79: n.d. | DV79: n.d. | DW79: n.d. | DX79: n.d. | DY79: n.d. | DZ79: n.d. | EA79: n.d. | EB79: n.d. | EC79: n.d.
B80: abril | C80: 2.896642528 | D80: 2.356557377 | E80: n.d. | F80: n.d. | G80: n.d. | H80: 0 | I80: n.d. | J80: n.d. | K80: 7.070700497 | L80: n.d. | M80: n.d. | N80: 36.92713715 | O80: n.d. | P80: n.d | Q80: n.d | R80: n.d | S80: n.d | T80: n.d | U80: n.d | V80: n.d | W80: n.d | X80: n.d | Y80: n.d | Z80: n.d | AA80: n.d | AB80: n.d | AE80: 23.5 | AF80: n.d. | AH80: n.d. | AI80: n.d. | AJ80: n.d. | AK80: n.d. | AL80: n.d. | AM80: 494.92 | AN80: n.d. | AO80: n.d. | AP80: n.d. | AQ80: n.d. | AR80: n.d. | AS80: n.d. | AT80: n.d. | AU80: n.d. | AV80: n.d. | AW80: n.d. | AX80: n.d. | AY80: n.d. | AZ80: n.d. | BA80: n.d. | BB80: 1.263904999 | BC80: n.d. | BD80: 107.46 | BE80: 1.36 | BF80: n.d. | BG80: n.d. | BH80: n.d. | BI80: n.d. | BJ80: n.d. | BK80: 7.4713 | BL80: n.d. | BM80: =IF('Tipos de Cambio'!$M$9="EuroZona",LOOKUP(1,$BB$2:$BL$2,BB80:BL80),IF('Tipos de Cambio'!$M$9="Reino Unido",LOOKUP(2,$BB$2:$BL$2,BB80:BL80),IF('Tipos de Cambio'!$M$9="Japón",LOOKUP(3,$BB$2:$BL$2,BB80:BL80),IF('Tipos de Cambio'!$M$9="Canadá",LOOKUP(4,$BB$2:$BL$2,BB80:BL80),IF('Tipos de Cambio'!$M$9="Rusia",LOOKUP(5,$BB$2:$BL$2,BB80:BL80),IF('Tipos de Cambio'!$M$9="Brasil",LOOKUP(6,$BB$2:$BL$2,BB80:BL80),IF('Tipos de Cambio'!$M$9="China",LOOKUP(7,$BB$2:$BL$2,BB80:BL80),IF('Tipos de Cambio'!$M$9="India",LOOKUP(8,$BB$2:$BL$2,BB80:BL80),IF('Tipos de Cambio'!$M$9="Sudáfrica",LOOKUP(9,$BB$2:$BL$2,BB80:BL80),IF('Tipos de Cambio'!$M$9="México",LOOKUP(10,$BB$2:$BL$2,BB80:BL80),IF('Tipos de Cambio'!$M$9="Colombia",LOOKUP(11,$BB$2:$BL$2,BB80:BL80)))))))))))) -> n.d. | BN80: 5.55983 | BO80: n.d. | BP80: n.d. | BQ80: n.d. | BR80: n.d. | BS80: n.d. | BT80: n.d. | BU80: n.d. | BV80: n.d. | BW80: n.d. | BX80: n.d. | BY80: n.d. | BZ80: n.d. | CA80: n.d. | CB80: n.d. | CC80: n.d. | CD80: n.d. | CE80: n.d. | CF80: n.d. | CG80: n.d. | CH80: n.d. | CI80: n.d. | CJ80: n.d. | CK80: n.d. | CL80: n.d. | CM80: n.d. | CN80: n.d. | CO80: n.d. | CP80: n.d. | CQ80: n.d. | CR80: n.d. | CS80: n.d. | CT80: n.d. | CU80: n.d. | CV80: n.d. | CW80: 100 | CX80: n.d. | CY80: n.d. | CZ80: n.d. | DA80: n.d. | DB80: n.d. | DC80: n.d. | DD80: n.d. | DE80: n.d. | DF80: n.d. | DG80: n.d. | DH80: n.d. | DI80: 5569.07 | DJ80: 1190.58 | DK80: 654.17 | DL80: n.d. | DM80: n.d. | DN80: n.d. | DO80: n.d. | DP80: n.d. | DQ80: n.d. | DR80: n.d. | DS80: n.d. | DT80: n.d. | DU80: n.d. | DV80: n.d. | DW80: n.d. | DX80: n.d. | DY80: n.d. | DZ80: n.d. | EA80: n.d. | EB80: n.d. | EC80: n.d.
B81: mayo | C81: 2.890932983 | D81: 2.456499488 | E81: n.d. | F81: n.d. | G81: n.d. | H81: 0 | I81: n.d. | J81: n.d. | K81: 6.519500884 | L81: n.d. | M81: n.d. | N81: 33.82946575 | O81: n.d. | P81: n.d | Q81: n.d | R81: n.d | S81: n.d | T81: n.d | U81: n.d | V81: n.d | W81: n.d | X81: n.d | Y81: n.d | Z81: n.d | AA81: n.d | AB81: n.d | AE81: 21.17 | AF81: n.d. | AH81: n.d. | AI81: n.d. | AJ81: n.d. | AK81: n.d. | AL81: n.d. | AM81: 503.07 | AN81: n.d. | AO81: n.d. | AP81: n.d. | AQ81: n.d. | AR81: n.d. | AS81: n.d. | AT81: n.d. | AU81: n.d. | AV81: n.d. | AW81: n.d. | AX81: n.d. | AY81: n.d. | AZ81: n.d. | BA81: n.d. | BB81: 1.246680001 | BC81: n.d. | BD81: 106.45 | BE81: 1.37 | BF81: n.d. | BG81: n.d. | BH81: n.d. | BI81: n.d. | BJ81: n.d. | BK81: 7.4345 | BL81: n.d. | BM81: =IF('Tipos de Cambio'!$M$9="EuroZona",LOOKUP(1,$BB$2:$BL$2,BB81:BL81),IF('Tipos de Cambio'!$M$9="Reino Unido",LOOKUP(2,$BB$2:$BL$2,BB81:BL81),IF('Tipos de Cambio'!$M$9="Japón",LOOKUP(3,$BB$2:$BL$2,BB81:BL81),IF('Tipos de Cambio'!$M$9="Canadá",LOOKUP(4,$BB$2:$BL$2,BB81:BL81),IF('Tipos de Cambio'!$M$9="Rusia",LOOKUP(5,$BB$2:$BL$2,BB81:BL81),IF('Tipos de Cambio'!$M$9="Brasil",LOOKUP(6,$BB$2:$BL$2,BB81:BL81),IF('Tipos de Cambio'!$M$9="China",LOOKUP(7,$BB$2:$BL$2,BB81:BL81),IF('Tipos de Cambio'!$M$9="India",LOOKUP(8,$BB$2:$BL$2,BB81:BL81),IF('Tipos de Cambio'!$M$9="Sudáfrica",LOOKUP(9,$BB$2:$BL$2,BB81:BL81),IF('Tipos de Cambio'!$M$9="México",LOOKUP(10,$BB$2:$BL$2,BB81:BL81),IF('Tipos de Cambio'!$M$9="Colombia",LOOKUP(11,$BB$2:$BL$2,BB81:BL81)))))))))))) -> n.d. | BN81: 5.59989 | BO81: n.d. | BP81: n.d. | BQ81: n.d. | BR81: n.d. | BS81: n.d. | BT81: n.d. | BU81: n.d. | BV81: n.d. | BW81: n.d. | BX81: n.d. | BY81: n.d. | BZ81: n.d. | CA81: n.d. | CB81: n.d. | CC81: n.d. | CD81: n.d. | CE81: n.d. | CF81: n.d. | CG81: n.d. | CH81: n.d. | CI81: n.d. | CJ81: n.d. | CK81: n.d. | CL81: n.d. | CM81: n.d. | CN81: n.d. | CO81: n.d. | CP81: n.d. | CQ81: n.d. | CR81: n.d. | CS81: n.d. | CT81: n.d. | CU81: n.d. | CV81: n.d. | CW81: 100 | CX81: n.d. | CY81: n.d. | CZ81: n.d. | DA81: n.d. | DB81: n.d. | DC81: n.d. | DD81: n.d. | DE81: n.d. | DF81: n.d. | DG81: n.d. | DH81: n.d. | DI81: 5643.17 | DJ81: 1243.44 | DK81: 669.12 | DL81: n.d. | DM81: n.d. | DN81: n.d. | DO81: n.d. | DP81: n.d. | DQ81: n.d. | DR81: n.d. | DS81: n.d. | DT81: n.d. | DU81: n.d. | DV81: n.d. | DW81: n.d. | DX81: n.d. | DY81: n.d. | DZ81: n.d. | EA81: n.d. | EB81: n.d. | EC81: n.d.
B82: junio | C82: 2.754098361 | D82: 2.142857143 | E82: n.d. | F82: n.d. | G82: n.d. | H82: -0.3064351379 | I82: n.d. | J82: n.d. | K82: 6.374479836 | L82: n.d. | M82: n.d. | N82: 31.82490474 | O82: n.d. | P82: n.d | Q82: n.d | R82: n.d | S82: n.d | T82: n.d | U82: n.d | V82: n.d | W82: n.d | X82: n.d | Y82: n.d | Z82: n.d | AA82: n.d | AB82: n.d | AE82: 20.42 | AF82: n.d. | AH82: n.d. | AI82: n.d. | AJ82: n.d. | AK82: n.d. | AL82: n.d. | AM82: 446.58 | AN82: n.d. | AO82: n.d. | AP82: n.d. | AQ82: n.d. | AR82: n.d. | AS82: n.d. | AT82: n.d. | AU82: n.d. | AV82: n.d. | AW82: n.d. | AX82: n.d. | AY82: n.d. | AZ82: n.d. | BA82: n.d. | BB82: 1.252922 | BC82: n.d. | BD82: 108.86 | BE82: 1.37 | BF82: n.d. | BG82: n.d. | BH82: n.d. | BI82: n.d. | BJ82: n.d. | BK82: 7.5426 | BL82: n.d. | BM82: =IF('Tipos de Cambio'!$M$9="EuroZona",LOOKUP(1,$BB$2:$BL$2,BB82:BL82),IF('Tipos de Cambio'!$M$9="Reino Unido",LOOKUP(2,$BB$2:$BL$2,BB82:BL82),IF('Tipos de Cambio'!$M$9="Japón",LOOKUP(3,$BB$2:$BL$2,BB82:BL82),IF('Tipos de Cambio'!$M$9="Canadá",LOOKUP(4,$BB$2:$BL$2,BB82:BL82),IF('Tipos de Cambio'!$M$9="Rusia",LOOKUP(5,$BB$2:$BL$2,BB82:BL82),IF('Tipos de Cambio'!$M$9="Brasil",LOOKUP(6,$BB$2:$BL$2,BB82:BL82),IF('Tipos de Cambio'!$M$9="China",LOOKUP(7,$BB$2:$BL$2,BB82:BL82),IF('Tipos de Cambio'!$M$9="India",LOOKUP(8,$BB$2:$BL$2,BB82:BL82),IF('Tipos de Cambio'!$M$9="Sudáfrica",LOOKUP(9,$BB$2:$BL$2,BB82:BL82),IF('Tipos de Cambio'!$M$9="México",LOOKUP(10,$BB$2:$BL$2,BB82:BL82),IF('Tipos de Cambio'!$M$9="Colombia",LOOKUP(11,$BB$2:$BL$2,BB82:BL82)))))))))))) -> n.d. | BN82: 5.75625 | BO82: n.d. | BP82: n.d. | BQ82: n.d. | BR82: n.d. | BS82: n.d. | BT82: n.d. | BU82: n.d. | BV82: n.d. | BW82: n.d. | BX82: n.d. | BY82: n.d. | BZ82: n.d. | CA82: n.d. | CB82: n.d. | CC82: n.d. | CD82: n.d. | CE82: n.d. | CF82: n.d. | CG82: n.d. | CH82: n.d. | CI82: n.d. | CJ82: n.d. | CK82: n.d. | CL82: n.d. | CM82: n.d. | CN82: n.d. | CO82: n.d. | CP82: n.d. | CQ82: n.d. | CR82: n.d. | CS82: n.d. | CT82: n.d. | CU82: n.d. | CV82: n.d. | CW82: 100 | CX82: n.d. | CY82: n.d. | CZ82: n.d. | DA82: n.d. | DB82: n.d. | DC82: n.d. | DD82: n.d. | DE82: n.d. | DF82: n.d. | DG82: n.d. | DH82: n.d. | DI82: 5654.62 | DJ82: 1185.02 | DK82: 670.63 | DL82: n.d. | DM82: n.d. | DN82: n.d. | DO82: n.d. | DP82: n.d. | DQ82: n.d. | DR82: n.d. | DS82: n.d. | DT82: n.d. | DU82: n.d. | DV82: n.d. | DW82: n.d. | DX82: n.d. | DY82: n.d. | DZ82: n.d. | EA82: n.d. | EB82: n.d. | EC82: n.d.
B83: julio | C83: 2.950819672 | D83: 2.142857143 | E83: n.d. | F83: n.d. | G83: n.d. | H83: 0.3086419753 | I83: n.d. | J83: n.d. | K83: 6.26867043 | L83: n.d. | M83: n.d. | N83: 31.02771172 | O83: n.d. | P83: n.d | Q83: n.d | R83: n.d | S83: n.d | T83: n.d | U83: n.d | V83: n.d | W83: n.d | X83: n.d | Y83: n.d | Z83: n.d | AA83: n.d | AB83: n.d | AE83: 21.3 | AF83: n.d. | AH83: n.d. | AI83: n.d. | AJ83: n.d. | AK83: n.d. | AL83: n.d. | AM83: 418.14 | AN83: n.d. | AO83: n.d. | AP83: n.d. | AQ83: n.d. | AR83: n.d. | AS83: n.d. | AT83: n.d. | AU83: n.d. | AV83: n.d. | AW83: n.d. | AX83: n.d. | AY83: n.d. | AZ83: n.d. | BA83: n.d. | BB83: 1.270637999 | BC83: n.d. | BD83: 109.32 | BE83: 1.37 | BF83: n.d. | BG83: n.d. | BH83: n.d. | BI83: n.d. | BJ83: n.d. | BK83: 7.6194 | BL83: n.d. | BM83: =IF('Tipos de Cambio'!$M$9="EuroZona",LOOKUP(1,$BB$2:$BL$2,BB83:BL83),IF('Tipos de Cambio'!$M$9="Reino Unido",LOOKUP(2,$BB$2:$BL$2,BB83:BL83),IF('Tipos de Cambio'!$M$9="Japón",LOOKUP(3,$BB$2:$BL$2,BB83:BL83),IF('Tipos de Cambio'!$M$9="Canadá",LOOKUP(4,$BB$2:$BL$2,BB83:BL83),IF('Tipos de Cambio'!$M$9="Rusia",LOOKUP(5,$BB$2:$BL$2,BB83:BL83),IF('Tipos de Cambio'!$M$9="Brasil",LOOKUP(6,$BB$2:$BL$2,BB83:BL83),IF('Tipos de Cambio'!$M$9="China",LOOKUP(7,$BB$2:$BL$2,BB83:BL83),IF('Tipos de Cambio'!$M$9="India",LOOKUP(8,$BB$2:$BL$2,BB83:BL83),IF('Tipos de Cambio'!$M$9="Sudáfrica",LOOKUP(9,$BB$2:$BL$2,BB83:BL83),IF('Tipos de Cambio'!$M$9="México",LOOKUP(10,$BB$2:$BL$2,BB83:BL83),IF('Tipos de Cambio'!$M$9="Colombia",LOOKUP(11,$BB$2:$BL$2,BB83:BL83)))))))))))) -> n.d. | BN83: 5.84902 | BO83: n.d. | BP83: n.d. | BQ83: n.d. | BR83: n.d. | BS83: n.d. | BT83: n.d. | BU83: n.d. | BV83: n.d. | BW83: n.d. | BX83: n.d. | BY83: n.d. | BZ83: n.d. | CA83: n.d. | CB83: n.d. | CC83: n.d. | CD83: n.d. | CE83: n.d. | CF83: n.d. | CG83: n.d. | CH83: n.d. | CI83: n.d. | CJ83: n.d. | CK83: n.d. | CL83: n.d. | CM83: n.d. | CN83: n.d. | CO83: n.d. | CP83: n.d. | CQ83: n.d. | CR83: n.d. | CS83: n.d. | CT83: n.d. | CU83: n.d. | CV83: n.d. | CW83: 100 | CX83: n.d. | CY83: n.d. | CZ83: n.d. | DA83: n.d. | DB83: n.d. | DC83: n.d. | DD83: n.d. | DE83: n.d. | DF83: n.d. | DG83: n.d. | DH83: n.d. | DI83: 5528.91 | DJ83: 1080.6 | DK83: 639.95 | DL83: n.d. | DM83: n.d. | DN83: n.d. | DO83: n.d. | DP83: n.d. | DQ83: n.d. | DR83: n.d. | DS83: n.d. | DT83: n.d. | DU83: n.d. | DV83: n.d. | DW83: n.d. | DX83: n.d. | DY83: n.d. | DZ83: n.d. | EA83: n.d. | EB83: n.d. | EC83: n.d.
B84: agosto | C84: 2.877697842 | D84: 2.038735984 | E84: n.d. | F84: n.d. | G84: n.d. | H84: 0.1027749229 | I84: n.d. | J84: n.d. | K84: 5.418789042 | L84: n.d. | M84: n.d. | N84: 30.60292753 | O84: n.d. | P84: n.d | Q84: n.d | R84: n.d | S84: n.d | T84: n.d | U84: n.d | V84: n.d | W84: n.d | X84: n.d | Y84: n.d | Z84: n.d | AA84: n.d | AB84: n.d | AE84: 21.9 | AF84: n.d. | AH84: n.d. | AI84: n.d. | AJ84: n.d. | AK84: n.d. | AL84: n.d. | AM84: 449.59 | AN84: n.d. | AO84: n.d. | AP84: n.d. | AQ84: n.d. | AR84: n.d. | AS84: n.d. | AT84: n.d. | AU84: n.d. | AV84: n.d. | AW84: n.d. | AX84: n.d. | AY84: n.d. | AZ84: n.d. | BA84: n.d. | BB84: 1.283248999 | BC84: n.d. | BD84: 107.75 | BE84: 1.37 | BF84: n.d. | BG84: n.d. | BH84: n.d. | BI84: n.d. | BJ84: n.d. | BK84: 7.5115 | BL84: n.d. | BM84: =IF('Tipos de Cambio'!$M$9="EuroZona",LOOKUP(1,$BB$2:$BL$2,BB84:BL84),IF('Tipos de Cambio'!$M$9="Reino Unido",LOOKUP(2,$BB$2:$BL$2,BB84:BL84),IF('Tipos de Cambio'!$M$9="Japón",LOOKUP(3,$BB$2:$BL$2,BB84:BL84),IF('Tipos de Cambio'!$M$9="Canadá",LOOKUP(4,$BB$2:$BL$2,BB84:BL84),IF('Tipos de Cambio'!$M$9="Rusia",LOOKUP(5,$BB$2:$BL$2,BB84:BL84),IF('Tipos de Cambio'!$M$9="Brasil",LOOKUP(6,$BB$2:$BL$2,BB84:BL84),IF('Tipos de Cambio'!$M$9="China",LOOKUP(7,$BB$2:$BL$2,BB84:BL84),IF('Tipos de Cambio'!$M$9="India",LOOKUP(8,$BB$2:$BL$2,BB84:BL84),IF('Tipos de Cambio'!$M$9="Sudáfrica",LOOKUP(9,$BB$2:$BL$2,BB84:BL84),IF('Tipos de Cambio'!$M$9="México",LOOKUP(10,$BB$2:$BL$2,BB84:BL84),IF('Tipos de Cambio'!$M$9="Colombia",LOOKUP(11,$BB$2:$BL$2,BB84:BL84)))))))))))) -> n.d. | BN84: 5.70499 | BO84: n.d. | BP84: n.d. | BQ84: n.d. | BR84: n.d. | BS84: n.d. | BT84: n.d. | BU84: n.d. | BV84: n.d. | BW84: n.d. | BX84: n.d. | BY84: n.d. | BZ84: n.d. | CA84: n.d. | CB84: n.d. | CC84: n.d. | CD84: n.d. | CE84: n.d. | CF84: n.d. | CG84: n.d. | CH84: n.d. | CI84: n.d. | CJ84: n.d. | CK84: n.d. | CL84: n.d. | CM84: n.d. | CN84: n.d. | CO84: n.d. | CP84: n.d. | CQ84: n.d. | CR84: n.d. | CS84: n.d. | CT84: n.d. | CU84: n.d. | CV84: n.d. | CW84: 100 | CX84: n.d. | CY84: n.d. | CZ84: n.d. | DA84: n.d. | DB84: n.d. | DC84: n.d. | DD84: n.d. | DE84: n.d. | DF84: n.d. | DG84: n.d. | DH84: n.d. | DI84: 5616.2 | DJ84: 1141.5 | DK84: 651.99 | DL84: n.d. | DM84: n.d. | DN84: n.d. | DO84: n.d. | DP84: n.d. | DQ84: n.d. | DR84: n.d. | DS84: n.d. | DT84: n.d. | DU84: n.d. | DV84: n.d. | DW84: n.d. | DX84: n.d. | DY84: n.d. | DZ84: n.d. | EA84: n.d. | EB84: n.d. | EC84: n.d.
B85: septiembre | C85: 3.002610966 | D85: 2.034587996 | E85: n.d. | F85: n.d. | G85: n.d. | H85: -0.2040816327 | I85: n.d. | J85: n.d. | K85: 5.566198684 | L85: n.d. | M85: n.d. | N85: 30.00199563 | O85: n.d. | P85: n.d | Q85: n.d | R85: n.d | S85: n.d | T85: n.d | U85: n.d | V85: n.d | W85: n.d | X85: n.d | Y85: n.d | Z85: n.d | AA85: n.d | AB85: n.d | AE85: 23.97 | AF85: n.d. | AH85: n.d. | AI85: n.d. | AJ85: n.d. | AK85: n.d. | AL85: n.d. | AM85: 468.69 | AN85: n.d. | AO85: n.d. | AP85: n.d. | AQ85: n.d. | AR85: n.d. | AS85: n.d. | AT85: n.d. | AU85: n.d. | AV85: n.d. | AW85: n.d. | AX85: n.d. | AY85: n.d. | AZ85: n.d. | BA85: n.d. | BB85: 1.269068001 | BC85: n.d. | BD85: 109.75 | BE85: 1.37 | BF85: n.d. | BG85: n.d. | BH85: n.d. | BI85: n.d. | BJ85: n.d. | BK85: 7.544 | BL85: n.d. | BM85: =IF('Tipos de Cambio'!$M$9="EuroZona",LOOKUP(1,$BB$2:$BL$2,BB85:BL85),IF('Tipos de Cambio'!$M$9="Reino Unido",LOOKUP(2,$BB$2:$BL$2,BB85:BL85),IF('Tipos de Cambio'!$M$9="Japón",LOOKUP(3,$BB$2:$BL$2,BB85:BL85),IF('Tipos de Cambio'!$M$9="Canadá",LOOKUP(4,$BB$2:$BL$2,BB85:BL85),IF('Tipos de Cambio'!$M$9="Rusia",LOOKUP(5,$BB$2:$BL$2,BB85:BL85),IF('Tipos de Cambio'!$M$9="Brasil",LOOKUP(6,$BB$2:$BL$2,BB85:BL85),IF('Tipos de Cambio'!$M$9="China",LOOKUP(7,$BB$2:$BL$2,BB85:BL85),IF('Tipos de Cambio'!$M$9="India",LOOKUP(8,$BB$2:$BL$2,BB85:BL85),IF('Tipos de Cambio'!$M$9="Sudáfrica",LOOKUP(9,$BB$2:$BL$2,BB85:BL85),IF('Tipos de Cambio'!$M$9="México",LOOKUP(10,$BB$2:$BL$2,BB85:BL85),IF('Tipos de Cambio'!$M$9="Colombia",LOOKUP(11,$BB$2:$BL$2,BB85:BL85)))))))))))) -> n.d. | BN85: 5.83203 | BO85: n.d. | BP85: n.d. | BQ85: n.d. | BR85: n.d. | BS85: n.d. | BT85: n.d. | BU85: n.d. | BV85: n.d. | BW85: n.d. | BX85: n.d. | BY85: n.d. | BZ85: n.d. | CA85: n.d. | CB85: n.d. | CC85: n.d. | CD85: n.d. | CE85: n.d. | CF85: n.d. | CG85: n.d. | CH85: n.d. | CI85: n.d. | CJ85: n.d. | CK85: n.d. | CL85: n.d. | CM85: n.d. | CN85: n.d. | CO85: n.d. | CP85: n.d. | CQ85: n.d. | CR85: n.d. | CS85: n.d. | CT85: n.d. | CU85: n.d. | CV85: n.d. | CW85: 100 | CX85: n.d. | CY85: n.d. | CZ85: n.d. | DA85: n.d. | DB85: n.d. | DC85: n.d. | DD85: n.d. | DE85: n.d. | DF85: n.d. | DG85: n.d. | DH85: n.d. | DI85: 5882.16 | DJ85: 1226.91 | DK85: 687.31 | DL85: n.d. | DM85: n.d. | DN85: n.d. | DO85: n.d. | DP85: n.d. | DQ85: n.d. | DR85: n.d. | DS85: n.d. | DT85: n.d. | DU85: n.d. | DV85: n.d. | DW85: n.d. | DX85: n.d. | DY85: n.d. | DZ85: n.d. | EA85: n.d. | EB85: n.d. | EC85: n.d.
B86: octubre | C86: 2.992843201 | D86: 2.032520325 | E86: n.d. | F86: n.d. | G86: n.d. | H86: 0.307062436 | I86: n.d. | J86: n.d. | K86: 5.727882576 | L86: n.d. | M86: n.d. | N86: 28.97098586 | O86: n.d. | P86: n.d | Q86: n.d | R86: n.d | S86: n.d | T86: n.d | U86: n.d | V86: n.d | W86: n.d | X86: n.d | Y86: n.d | Z86: n.d | AA86: n.d | AB86: n.d | AE86: 24.88 | AF86: n.d. | AH86: n.d. | AI86: n.d. | AJ86: n.d. | AK86: n.d. | AL86: n.d. | AM86: 448.41 | AN86: n.d. | AO86: n.d. | AP86: n.d. | AQ86: n.d. | AR86: n.d. | AS86: n.d. | AT86: n.d. | AU86: n.d. | AV86: n.d. | AW86: n.d. | AX86: n.d. | AY86: n.d. | AZ86: n.d. | BA86: n.d. | BB86: 1.258411 | BC86: n.d. | BD86: 112.36 | BE86: 1.35 | BF86: n.d. | BG86: n.d. | BH86: n.d. | BI86: n.d. | BJ86: n.d. | BK86: 7.7263 | BL86: n.d. | BM86: =IF('Tipos de Cambio'!$M$9="EuroZona",LOOKUP(1,$BB$2:$BL$2,BB86:BL86),IF('Tipos de Cambio'!$M$9="Reino Unido",LOOKUP(2,$BB$2:$BL$2,BB86:BL86),IF('Tipos de Cambio'!$M$9="Japón",LOOKUP(3,$BB$2:$BL$2,BB86:BL86),IF('Tipos de Cambio'!$M$9="Canadá",LOOKUP(4,$BB$2:$BL$2,BB86:BL86),IF('Tipos de Cambio'!$M$9="Rusia",LOOKUP(5,$BB$2:$BL$2,BB86:BL86),IF('Tipos de Cambio'!$M$9="Brasil",LOOKUP(6,$BB$2:$BL$2,BB86:BL86),IF('Tipos de Cambio'!$M$9="China",LOOKUP(7,$BB$2:$BL$2,BB86:BL86),IF('Tipos de Cambio'!$M$9="India",LOOKUP(8,$BB$2:$BL$2,BB86:BL86),IF('Tipos de Cambio'!$M$9="Sudáfrica",LOOKUP(9,$BB$2:$BL$2,BB86:BL86),IF('Tipos de Cambio'!$M$9="México",LOOKUP(10,$BB$2:$BL$2,BB86:BL86),IF('Tipos de Cambio'!$M$9="Colombia",LOOKUP(11,$BB$2:$BL$2,BB86:BL86)))))))))))) -> n.d. | BN86: 5.63706 | BO86: n.d. | BP86: n.d. | BQ86: n.d. | BR86: n.d. | BS86: n.d. | BT86: n.d. | BU86: n.d. | BV86: n.d. | BW86: n.d. | BX86: n.d. | BY86: n.d. | BZ86: n.d. | CA86: n.d. | CB86: n.d. | CC86: n.d. | CD86: n.d. | CE86: n.d. | CF86: n.d. | CG86: n.d. | CH86: n.d. | CI86: n.d. | CJ86: n.d. | CK86: n.d. | CL86: n.d. | CM86: n.d. | CN86: n.d. | CO86: n.d. | CP86: n.d. | CQ86: n.d. | CR86: n.d. | CS86: n.d. | CT86: n.d. | CU86: n.d. | CV86: n.d. | CW86: 100 | CX86: n.d. | CY86: n.d. | CZ86: n.d. | DA86: n.d. | DB86: n.d. | DC86: n.d. | DD86: n.d. | DE86: n.d. | DF86: n.d. | DG86: n.d. | DH86: n.d. | DI86: 6029.38 | DJ86: 1221.51 | DK86: 705.27 | DL86: n.d. | DM86: n.d. | DN86: n.d. | DO86: n.d. | DP86: n.d. | DQ86: n.d. | DR86: n.d. | DS86: n.d. | DT86: n.d. | DU86: n.d. | DV86: n.d. | DW86: n.d. | DX86: n.d. | DY86: n.d. | DZ86: n.d. | EA86: n.d. | EB86: n.d. | EC86: n.d.
B87: noviembre | C87: 3.255208333 | D87: 1.92893401 | E87: n.d. | F87: n.d. | G87: n.d. | H87: 0.3083247688 | I87: n.d. | J87: n.d. | K87: 5.911032776 | L87: n.d. | M87: n.d. | N87: 27.77434128 | O87: n.d. | P87: n.d | Q87: n.d | R87: n.d | S87: n.d | T87: n.d | U87: n.d | V87: n.d | W87: n.d | X87: n.d | Y87: n.d | Z87: n.d | AA87: n.d | AB87: n.d | AE87: 23.71 | AF87: n.d. | AH87: n.d. | AI87: n.d. | AJ87: n.d. | AK87: n.d. | AL87: n.d. | AM87: 466.77 | AN87: n.d. | AO87: n.d. | AP87: n.d. | AQ87: n.d. | AR87: n.d. | AS87: n.d. | AT87: n.d. | AU87: n.d. | AV87: n.d. | AW87: n.d. | AX87: n.d. | AY87: n.d. | AZ87: n.d. | BA87: n.d. | BB87: 1.276900001 | BC87: n.d. | BD87: 112.26 | BE87: 1.34 | BF87: n.d. | BG87: n.d. | BH87: n.d. | BI87: n.d. | BJ87: n.d. | BK87: 7.906 | BL87: n.d. | BM87: =IF('Tipos de Cambio'!$M$9="EuroZona",LOOKUP(1,$BB$2:$BL$2,BB87:BL87),IF('Tipos de Cambio'!$M$9="Reino Unido",LOOKUP(2,$BB$2:$BL$2,BB87:BL87),IF('Tipos de Cambio'!$M$9="Japón",LOOKUP(3,$BB$2:$BL$2,BB87:BL87),IF('Tipos de Cambio'!$M$9="Canadá",LOOKUP(4,$BB$2:$BL$2,BB87:BL87),IF('Tipos de Cambio'!$M$9="Rusia",LOOKUP(5,$BB$2:$BL$2,BB87:BL87),IF('Tipos de Cambio'!$M$9="Brasil",LOOKUP(6,$BB$2:$BL$2,BB87:BL87),IF('Tipos de Cambio'!$M$9="China",LOOKUP(7,$BB$2:$BL$2,BB87:BL87),IF('Tipos de Cambio'!$M$9="India",LOOKUP(8,$BB$2:$BL$2,BB87:BL87),IF('Tipos de Cambio'!$M$9="Sudáfrica",LOOKUP(9,$BB$2:$BL$2,BB87:BL87),IF('Tipos de Cambio'!$M$9="México",LOOKUP(10,$BB$2:$BL$2,BB87:BL87),IF('Tipos de Cambio'!$M$9="Colombia",LOOKUP(11,$BB$2:$BL$2,BB87:BL87)))))))))))) -> n.d. | BN87: 5.54874 | BO87: n.d. | BP87: n.d. | BQ87: n.d. | BR87: n.d. | BS87: n.d. | BT87: n.d. | BU87: n.d. | BV87: n.d. | BW87: n.d. | BX87: n.d. | BY87: n.d. | BZ87: n.d. | CA87: n.d. | CB87: n.d. | CC87: n.d. | CD87: n.d. | CE87: n.d. | CF87: n.d. | CG87: n.d. | CH87: n.d. | CI87: n.d. | CJ87: n.d. | CK87: n.d. | CL87: n.d. | CM87: n.d. | CN87: n.d. | CO87: n.d. | CP87: n.d. | CQ87: n.d. | CR87: n.d. | CS87: n.d. | CT87: n.d. | CU87: n.d. | CV87: n.d. | CW87: 100 | CX87: n.d. | CY87: n.d. | CZ87: n.d. | DA87: n.d. | DB87: n.d. | DC87: n.d. | DD87: n.d. | DE87: n.d. | DF87: n.d. | DG87: n.d. | DH87: n.d. | DI87: 6521.7 | DJ87: 1292.61 | DK87: 757.02 | DL87: n.d. | DM87: n.d. | DN87: n.d. | DO87: n.d. | DP87: n.d. | DQ87: n.d. | DR87: n.d. | DS87: n.d. | DT87: n.d. | DU87: n.d. | DV87: n.d. | DW87: n.d. | DX87: n.d. | DY87: n.d. | DZ87: n.d. | EA87: n.d. | EB87: n.d. | EC87: n.d.
B88: diciembre | C88: 3.32247557 | D88: 1.925025329 | E88: n.d. | F88: n.d. | G88: n.d. | H88: 0.5138746146 | I88: n.d. | J88: n.d. | K88: 6.705039214 | L88: n.d. | M88: n.d. | N88: 27.70480835 | O88: n.d. | P88: n.d | Q88: n.d | R88: n.d | S88: n.d | T88: n.d | U88: n.d | V88: n.d | W88: n.d | X88: n.d | Y88: n.d | Z88: n.d | AA88: n.d | AB88: n.d | AE88: 25.23 | AF88: n.d. | AH88: n.d. | AI88: n.d. | AJ88: n.d. | AK88: n.d. | AL88: n.d. | AM88: 480.96 | AN88: n.d. | AO88: n.d. | AP88: n.d. | AQ88: n.d. | AR88: n.d. | AS88: n.d. | AT88: n.d. | AU88: n.d. | AV88: n.d. | AW88: n.d. | AX88: n.d. | AY88: n.d. | AZ88: n.d. | BA88: n.d. | BB88: 1.250251999 | BC88: n.d. | BD88: 113.76 | BE88: 1.36 | BF88: n.d. | BG88: n.d. | BH88: n.d. | BI88: n.d. | BJ88: n.d. | BK88: 7.8727 | BL88: n.d. | BM88: =IF('Tipos de Cambio'!$M$9="EuroZona",LOOKUP(1,$BB$2:$BL$2,BB88:BL88),IF('Tipos de Cambio'!$M$9="Reino Unido",LOOKUP(2,$BB$2:$BL$2,BB88:BL88),IF('Tipos de Cambio'!$M$9="Japón",LOOKUP(3,$BB$2:$BL$2,BB88:BL88),IF('Tipos de Cambio'!$M$9="Canadá",LOOKUP(4,$BB$2:$BL$2,BB88:BL88),IF('Tipos de Cambio'!$M$9="Rusia",LOOKUP(5,$BB$2:$BL$2,BB88:BL88),IF('Tipos de Cambio'!$M$9="Brasil",LOOKUP(6,$BB$2:$BL$2,BB88:BL88),IF('Tipos de Cambio'!$M$9="China",LOOKUP(7,$BB$2:$BL$2,BB88:BL88),IF('Tipos de Cambio'!$M$9="India",LOOKUP(8,$BB$2:$BL$2,BB88:BL88),IF('Tipos de Cambio'!$M$9="Sudáfrica",LOOKUP(9,$BB$2:$BL$2,BB88:BL88),IF('Tipos de Cambio'!$M$9="México",LOOKUP(10,$BB$2:$BL$2,BB88:BL88),IF('Tipos de Cambio'!$M$9="Colombia",LOOKUP(11,$BB$2:$BL$2,BB88:BL88)))))))))))) -> n.d. | BN88: 5.59551 | BO88: n.d. | BP88: n.d. | BQ88: n.d. | BR88: n.d. | BS88: n.d. | BT88: n.d. | BU88: n.d. | BV88: n.d. | BW88: n.d. | BX88: n.d. | BY88: n.d. | BZ88: n.d. | CA88: n.d. | CB88: n.d. | CC88: n.d. | CD88: n.d. | CE88: n.d. | CF88: n.d. | CG88: n.d. | CH88: n.d. | CI88: n.d. | CJ88: n.d. | CK88: n.d. | CL88: n.d. | CM88: n.d. | CN88: n.d. | CO88: n.d. | CP88: n.d. | CQ88: n.d. | CR88: n.d. | CS88: n.d. | CT88: n.d. | CU88: n.d. | CV88: n.d. | CW88: 100 | CX88: n.d. | CY88: n.d. | CZ88: n.d. | DA88: n.d. | DB88: n.d. | DC88: n.d. | DD88: n.d. | DE88: n.d. | DF88: n.d. | DG88: n.d. | DH88: n.d. | DI88: 6448.26 | DJ88: 1291.03 | DK88: 740.74 | DL88: n.d. | DM88: n.d. | DN88: n.d. | DO88: n.d. | DP88: n.d. | DQ88: n.d. | DR88: n.d. | DS88: n.d. | DT88: n.d. | DU88: n.d. | DV88: n.d. | DW88: n.d. | DX88: n.d. | DY88: n.d. | DZ88: n.d. | EA88: n.d. | EB88: n.d. | EC88: n.d.
A89: 1997 | B89: enero | C89: 3.044041451 | D89: 2.054023635 | E89: n.d. | F89: n.d. | G89: n.d. | H89: 0.411946447 | I89: n.d. | J89: n.d. | K89: 6.304403522 | L89: n.d. | M89: n.d. | N89: 26.44319495 | O89: n.d. | P89: n.d | Q89: n.d | R89: n.d | S89: n.d | T89: n.d | U89: n.d | V89: n.d | W89: n.d | X89: n.d | Y89: n.d | Z89: n.d | AA89: n.d | AB89: n.d | AE89: 25.13 | AF89: n.d. | AH89: n.d. | AI89: n.d. | AJ89: n.d. | AK89: n.d. | AL89: n.d. | AM89: 522.67 | AN89: n.d. | AO89: n.d. | AP89: n.d. | AQ89: n.d. | AR89: n.d. | AS89: n.d. | AT89: n.d. | AU89: n.d. | AV89: n.d. | AW89: n.d. | AX89: n.d. | AY89: n.d. | AZ89: n.d. | BA89: n.d. | BB89: 1.216206 | BC89: n.d. | BD89: 118.02 | BE89: 1.35 | BF89: n.d. | BG89: n.d. | BH89: n.d. | BI89: n.d. | BJ89: n.d. | BK89: 7.827 | BL89: n.d. | BM89: =IF('Tipos de Cambio'!$M$9="EuroZona",LOOKUP(1,$BB$2:$BL$2,BB89:BL89),IF('Tipos de Cambio'!$M$9="Reino Unido",LOOKUP(2,$BB$2:$BL$2,BB89:BL89),IF('Tipos de Cambio'!$M$9="Japón",LOOKUP(3,$BB$2:$BL$2,BB89:BL89),IF('Tipos de Cambio'!$M$9="Canadá",LOOKUP(4,$BB$2:$BL$2,BB89:BL89),IF('Tipos de Cambio'!$M$9="Rusia",LOOKUP(5,$BB$2:$BL$2,BB89:BL89),IF('Tipos de Cambio'!$M$9="Brasil",LOOKUP(6,$BB$2:$BL$2,BB89:BL89),IF('Tipos de Cambio'!$M$9="China",LOOKUP(7,$BB$2:$BL$2,BB89:BL89),IF('Tipos de Cambio'!$M$9="India",LOOKUP(8,$BB$2:$BL$2,BB89:BL89),IF('Tipos de Cambio'!$M$9="Sudáfrica",LOOKUP(9,$BB$2:$BL$2,BB89:BL89),IF('Tipos de Cambio'!$M$9="México",LOOKUP(10,$BB$2:$BL$2,BB89:BL89),IF('Tipos de Cambio'!$M$9="Colombia",LOOKUP(11,$BB$2:$BL$2,BB89:BL89)))))))))))) -> n.d. | BN89: 5.67951 | BO89: n.d. | BP89: n.d. | BQ89: n.d. | BR89: n.d. | BS89: n.d. | BT89: n.d. | BU89: n.d. | BV89: n.d. | BW89: n.d. | BX89: n.d. | BY89: n.d. | BZ89: n.d. | CA89: n.d. | CB89: n.d. | CC89: n.d. | CD89: n.d. | CE89: n.d. | CF89: n.d. | CG89: n.d. | CH89: n.d. | CI89: n.d. | CJ89: n.d. | CK89: n.d. | CL89: n.d. | CM89: n.d. | CN89: n.d. | CO89: n.d. | CP89: n.d. | CQ89: n.d. | CR89: n.d. | CS89: n.d. | CT89: n.d. | CU89: n.d. | CV89: n.d. | CW89: 100 | CX89: n.d. | CY89: n.d. | CZ89: n.d. | DA89: n.d. | DB89: n.d. | DC89: n.d. | DD89: n.d. | DE89: n.d. | DF89: n.d. | DG89: n.d. | DH89: n.d. | DI89: 6813.08 | DJ89: 1379.85 | DK89: 786.16 | DL89: n.d. | DM89: n.d. | DN89: n.d. | DO89: n.d. | DP89: n.d. | DQ89: n.d. | DR89: n.d. | DS89: n.d. | DT89: n.d. | DU89: n.d. | DV89: n.d. | DW89: n.d. | DX89: n.d. | DY89: n.d. | DZ89: n.d. | EA89: n.d. | EB89: n.d. | EC89: n.d.
B90: febrero | C90: 3.034215623 | D90: 1.820728291 | E90: n.d. | F90: n.d. | G90: n.d. | H90: 0.3092783505 | I90: n.d. | J90: n.d. | K90: 6.23836213 | L90: n.d. | M90: n.d. | N90: 25.63570784 | O90: n.d. | P90: n.d | Q90: n.d | R90: n.d | S90: n.d | T90: n.d | U90: n.d | V90: n.d | W90: n.d | X90: n.d | Y90: n.d | Z90: n.d | AA90: n.d | AB90: n.d | AE90: 22.18 | AF90: n.d. | AH90: n.d. | AI90: n.d. | AJ90: n.d. | AK90: n.d. | AL90: n.d. | AM90: 532.26 | AN90: n.d. | AO90: n.d. | AP90: n.d. | AQ90: n.d. | AR90: n.d. | AS90: n.d. | AT90: n.d. | AU90: n.d. | AV90: n.d. | AW90: n.d. | AX90: n.d. | AY90: n.d. | AZ90: n.d. | BA90: n.d. | BB90: 1.165761 | BC90: n.d. | BD90: 123.01 | BE90: 1.36 | BF90: n.d. | BG90: n.d. | BH90: n.d. | BI90: n.d. | BJ90: n.d. | BK90: 7.8003 | BL90: n.d. | BM90: =IF('Tipos de Cambio'!$M$9="EuroZona",LOOKUP(1,$BB$2:$BL$2,BB90:BL90),IF('Tipos de Cambio'!$M$9="Reino Unido",LOOKUP(2,$BB$2:$BL$2,BB90:BL90),IF('Tipos de Cambio'!$M$9="Japón",LOOKUP(3,$BB$2:$BL$2,BB90:BL90),IF('Tipos de Cambio'!$M$9="Canadá",LOOKUP(4,$BB$2:$BL$2,BB90:BL90),IF('Tipos de Cambio'!$M$9="Rusia",LOOKUP(5,$BB$2:$BL$2,BB90:BL90),IF('Tipos de Cambio'!$M$9="Brasil",LOOKUP(6,$BB$2:$BL$2,BB90:BL90),IF('Tipos de Cambio'!$M$9="China",LOOKUP(7,$BB$2:$BL$2,BB90:BL90),IF('Tipos de Cambio'!$M$9="India",LOOKUP(8,$BB$2:$BL$2,BB90:BL90),IF('Tipos de Cambio'!$M$9="Sudáfrica",LOOKUP(9,$BB$2:$BL$2,BB90:BL90),IF('Tipos de Cambio'!$M$9="México",LOOKUP(10,$BB$2:$BL$2,BB90:BL90),IF('Tipos de Cambio'!$M$9="Colombia",LOOKUP(11,$BB$2:$BL$2,BB90:BL90)))))))))))) -> n.d. | BN90: 5.60117 | BO90: n.d. | BP90: n.d. | BQ90: n.d. | BR90: n.d. | BS90: n.d. | BT90: n.d. | BU90: n.d. | BV90: n.d. | BW90: n.d. | BX90: n.d. | BY90: n.d. | BZ90: n.d. | CA90: n.d. | CB90: n.d. | CC90: n.d. | CD90: n.d. | CE90: n.d. | CF90: n.d. | CG90: n.d. | CH90: n.d. | CI90: n.d. | CJ90: n.d. | CK90: n.d. | CL90: n.d. | CM90: n.d. | CN90: n.d. | CO90: n.d. | CP90: n.d. | CQ90: n.d. | CR90: n.d. | CS90: n.d. | CT90: n.d. | CU90: n.d. | CV90: n.d. | CW90: 100 | CX90: n.d. | CY90: n.d. | CZ90: n.d. | DA90: n.d. | DB90: n.d. | DC90: n.d. | DD90: n.d. | DE90: n.d. | DF90: n.d. | DG90: n.d. | DH90: n.d. | DI90: 6877.73 | DJ90: 1309 | DK90: 790.82 | DL90: n.d. | DM90: n.d. | DN90: n.d. | DO90: n.d. | DP90: n.d. | DQ90: n.d. | DR90: n.d. | DS90: n.d. | DT90: n.d. | DU90: n.d. | DV90: n.d. | DW90: n.d. | DX90: n.d. | DY90: n.d. | DZ90: n.d. | EA90: n.d. | EB90: n.d. | EC90: n.d.
B91: marzo | C91: 2.761721259 | D91: 1.535026514 | E91: n.d. | F91: n.d. | G91: n.d. | H91: 0.2057613169 | I91: n.d. | J91: n.d. | K91: 5.921830565 | L91: n.d. | M91: n.d. | N91: 24.45944993 | O91: n.d. | P91: n.d | Q91: n.d | R91: n.d | S91: n.d | T91: n.d | U91: n.d | V91: n.d | W91: n.d | X91: n.d | Y91: n.d | Z91: n.d | AA91: n.d | AB91: n.d | AE91: 20.97 | AF91: n.d. | AH91: n.d. | AI91: n.d. | AJ91: n.d. | AK91: n.d. | AL91: n.d. | AM91: 508.01 | AN91: n.d. | AO91: n.d. | AP91: n.d. | AQ91: n.d. | AR91: n.d. | AS91: n.d. | AT91: n.d. | AU91: n.d. | AV91: n.d. | AW91: n.d. | AX91: n.d. | AY91: n.d. | AZ91: n.d. | BA91: n.d. | BB91: 1.149755999 | BC91: n.d. | BD91: 122.64 | BE91: 1.37 | BF91: n.d. | BG91: n.d. | BH91: n.d. | BI91: n.d. | BJ91: n.d. | BK91: 7.9647 | BL91: n.d. | BM91: =IF('Tipos de Cambio'!$M$9="EuroZona",LOOKUP(1,$BB$2:$BL$2,BB91:BL91),IF('Tipos de Cambio'!$M$9="Reino Unido",LOOKUP(2,$BB$2:$BL$2,BB91:BL91),IF('Tipos de Cambio'!$M$9="Japón",LOOKUP(3,$BB$2:$BL$2,BB91:BL91),IF('Tipos de Cambio'!$M$9="Canadá",LOOKUP(4,$BB$2:$BL$2,BB91:BL91),IF('Tipos de Cambio'!$M$9="Rusia",LOOKUP(5,$BB$2:$BL$2,BB91:BL91),IF('Tipos de Cambio'!$M$9="Brasil",LOOKUP(6,$BB$2:$BL$2,BB91:BL91),IF('Tipos de Cambio'!$M$9="China",LOOKUP(7,$BB$2:$BL$2,BB91:BL91),IF('Tipos de Cambio'!$M$9="India",LOOKUP(8,$BB$2:$BL$2,BB91:BL91),IF('Tipos de Cambio'!$M$9="Sudáfrica",LOOKUP(9,$BB$2:$BL$2,BB91:BL91),IF('Tipos de Cambio'!$M$9="México",LOOKUP(10,$BB$2:$BL$2,BB91:BL91),IF('Tipos de Cambio'!$M$9="Colombia",LOOKUP(11,$BB$2:$BL$2,BB91:BL91)))))))))))) -> n.d. | BN91: 5.78413 | BO91: n.d. | BP91: n.d. | BQ91: n.d. | BR91: n.d. | BS91: n.d. | BT91: n.d. | BU91: n.d. | BV91: n.d. | BW91: n.d. | BX91: n.d. | BY91: n.d. | BZ91: n.d. | CA91: n.d. | CB91: n.d. | CC91: n.d. | CD91: n.d. | CE91: n.d. | CF91: n.d. | CG91: n.d. | CH91: n.d. | CI91: n.d. | CJ91: n.d. | CK91: n.d. | CL91: n.d. | CM91: n.d. | CN91: n.d. | CO91: n.d. | CP91: n.d. | CQ91: n.d. | CR91: n.d. | CS91: n.d. | CT91: n.d. | CU91: n.d. | CV91: n.d. | CW91: 100 | CX91: n.d. | CY91: n.d. | CZ91: n.d. | DA91: n.d. | DB91: n.d. | DC91: n.d. | DD91: n.d. | DE91: n.d. | DF91: n.d. | DG91: n.d. | DH91: n.d. | DI91: 6583.47 | DJ91: 1221.7 | DK91: 757.12 | DL91: n.d. | DM91: n.d. | DN91: n.d. | DO91: n.d. | DP91: n.d. | DQ91: n.d. | DR91: n.d. | DS91: n.d. | DT91: n.d. | DU91: n.d. | DV91: n.d. | DW91: n.d. | DX91: n.d. | DY91: n.d. | DZ91: n.d. | EA91: n.d. | EB91: n.d. | EC91: n.d.
B92: abril | C92: 2.495201536 | D92: 1.323672844 | E92: n.d. | F92: n.d. | G92: n.d. | H92: 1.942740286 | I92: n.d. | J92: n.d. | K92: 5.565876616 | L92: n.d. | M92: n.d. | N92: 22.32663217 | O92: n.d. | P92: n.d | Q92: n.d | R92: n.d | S92: n.d | T92: n.d | U92: n.d | V92: n.d | W92: n.d | X92: n.d | Y92: n.d | Z92: n.d | AA92: n.d | AB92: n.d | AE92: 19.7 | AF92: n.d. | AH92: n.d. | AI92: n.d. | AJ92: n.d. | AK92: n.d. | AL92: n.d. | AM92: 509.47 | AN92: n.d. | AO92: n.d. | AP92: n.d. | AQ92: n.d. | AR92: n.d. | AS92: n.d. | AT92: n.d. | AU92: n.d. | AV92: n.d. | AW92: n.d. | AX92: n.d. | AY92: n.d. | AZ92: n.d. | BA92: n.d. | BB92: 1.145015 | BC92: n.d. | BD92: 125.51 | BE92: 1.39 | BF92: n.d. | BG92: n.d. | BH92: n.d. | BI92: n.d. | BJ92: n.d. | BK92: 7.9037 | BL92: n.d. | BM92: =IF('Tipos de Cambio'!$M$9="EuroZona",LOOKUP(1,$BB$2:$BL$2,BB92:BL92),IF('Tipos de Cambio'!$M$9="Reino Unido",LOOKUP(2,$BB$2:$BL$2,BB92:BL92),IF('Tipos de Cambio'!$M$9="Japón",LOOKUP(3,$BB$2:$BL$2,BB92:BL92),IF('Tipos de Cambio'!$M$9="Canadá",LOOKUP(4,$BB$2:$BL$2,BB92:BL92),IF('Tipos de Cambio'!$M$9="Rusia",LOOKUP(5,$BB$2:$BL$2,BB92:BL92),IF('Tipos de Cambio'!$M$9="Brasil",LOOKUP(6,$BB$2:$BL$2,BB92:BL92),IF('Tipos de Cambio'!$M$9="China",LOOKUP(7,$BB$2:$BL$2,BB92:BL92),IF('Tipos de Cambio'!$M$9="India",LOOKUP(8,$BB$2:$BL$2,BB92:BL92),IF('Tipos de Cambio'!$M$9="Sudáfrica",LOOKUP(9,$BB$2:$BL$2,BB92:BL92),IF('Tipos de Cambio'!$M$9="México",LOOKUP(10,$BB$2:$BL$2,BB92:BL92),IF('Tipos de Cambio'!$M$9="Colombia",LOOKUP(11,$BB$2:$BL$2,BB92:BL92)))))))))))) -> n.d. | BN92: 6.00746 | BO92: n.d. | BP92: n.d. | BQ92: n.d. | BR92: n.d. | BS92: n.d. | BT92: n.d. | BU92: n.d. | BV92: n.d. | BW92: n.d. | BX92: n.d. | BY92: n.d. | BZ92: n.d. | CA92: n.d. | CB92: n.d. | CC92: n.d. | CD92: n.d. | CE92: n.d. | CF92: n.d. | CG92: n.d. | CH92: n.d. | CI92: n.d. | CJ92: n.d. | CK92: n.d. | CL92: n.d. | CM92: n.d. | CN92: n.d. | CO92: n.d. | CP92: n.d. | CQ92: n.d. | CR92: n.d. | CS92: n.d. | CT92: n.d. | CU92: n.d. | CV92: n.d. | CW92: 100 | CX92: n.d. | CY92: n.d. | CZ92: n.d. | DA92: n.d. | DB92: n.d. | DC92: n.d. | DD92: n.d. | DE92: n.d. | DF92: n.d. | DG92: n.d. | DH92: n.d. | DI92: 7008.99 | DJ92: 1260.76 | DK92: 801.34 | DL92: n.d. | DM92: n.d. | DN92: n.d. | DO92: n.d. | DP92: n.d. | DQ92: n.d. | DR92: n.d. | DS92: n.d. | DT92: n.d. | DU92: n.d. | DV92: n.d. | DW92: n.d. | DX92: n.d. | DY92: n.d. | DZ92: n.d. | EA92: n.d. | EB92: n.d. | EC92: n.d.
B93: mayo | C93: 2.234993614 | D93: 1.362246316 | E93: n.d. | F93: n.d. | G93: n.d. | H93: 1.93877551 | I93: n.d. | J93: n.d. | K93: 5.744158325 | L93: n.d. | M93: n.d. | N93: 21.23326143 | O93: n.d. | P93: n.d | Q93: n.d | R93: n.d | S93: n.d | T93: n.d | U93: n.d | V93: n.d | W93: n.d | X93: n.d | Y93: n.d | Z93: n.d | AA93: n.d | AB93: n.d | AE93: 20.82 | AF93: n.d. | AH93: n.d. | AI93: n.d. | AJ93: n.d. | AK93: n.d. | AL93: n.d. | AM93: 508.57 | AN93: n.d. | AO93: n.d. | AP93: n.d. | AQ93: n.d. | AR93: n.d. | AS93: n.d. | AT93: n.d. | AU93: n.d. | AV93: n.d. | AW93: n.d. | AX93: n.d. | AY93: n.d. | AZ93: n.d. | BA93: n.d. | BB93: 1.149341 | BC93: n.d. | BD93: 118.99 | BE93: 1.38 | BF93: n.d. | BG93: n.d. | BH93: n.d. | BI93: n.d. | BJ93: n.d. | BK93: 7.9057 | BL93: n.d. | BM93: =IF('Tipos de Cambio'!$M$9="EuroZona",LOOKUP(1,$BB$2:$BL$2,BB93:BL93),IF('Tipos de Cambio'!$M$9="Reino Unido",LOOKUP(2,$BB$2:$BL$2,BB93:BL93),IF('Tipos de Cambio'!$M$9="Japón",LOOKUP(3,$BB$2:$BL$2,BB93:BL93),IF('Tipos de Cambio'!$M$9="Canadá",LOOKUP(4,$BB$2:$BL$2,BB93:BL93),IF('Tipos de Cambio'!$M$9="Rusia",LOOKUP(5,$BB$2:$BL$2,BB93:BL93),IF('Tipos de Cambio'!$M$9="Brasil",LOOKUP(6,$BB$2:$BL$2,BB93:BL93),IF('Tipos de Cambio'!$M$9="China",LOOKUP(7,$BB$2:$BL$2,BB93:BL93),IF('Tipos de Cambio'!$M$9="India",LOOKUP(8,$BB$2:$BL$2,BB93:BL93),IF('Tipos de Cambio'!$M$9="Sudáfrica",LOOKUP(9,$BB$2:$BL$2,BB93:BL93),IF('Tipos de Cambio'!$M$9="México",LOOKUP(10,$BB$2:$BL$2,BB93:BL93),IF('Tipos de Cambio'!$M$9="Colombia",LOOKUP(11,$BB$2:$BL$2,BB93:BL93)))))))))))) -> n.d. | BN93: 5.9957 | BO93: n.d. | BP93: n.d. | BQ93: n.d. | BR93: n.d. | BS93: n.d. | BT93: n.d. | BU93: n.d. | BV93: n.d. | BW93: n.d. | BX93: n.d. | BY93: n.d. | BZ93: n.d. | CA93: n.d. | CB93: n.d. | CC93: n.d. | CD93: n.d. | CE93: n.d. | CF93: n.d. | CG93: n.d. | CH93: n.d. | CI93: n.d. | CJ93: n.d. | CK93: n.d. | CL93: n.d. | CM93: n.d. | CN93: n.d. | CO93: n.d. | CP93: n.d. | CQ93: n.d. | CR93: n.d. | CS93: n.d. | CT93: n.d. | CU93: n.d. | CV93: n.d. | CW93: 100 | CX93: n.d. | CY93: n.d. | CZ93: n.d. | DA93: n.d. | DB93: n.d. | DC93: n.d. | DD93: n.d. | DE93: n.d. | DF93: n.d. | DG93: n.d. | DH93: n.d. | DI93: 7331.04 | DJ93: 1400.32 | DK93: 848.28 | DL93: n.d. | DM93: n.d. | DN93: n.d. | DO93: n.d. | DP93: n.d. | DQ93: n.d. | DR93: n.d. | DS93: n.d. | DT93: n.d. | DU93: n.d. | DV93: n.d. | DW93: n.d. | DX93: n.d. | DY93: n.d. | DZ93: n.d. | EA93: n.d. | EB93: n.d. | EC93: n.d.
B94: junio | C94: 2.297383535 | D94: 1.375955525 | E94: n.d. | F94: n.d. | G94: n.d. | H94: 2.356557377 | I94: n.d. | J94: n.d. | K94: 5.524081456 | L94: n.d. | M94: n.d. | N94: 20.3491939 | O94: n.d. | P94: n.d | Q94: n.d | R94: n.d | S94: n.d | T94: n.d | U94: n.d | V94: n.d | W94: n.d | X94: n.d | Y94: n.d | Z94: n.d | AA94: n.d | AB94: n.d | AE94: 19.26 | AF94: n.d. | AH94: n.d. | AI94: n.d. | AJ94: n.d. | AK94: n.d. | AL94: n.d. | AM94: 471.65 | AN94: n.d. | AO94: n.d. | AP94: n.d. | AQ94: n.d. | AR94: n.d. | AS94: n.d. | AT94: n.d. | AU94: n.d. | AV94: n.d. | AW94: n.d. | AX94: n.d. | AY94: n.d. | AZ94: n.d. | BA94: n.d. | BB94: 1.136627001 | BC94: n.d. | BD94: 117.2 | BE94: 1.38 | BF94: n.d. | BG94: n.d. | BH94: n.d. | BI94: n.d. | BJ94: n.d. | BK94: 7.9465 | BL94: n.d. | BM94: =IF('Tipos de Cambio'!$M$9="EuroZona",LOOKUP(1,$BB$2:$BL$2,BB94:BL94),IF('Tipos de Cambio'!$M$9="Reino Unido",LOOKUP(2,$BB$2:$BL$2,BB94:BL94),IF('Tipos de Cambio'!$M$9="Japón",LOOKUP(3,$BB$2:$BL$2,BB94:BL94),IF('Tipos de Cambio'!$M$9="Canadá",LOOKUP(4,$BB$2:$BL$2,BB94:BL94),IF('Tipos de Cambio'!$M$9="Rusia",LOOKUP(5,$BB$2:$BL$2,BB94:BL94),IF('Tipos de Cambio'!$M$9="Brasil",LOOKUP(6,$BB$2:$BL$2,BB94:BL94),IF('Tipos de Cambio'!$M$9="China",LOOKUP(7,$BB$2:$BL$2,BB94:BL94),IF('Tipos de Cambio'!$M$9="India",LOOKUP(8,$BB$2:$BL$2,BB94:BL94),IF('Tipos de Cambio'!$M$9="Sudáfrica",LOOKUP(9,$BB$2:$BL$2,BB94:BL94),IF('Tipos de Cambio'!$M$9="México",LOOKUP(10,$BB$2:$BL$2,BB94:BL94),IF('Tipos de Cambio'!$M$9="Colombia",LOOKUP(11,$BB$2:$BL$2,BB94:BL94)))))))))))) -> n.d. | BN94: 5.91071 | BO94: n.d. | BP94: n.d. | BQ94: n.d. | BR94: n.d. | BS94: n.d. | BT94: n.d. | BU94: n.d. | BV94: n.d. | BW94: n.d. | BX94: n.d. | BY94: n.d. | BZ94: n.d. | CA94: n.d. | CB94: n.d. | CC94: n.d. | CD94: n.d. | CE94: n.d. | CF94: n.d. | CG94: n.d. | CH94: n.d. | CI94: n.d. | CJ94: n.d. | CK94: n.d. | CL94: n.d. | CM94: n.d. | CN94: n.d. | CO94: n.d. | CP94: n.d. | CQ94: n.d. | CR94: n.d. | CS94: n.d. | CT94: n.d. | CU94: n.d. | CV94: n.d. | CW94: 100 | CX94: n.d. | CY94: n.d. | CZ94: n.d. | DA94: n.d. | DB94: n.d. | DC94: n.d. | DD94: n.d. | DE94: n.d. | DF94: n.d. | DG94: n.d. | DH94: n.d. | DI94: 7672.79 | DJ94: 1442.07 | DK94: 885.14 | DL94: n.d. | DM94: n.d. | DN94: n.d. | DO94: n.d. | DP94: n.d. | DQ94: n.d. | DR94: n.d. | DS94: n.d. | DT94: n.d. | DU94: n.d. | DV94: n.d. | DW94: n.d. | DX94: n.d. | DY94: n.d. | DZ94: n.d. | EA94: n.d. | EB94: n.d. | EC94: n.d.
B95: julio | C95: 2.229299363 | D95: 1.48714385 | E95: n.d. | F95: n.d. | G95: n.d. | H95: 1.948717949 | I95: n.d. | J95: n.d. | K95: 6.366593106 | L95: n.d. | M95: n.d. | N95: 19.69613574 | O95: n.d. | P95: n.d | Q95: n.d | R95: n.d | S95: n.d | T95: n.d | U95: n.d | V95: n.d | W95: n.d | X95: n.d | Y95: n.d | Z95: n.d | AA95: n.d | AB95: n.d | AE95: 19.66 | AF95: n.d. | AH95: n.d. | AI95: n.d. | AJ95: n.d. | AK95: n.d. | AL95: n.d. | AM95: 445.03 | AN95: n.d. | AO95: n.d. | AP95: n.d. | AQ95: n.d. | AR95: n.d. | AS95: n.d. | AT95: n.d. | AU95: n.d. | AV95: n.d. | AW95: n.d. | AX95: n.d. | AY95: n.d. | AZ95: n.d. | BA95: n.d. | BB95: 1.104913 | BC95: n.d. | BD95: 115.16 | BE95: 1.38 | BF95: n.d. | BG95: n.d. | BH95: n.d. | BI95: n.d. | BJ95: n.d. | BK95: 7.8857 | BL95: n.d. | BM95: =IF('Tipos de Cambio'!$M$9="EuroZona",LOOKUP(1,$BB$2:$BL$2,BB95:BL95),IF('Tipos de Cambio'!$M$9="Reino Unido",LOOKUP(2,$BB$2:$BL$2,BB95:BL95),IF('Tipos de Cambio'!$M$9="Japón",LOOKUP(3,$BB$2:$BL$2,BB95:BL95),IF('Tipos de Cambio'!$M$9="Canadá",LOOKUP(4,$BB$2:$BL$2,BB95:BL95),IF('Tipos de Cambio'!$M$9="Rusia",LOOKUP(5,$BB$2:$BL$2,BB95:BL95),IF('Tipos de Cambio'!$M$9="Brasil",LOOKUP(6,$BB$2:$BL$2,BB95:BL95),IF('Tipos de Cambio'!$M$9="China",LOOKUP(7,$BB$2:$BL$2,BB95:BL95),IF('Tipos de Cambio'!$M$9="India",LOOKUP(8,$BB$2:$BL$2,BB95:BL95),IF('Tipos de Cambio'!$M$9="Sudáfrica",LOOKUP(9,$BB$2:$BL$2,BB95:BL95),IF('Tipos de Cambio'!$M$9="México",LOOKUP(10,$BB$2:$BL$2,BB95:BL95),IF('Tipos de Cambio'!$M$9="Colombia",LOOKUP(11,$BB$2:$BL$2,BB95:BL95)))))))))))) -> n.d. | BN95: 5.84324 | BO95: n.d. | BP95: n.d. | BQ95: n.d. | BR95: n.d. | BS95: n.d. | BT95: n.d. | BU95: n.d. | BV95: n.d. | BW95: n.d. | BX95: n.d. | BY95: n.d. | BZ95: n.d. | CA95: n.d. | CB95: n.d. | CC95: n.d. | CD95: n.d. | CE95: n.d. | CF95: n.d. | CG95: n.d. | CH95: n.d. | CI95: n.d. | CJ95: n.d. | CK95: n.d. | CL95: n.d. | CM95: n.d. | CN95: n.d. | CO95: n.d. | CP95: n.d. | CQ95: n.d. | CR95: n.d. | CS95: n.d. | CT95: n.d. | CU95: n.d. | CV95: n.d. | CW95: 100 | CX95: n.d. | CY95: n.d. | CZ95: n.d. | DA95: n.d. | DB95: n.d. | DC95: n.d. | DD95: n.d. | DE95: n.d. | DF95: n.d. | DG95: n.d. | DH95: n.d. | DI95: 8222.61 | DJ95: 1593.81 | DK95: 954.29 | DL95: n.d. | DM95: n.d. | DN95: n.d. | DO95: n.d. | DP95: n.d. | DQ95: n.d. | DR95: n.d. | DS95: n.d. | DT95: n.d. | DU95: n.d. | DV95: n.d. | DW95: n.d. | DX95: n.d. | DY95: n.d. | DZ95: n.d. | EA95: n.d. | EB95: n.d. | EC95: n.d.
B96: agosto | C96: 2.22504768 | D96: 1.710471423 | E96: n.d. | F96: n.d. | G96: n.d. | H96: 2.156057495 | I96: n.d. | J96: n.d. | K96: 6.262067138 | L96: n.d. | M96: n.d. | N96: 19.17640984 | O96: n.d. | P96: n.d | Q96: n.d | R96: n.d | S96: n.d | T96: n.d | U96: n.d | V96: n.d | W96: n.d | X96: n.d | Y96: n.d | Z96: n.d | AA96: n.d | AB96: n.d | AE96: 19.95 | AF96: n.d. | AH96: n.d. | AI96: n.d. | AJ96: n.d. | AK96: n.d. | AL96: n.d. | AM96: 444.55 | AN96: n.d. | AO96: n.d. | AP96: n.d. | AQ96: n.d. | AR96: n.d. | AS96: n.d. | AT96: n.d. | AU96: n.d. | AV96: n.d. | AW96: n.d. | AX96: n.d. | AY96: n.d. | AZ96: n.d. | BA96: n.d. | BB96: 1.072733 | BC96: n.d. | BD96: 117.9 | BE96: 1.39 | BF96: n.d. | BG96: n.d. | BH96: n.d. | BI96: n.d. | BJ96: n.d. | BK96: 7.7843 | BL96: n.d. | BM96: =IF('Tipos de Cambio'!$M$9="EuroZona",LOOKUP(1,$BB$2:$BL$2,BB96:BL96),IF('Tipos de Cambio'!$M$9="Reino Unido",LOOKUP(2,$BB$2:$BL$2,BB96:BL96),IF('Tipos de Cambio'!$M$9="Japón",LOOKUP(3,$BB$2:$BL$2,BB96:BL96),IF('Tipos de Cambio'!$M$9="Canadá",LOOKUP(4,$BB$2:$BL$2,BB96:BL96),IF('Tipos de Cambio'!$M$9="Rusia",LOOKUP(5,$BB$2:$BL$2,BB96:BL96),IF('Tipos de Cambio'!$M$9="Brasil",LOOKUP(6,$BB$2:$BL$2,BB96:BL96),IF('Tipos de Cambio'!$M$9="China",LOOKUP(7,$BB$2:$BL$2,BB96:BL96),IF('Tipos de Cambio'!$M$9="India",LOOKUP(8,$BB$2:$BL$2,BB96:BL96),IF('Tipos de Cambio'!$M$9="Sudáfrica",LOOKUP(9,$BB$2:$BL$2,BB96:BL96),IF('Tipos de Cambio'!$M$9="México",LOOKUP(10,$BB$2:$BL$2,BB96:BL96),IF('Tipos de Cambio'!$M$9="Colombia",LOOKUP(11,$BB$2:$BL$2,BB96:BL96)))))))))))) -> n.d. | BN96: 5.83506 | BO96: n.d. | BP96: n.d. | BQ96: n.d. | BR96: n.d. | BS96: n.d. | BT96: n.d. | BU96: n.d. | BV96: n.d. | BW96: n.d. | BX96: n.d. | BY96: n.d. | BZ96: n.d. | CA96: n.d. | CB96: n.d. | CC96: n.d. | CD96: n.d. | CE96: n.d. | CF96: n.d. | CG96: n.d. | CH96: n.d. | CI96: n.d. | CJ96: n.d. | CK96: n.d. | CL96: n.d. | CM96: n.d. | CN96: n.d. | CO96: n.d. | CP96: n.d. | CQ96: n.d. | CR96: n.d. | CS96: n.d. | CT96: n.d. | CU96: n.d. | CV96: n.d. | CW96: 100 | CX96: n.d. | CY96: n.d. | CZ96: n.d. | DA96: n.d. | DB96: n.d. | DC96: n.d. | DD96: n.d. | DE96: n.d. | DF96: n.d. | DG96: n.d. | DH96: n.d. | DI96: 7622.42 | DJ96: 1587.32 | DK96: 899.47 | DL96: n.d. | DM96: n.d. | DN96: n.d. | DO96: n.d. | DP96: n.d. | DQ96: n.d. | DR96: n.d. | DS96: n.d. | DT96: n.d. | DU96: n.d. | DV96: n.d. | DW96: n.d. | DX96: n.d. | DY96: n.d. | DZ96: n.d. | EA96: n.d. | EB96: n.d. | EC96: n.d.
B97: septiembre | C97: 2.154626109 | D97: 1.568355309 | E97: n.d. | F97: n.d. | G97: n.d. | H97: 2.45398773 | I97: n.d. | J97: n.d. | K97: 5.550533896 | L97: n.d. | M97: n.d. | N97: 18.76187705 | O97: n.d. | P97: n.d | Q97: n.d | R97: n.d | S97: n.d | T97: n.d | U97: n.d | V97: n.d | W97: n.d | X97: n.d | Y97: n.d | Z97: n.d | AA97: n.d | AB97: n.d | AE97: 19.8 | AF97: n.d. | AH97: n.d. | AI97: n.d. | AJ97: n.d. | AK97: n.d. | AL97: n.d. | AM97: 460.63 | AN97: n.d. | AO97: n.d. | AP97: n.d. | AQ97: n.d. | AR97: n.d. | AS97: n.d. | AT97: n.d. | AU97: n.d. | AV97: n.d. | AW97: n.d. | AX97: n.d. | AY97: n.d. | AZ97: n.d. | BA97: n.d. | BB97: 1.099915001 | BC97: n.d. | BD97: 120.75 | BE97: 1.39 | BF97: n.d. | BG97: n.d. | BH97: n.d. | BI97: n.d. | BJ97: n.d. | BK97: 7.7792 | BL97: n.d. | BM97: =IF('Tipos de Cambio'!$M$9="EuroZona",LOOKUP(1,$BB$2:$BL$2,BB97:BL97),IF('Tipos de Cambio'!$M$9="Reino Unido",LOOKUP(2,$BB$2:$BL$2,BB97:BL97),IF('Tipos de Cambio'!$M$9="Japón",LOOKUP(3,$BB$2:$BL$2,BB97:BL97),IF('Tipos de Cambio'!$M$9="Canadá",LOOKUP(4,$BB$2:$BL$2,BB97:BL97),IF('Tipos de Cambio'!$M$9="Rusia",LOOKUP(5,$BB$2:$BL$2,BB97:BL97),IF('Tipos de Cambio'!$M$9="Brasil",LOOKUP(6,$BB$2:$BL$2,BB97:BL97),IF('Tipos de Cambio'!$M$9="China",LOOKUP(7,$BB$2:$BL$2,BB97:BL97),IF('Tipos de Cambio'!$M$9="India",LOOKUP(8,$BB$2:$BL$2,BB97:BL97),IF('Tipos de Cambio'!$M$9="Sudáfrica",LOOKUP(9,$BB$2:$BL$2,BB97:BL97),IF('Tipos de Cambio'!$M$9="México",LOOKUP(10,$BB$2:$BL$2,BB97:BL97),IF('Tipos de Cambio'!$M$9="Colombia",LOOKUP(11,$BB$2:$BL$2,BB97:BL97)))))))))))) -> n.d. | BN97: 5.83594 | BO97: n.d. | BP97: n.d. | BQ97: n.d. | BR97: n.d. | BS97: n.d. | BT97: n.d. | BU97: n.d. | BV97: n.d. | BW97: n.d. | BX97: n.d. | BY97: n.d. | BZ97: n.d. | CA97: n.d. | CB97: n.d. | CC97: n.d. | CD97: n.d. | CE97: n.d. | CF97: n.d. | CG97: n.d. | CH97: n.d. | CI97: n.d. | CJ97: n.d. | CK97: n.d. | CL97: n.d. | CM97: n.d. | CN97: n.d. | CO97: n.d. | CP97: n.d. | CQ97: n.d. | CR97: n.d. | CS97: n.d. | CT97: n.d. | CU97: n.d. | CV97: n.d. | CW97: 100 | CX97: n.d. | CY97: n.d. | CZ97: n.d. | DA97: n.d. | DB97: n.d. | DC97: n.d. | DD97: n.d. | DE97: n.d. | DF97: n.d. | DG97: n.d. | DH97: n.d. | DI97: 7945.25 | DJ97: 1685.69 | DK97: 947.28 | DL97: n.d. | DM97: n.d. | DN97: n.d. | DO97: n.d. | DP97: n.d. | DQ97: n.d. | DR97: n.d. | DS97: n.d. | DT97: n.d. | DU97: n.d. | DV97: n.d. | DW97: n.d. | DX97: n.d. | DY97: n.d. | DZ97: n.d. | EA97: n.d. | EB97: n.d. | EC97: n.d.
B98: octubre | C98: 2.0846494 | D98: 1.525447233 | E98: n.d. | F98: n.d. | G98: n.d. | H98: 2.551020408 | I98: n.d. | J98: n.d. | K98: 5.601459278 | L98: n.d. | M98: n.d. | N98: 18.23519264 | O98: n.d. | P98: n.d | Q98: n.d | R98: n.d | S98: n.d | T98: n.d | U98: n.d | V98: n.d | W98: n.d | X98: n.d | Y98: n.d | Z98: n.d | AA98: n.d | AB98: n.d | AE98: 21.33 | AF98: n.d. | AH98: n.d. | AI98: n.d. | AJ98: n.d. | AK98: n.d. | AL98: n.d. | AM98: 490.54 | AN98: n.d. | AO98: n.d. | AP98: n.d. | AQ98: n.d. | AR98: n.d. | AS98: n.d. | AT98: n.d. | AU98: n.d. | AV98: n.d. | AW98: n.d. | AX98: n.d. | AY98: n.d. | AZ98: n.d. | BA98: n.d. | BB98: 1.120318 | BC98: n.d. | BD98: 121.06 | BE98: 1.39 | BF98: n.d. | BG98: n.d. | BH98: n.d. | BI98: n.d. | BJ98: n.d. | BK98: 7.8114 | BL98: n.d. | BM98: =IF('Tipos de Cambio'!$M$9="EuroZona",LOOKUP(1,$BB$2:$BL$2,BB98:BL98),IF('Tipos de Cambio'!$M$9="Reino Unido",LOOKUP(2,$BB$2:$BL$2,BB98:BL98),IF('Tipos de Cambio'!$M$9="Japón",LOOKUP(3,$BB$2:$BL$2,BB98:BL98),IF('Tipos de Cambio'!$M$9="Canadá",LOOKUP(4,$BB$2:$BL$2,BB98:BL98),IF('Tipos de Cambio'!$M$9="Rusia",LOOKUP(5,$BB$2:$BL$2,BB98:BL98),IF('Tipos de Cambio'!$M$9="Brasil",LOOKUP(6,$BB$2:$BL$2,BB98:BL98),IF('Tipos de Cambio'!$M$9="China",LOOKUP(7,$BB$2:$BL$2,BB98:BL98),IF('Tipos de Cambio'!$M$9="India",LOOKUP(8,$BB$2:$BL$2,BB98:BL98),IF('Tipos de Cambio'!$M$9="Sudáfrica",LOOKUP(9,$BB$2:$BL$2,BB98:BL98),IF('Tipos de Cambio'!$M$9="México",LOOKUP(10,$BB$2:$BL$2,BB98:BL98),IF('Tipos de Cambio'!$M$9="Colombia",LOOKUP(11,$BB$2:$BL$2,BB98:BL98)))))))))))) -> n.d. | BN98: 5.83679 | BO98: n.d. | BP98: n.d. | BQ98: n.d. | BR98: n.d. | BS98: n.d. | BT98: n.d. | BU98: n.d. | BV98: n.d. | BW98: n.d. | BX98: n.d. | BY98: n.d. | BZ98: n.d. | CA98: n.d. | CB98: n.d. | CC98: n.d. | CD98: n.d. | CE98: n.d. | CF98: n.d. | CG98: n.d. | CH98: n.d. | CI98: n.d. | CJ98: n.d. | CK98: n.d. | CL98: n.d. | CM98: n.d. | CN98: n.d. | CO98: n.d. | CP98: n.d. | CQ98: n.d. | CR98: n.d. | CS98: n.d. | CT98: n.d. | CU98: n.d. | CV98: n.d. | CW98: 100 | CX98: n.d. | CY98: n.d. | CZ98: n.d. | DA98: n.d. | DB98: n.d. | DC98: n.d. | DD98: n.d. | DE98: n.d. | DF98: n.d. | DG98: n.d. | DH98: n.d. | DI98: 7442.08 | DJ98: 1593.61 | DK98: 914.62 | DL98: n.d. | DM98: n.d. | DN98: n.d. | DO98: n.d. | DP98: n.d. | DQ98: n.d. | DR98: n.d. | DS98: n.d. | DT98: n.d. | DU98: n.d. | DV98: n.d. | DW98: n.d. | DX98: n.d. | DY98: n.d. | DZ98: n.d. | EA98: n.d. | EB98: n.d. | EC98: n.d.
B99: noviembre | C99: 1.828499369 | D99: 1.62207126 | E99: n.d. | F99: n.d. | G99: n.d. | H99: 2.254098361 | I99: n.d. | J99: n.d. | K99: 5.398210093 | L99: n.d. | M99: n.d. | N99: 17.77350892 | O99: n.d. | P99: n.d | Q99: n.d | R99: n.d | S99: n.d | T99: n.d | U99: n.d | V99: n.d | W99: n.d | X99: n.d | Y99: n.d | Z99: n.d | AA99: n.d | AB99: n.d | AE99: 20.19 | AF99: n.d. | AH99: n.d. | AI99: n.d. | AJ99: n.d. | AK99: n.d. | AL99: n.d. | AM99: 493.09 | AN99: n.d. | AO99: n.d. | AP99: n.d. | AQ99: n.d. | AR99: n.d. | AS99: n.d. | AT99: n.d. | AU99: n.d. | AV99: n.d. | AW99: n.d. | AX99: n.d. | AY99: n.d. | AZ99: n.d. | BA99: n.d. | BB99: 1.139368 | BC99: n.d. | BD99: 125.27 | BE99: 1.41 | BF99: n.d. | BG99: n.d. | BH99: n.d. | BI99: n.d. | BJ99: n.d. | BK99: 8.2838 | BL99: n.d. | BM99: =IF('Tipos de Cambio'!$M$9="EuroZona",LOOKUP(1,$BB$2:$BL$2,BB99:BL99),IF('Tipos de Cambio'!$M$9="Reino Unido",LOOKUP(2,$BB$2:$BL$2,BB99:BL99),IF('Tipos de Cambio'!$M$9="Japón",LOOKUP(3,$BB$2:$BL$2,BB99:BL99),IF('Tipos de Cambio'!$M$9="Canadá",LOOKUP(4,$BB$2:$BL$2,BB99:BL99),IF('Tipos de Cambio'!$M$9="Rusia",LOOKUP(5,$BB$2:$BL$2,BB99:BL99),IF('Tipos de Cambio'!$M$9="Brasil",LOOKUP(6,$BB$2:$BL$2,BB99:BL99),IF('Tipos de Cambio'!$M$9="China",LOOKUP(7,$BB$2:$BL$2,BB99:BL99),IF('Tipos de Cambio'!$M$9="India",LOOKUP(8,$BB$2:$BL$2,BB99:BL99),IF('Tipos de Cambio'!$M$9="Sudáfrica",LOOKUP(9,$BB$2:$BL$2,BB99:BL99),IF('Tipos de Cambio'!$M$9="México",LOOKUP(10,$BB$2:$BL$2,BB99:BL99),IF('Tipos de Cambio'!$M$9="Colombia",LOOKUP(11,$BB$2:$BL$2,BB99:BL99)))))))))))) -> n.d. | BN99: 5.88164 | BO99: n.d. | BP99: n.d. | BQ99: n.d. | BR99: n.d. | BS99: n.d. | BT99: n.d. | BU99: n.d. | BV99: n.d. | BW99: n.d. | BX99: n.d. | BY99: n.d. | BZ99: n.d. | CA99: n.d. | CB99: n.d. | CC99: n.d. | CD99: n.d. | CE99: n.d. | CF99: n.d. | CG99: n.d. | CH99: n.d. | CI99: n.d. | CJ99: n.d. | CK99: n.d. | CL99: n.d. | CM99: n.d. | CN99: n.d. | CO99: n.d. | CP99: n.d. | CQ99: n.d. | CR99: n.d. | CS99: n.d. | CT99: n.d. | CU99: n.d. | CV99: n.d. | CW99: 100 | CX99: n.d. | CY99: n.d. | CZ99: n.d. | DA99: n.d. | DB99: n.d. | DC99: n.d. | DD99: n.d. | DE99: n.d. | DF99: n.d. | DG99: n.d. | DH99: n.d. | DI99: 7823.12 | DJ99: 1600.55 | DK99: 955.4 | DL99: n.d. | DM99: n.d. | DN99: n.d. | DO99: n.d. | DP99: n.d. | DQ99: n.d. | DR99: n.d. | DS99: n.d. | DT99: n.d. | DU99: n.d. | DV99: n.d. | DW99: n.d. | DX99: n.d. | DY99: n.d. | DZ99: n.d. | EA99: n.d. | EB99: n.d. | EC99: n.d.
B100: diciembre | C100: 1.702395965 | D100: 1.479740008 | E100: n.d. | F100: n.d. | G100: n.d. | H100: 1.840490798 | I100: n.d. | J100: n.d. | K100: 5.191769837 | L100: n.d. | M100: n.d. | N100: 15.7185061 | O100: n.d. | P100: n.d | Q100: n.d | R100: n.d | S100: n.d | T100: n.d | U100: n.d | V100: n.d | W100: n.d | X100: n.d | Y100: n.d | Z100: n.d | AA100: n.d | AB100: n.d | AE100: 18.33 | AF100: n.d. | AH100: n.d. | AI100: n.d. | AJ100: n.d. | AK100: n.d. | AL100: n.d. | AM100: 498.67 | AN100: n.d. | AO100: n.d. | AP100: n.d. | AQ100: n.d. | AR100: n.d. | AS100: n.d. | AT100: n.d. | AU100: n.d. | AV100: n.d. | AW100: n.d. | AX100: n.d. | AY100: n.d. | AZ100: n.d. | BA100: n.d. | BB100: 1.111581 | BC100: n.d. | BD100: 129.38 | BE100: 1.43 | BF100: n.d. | BG100: n.d. | BH100: n.d. | BI100: n.d. | BJ100: n.d. | BK100: 8.0833 | BL100: n.d. | BM100: =IF('Tipos de Cambio'!$M$9="EuroZona",LOOKUP(1,$BB$2:$BL$2,BB100:BL100),IF('Tipos de Cambio'!$M$9="Reino Unido",LOOKUP(2,$BB$2:$BL$2,BB100:BL100),IF('Tipos de Cambio'!$M$9="Japón",LOOKUP(3,$BB$2:$BL$2,BB100:BL100),IF('Tipos de Cambio'!$M$9="Canadá",LOOKUP(4,$BB$2:$BL$2,BB100:BL100),IF('Tipos de Cambio'!$M$9="Rusia",LOOKUP(5,$BB$2:$BL$2,BB100:BL100),IF('Tipos de Cambio'!$M$9="Brasil",LOOKUP(6,$BB$2:$BL$2,BB100:BL100),IF('Tipos de Cambio'!$M$9="China",LOOKUP(7,$BB$2:$BL$2,BB100:BL100),IF('Tipos de Cambio'!$M$9="India",LOOKUP(8,$BB$2:$BL$2,BB100:BL100),IF('Tipos de Cambio'!$M$9="Sudáfrica",LOOKUP(9,$BB$2:$BL$2,BB100:BL100),IF('Tipos de Cambio'!$M$9="México",LOOKUP(10,$BB$2:$BL$2,BB100:BL100),IF('Tipos de Cambio'!$M$9="Colombia",LOOKUP(11,$BB$2:$BL$2,BB100:BL100)))))))))))) -> n.d. | BN100: 5.91853 | BO100: n.d. | BP100: n.d. | BQ100: n.d. | BR100: n.d. | BS100: n.d. | BT100: n.d. | BU100: n.d. | BV100: n.d. | BW100: n.d. | BX100: n.d. | BY100: n.d. | BZ100: n.d. | CA100: n.d. | CB100: n.d. | CC100: n.d. | CD100: n.d. | CE100: n.d. | CF100: n.d. | CG100: n.d. | CH100: n.d. | CI100: n.d. | CJ100: n.d. | CK100: n.d. | CL100: n.d. | CM100: n.d. | CN100: n.d. | CO100: n.d. | CP100: n.d. | CQ100: n.d. | CR100: n.d. | CS100: n.d. | CT100: n.d. | CU100: n.d. | CV100: n.d. | CW100: 100 | CX100: n.d. | CY100: n.d. | CZ100: n.d. | DA100: n.d. | DB100: n.d. | DC100: n.d. | DD100: n.d. | DE100: n.d. | DF100: n.d. | DG100: n.d. | DH100: n.d. | DI100: 7908.24 | DJ100: 1570.35 | DK100: 970.43 | DL100: n.d. | DM100: n.d. | DN100: n.d. | DO100: n.d. | DP100: n.d. | DQ100: n.d. | DR100: n.d. | DS100: n.d. | DT100: n.d. | DU100: n.d. | DV100: n.d. | DW100: n.d. | DX100: n.d. | DY100: n.d. | DZ100: n.d. | EA100: n.d. | EB100: n.d. | EC100: n.d.
A101: 1998 | B101: enero | C101: 1.571338781 | D101: 1.075268817 | E101: n.d. | F101: n.d. | G101: n.d. | H101: 2.051282051 | I101: n.d. | J101: n.d. | K101: 5.383454816 | L101: n.d. | M101: n.d. | N101: 15.27189223 | O101: n.d. | P101: n.d | Q101: n.d | R101: n.d | S101: n.d | T101: n.d | U101: n.d | V101: n.d | W101: n.d | X101: n.d | Y101: n.d | Z101: n.d | AA101: n.d | AB101: n.d | AE101: 16.72 | AF101: n.d. | AH101: n.d. | AI101: n.d. | AJ101: n.d. | AK101: n.d. | AL101: n.d. | AM101: 548.63 | AN101: n.d. | AO101: n.d. | AP101: n.d. | AQ101: n.d. | AR101: n.d. | AS101: n.d. | AT101: n.d. | AU101: n.d. | AV101: n.d. | AW101: n.d. | AX101: n.d. | AY101: n.d. | AZ101: n.d. | BA101: n.d. | BB101: 1.087724 | BC101: n.d. | BD101: 129.45 | BE101: 1.44 | BF101: n.d. | BG101: n.d. | BH101: n.d. | BI101: n.d. | BJ101: n.d. | BK101: 8.1798 | BL101: n.d. | BM101: =IF('Tipos de Cambio'!$M$9="EuroZona",LOOKUP(1,$BB$2:$BL$2,BB101:BL101),IF('Tipos de Cambio'!$M$9="Reino Unido",LOOKUP(2,$BB$2:$BL$2,BB101:BL101),IF('Tipos de Cambio'!$M$9="Japón",LOOKUP(3,$BB$2:$BL$2,BB101:BL101),IF('Tipos de Cambio'!$M$9="Canadá",LOOKUP(4,$BB$2:$BL$2,BB101:BL101),IF('Tipos de Cambio'!$M$9="Rusia",LOOKUP(5,$BB$2:$BL$2,BB101:BL101),IF('Tipos de Cambio'!$M$9="Brasil",LOOKUP(6,$BB$2:$BL$2,BB101:BL101),IF('Tipos de Cambio'!$M$9="China",LOOKUP(7,$BB$2:$BL$2,BB101:BL101),IF('Tipos de Cambio'!$M$9="India",LOOKUP(8,$BB$2:$BL$2,BB101:BL101),IF('Tipos de Cambio'!$M$9="Sudáfrica",LOOKUP(9,$BB$2:$BL$2,BB101:BL101),IF('Tipos de Cambio'!$M$9="México",LOOKUP(10,$BB$2:$BL$2,BB101:BL101),IF('Tipos de Cambio'!$M$9="Colombia",LOOKUP(11,$BB$2:$BL$2,BB101:BL101)))))))))))) -> n.d. | BN101: 5.65997 | BO101: n.d. | BP101: n.d. | BQ101: n.d. | BR101: n.d. | BS101: n.d. | BT101: n.d. | BU101: n.d. | BV101: n.d. | BW101: n.d. | BX101: n.d. | BY101: n.d. | BZ101: n.d. | CA101: n.d. | CB101: n.d. | CC101: n.d. | CD101: n.d. | CE101: n.d. | CF101: n.d. | CG101: n.d. | CH101: n.d. | CI101: n.d. | CJ101: n.d. | CK101: n.d. | CL101: n.d. | CM101: n.d. | CN101: n.d. | CO101: n.d. | CP101: n.d. | CQ101: n.d. | CR101: n.d. | CS101: n.d. | CT101: n.d. | CU101: n.d. | CV101: n.d. | CW101: 100 | CX101: n.d. | CY101: n.d. | CZ101: n.d. | DA101: n.d. | DB101: n.d. | DC101: n.d. | DD101: n.d. | DE101: n.d. | DF101: n.d. | DG101: n.d. | DH101: n.d. | DI101: 7906.5 | DJ101: 1619.36 | DK101: 980.28 | DL101: n.d. | DM101: n.d. | DN101: n.d. | DO101: n.d. | DP101: n.d. | DQ101: n.d. | DR101: n.d. | DS101: n.d. | DT101: n.d. | DU101: n.d. | DV101: n.d. | DW101: n.d. | DX101: n.d. | DY101: n.d. | DZ101: n.d. | EA101: n.d. | EB101: n.d. | EC101: n.d.
B102: febrero | C102: 1.441102757 | D102: 1.127922971 | E102: n.d. | F102: n.d. | G102: n.d. | H102: 2.055498458 | I102: n.d. | J102: n.d. | K102: 4.696547911 | L102: n.d. | M102: n.d. | N102: 15.35156343 | O102: n.d. | P102: n.d | Q102: n.d | R102: n.d | S102: n.d | T102: n.d | U102: n.d | V102: n.d | W102: n.d | X102: n.d | Y102: n.d | Z102: n.d | AA102: n.d | AB102: n.d | AE102: 16.06 | AF102: n.d. | AH102: n.d. | AI102: n.d. | AJ102: n.d. | AK102: n.d. | AL102: n.d. | AM102: 595.77 | AN102: n.d. | AO102: n.d. | AP102: n.d. | AQ102: n.d. | AR102: n.d. | AS102: n.d. | AT102: n.d. | AU102: n.d. | AV102: n.d. | AW102: n.d. | AX102: n.d. | AY102: n.d. | AZ102: n.d. | BA102: n.d. | BB102: 1.088446 | BC102: n.d. | BD102: 126 | BE102: 1.43 | BF102: n.d. | BG102: n.d. | BH102: n.d. | BI102: n.d. | BJ102: n.d. | BK102: 8.4932 | BL102: n.d. | BM102: =IF('Tipos de Cambio'!$M$9="EuroZona",LOOKUP(1,$BB$2:$BL$2,BB102:BL102),IF('Tipos de Cambio'!$M$9="Reino Unido",LOOKUP(2,$BB$2:$BL$2,BB102:BL102),IF('Tipos de Cambio'!$M$9="Japón",LOOKUP(3,$BB$2:$BL$2,BB102:BL102),IF('Tipos de Cambio'!$M$9="Canadá",LOOKUP(4,$BB$2:$BL$2,BB102:BL102),IF('Tipos de Cambio'!$M$9="Rusia",LOOKUP(5,$BB$2:$BL$2,BB102:BL102),IF('Tipos de Cambio'!$M$9="Brasil",LOOKUP(6,$BB$2:$BL$2,BB102:BL102),IF('Tipos de Cambio'!$M$9="China",LOOKUP(7,$BB$2:$BL$2,BB102:BL102),IF('Tipos de Cambio'!$M$9="India",LOOKUP(8,$BB$2:$BL$2,BB102:BL102),IF('Tipos de Cambio'!$M$9="Sudáfrica",LOOKUP(9,$BB$2:$BL$2,BB102:BL102),IF('Tipos de Cambio'!$M$9="México",LOOKUP(10,$BB$2:$BL$2,BB102:BL102),IF('Tipos de Cambio'!$M$9="Colombia",LOOKUP(11,$BB$2:$BL$2,BB102:BL102)))))))))))) -> n.d. | BN102: 5.64121 | BO102: n.d. | BP102: n.d. | BQ102: n.d. | BR102: n.d. | BS102: n.d. | BT102: n.d. | BU102: n.d. | BV102: n.d. | BW102: n.d. | BX102: n.d. | BY102: n.d. | BZ102: n.d. | CA102: n.d. | CB102: n.d. | CC102: n.d. | CD102: n.d. | CE102: n.d. | CF102: n.d. | CG102: n.d. | CH102: n.d. | CI102: n.d. | CJ102: n.d. | CK102: n.d. | CL102: n.d. | CM102: n.d. | CN102: n.d. | CO102: n.d. | CP102: n.d. | CQ102: n.d. | CR102: n.d. | CS102: n.d. | CT102: n.d. | CU102: n.d. | CV102: n.d. | CW102: 100 | CX102: n.d. | CY102: n.d. | CZ102: n.d. | DA102: n.d. | DB102: n.d. | DC102: n.d. | DD102: n.d. | DE102: n.d. | DF102: n.d. | DG102: n.d. | DH102: n.d. | DI102: 8545.71 | DJ102: 1770.51 | DK102: 1049.34 | DL102: n.d. | DM102: n.d. | DN102: n.d. | DO102: n.d. | DP102: n.d. | DQ102: n.d. | DR102: n.d. | DS102: n.d. | DT102: n.d. | DU102: n.d. | DV102: n.d. | DW102: n.d. | DX102: n.d. | DY102: n.d. | DZ102: n.d. | EA102: n.d. | EB102: n.d. | EC102: n.d.
B103: marzo | C103: 1.375 | D103: 1.126992853 | E103: n.d. | F103: n.d. | G103: n.d. | H103: 2.361396304 | I103: n.d. | J103: n.d. | K103: 4.779102079 | L103: n.d. | M103: n.d. | N103: 15.26824704 | O103: n.d. | P103: n.d | Q103: n.d | R103: n.d | S103: n.d | T103: n.d | U103: n.d | V103: n.d | W103: n.d | X103: n.d | Y103: n.d | Z103: n.d | AA103: n.d | AB103: n.d | AE103: 15.12 | AF103: n.d. | AH103: n.d. | AI103: n.d. | AJ103: n.d. | AK103: n.d. | AL103: n.d. | AM103: 599.87 | AN103: n.d. | AO103: n.d. | AP103: n.d. | AQ103: n.d. | AR103: n.d. | AS103: n.d. | AT103: n.d. | AU103: n.d. | AV103: n.d. | AW103: n.d. | AX103: n.d. | AY103: n.d. | AZ103: n.d. | BA103: n.d. | BB103: 1.08433 | BC103: n.d. | BD103: 128.69 | BE103: 1.42 | BF103: n.d. | BG103: n.d. | BH103: n.d. | BI103: n.d. | BJ103: n.d. | BK103: 8.5689 | BL103: n.d. | BM103: =IF('Tipos de Cambio'!$M$9="EuroZona",LOOKUP(1,$BB$2:$BL$2,BB103:BL103),IF('Tipos de Cambio'!$M$9="Reino Unido",LOOKUP(2,$BB$2:$BL$2,BB103:BL103),IF('Tipos de Cambio'!$M$9="Japón",LOOKUP(3,$BB$2:$BL$2,BB103:BL103),IF('Tipos de Cambio'!$M$9="Canadá",LOOKUP(4,$BB$2:$BL$2,BB103:BL103),IF('Tipos de Cambio'!$M$9="Rusia",LOOKUP(5,$BB$2:$BL$2,BB103:BL103),IF('Tipos de Cambio'!$M$9="Brasil",LOOKUP(6,$BB$2:$BL$2,BB103:BL103),IF('Tipos de Cambio'!$M$9="China",LOOKUP(7,$BB$2:$BL$2,BB103:BL103),IF('Tipos de Cambio'!$M$9="India",LOOKUP(8,$BB$2:$BL$2,BB103:BL103),IF('Tipos de Cambio'!$M$9="Sudáfrica",LOOKUP(9,$BB$2:$BL$2,BB103:BL103),IF('Tipos de Cambio'!$M$9="México",LOOKUP(10,$BB$2:$BL$2,BB103:BL103),IF('Tipos de Cambio'!$M$9="Colombia",LOOKUP(11,$BB$2:$BL$2,BB103:BL103)))))))))))) -> n.d. | BN103: 5.71378 | BO103: n.d. | BP103: n.d. | BQ103: n.d. | BR103: n.d. | BS103: n.d. | BT103: n.d. | BU103: n.d. | BV103: n.d. | BW103: n.d. | BX103: n.d. | BY103: n.d. | BZ103: n.d. | CA103: n.d. | CB103: n.d. | CC103: n.d. | CD103: n.d. | CE103: n.d. | CF103: n.d. | CG103: n.d. | CH103: n.d. | CI103: n.d. | CJ103: n.d. | CK103: =IFERROR((CB103/CB91-1)*100,"n.d.") -> n.d. | CL103: n.d. | CM103: n.d. | CN103: n.d. | CO103: n.d. | CP103: n.d. | CQ103: n.d. | CR103: n.d. | CS103: n.d. | CT103: n.d. | CU103: n.d. | CV103: n.d. | CW103: 100 | CX103: n.d. | CY103: n.d. | CZ103: n.d. | DA103: n.d. | DB103: n.d. | DC103: n.d. | DD103: n.d. | DE103: n.d. | DF103: n.d. | DG103: n.d. | DH103: n.d. | DI103: 8799.8 | DJ103: 1835.68 | DK103: 1101.75 | DL103: n.d. | DM103: n.d. | DN103: n.d. | DO103: n.d. | DP103: n.d. | DQ103: n.d. | DR103: n.d. | DS103: n.d. | DT103: n.d. | DU103: n.d. | DV103: n.d. | DW103: n.d. | DX103: n.d. | DY103: n.d. | DZ103: n.d. | EA103: n.d. | EB103: n.d. | EC103: n.d.
B104: abril | C104: 1.435705368 | D104: 1.388888889 | E104: n.d. | F104: n.d. | G104: n.d. | H104: 0.2006018054 | I104: n.d. | J104: n.d. | K104: 4.736407776 | L104: n.d. | M104: n.d. | N104: 15.10318774 | O104: n.d. | P104: n.d | Q104: n.d | R104: n.d | S104: n.d | T104: n.d | U104: n.d | V104: n.d | W104: n.d | X104: n.d | Y104: n.d | Z104: n.d | AA104: n.d | AB104: n.d | AE104: 15.35 | AF104: n.d. | AH104: n.d. | AI104: n.d. | AJ104: n.d. | AK104: n.d. | AL104: n.d. | AM104: 628.88 | AN104: n.d. | AO104: n.d. | AP104: n.d. | AQ104: n.d. | AR104: n.d. | AS104: n.d. | AT104: n.d. | AU104: n.d. | AV104: n.d. | AW104: n.d. | AX104: n.d. | AY104: n.d. | AZ104: n.d. | BA104: n.d. | BB104: 1.091061 | BC104: n.d. | BD104: 131.67 | BE104: 1.43 | BF104: n.d. | BG104: n.d. | BH104: n.d. | BI104: n.d. | BJ104: n.d. | BK104: 8.4996 | BL104: n.d. | BM104: =IF('Tipos de Cambio'!$M$9="EuroZona",LOOKUP(1,$BB$2:$BL$2,BB104:BL104),IF('Tipos de Cambio'!$M$9="Reino Unido",LOOKUP(2,$BB$2:$BL$2,BB104:BL104),IF('Tipos de Cambio'!$M$9="Japón",LOOKUP(3,$BB$2:$BL$2,BB104:BL104),IF('Tipos de Cambio'!$M$9="Canadá",LOOKUP(4,$BB$2:$BL$2,BB104:BL104),IF('Tipos de Cambio'!$M$9="Rusia",LOOKUP(5,$BB$2:$BL$2,BB104:BL104),IF('Tipos de Cambio'!$M$9="Brasil",LOOKUP(6,$BB$2:$BL$2,BB104:BL104),IF('Tipos de Cambio'!$M$9="China",LOOKUP(7,$BB$2:$BL$2,BB104:BL104),IF('Tipos de Cambio'!$M$9="India",LOOKUP(8,$BB$2:$BL$2,BB104:BL104),IF('Tipos de Cambio'!$M$9="Sudáfrica",LOOKUP(9,$BB$2:$BL$2,BB104:BL104),IF('Tipos de Cambio'!$M$9="México",LOOKUP(10,$BB$2:$BL$2,BB104:BL104),IF('Tipos de Cambio'!$M$9="Colombia",LOOKUP(11,$BB$2:$BL$2,BB104:BL104)))))))))))) -> n.d. | BN104: 5.66895 | BO104: n.d. | BP104: n.d. | BQ104: n.d. | BR104: n.d. | BS104: n.d. | BT104: n.d. | BU104: n.d. | BV104: n.d. | BW104: n.d. | BX104: n.d. | BY104: n.d. | BZ104: n.d. | CA104: n.d. | CB104: n.d. | CC104: n.d. | CD104: n.d. | CE104: n.d. | CF104: n.d. | CG104: n.d. | CH104: n.d. | CI104: n.d. | CJ104: n.d. | CK104: n.d. | CL104: n.d. | CM104: n.d. | CN104: n.d. | CO104: n.d. | CP104: n.d. | CQ104: n.d. | CR104: n.d. | CS104: n.d. | CT104: n.d. | CU104: n.d. | CV104: n.d. | CW104: 100 | CX104: n.d. | CY104: n.d. | CZ104: n.d. | DA104: n.d. | DB104: n.d. | DC104: n.d. | DD104: n.d. | DE104: n.d. | DF104: n.d. | DG104: n.d. | DH104: n.d. | DI104: 9063.36 | DJ104: 1868.41 | DK104: 1111.75 | DL104: n.d. | DM104: n.d. | DN104: n.d. | DO104: n.d. | DP104: n.d. | DQ104: n.d. | DR104: n.d. | DS104: n.d. | DT104: n.d. | DU104: n.d. | DV104: n.d. | DW104: n.d. | DX104: n.d. | DY104: n.d. | DZ104: n.d. | EA104: n.d. | EB104: n.d. | EC104: n.d.
B105: mayo | C105: 1.686445971 | D105: 1.316511245 | E105: n.d. | F105: n.d. | G105: n.d. | H105: 0.4004004004 | I105: n.d. | J105: n.d. | K105: 4.540717298 | L105: n.d. | M105: n.d. | N105: 14.97076458 | O105: n.d. | P105: n.d | Q105: n.d | R105: n.d | S105: n.d | T105: n.d | U105: n.d | V105: n.d | W105: n.d | X105: n.d | Y105: n.d | Z105: n.d | AA105: n.d | AB105: n.d | AE105: 14.91 | AF105: n.d. | AH105: n.d. | AI105: n.d. | AJ105: n.d. | AK105: n.d. | AL105: n.d. | AM105: 643.72 | AN105: n.d. | AO105: n.d. | AP105: n.d. | AQ105: n.d. | AR105: n.d. | AS105: n.d. | AT105: n.d. | AU105: n.d. | AV105: n.d. | AW105: n.d. | AX105: n.d. | AY105: n.d. | AZ105: n.d. | BA105: n.d. | BB105: 1.109045 | BC105: n.d. | BD105: 135 | BE105: 1.45 | BF105: n.d. | BG105: n.d. | BH105: n.d. | BI105: n.d. | BJ105: n.d. | BK105: 8.5612 | BL105: n.d. | BM105: =IF('Tipos de Cambio'!$M$9="EuroZona",LOOKUP(1,$BB$2:$BL$2,BB105:BL105),IF('Tipos de Cambio'!$M$9="Reino Unido",LOOKUP(2,$BB$2:$BL$2,BB105:BL105),IF('Tipos de Cambio'!$M$9="Japón",LOOKUP(3,$BB$2:$BL$2,BB105:BL105),IF('Tipos de Cambio'!$M$9="Canadá",LOOKUP(4,$BB$2:$BL$2,BB105:BL105),IF('Tipos de Cambio'!$M$9="Rusia",LOOKUP(5,$BB$2:$BL$2,BB105:BL105),IF('Tipos de Cambio'!$M$9="Brasil",LOOKUP(6,$BB$2:$BL$2,BB105:BL105),IF('Tipos de Cambio'!$M$9="China",LOOKUP(7,$BB$2:$BL$2,BB105:BL105),IF('Tipos de Cambio'!$M$9="India",LOOKUP(8,$BB$2:$BL$2,BB105:BL105),IF('Tipos de Cambio'!$M$9="Sudáfrica",LOOKUP(9,$BB$2:$BL$2,BB105:BL105),IF('Tipos de Cambio'!$M$9="México",LOOKUP(10,$BB$2:$BL$2,BB105:BL105),IF('Tipos de Cambio'!$M$9="Colombia",LOOKUP(11,$BB$2:$BL$2,BB105:BL105)))))))))))) -> n.d. | BN105: 5.76542 | BO105: n.d. | BP105: n.d. | BQ105: n.d. | BR105: n.d. | BS105: n.d. | BT105: n.d. | BU105: n.d. | BV105: n.d. | BW105: n.d. | BX105: n.d. | BY105: n.d. | BZ105: n.d. | CA105: n.d. | CB105: n.d. | CC105: n.d. | CD105: n.d. | CE105: n.d. | CF105: n.d. | CG105: n.d. | CH105: n.d. | CI105: n.d. | CJ105: n.d. | CK105: n.d. | CL105: n.d. | CM105: n.d. | CN105: n.d. | CO105: n.d. | CP105: n.d. | CQ105: n.d. | CR105: n.d. | CS105: n.d. | CT105: n.d. | CU105: n.d. | CV105: n.d. | CW105: 100 | CX105: n.d. | CY105: n.d. | CZ105: n.d. | DA105: n.d. | DB105: n.d. | DC105: n.d. | DD105: n.d. | DE105: n.d. | DF105: n.d. | DG105: n.d. | DH105: n.d. | DI105: 8899.95 | DJ105: 1778.87 | DK105: 1090.82 | DL105: n.d. | DM105: n.d. | DN105: n.d. | DO105: n.d. | DP105: n.d. | DQ105: n.d. | DR105: n.d. | DS105: n.d. | DT105: n.d. | DU105: n.d. | DV105: n.d. | DW105: n.d. | DX105: n.d. | DY105: n.d. | DZ105: n.d. | EA105: n.d. | EB105: n.d. | EC105: n.d.
B106: junio | C106: 1.684341859 | D106: 1.329860159 | E106: n.d. | F106: n.d. | G106: n.d. | H106: 0 | I106: n.d. | J106: n.d. | K106: 3.992987738 | L106: n.d. | M106: n.d. | N106: 15.30661449 | O106: n.d. | P106: n.d | Q106: n.d | R106: n.d | S106: n.d | T106: n.d | U106: n.d | V106: n.d | W106: n.d | X106: n.d | Y106: n.d | Z106: n.d | AA106: n.d | AB106: n.d | AE106: 13.72 | AF106: n.d. | AH106: n.d. | AI106: n.d. | AJ106: n.d. | AK106: n.d. | AL106: n.d. | AM106: 583.24 | AN106: n.d. | AO106: n.d. | AP106: n.d. | AQ106: n.d. | AR106: n.d. | AS106: n.d. | AT106: n.d. | AU106: n.d. | AV106: n.d. | AW106: n.d. | AX106: n.d. | AY106: n.d. | AZ106: n.d. | BA106: n.d. | BB106: 1.101406 | BC106: n.d. | BD106: 140.57 | BE106: 1.47 | BF106: n.d. | BG106: n.d. | BH106: n.d. | BI106: n.d. | BJ106: n.d. | BK106: 8.8994 | BL106: n.d. | BM106: =IF('Tipos de Cambio'!$M$9="EuroZona",LOOKUP(1,$BB$2:$BL$2,BB106:BL106),IF('Tipos de Cambio'!$M$9="Reino Unido",LOOKUP(2,$BB$2:$BL$2,BB106:BL106),IF('Tipos de Cambio'!$M$9="Japón",LOOKUP(3,$BB$2:$BL$2,BB106:BL106),IF('Tipos de Cambio'!$M$9="Canadá",LOOKUP(4,$BB$2:$BL$2,BB106:BL106),IF('Tipos de Cambio'!$M$9="Rusia",LOOKUP(5,$BB$2:$BL$2,BB106:BL106),IF('Tipos de Cambio'!$M$9="Brasil",LOOKUP(6,$BB$2:$BL$2,BB106:BL106),IF('Tipos de Cambio'!$M$9="China",LOOKUP(7,$BB$2:$BL$2,BB106:BL106),IF('Tipos de Cambio'!$M$9="India",LOOKUP(8,$BB$2:$BL$2,BB106:BL106),IF('Tipos de Cambio'!$M$9="Sudáfrica",LOOKUP(9,$BB$2:$BL$2,BB106:BL106),IF('Tipos de Cambio'!$M$9="México",LOOKUP(10,$BB$2:$BL$2,BB106:BL106),IF('Tipos de Cambio'!$M$9="Colombia",LOOKUP(11,$BB$2:$BL$2,BB106:BL106)))))))))))) -> n.d. | BN106: 5.74609 | BO106: n.d. | BP106: n.d. | BQ106: n.d. | BR106: n.d. | BS106: n.d. | BT106: n.d. | BU106: n.d. | BV106: n.d. | BW106: n.d. | BX106: n.d. | BY106: n.d. | BZ106: n.d. | CA106: n.d. | CB106: n.d. | CC106: n.d. | CD106: n.d. | CE106: n.d. | CF106: n.d. | CG106: n.d. | CH106: n.d. | CI106: n.d. | CJ106: n.d. | CK106: n.d. | CL106: n.d. | CM106: n.d. | CN106: n.d. | CO106: n.d. | CP106: n.d. | CQ106: n.d. | CR106: n.d. | CS106: n.d. | CT106: n.d. | CU106: n.d. | CV106: n.d. | CW106: 100 | CX106: n.d. | CY106: n.d. | CZ106: n.d. | DA106: n.d. | DB106: n.d. | DC106: n.d. | DD106: n.d. | DE106: n.d. | DF106: n.d. | DG106: n.d. | DH106: n.d. | DI106: 8952.01 | DJ106: 1894.74 | DK106: 1133.84 | DL106: n.d. | DM106: n.d. | DN106: n.d. | DO106: n.d. | DP106: n.d. | DQ106: n.d. | DR106: n.d. | DS106: n.d. | DT106: n.d. | DU106: n.d. | DV106: n.d. | DW106: n.d. | DX106: n.d. | DY106: n.d. | DZ106: n.d. | EA106: n.d. | EB106: n.d. | EC106: n.d.
B107: julio | C107: 1.682242991 | D107: 1.259928787 | E107: n.d. | F107: n.d. | G107: n.d. | H107: -0.3018108652 | I107: n.d. | J107: n.d. | K107: 3.169277012 | L107: n.d. | M107: n.d. | N107: 15.41298272 | O107: n.d. | P107: n.d | Q107: n.d | R107: n.d | S107: n.d | T107: n.d | U107: n.d | V107: n.d | W107: n.d | X107: n.d | Y107: n.d | Z107: n.d | AA107: n.d | AB107: n.d | AE107: 14.17 | AF107: n.d. | AH107: n.d. | AI107: n.d. | AJ107: n.d. | AK107: n.d. | AL107: n.d. | AM107: 583.59 | AN107: n.d. | AO107: n.d. | AP107: n.d. | AQ107: n.d. | AR107: n.d. | AS107: n.d. | AT107: n.d. | AU107: n.d. | AV107: n.d. | AW107: n.d. | AX107: n.d. | AY107: n.d. | AZ107: n.d. | BA107: n.d. | BB107: 1.0975 | BC107: n.d. | BD107: 140.73 | BE107: 1.49 | BF107: n.d. | BG107: n.d. | BH107: n.d. | BI107: n.d. | BJ107: n.d. | BK107: 8.904 | BL107: n.d. | BM107: =IF('Tipos de Cambio'!$M$9="EuroZona",LOOKUP(1,$BB$2:$BL$2,BB107:BL107),IF('Tipos de Cambio'!$M$9="Reino Unido",LOOKUP(2,$BB$2:$BL$2,BB107:BL107),IF('Tipos de Cambio'!$M$9="Japón",LOOKUP(3,$BB$2:$BL$2,BB107:BL107),IF('Tipos de Cambio'!$M$9="Canadá",LOOKUP(4,$BB$2:$BL$2,BB107:BL107),IF('Tipos de Cambio'!$M$9="Rusia",LOOKUP(5,$BB$2:$BL$2,BB107:BL107),IF('Tipos de Cambio'!$M$9="Brasil",LOOKUP(6,$BB$2:$BL$2,BB107:BL107),IF('Tipos de Cambio'!$M$9="China",LOOKUP(7,$BB$2:$BL$2,BB107:BL107),IF('Tipos de Cambio'!$M$9="India",LOOKUP(8,$BB$2:$BL$2,BB107:BL107),IF('Tipos de Cambio'!$M$9="Sudáfrica",LOOKUP(9,$BB$2:$BL$2,BB107:BL107),IF('Tipos de Cambio'!$M$9="México",LOOKUP(10,$BB$2:$BL$2,BB107:BL107),IF('Tipos de Cambio'!$M$9="Colombia",LOOKUP(11,$BB$2:$BL$2,BB107:BL107)))))))))))) -> n.d. | BN107: 5.75136 | BO107: n.d. | BP107: n.d. | BQ107: n.d. | BR107: n.d. | BS107: n.d. | BT107: n.d. | BU107: n.d. | BV107: n.d. | BW107: n.d. | BX107: n.d. | BY107: n.d. | BZ107: n.d. | CA107: n.d. | CB107: n.d. | CC107: n.d. | CD107: n.d. | CE107: n.d. | CF107: n.d. | CG107: n.d. | CH107: n.d. | CI107: n.d. | CJ107: n.d. | CK107: n.d. | CL107: n.d. | CM107: n.d. | CN107: n.d. | CO107: n.d. | CP107: n.d. | CQ107: n.d. | CR107: n.d. | CS107: n.d. | CT107: n.d. | CU107: n.d. | CV107: n.d. | CW107: 100 | CX107: n.d. | CY107: n.d. | CZ107: n.d. | DA107: n.d. | DB107: n.d. | DC107: n.d. | DD107: n.d. | DE107: n.d. | DF107: n.d. | DG107: n.d. | DH107: n.d. | DI107: 8883.29 | DJ107: 1872.39 | DK107: 1120.67 | DL107: n.d. | DM107: n.d. | DN107: n.d. | DO107: n.d. | DP107: n.d. | DQ107: n.d. | DR107: n.d. | DS107: n.d. | DT107: n.d. | DU107: n.d. | DV107: n.d. | DW107: n.d. | DX107: n.d. | DY107: n.d. | DZ107: n.d. | EA107: n.d. | EB107: n.d. | EC107: n.d.
B108: agosto | C108: 1.616915423 | D108: 1.134809954 | E108: n.d. | F108: n.d. | G108: n.d. | H108: -0.5025125628 | I108: n.d. | J108: n.d. | K108: 2.814214617 | L108: n.d. | M108: n.d. | N108: 15.4955573 | O108: n.d. | P108: n.d | Q108: n.d | R108: n.d | S108: n.d | T108: n.d | U108: n.d | V108: n.d | W108: n.d | X108: n.d | Y108: n.d | Z108: n.d | AA108: n.d | AB108: n.d | AE108: 13.47 | AF108: n.d. | AH108: n.d. | AI108: n.d. | AJ108: n.d. | AK108: n.d. | AL108: n.d. | AM108: 589.9 | AN108: n.d. | AO108: n.d. | AP108: n.d. | AQ108: n.d. | AR108: n.d. | AS108: n.d. | AT108: n.d. | AU108: n.d. | AV108: n.d. | AW108: n.d. | AX108: n.d. | AY108: n.d. | AZ108: n.d. | BA108: n.d. | BB108: 1.101566 | BC108: n.d. | BD108: 144.65 | BE108: 1.54 | BF108: n.d. | BG108: n.d. | BH108: n.d. | BI108: n.d. | BJ108: n.d. | BK108: 9.2596 | BL108: n.d. | BM108: =IF('Tipos de Cambio'!$M$9="EuroZona",LOOKUP(1,$BB$2:$BL$2,BB108:BL108),IF('Tipos de Cambio'!$M$9="Reino Unido",LOOKUP(2,$BB$2:$BL$2,BB108:BL108),IF('Tipos de Cambio'!$M$9="Japón",LOOKUP(3,$BB$2:$BL$2,BB108:BL108),IF('Tipos de Cambio'!$M$9="Canadá",LOOKUP(4,$BB$2:$BL$2,BB108:BL108),IF('Tipos de Cambio'!$M$9="Rusia",LOOKUP(5,$BB$2:$BL$2,BB108:BL108),IF('Tipos de Cambio'!$M$9="Brasil",LOOKUP(6,$BB$2:$BL$2,BB108:BL108),IF('Tipos de Cambio'!$M$9="China",LOOKUP(7,$BB$2:$BL$2,BB108:BL108),IF('Tipos de Cambio'!$M$9="India",LOOKUP(8,$BB$2:$BL$2,BB108:BL108),IF('Tipos de Cambio'!$M$9="Sudáfrica",LOOKUP(9,$BB$2:$BL$2,BB108:BL108),IF('Tipos de Cambio'!$M$9="México",LOOKUP(10,$BB$2:$BL$2,BB108:BL108),IF('Tipos de Cambio'!$M$9="Colombia",LOOKUP(11,$BB$2:$BL$2,BB108:BL108)))))))))))) -> n.d. | BN108: 5.71406 | BO108: n.d. | BP108: n.d. | BQ108: n.d. | BR108: n.d. | BS108: n.d. | BT108: n.d. | BU108: n.d. | BV108: n.d. | BW108: n.d. | BX108: n.d. | BY108: n.d. | BZ108: n.d. | CA108: n.d. | CB108: n.d. | CC108: n.d. | CD108: n.d. | CE108: n.d. | CF108: n.d. | CG108: n.d. | CH108: n.d. | CI108: n.d. | CJ108: n.d. | CK108: n.d. | CL108: n.d. | CM108: n.d. | CN108: n.d. | CO108: n.d. | CP108: n.d. | CQ108: n.d. | CR108: n.d. | CS108: n.d. | CT108: n.d. | CU108: n.d. | CV108: n.d. | CW108: 100 | CX108: n.d. | CY108: n.d. | CZ108: n.d. | DA108: n.d. | DB108: n.d. | DC108: n.d. | DD108: n.d. | DE108: n.d. | DF108: n.d. | DG108: n.d. | DH108: n.d. | DI108: 7539.06 | DJ108: 1499.25 | DK108: 957.28 | DL108: n.d. | DM108: n.d. | DN108: n.d. | DO108: n.d. | DP108: n.d. | DQ108: n.d. | DR108: n.d. | DS108: n.d. | DT108: n.d. | DU108: n.d. | DV108: n.d. | DW108: n.d. | DX108: n.d. | DY108: n.d. | DZ108: n.d. | EA108: n.d. | EB108: n.d. | EC108: n.d.
B109: septiembre | C109: 1.488833747 | D109: 0.9975403116 | E109: n.d. | F109: n.d. | G109: n.d. | H109: -0.2994011976 | I109: n.d. | J109: n.d. | K109: 2.54180665 | L109: n.d. | M109: n.d. | N109: 15.92492389 | O109: n.d. | P109: n.d | Q109: n.d | R109: n.d | S109: n.d | T109: n.d | U109: n.d | V109: n.d | W109: n.d | X109: n.d | Y109: n.d | Z109: n.d | AA109: n.d | AB109: n.d | AE109: 15.03 | AF109: n.d. | AH109: n.d. | AI109: n.d. | AJ109: n.d. | AK109: n.d. | AL109: n.d. | AM109: 626.84 | AN109: n.d. | AO109: n.d. | AP109: n.d. | AQ109: n.d. | AR109: n.d. | AS109: n.d. | AT109: n.d. | AU109: n.d. | AV109: n.d. | AW109: n.d. | AX109: n.d. | AY109: n.d. | AZ109: n.d. | BA109: n.d. | BB109: 1.154125 | BC109: n.d. | BD109: 134.59 | BE109: 1.52 | BF109: n.d. | BG109: n.d. | BH109: n.d. | BI109: n.d. | BJ109: n.d. | BK109: 10.2154 | BL109: n.d. | BM109: =IF('Tipos de Cambio'!$M$9="EuroZona",LOOKUP(1,$BB$2:$BL$2,BB109:BL109),IF('Tipos de Cambio'!$M$9="Reino Unido",LOOKUP(2,$BB$2:$BL$2,BB109:BL109),IF('Tipos de Cambio'!$M$9="Japón",LOOKUP(3,$BB$2:$BL$2,BB109:BL109),IF('Tipos de Cambio'!$M$9="Canadá",LOOKUP(4,$BB$2:$BL$2,BB109:BL109),IF('Tipos de Cambio'!$M$9="Rusia",LOOKUP(5,$BB$2:$BL$2,BB109:BL109),IF('Tipos de Cambio'!$M$9="Brasil",LOOKUP(6,$BB$2:$BL$2,BB109:BL109),IF('Tipos de Cambio'!$M$9="China",LOOKUP(7,$BB$2:$BL$2,BB109:BL109),IF('Tipos de Cambio'!$M$9="India",LOOKUP(8,$BB$2:$BL$2,BB109:BL109),IF('Tipos de Cambio'!$M$9="Sudáfrica",LOOKUP(9,$BB$2:$BL$2,BB109:BL109),IF('Tipos de Cambio'!$M$9="México",LOOKUP(10,$BB$2:$BL$2,BB109:BL109),IF('Tipos de Cambio'!$M$9="Colombia",LOOKUP(11,$BB$2:$BL$2,BB109:BL109)))))))))))) -> n.d. | BN109: 5.41146 | BO109: n.d. | BP109: n.d. | BQ109: n.d. | BR109: n.d. | BS109: n.d. | BT109: n.d. | BU109: n.d. | BV109: n.d. | BW109: n.d. | BX109: n.d. | BY109: n.d. | BZ109: n.d. | CA109: n.d. | CB109: n.d. | CC109: n.d. | CD109: n.d. | CE109: n.d. | CF109: n.d. | CG109: n.d. | CH109: n.d. | CI109: n.d. | CJ109: n.d. | CK109: n.d. | CL109: n.d. | CM109: n.d. | CN109: n.d. | CO109: n.d. | CP109: n.d. | CQ109: n.d. | CR109: n.d. | CS109: n.d. | CT109: n.d. | CU109: n.d. | CV109: n.d. | CW109: 100 | CX109: n.d. | CY109: n.d. | CZ109: n.d. | DA109: n.d. | DB109: n.d. | DC109: n.d. | DD109: n.d. | DE109: n.d. | DF109: n.d. | DG109: n.d. | DH109: n.d. | DI109: 7842.62 | DJ109: 1693.84 | DK109: 1017.01 | DL109: n.d. | DM109: n.d. | DN109: n.d. | DO109: n.d. | DP109: n.d. | DQ109: n.d. | DR109: n.d. | DS109: n.d. | DT109: n.d. | DU109: n.d. | DV109: n.d. | DW109: n.d. | DX109: n.d. | DY109: n.d. | DZ109: n.d. | EA109: n.d. | EB109: n.d. | EC109: n.d.
B110: octubre | C110: 1.485148515 | D110: 0.9288348586 | E110: n.d. | F110: n.d. | G110: n.d. | H110: 0.1990049751 | I110: n.d. | J110: n.d. | K110: 0.08683392312 | L110: n.d. | M110: n.d. | N110: 16.65384342 | O110: n.d. | P110: n.d | Q110: n.d | R110: n.d | S110: n.d | T110: n.d | U110: n.d | V110: n.d | W110: n.d | X110: n.d | Y110: n.d | Z110: n.d | AA110: n.d | AB110: n.d | AE110: 14.46 | AF110: n.d. | AH110: n.d. | AI110: n.d. | AJ110: n.d. | AK110: n.d. | AL110: n.d. | AM110: 613.46 | AN110: n.d. | AO110: n.d. | AP110: n.d. | AQ110: n.d. | AR110: n.d. | AS110: n.d. | AT110: n.d. | AU110: n.d. | AV110: n.d. | AW110: n.d. | AX110: n.d. | AY110: n.d. | AZ110: n.d. | BA110: n.d. | BB110: 1.193755001 | BC110: n.d. | BD110: 121.3 | BE110: 1.55 | BF110: n.d. | BG110: n.d. | BH110: n.d. | BI110: n.d. | BJ110: n.d. | BK110: 10.1523 | BL110: n.d. | BM110: =IF('Tipos de Cambio'!$M$9="EuroZona",LOOKUP(1,$BB$2:$BL$2,BB110:BL110),IF('Tipos de Cambio'!$M$9="Reino Unido",LOOKUP(2,$BB$2:$BL$2,BB110:BL110),IF('Tipos de Cambio'!$M$9="Japón",LOOKUP(3,$BB$2:$BL$2,BB110:BL110),IF('Tipos de Cambio'!$M$9="Canadá",LOOKUP(4,$BB$2:$BL$2,BB110:BL110),IF('Tipos de Cambio'!$M$9="Rusia",LOOKUP(5,$BB$2:$BL$2,BB110:BL110),IF('Tipos de Cambio'!$M$9="Brasil",LOOKUP(6,$BB$2:$BL$2,BB110:BL110),IF('Tipos de Cambio'!$M$9="China",LOOKUP(7,$BB$2:$BL$2,BB110:BL110),IF('Tipos de Cambio'!$M$9="India",LOOKUP(8,$BB$2:$BL$2,BB110:BL110),IF('Tipos de Cambio'!$M$9="Sudáfrica",LOOKUP(9,$BB$2:$BL$2,BB110:BL110),IF('Tipos de Cambio'!$M$9="México",LOOKUP(10,$BB$2:$BL$2,BB110:BL110),IF('Tipos de Cambio'!$M$9="Colombia",LOOKUP(11,$BB$2:$BL$2,BB110:BL110)))))))))))) -> n.d. | BN110: 5.05946 | BO110: n.d. | BP110: n.d. | BQ110: n.d. | BR110: n.d. | BS110: n.d. | BT110: n.d. | BU110: n.d. | BV110: n.d. | BW110: n.d. | BX110: n.d. | BY110: n.d. | BZ110: n.d. | CA110: n.d. | CB110: n.d. | CC110: n.d. | CD110: n.d. | CE110: n.d. | CF110: n.d. | CG110: n.d. | CH110: n.d. | CI110: n.d. | CJ110: n.d. | CK110: n.d. | CL110: n.d. | CM110: n.d. | CN110: n.d. | CO110: n.d. | CP110: n.d. | CQ110: n.d. | CR110: n.d. | CS110: n.d. | CT110: n.d. | CU110: n.d. | CV110: n.d. | CW110: 100 | CX110: n.d. | CY110: n.d. | CZ110: n.d. | DA110: n.d. | DB110: n.d. | DC110: n.d. | DD110: n.d. | DE110: n.d. | DF110: n.d. | DG110: n.d. | DH110: n.d. | DI110: 8592.11 | DJ110: 1771.39 | DK110: 1098.67 | DL110: n.d. | DM110: n.d. | DN110: n.d. | DO110: n.d. | DP110: n.d. | DQ110: n.d. | DR110: n.d. | DS110: n.d. | DT110: n.d. | DU110: n.d. | DV110: n.d. | DW110: n.d. | DX110: n.d. | DY110: n.d. | DZ110: n.d. | EA110: n.d. | EB110: n.d. | EC110: n.d.
B111: noviembre | C111: 1.547987616 | D111: 0.8049113233 | E111: n.d. | F111: n.d. | G111: n.d. | H111: 0.8016032064 | I111: n.d. | J111: n.d. | K111: -0.6953247334 | L111: n.d. | M111: n.d. | N111: 17.40626722 | O111: n.d. | P111: n.d | Q111: n.d | R111: n.d | S111: n.d | T111: n.d | U111: n.d | V111: n.d | W111: n.d | X111: n.d | Y111: n.d | Z111: n.d | AA111: n.d | AB111: n.d | AE111: 13 | AF111: n.d. | AH111: n.d. | AI111: n.d. | AJ111: n.d. | AK111: n.d. | AL111: n.d. | AM111: 616.53 | AN111: n.d. | AO111: n.d. | AP111: n.d. | AQ111: n.d. | AR111: n.d. | AS111: n.d. | AT111: n.d. | AU111: n.d. | AV111: n.d. | AW111: n.d. | AX111: n.d. | AY111: n.d. | AZ111: n.d. | BA111: n.d. | BB111: 1.164422999 | BC111: n.d. | BD111: 120.58 | BE111: 1.54 | BF111: n.d. | BG111: n.d. | BH111: n.d. | BI111: n.d. | BJ111: n.d. | BK111: 9.9874 | BL111: n.d. | BM111: =IF('Tipos de Cambio'!$M$9="EuroZona",LOOKUP(1,$BB$2:$BL$2,BB111:BL111),IF('Tipos de Cambio'!$M$9="Reino Unido",LOOKUP(2,$BB$2:$BL$2,BB111:BL111),IF('Tipos de Cambio'!$M$9="Japón",LOOKUP(3,$BB$2:$BL$2,BB111:BL111),IF('Tipos de Cambio'!$M$9="Canadá",LOOKUP(4,$BB$2:$BL$2,BB111:BL111),IF('Tipos de Cambio'!$M$9="Rusia",LOOKUP(5,$BB$2:$BL$2,BB111:BL111),IF('Tipos de Cambio'!$M$9="Brasil",LOOKUP(6,$BB$2:$BL$2,BB111:BL111),IF('Tipos de Cambio'!$M$9="China",LOOKUP(7,$BB$2:$BL$2,BB111:BL111),IF('Tipos de Cambio'!$M$9="India",LOOKUP(8,$BB$2:$BL$2,BB111:BL111),IF('Tipos de Cambio'!$M$9="Sudáfrica",LOOKUP(9,$BB$2:$BL$2,BB111:BL111),IF('Tipos de Cambio'!$M$9="México",LOOKUP(10,$BB$2:$BL$2,BB111:BL111),IF('Tipos de Cambio'!$M$9="Colombia",LOOKUP(11,$BB$2:$BL$2,BB111:BL111)))))))))))) -> n.d. | BN111: 5.15021 | BO111: n.d. | BP111: n.d. | BQ111: n.d. | BR111: n.d. | BS111: n.d. | BT111: n.d. | BU111: n.d. | BV111: n.d. | BW111: n.d. | BX111: n.d. | BY111: n.d. | BZ111: n.d. | CA111: n.d. | CB111: n.d. | CC111: n.d. | CD111: n.d. | CE111: n.d. | CF111: n.d. | CG111: n.d. | CH111: n.d. | CI111: n.d. | CJ111: n.d. | CK111: n.d. | CL111: n.d. | CM111: n.d. | CN111: n.d. | CO111: n.d. | CP111: n.d. | CQ111: n.d. | CR111: n.d. | CS111: n.d. | CT111: n.d. | CU111: n.d. | CV111: n.d. | CW111: 100 | CX111: n.d. | CY111: n.d. | CZ111: n.d. | DA111: n.d. | DB111: n.d. | DC111: n.d. | DD111: n.d. | DE111: n.d. | DF111: n.d. | DG111: n.d. | DH111: n.d. | DI111: 9116.55 | DJ111: 1949.54 | DK111: 1163.63 | DL111: n.d. | DM111: n.d. | DN111: n.d. | DO111: n.d. | DP111: n.d. | DQ111: n.d. | DR111: n.d. | DS111: n.d. | DT111: n.d. | DU111: n.d. | DV111: n.d. | DW111: n.d. | DX111: n.d. | DY111: n.d. | DZ111: n.d. | EA111: n.d. | EB111: n.d. | EC111: n.d.
B112: diciembre | C112: 1.611903286 | D112: 0.7358953393 | E112: n.d. | F112: n.d. | G112: n.d. | H112: 0.5020080321 | I112: n.d. | J112: n.d. | K112: -1.645486069 | L112: n.d. | M112: n.d. | N112: 18.60914414 | O112: n.d. | P112: n.d | Q112: n.d | R112: n.d | S112: n.d | T112: n.d | U112: n.d | V112: n.d | W112: n.d | X112: n.d | Y112: n.d | Z112: n.d | AA112: n.d | AB112: n.d | AE112: 11.35 | AF112: n.d. | AH112: n.d. | AI112: n.d. | AJ112: n.d. | AK112: n.d. | AL112: n.d. | AM112: 579.74 | AN112: n.d. | AO112: n.d. | AP112: n.d. | AQ112: n.d. | AR112: n.d. | AS112: n.d. | AT112: n.d. | AU112: n.d. | AV112: n.d. | AW112: n.d. | AX112: n.d. | AY112: n.d. | AZ112: n.d. | BA112: n.d. | BB112: 1.172122 | BC112: n.d. | BD112: 117.62 | BE112: 1.54 | BF112: n.d. | BG112: n.d. | BH112: n.d. | BI112: n.d. | BJ112: n.d. | BK112: 9.9117 | BL112: n.d. | BM112: =IF('Tipos de Cambio'!$M$9="EuroZona",LOOKUP(1,$BB$2:$BL$2,BB112:BL112),IF('Tipos de Cambio'!$M$9="Reino Unido",LOOKUP(2,$BB$2:$BL$2,BB112:BL112),IF('Tipos de Cambio'!$M$9="Japón",LOOKUP(3,$BB$2:$BL$2,BB112:BL112),IF('Tipos de Cambio'!$M$9="Canadá",LOOKUP(4,$BB$2:$BL$2,BB112:BL112),IF('Tipos de Cambio'!$M$9="Rusia",LOOKUP(5,$BB$2:$BL$2,BB112:BL112),IF('Tipos de Cambio'!$M$9="Brasil",LOOKUP(6,$BB$2:$BL$2,BB112:BL112),IF('Tipos de Cambio'!$M$9="China",LOOKUP(7,$BB$2:$BL$2,BB112:BL112),IF('Tipos de Cambio'!$M$9="India",LOOKUP(8,$BB$2:$BL$2,BB112:BL112),IF('Tipos de Cambio'!$M$9="Sudáfrica",LOOKUP(9,$BB$2:$BL$2,BB112:BL112),IF('Tipos de Cambio'!$M$9="México",LOOKUP(10,$BB$2:$BL$2,BB112:BL112),IF('Tipos de Cambio'!$M$9="Colombia",LOOKUP(11,$BB$2:$BL$2,BB112:BL112)))))))))))) -> n.d. | BN112: 5.09256 | BO112: n.d. | BP112: n.d. | BQ112: n.d. | BR112: n.d. | BS112: n.d. | BT112: n.d. | BU112: n.d. | BV112: n.d. | BW112: n.d. | BX112: n.d. | BY112: n.d. | BZ112: n.d. | CA112: n.d. | CB112: n.d. | CC112: n.d. | CD112: n.d. | CE112: n.d. | CF112: n.d. | CG112: n.d. | CH112: n.d. | CI112: n.d. | CJ112: n.d. | CK112: n.d. | CL112: n.d. | CM112: n.d. | CN112: n.d. | CO112: n.d. | CP112: n.d. | CQ112: n.d. | CR112: n.d. | CS112: n.d. | CT112: n.d. | CU112: n.d. | CV112: n.d. | CW112: 100 | CX112: n.d. | CY112: n.d. | CZ112: n.d. | DA112: n.d. | DB112: n.d. | DC112: n.d. | DD112: n.d. | DE112: n.d. | DF112: n.d. | DG112: n.d. | DH112: n.d. | DI112: 9181.43 | DJ112: 2192.69 | DK112: 1229.23 | DL112: n.d. | DM112: n.d. | DN112: n.d. | DO112: n.d. | DP112: n.d. | DQ112: n.d. | DR112: n.d. | DS112: n.d. | DT112: n.d. | DU112: n.d. | DV112: n.d. | DW112: n.d. | DX112: n.d. | DY112: n.d. | DZ112: n.d. | EA112: n.d. | EB112: n.d. | EC112: n.d.
A113: 1999 | B113: enero | C113: 1.670792079 | D113: 0.7501363884 | E113: n.d. | F113: n.d. | G113: n.d. | H113: 0.2010050251 | I113: n.d. | J113: n.d. | K113: -1.039352218 | L113: n.d. | M113: n.d. | N113: 19.015 | O113: n.d. | P113: n.d | Q113: n.d | R113: n.d | S113: n.d | T113: n.d | U113: n.d | V113: n.d | W113: n.d | X113: n.d | Y113: n.d | Z113: n.d | AA113: n.d | AB113: n.d | AE113: 12.52 | AF113: n.d. | AH113: n.d. | AI113: n.d. | AJ113: n.d. | AK113: n.d. | AL113: n.d. | AM113: 560.56 | AN113: n.d. | AO113: n.d. | AP113: n.d. | AQ113: n.d. | AR113: n.d. | AS113: n.d. | AT113: n.d. | AU113: n.d. | AV113: n.d. | AW113: n.d. | AX113: n.d. | AY113: n.d. | AZ113: n.d. | BA113: n.d. | BB113: 1.16078 | BC113: n.d. | BD113: 113.1835 | BE113: 1.52 | BF113: n.d. | BG113: n.d. | BH113: n.d. | BI113: n.d. | BJ113: n.d. | BK113: 10.1104 | BL113: n.d. | BM113: =IF('Tipos de Cambio'!$M$9="EuroZona",LOOKUP(1,$BB$2:$BL$2,BB113:BL113),IF('Tipos de Cambio'!$M$9="Reino Unido",LOOKUP(2,$BB$2:$BL$2,BB113:BL113),IF('Tipos de Cambio'!$M$9="Japón",LOOKUP(3,$BB$2:$BL$2,BB113:BL113),IF('Tipos de Cambio'!$M$9="Canadá",LOOKUP(4,$BB$2:$BL$2,BB113:BL113),IF('Tipos de Cambio'!$M$9="Rusia",LOOKUP(5,$BB$2:$BL$2,BB113:BL113),IF('Tipos de Cambio'!$M$9="Brasil",LOOKUP(6,$BB$2:$BL$2,BB113:BL113),IF('Tipos de Cambio'!$M$9="China",LOOKUP(7,$BB$2:$BL$2,BB113:BL113),IF('Tipos de Cambio'!$M$9="India",LOOKUP(8,$BB$2:$BL$2,BB113:BL113),IF('Tipos de Cambio'!$M$9="Sudáfrica",LOOKUP(9,$BB$2:$BL$2,BB113:BL113),IF('Tipos de Cambio'!$M$9="México",LOOKUP(10,$BB$2:$BL$2,BB113:BL113),IF('Tipos de Cambio'!$M$9="Colombia",LOOKUP(11,$BB$2:$BL$2,BB113:BL113)))))))))))) -> n.d. | BN113: 5.01204 | BO113: n.d. | BP113: n.d. | BQ113: n.d. | BR113: n.d. | BS113: n.d. | BT113: n.d. | BU113: n.d. | BV113: n.d. | BW113: n.d. | BX113: n.d. | BY113: n.d. | BZ113: n.d. | CA113: n.d. | CB113: n.d. | CC113: n.d. | CD113: n.d. | CE113: n.d. | CF113: n.d. | CG113: n.d. | CH113: n.d. | CI113: n.d. | CJ113: n.d. | CK113: n.d. | CL113: n.d. | CM113: n.d. | CN113: n.d. | CO113: n.d. | CP113: n.d. | CQ113: n.d. | CR113: n.d. | CS113: n.d. | CT113: n.d. | CU113: n.d. | CV113: n.d. | CW113: 100 | CX113: n.d. | CY113: n.d. | CZ113: n.d. | DA113: n.d. | DB113: n.d. | DC113: n.d. | DD113: n.d. | DE113: n.d. | DF113: n.d. | DG113: n.d. | DH113: n.d. | DI113: 9358.82 | DJ113: 2505.89 | DK113: 1279.64 | DL113: n.d. | DM113: n.d. | DN113: n.d. | DO113: n.d. | DP113: n.d. | DQ113: n.d. | DR113: n.d. | DS113: n.d. | DT113: n.d. | DU113: n.d. | DV113: n.d. | DW113: n.d. | DX113: n.d. | DY113: n.d. | DZ113: n.d. | EA113: n.d. | EB113: n.d. | EC113: n.d.
B114: febrero | C114: 1.605929586 | D114: 0.7344940152 | E114: n.d. | F114: n.d. | G114: n.d. | H114: 0 | I114: n.d. | J114: n.d. | K114: -1.725048407 | L114: n.d. | M114: n.d. | N114: 18.53915106 | O114: n.d. | P114: n.d | Q114: n.d | R114: n.d | S114: n.d | T114: n.d | U114: n.d | V114: n.d | W114: n.d | X114: n.d | Y114: n.d | Z114: n.d | AA114: n.d | AB114: n.d | AE114: 12.01 | AF114: n.d. | AH114: n.d. | AI114: n.d. | AJ114: n.d. | AK114: n.d. | AL114: n.d. | AM114: 484.72 | AN114: n.d. | AO114: n.d. | AP114: n.d. | AQ114: n.d. | AR114: n.d. | AS114: n.d. | AT114: n.d. | AU114: n.d. | AV114: n.d. | AW114: n.d. | AX114: n.d. | AY114: n.d. | AZ114: n.d. | BA114: n.d. | BB114: 1.120765 | BC114: n.d. | BD114: 116.6635 | BE114: 1.5 | BF114: n.d. | BG114: n.d. | BH114: n.d. | BI114: n.d. | BJ114: n.d. | BK114: 10.015 | BL114: n.d. | BM114: =IF('Tipos de Cambio'!$M$9="EuroZona",LOOKUP(1,$BB$2:$BL$2,BB114:BL114),IF('Tipos de Cambio'!$M$9="Reino Unido",LOOKUP(2,$BB$2:$BL$2,BB114:BL114),IF('Tipos de Cambio'!$M$9="Japón",LOOKUP(3,$BB$2:$BL$2,BB114:BL114),IF('Tipos de Cambio'!$M$9="Canadá",LOOKUP(4,$BB$2:$BL$2,BB114:BL114),IF('Tipos de Cambio'!$M$9="Rusia",LOOKUP(5,$BB$2:$BL$2,BB114:BL114),IF('Tipos de Cambio'!$M$9="Brasil",LOOKUP(6,$BB$2:$BL$2,BB114:BL114),IF('Tipos de Cambio'!$M$9="China",LOOKUP(7,$BB$2:$BL$2,BB114:BL114),IF('Tipos de Cambio'!$M$9="India",LOOKUP(8,$BB$2:$BL$2,BB114:BL114),IF('Tipos de Cambio'!$M$9="Sudáfrica",LOOKUP(9,$BB$2:$BL$2,BB114:BL114),IF('Tipos de Cambio'!$M$9="México",LOOKUP(10,$BB$2:$BL$2,BB114:BL114),IF('Tipos de Cambio'!$M$9="Colombia",LOOKUP(11,$BB$2:$BL$2,BB114:BL114)))))))))))) -> n.d. | BN114: 5.04855 | BO114: n.d. | BP114: n.d. | BQ114: n.d. | BR114: n.d. | BS114: n.d. | BT114: n.d. | BU114: n.d. | BV114: n.d. | BW114: n.d. | BX114: n.d. | BY114: n.d. | BZ114: n.d. | CA114: n.d. | CB114: n.d. | CC114: n.d. | CD114: n.d. | CE114: n.d. | CF114: n.d. | CG114: n.d. | CH114: n.d. | CI114: n.d. | CJ114: n.d. | CK114: n.d. | CL114: n.d. | CM114: n.d. | CN114: n.d. | CO114: n.d. | CP114: n.d. | CQ114: n.d. | CR114: n.d. | CS114: n.d. | CT114: n.d. | CU114: n.d. | CV114: n.d. | CW114: 100 | CX114: n.d. | CY114: n.d. | CZ114: n.d. | DA114: n.d. | DB114: n.d. | DC114: n.d. | DD114: n.d. | DE114: n.d. | DF114: n.d. | DG114: n.d. | DH114: n.d. | DI114: 9306.57 | DJ114: 2288.03 | DK114: 1238.33 | DL114: n.d. | DM114: n.d. | DN114: n.d. | DO114: n.d. | DP114: n.d. | DQ114: n.d. | DR114: n.d. | DS114: n.d. | DT114: n.d. | DU114: n.d. | DV114: n.d. | DW114: n.d. | DX114: n.d. | DY114: n.d. | DZ114: n.d. | EA114: n.d. | EB114: n.d. | EC114: n.d.
B115: marzo | C115: 1.726263872 | D115: 0.9377548247 | E115: n.d. | F115: n.d. | G115: n.d. | H115: -0.4012036108 | I115: n.d. | J115: n.d. | K115: -2.581801717 | L115: n.d. | M115: n.d. | N115: 18.25520801 | O115: n.d. | P115: n.d | Q115: n.d | R115: n.d | S115: n.d | T115: n.d | U115: n.d | V115: n.d | W115: n.d | X115: n.d | Y115: n.d | Z115: n.d | AA115: n.d | AB115: n.d | AE115: 14.68 | AF115: n.d. | AH115: n.d. | AI115: n.d. | AJ115: n.d. | AK115: n.d. | AL115: n.d. | AM115: 428.77 | AN115: n.d. | AO115: n.d. | AP115: n.d. | AQ115: n.d. | AR115: n.d. | AS115: n.d. | AT115: n.d. | AU115: n.d. | AV115: n.d. | AW115: n.d. | AX115: n.d. | AY115: n.d. | AZ115: n.d. | BA115: n.d. | BB115: 1.088296 | BC115: n.d. | BD115: 119.78 | BE115: 1.52 | BF115: n.d. | BG115: n.d. | BH115: n.d. | BI115: n.d. | BJ115: n.d. | BK115: 9.7694 | BL115: n.d. | BM115: =IF('Tipos de Cambio'!$M$9="EuroZona",LOOKUP(1,$BB$2:$BL$2,BB115:BL115),IF('Tipos de Cambio'!$M$9="Reino Unido",LOOKUP(2,$BB$2:$BL$2,BB115:BL115),IF('Tipos de Cambio'!$M$9="Japón",LOOKUP(3,$BB$2:$BL$2,BB115:BL115),IF('Tipos de Cambio'!$M$9="Canadá",LOOKUP(4,$BB$2:$BL$2,BB115:BL115),IF('Tipos de Cambio'!$M$9="Rusia",LOOKUP(5,$BB$2:$BL$2,BB115:BL115),IF('Tipos de Cambio'!$M$9="Brasil",LOOKUP(6,$BB$2:$BL$2,BB115:BL115),IF('Tipos de Cambio'!$M$9="China",LOOKUP(7,$BB$2:$BL$2,BB115:BL115),IF('Tipos de Cambio'!$M$9="India",LOOKUP(8,$BB$2:$BL$2,BB115:BL115),IF('Tipos de Cambio'!$M$9="Sudáfrica",LOOKUP(9,$BB$2:$BL$2,BB115:BL115),IF('Tipos de Cambio'!$M$9="México",LOOKUP(10,$BB$2:$BL$2,BB115:BL115),IF('Tipos de Cambio'!$M$9="Colombia",LOOKUP(11,$BB$2:$BL$2,BB115:BL115)))))))))))) -> n.d. | BN115: 5.09461 | BO115: n.d. | BP115: n.d. | BQ115: n.d. | BR115: n.d. | BS115: n.d. | BT115: n.d. | BU115: n.d. | BV115: n.d. | BW115: n.d. | BX115: n.d. | BY115: n.d. | BZ115: n.d. | CA115: n.d. | CB115: n.d. | CC115: n.d. | CD115: n.d. | CE115: n.d. | CF115: n.d. | CG115: n.d. | CH115: n.d. | CI115: n.d. | CJ115: n.d. | CK115: n.d. | CL115: n.d. | CM115: n.d. | CN115: n.d. | CO115: n.d. | CP115: n.d. | CQ115: n.d. | CR115: n.d. | CS115: n.d. | CT115: n.d. | CU115: n.d. | CV115: n.d. | CW115: 100 | CX115: n.d. | CY115: n.d. | CZ115: n.d. | DA115: n.d. | DB115: n.d. | DC115: n.d. | DD115: n.d. | DE115: n.d. | DF115: n.d. | DG115: n.d. | DH115: n.d. | DI115: 9786.16 | DJ115: 2461.4 | DK115: 1286.37 | DL115: n.d. | DM115: n.d. | DN115: n.d. | DO115: n.d. | DP115: n.d. | DQ115: n.d. | DR115: n.d. | DS115: n.d. | DT115: n.d. | DU115: n.d. | DV115: n.d. | DW115: n.d. | DX115: n.d. | DY115: n.d. | DZ115: n.d. | EA115: n.d. | EB115: n.d. | EC115: n.d.
B116: abril | C116: 2.276923077 | D116: 1.057914011 | E116: n.d. | F116: n.d. | G116: n.d. | H116: -0.1001001001 | I116: n.d. | J116: n.d. | K116: -3.754466331 | L116: n.d. | M116: n.d. | N116: 18.23425471 | O116: n.d. | P116: n.d | Q116: n.d | R116: n.d | S116: n.d | T116: n.d | U116: n.d | V116: n.d | W116: n.d | X116: n.d | Y116: n.d | Z116: n.d | AA116: n.d | AB116: n.d | AE116: 17.31 | AF116: n.d. | AH116: n.d. | AI116: n.d. | AJ116: n.d. | AK116: n.d. | AL116: n.d. | AM116: 439.74 | AN116: n.d. | AO116: n.d. | AP116: n.d. | AQ116: n.d. | AR116: n.d. | AS116: n.d. | AT116: n.d. | AU116: n.d. | AV116: n.d. | AW116: n.d. | AX116: n.d. | AY116: n.d. | AZ116: n.d. | BA116: n.d. | BB116: 1.070441001 | BC116: n.d. | BD116: 119.81 | BE116: 1.49 | BF116: n.d. | BG116: n.d. | BH116: n.d. | BI116: n.d. | BJ116: n.d. | BK116: 9.4461 | BL116: n.d. | BM116: =IF('Tipos de Cambio'!$M$9="EuroZona",LOOKUP(1,$BB$2:$BL$2,BB116:BL116),IF('Tipos de Cambio'!$M$9="Reino Unido",LOOKUP(2,$BB$2:$BL$2,BB116:BL116),IF('Tipos de Cambio'!$M$9="Japón",LOOKUP(3,$BB$2:$BL$2,BB116:BL116),IF('Tipos de Cambio'!$M$9="Canadá",LOOKUP(4,$BB$2:$BL$2,BB116:BL116),IF('Tipos de Cambio'!$M$9="Rusia",LOOKUP(5,$BB$2:$BL$2,BB116:BL116),IF('Tipos de Cambio'!$M$9="Brasil",LOOKUP(6,$BB$2:$BL$2,BB116:BL116),IF('Tipos de Cambio'!$M$9="China",LOOKUP(7,$BB$2:$BL$2,BB116:BL116),IF('Tipos de Cambio'!$M$9="India",LOOKUP(8,$BB$2:$BL$2,BB116:BL116),IF('Tipos de Cambio'!$M$9="Sudáfrica",LOOKUP(9,$BB$2:$BL$2,BB116:BL116),IF('Tipos de Cambio'!$M$9="México",LOOKUP(10,$BB$2:$BL$2,BB116:BL116),IF('Tipos de Cambio'!$M$9="Colombia",LOOKUP(11,$BB$2:$BL$2,BB116:BL116)))))))))))) -> n.d. | BN116: 5.05118 | BO116: n.d. | BP116: n.d. | BQ116: n.d. | BR116: n.d. | BS116: n.d. | BT116: n.d. | BU116: n.d. | BV116: n.d. | BW116: n.d. | BX116: n.d. | BY116: n.d. | BZ116: n.d. | CA116: n.d. | CB116: n.d. | CC116: n.d. | CD116: n.d. | CE116: n.d. | CF116: n.d. | CG116: n.d. | CH116: n.d. | CI116: n.d. | CJ116: n.d. | CK116: n.d. | CL116: n.d. | CM116: n.d. | CN116: n.d. | CO116: n.d. | CP116: n.d. | CQ116: n.d. | CR116: n.d. | CS116: n.d. | CT116: n.d. | CU116: n.d. | CV116: n.d. | CW116: 100 | CX116: n.d. | CY116: n.d. | CZ116: n.d. | DA116: n.d. | DB116: n.d. | DC116: n.d. | DD116: n.d. | DE116: n.d. | DF116: n.d. | DG116: n.d. | DH116: n.d. | DI116: 10789.04 | DJ116: 2542.85 | DK116: 1335.18 | DL116: n.d. | DM116: n.d. | DN116: n.d. | DO116: n.d. | DP116: n.d. | DQ116: n.d. | DR116: n.d. | DS116: n.d. | DT116: n.d. | DU116: n.d. | DV116: n.d. | DW116: n.d. | DX116: n.d. | DY116: n.d. | DZ116: n.d. | EA116: n.d. | EB116: n.d. | EC116: n.d.
B117: mayo | C117: 2.088452088 | D117: 0.933946941 | E117: n.d. | F117: n.d. | G117: n.d. | H117: -0.3988035892 | I117: n.d. | J117: n.d. | K117: -4.003256018 | L117: n.d. | M117: n.d. | N117: 18.00552899 | O117: n.d. | P117: n.d | Q117: n.d | R117: n.d | S117: n.d | T117: n.d | U117: n.d | V117: n.d | W117: n.d | X117: n.d | Y117: n.d | Z117: n.d | AA117: n.d | AB117: n.d | AE117: 17.72 | AF117: n.d. | AH117: n.d. | AI117: n.d. | AJ117: n.d. | AK117: n.d. | AL117: n.d. | AM117: 398.46 | AN117: n.d. | AO117: n.d. | AP117: n.d. | AQ117: n.d. | AR117: n.d. | AS117: n.d. | AT117: n.d. | AU117: n.d. | AV117: n.d. | AW117: n.d. | AX117: n.d. | AY117: n.d. | AZ117: n.d. | BA117: n.d. | BB117: 1.06281 | BC117: n.d. | BD117: 122.11 | BE117: 1.46 | BF117: n.d. | BG117: n.d. | BH117: n.d. | BI117: n.d. | BJ117: n.d. | BK117: 9.3623 | BL117: n.d. | BM117: =IF('Tipos de Cambio'!$M$9="EuroZona",LOOKUP(1,$BB$2:$BL$2,BB117:BL117),IF('Tipos de Cambio'!$M$9="Reino Unido",LOOKUP(2,$BB$2:$BL$2,BB117:BL117),IF('Tipos de Cambio'!$M$9="Japón",LOOKUP(3,$BB$2:$BL$2,BB117:BL117),IF('Tipos de Cambio'!$M$9="Canadá",LOOKUP(4,$BB$2:$BL$2,BB117:BL117),IF('Tipos de Cambio'!$M$9="Rusia",LOOKUP(5,$BB$2:$BL$2,BB117:BL117),IF('Tipos de Cambio'!$M$9="Brasil",LOOKUP(6,$BB$2:$BL$2,BB117:BL117),IF('Tipos de Cambio'!$M$9="China",LOOKUP(7,$BB$2:$BL$2,BB117:BL117),IF('Tipos de Cambio'!$M$9="India",LOOKUP(8,$BB$2:$BL$2,BB117:BL117),IF('Tipos de Cambio'!$M$9="Sudáfrica",LOOKUP(9,$BB$2:$BL$2,BB117:BL117),IF('Tipos de Cambio'!$M$9="México",LOOKUP(10,$BB$2:$BL$2,BB117:BL117),IF('Tipos de Cambio'!$M$9="Colombia",LOOKUP(11,$BB$2:$BL$2,BB117:BL117)))))))))))) -> n.d. | BN117: 5.13066 | BO117: n.d. | BP117: n.d. | BQ117: n.d. | BR117: n.d. | BS117: n.d. | BT117: n.d. | BU117: n.d. | BV117: n.d. | BW117: n.d. | BX117: n.d. | BY117: n.d. | BZ117: n.d. | CA117: n.d. | CB117: n.d. | CC117: n.d. | CD117: n.d. | CE117: n.d. | CF117: n.d. | CG117: n.d. | CH117: n.d. | CI117: n.d. | CJ117: n.d. | CK117: n.d. | CL117: n.d. | CM117: n.d. | CN117: n.d. | CO117: n.d. | CP117: n.d. | CQ117: n.d. | CR117: n.d. | CS117: n.d. | CT117: n.d. | CU117: n.d. | CV117: n.d. | CW117: 100 | CX117: n.d. | CY117: n.d. | CZ117: n.d. | DA117: n.d. | DB117: n.d. | DC117: n.d. | DD117: n.d. | DE117: n.d. | DF117: n.d. | DG117: n.d. | DH117: n.d. | DI117: 10559.75 | DJ117: 2470.52 | DK117: 1301.84 | DL117: n.d. | DM117: n.d. | DN117: n.d. | DO117: n.d. | DP117: n.d. | DQ117: n.d. | DR117: n.d. | DS117: n.d. | DT117: n.d. | DU117: n.d. | DV117: n.d. | DW117: n.d. | DX117: n.d. | DY117: n.d. | DZ117: n.d. | EA117: n.d. | EB117: n.d. | EC117: n.d.
B118: junio | C118: 1.963190184 | D118: 0.8929779462 | E118: n.d. | F118: n.d. | G118: n.d. | H118: -0.4004004004 | I118: n.d. | J118: n.d. | K118: -4.095281722 | L118: n.d. | M118: n.d. | N118: 17.39333038 | O118: n.d. | P118: n.d | Q118: n.d | R118: n.d | S118: n.d | T118: n.d | U118: n.d | V118: n.d | W118: n.d | X118: n.d | Y118: n.d | Z118: n.d | AA118: n.d | AB118: n.d | AE118: 17.92 | AF118: n.d. | AH118: n.d. | AI118: n.d. | AJ118: n.d. | AK118: n.d. | AL118: n.d. | AM118: 330.79 | AN118: n.d. | AO118: n.d. | AP118: n.d. | AQ118: n.d. | AR118: n.d. | AS118: n.d. | AT118: n.d. | AU118: n.d. | AV118: n.d. | AW118: n.d. | AX118: n.d. | AY118: n.d. | AZ118: n.d. | BA118: n.d. | BB118: 1.037755001 | BC118: n.d. | BD118: 120.9 | BE118: 1.47 | BF118: n.d. | BG118: n.d. | BH118: n.d. | BI118: n.d. | BJ118: n.d. | BK118: 9.5418 | BL118: n.d. | BM118: =IF('Tipos de Cambio'!$M$9="EuroZona",LOOKUP(1,$BB$2:$BL$2,BB118:BL118),IF('Tipos de Cambio'!$M$9="Reino Unido",LOOKUP(2,$BB$2:$BL$2,BB118:BL118),IF('Tipos de Cambio'!$M$9="Japón",LOOKUP(3,$BB$2:$BL$2,BB118:BL118),IF('Tipos de Cambio'!$M$9="Canadá",LOOKUP(4,$BB$2:$BL$2,BB118:BL118),IF('Tipos de Cambio'!$M$9="Rusia",LOOKUP(5,$BB$2:$BL$2,BB118:BL118),IF('Tipos de Cambio'!$M$9="Brasil",LOOKUP(6,$BB$2:$BL$2,BB118:BL118),IF('Tipos de Cambio'!$M$9="China",LOOKUP(7,$BB$2:$BL$2,BB118:BL118),IF('Tipos de Cambio'!$M$9="India",LOOKUP(8,$BB$2:$BL$2,BB118:BL118),IF('Tipos de Cambio'!$M$9="Sudáfrica",LOOKUP(9,$BB$2:$BL$2,BB118:BL118),IF('Tipos de Cambio'!$M$9="México",LOOKUP(10,$BB$2:$BL$2,BB118:BL118),IF('Tipos de Cambio'!$M$9="Colombia",LOOKUP(11,$BB$2:$BL$2,BB118:BL118)))))))))))) -> n.d. | BN118: 5.37233 | BO118: n.d. | BP118: n.d. | BQ118: n.d. | BR118: n.d. | BS118: n.d. | BT118: n.d. | BU118: n.d. | BV118: n.d. | BW118: n.d. | BX118: n.d. | BY118: n.d. | BZ118: n.d. | CA118: n.d. | CB118: n.d. | CC118: n.d. | CD118: n.d. | CE118: n.d. | CF118: n.d. | CG118: n.d. | CH118: n.d. | CI118: n.d. | CJ118: n.d. | CK118: n.d. | CL118: n.d. | CM118: n.d. | CN118: n.d. | CO118: n.d. | CP118: n.d. | CQ118: n.d. | CR118: n.d. | CS118: n.d. | CT118: n.d. | CU118: n.d. | CV118: n.d. | CW118: 100 | CX118: n.d. | CY118: n.d. | CZ118: n.d. | DA118: n.d. | DB118: n.d. | DC118: n.d. | DD118: n.d. | DE118: n.d. | DF118: n.d. | DG118: n.d. | DH118: n.d. | DI118: 10970.81 | DJ118: 2686.12 | DK118: 1372.71 | DL118: n.d. | DM118: n.d. | DN118: n.d. | DO118: n.d. | DP118: n.d. | DQ118: n.d. | DR118: n.d. | DS118: n.d. | DT118: n.d. | DU118: n.d. | DV118: n.d. | DW118: n.d. | DX118: n.d. | DY118: n.d. | DZ118: n.d. | EA118: n.d. | EB118: n.d. | EC118: n.d.
B119: julio | C119: 2.144607843 | D119: 1.014335948 | E119: n.d. | F119: n.d. | G119: n.d. | H119: -0.1009081736 | I119: n.d. | J119: n.d. | K119: -5.46037563 | L119: n.d. | M119: n.d. | N119: 17.04063117 | O119: n.d. | P119: n.d | Q119: n.d | R119: n.d | S119: n.d | T119: n.d | U119: n.d | V119: n.d | W119: n.d | X119: n.d | Y119: n.d | Z119: n.d | AA119: n.d | AB119: n.d | AE119: 20.1 | AF119: n.d. | AH119: n.d. | AI119: n.d. | AJ119: n.d. | AK119: n.d. | AL119: n.d. | AM119: 279.58 | AN119: n.d. | AO119: n.d. | AP119: n.d. | AQ119: n.d. | AR119: n.d. | AS119: n.d. | AT119: n.d. | AU119: n.d. | AV119: n.d. | AW119: n.d. | AX119: n.d. | AY119: n.d. | AZ119: n.d. | BA119: n.d. | BB119: 1.035268 | BC119: n.d. | BD119: 119.86 | BE119: 1.49 | BF119: n.d. | BG119: n.d. | BH119: n.d. | BI119: n.d. | BJ119: n.d. | BK119: 9.3671 | BL119: n.d. | BM119: =IF('Tipos de Cambio'!$M$9="EuroZona",LOOKUP(1,$BB$2:$BL$2,BB119:BL119),IF('Tipos de Cambio'!$M$9="Reino Unido",LOOKUP(2,$BB$2:$BL$2,BB119:BL119),IF('Tipos de Cambio'!$M$9="Japón",LOOKUP(3,$BB$2:$BL$2,BB119:BL119),IF('Tipos de Cambio'!$M$9="Canadá",LOOKUP(4,$BB$2:$BL$2,BB119:BL119),IF('Tipos de Cambio'!$M$9="Rusia",LOOKUP(5,$BB$2:$BL$2,BB119:BL119),IF('Tipos de Cambio'!$M$9="Brasil",LOOKUP(6,$BB$2:$BL$2,BB119:BL119),IF('Tipos de Cambio'!$M$9="China",LOOKUP(7,$BB$2:$BL$2,BB119:BL119),IF('Tipos de Cambio'!$M$9="India",LOOKUP(8,$BB$2:$BL$2,BB119:BL119),IF('Tipos de Cambio'!$M$9="Sudáfrica",LOOKUP(9,$BB$2:$BL$2,BB119:BL119),IF('Tipos de Cambio'!$M$9="México",LOOKUP(10,$BB$2:$BL$2,BB119:BL119),IF('Tipos de Cambio'!$M$9="Colombia",LOOKUP(11,$BB$2:$BL$2,BB119:BL119)))))))))))) -> n.d. | BN119: 5.60978 | BO119: n.d. | BP119: n.d. | BQ119: n.d. | BR119: n.d. | BS119: n.d. | BT119: n.d. | BU119: n.d. | BV119: n.d. | BW119: n.d. | BX119: n.d. | BY119: n.d. | BZ119: n.d. | CA119: n.d. | CB119: n.d. | CC119: n.d. | CD119: n.d. | CE119: n.d. | CF119: n.d. | CG119: n.d. | CH119: n.d. | CI119: n.d. | CJ119: n.d. | CK119: n.d. | CL119: n.d. | CM119: n.d. | CN119: n.d. | CO119: n.d. | CP119: n.d. | CQ119: n.d. | CR119: n.d. | CS119: n.d. | CT119: n.d. | CU119: n.d. | CV119: n.d. | CW119: 100 | CX119: n.d. | CY119: n.d. | CZ119: n.d. | DA119: n.d. | DB119: n.d. | DC119: n.d. | DD119: n.d. | DE119: n.d. | DF119: n.d. | DG119: n.d. | DH119: n.d. | DI119: 10655.15 | DJ119: 2638.49 | DK119: 1328.72 | DL119: n.d. | DM119: n.d. | DN119: n.d. | DO119: n.d. | DP119: n.d. | DQ119: n.d. | DR119: n.d. | DS119: n.d. | DT119: n.d. | DU119: n.d. | DV119: n.d. | DW119: n.d. | DX119: n.d. | DY119: n.d. | DZ119: n.d. | EA119: n.d. | EB119: n.d. | EC119: n.d.
B120: agosto | C120: 2.264381885 | D120: 1.108557523 | E120: n.d. | F120: n.d. | G120: n.d. | H120: 0.303030303 | I120: n.d. | J120: n.d. | K120: -6.15958336 | L120: n.d. | M120: n.d. | N120: 16.57868928 | O120: n.d. | P120: n.d | Q120: n.d | R120: n.d | S120: n.d | T120: n.d | U120: n.d | V120: n.d | W120: n.d | X120: n.d | Y120: n.d | Z120: n.d | AA120: n.d | AB120: n.d | AE120: 21.28 | AF120: n.d. | AH120: n.d. | AI120: n.d. | AJ120: n.d. | AK120: n.d. | AL120: n.d. | AM120: 308.27 | AN120: n.d. | AO120: n.d. | AP120: n.d. | AQ120: n.d. | AR120: n.d. | AS120: n.d. | AT120: n.d. | AU120: n.d. | AV120: n.d. | AW120: n.d. | AX120: n.d. | AY120: n.d. | AZ120: n.d. | BA120: n.d. | BB120: 1.060355001 | BC120: n.d. | BD120: 113.4 | BE120: 1.49 | BF120: n.d. | BG120: n.d. | BH120: n.d. | BI120: n.d. | BJ120: n.d. | BK120: 9.3981 | BL120: n.d. | BM120: =IF('Tipos de Cambio'!$M$9="EuroZona",LOOKUP(1,$BB$2:$BL$2,BB120:BL120),IF('Tipos de Cambio'!$M$9="Reino Unido",LOOKUP(2,$BB$2:$BL$2,BB120:BL120),IF('Tipos de Cambio'!$M$9="Japón",LOOKUP(3,$BB$2:$BL$2,BB120:BL120),IF('Tipos de Cambio'!$M$9="Canadá",LOOKUP(4,$BB$2:$BL$2,BB120:BL120),IF('Tipos de Cambio'!$M$9="Rusia",LOOKUP(5,$BB$2:$BL$2,BB120:BL120),IF('Tipos de Cambio'!$M$9="Brasil",LOOKUP(6,$BB$2:$BL$2,BB120:BL120),IF('Tipos de Cambio'!$M$9="China",LOOKUP(7,$BB$2:$BL$2,BB120:BL120),IF('Tipos de Cambio'!$M$9="India",LOOKUP(8,$BB$2:$BL$2,BB120:BL120),IF('Tipos de Cambio'!$M$9="Sudáfrica",LOOKUP(9,$BB$2:$BL$2,BB120:BL120),IF('Tipos de Cambio'!$M$9="México",LOOKUP(10,$BB$2:$BL$2,BB120:BL120),IF('Tipos de Cambio'!$M$9="Colombia",LOOKUP(11,$BB$2:$BL$2,BB120:BL120)))))))))))) -> n.d. | BN120: 5.85539 | BO120: n.d. | BP120: n.d. | BQ120: n.d. | BR120: n.d. | BS120: n.d. | BT120: n.d. | BU120: n.d. | BV120: n.d. | BW120: n.d. | BX120: n.d. | BY120: n.d. | BZ120: n.d. | CA120: n.d. | CB120: n.d. | CC120: n.d. | CD120: n.d. | CE120: n.d. | CF120: n.d. | CG120: n.d. | CH120: n.d. | CI120: n.d. | CJ120: n.d. | CK120: n.d. | CL120: n.d. | CM120: n.d. | CN120: n.d. | CO120: n.d. | CP120: n.d. | CQ120: n.d. | CR120: n.d. | CS120: n.d. | CT120: n.d. | CU120: n.d. | CV120: n.d. | CW120: 100 | CX120: n.d. | CY120: n.d. | CZ120: n.d. | DA120: n.d. | DB120: n.d. | DC120: n.d. | DD120: n.d. | DE120: n.d. | DF120: n.d. | DG120: n.d. | DH120: n.d. | DI120: 10829.28 | DJ120: 2739.35 | DK120: 1320.41 | DL120: n.d. | DM120: n.d. | DN120: n.d. | DO120: n.d. | DP120: n.d. | DQ120: n.d. | DR120: n.d. | DS120: n.d. | DT120: n.d. | DU120: n.d. | DV120: n.d. | DW120: n.d. | DX120: n.d. | DY120: n.d. | DZ120: n.d. | EA120: n.d. | EB120: n.d. | EC120: n.d.
B121: septiembre | C121: 2.628361858 | D121: 1.231227168 | E121: n.d. | F121: n.d. | G121: n.d. | H121: -0.1001001001 | I121: n.d. | J121: n.d. | K121: -5.982709886 | L121: n.d. | M121: n.d. | N121: 15.82656639 | O121: n.d. | P121: n.d | Q121: n.d | R121: n.d | S121: n.d | T121: n.d | U121: n.d | V121: n.d | W121: n.d | X121: n.d | Y121: n.d | Z121: n.d | AA121: n.d | AB121: n.d | AE121: 23.8 | AF121: n.d. | AH121: n.d. | AI121: n.d. | AJ121: n.d. | AK121: n.d. | AL121: n.d. | AM121: 342.4 | AN121: n.d. | AO121: n.d. | AP121: n.d. | AQ121: n.d. | AR121: n.d. | AS121: n.d. | AT121: n.d. | AU121: n.d. | AV121: n.d. | AW121: n.d. | AX121: n.d. | AY121: n.d. | AZ121: n.d. | BA121: n.d. | BB121: 1.050077 | BC121: n.d. | BD121: 107.57 | BE121: 1.48 | BF121: n.d. | BG121: n.d. | BH121: n.d. | BI121: n.d. | BJ121: n.d. | BK121: 9.3403 | BL121: n.d. | BM121: =IF('Tipos de Cambio'!$M$9="EuroZona",LOOKUP(1,$BB$2:$BL$2,BB121:BL121),IF('Tipos de Cambio'!$M$9="Reino Unido",LOOKUP(2,$BB$2:$BL$2,BB121:BL121),IF('Tipos de Cambio'!$M$9="Japón",LOOKUP(3,$BB$2:$BL$2,BB121:BL121),IF('Tipos de Cambio'!$M$9="Canadá",LOOKUP(4,$BB$2:$BL$2,BB121:BL121),IF('Tipos de Cambio'!$M$9="Rusia",LOOKUP(5,$BB$2:$BL$2,BB121:BL121),IF('Tipos de Cambio'!$M$9="Brasil",LOOKUP(6,$BB$2:$BL$2,BB121:BL121),IF('Tipos de Cambio'!$M$9="China",LOOKUP(7,$BB$2:$BL$2,BB121:BL121),IF('Tipos de Cambio'!$M$9="India",LOOKUP(8,$BB$2:$BL$2,BB121:BL121),IF('Tipos de Cambio'!$M$9="Sudáfrica",LOOKUP(9,$BB$2:$BL$2,BB121:BL121),IF('Tipos de Cambio'!$M$9="México",LOOKUP(10,$BB$2:$BL$2,BB121:BL121),IF('Tipos de Cambio'!$M$9="Colombia",LOOKUP(11,$BB$2:$BL$2,BB121:BL121)))))))))))) -> n.d. | BN121: 5.94267 | BO121: n.d. | BP121: n.d. | BQ121: n.d. | BR121: n.d. | BS121: n.d. | BT121: n.d. | BU121: n.d. | BV121: n.d. | BW121: n.d. | BX121: n.d. | BY121: n.d. | BZ121: n.d. | CA121: n.d. | CB121: n.d. | CC121: n.d. | CD121: n.d. | CE121: n.d. | CF121: n.d. | CG121: n.d. | CH121: n.d. | CI121: n.d. | CJ121: n.d. | CK121: n.d. | CL121: n.d. | CM121: n.d. | CN121: n.d. | CO121: n.d. | CP121: n.d. | CQ121: n.d. | CR121: n.d. | CS121: n.d. | CT121: n.d. | CU121: n.d. | CV121: n.d. | CW121: 100 | CX121: n.d. | CY121: n.d. | CZ121: n.d. | DA121: n.d. | DB121: n.d. | DC121: n.d. | DD121: n.d. | DE121: n.d. | DF121: n.d. | DG121: n.d. | DH121: n.d. | DI121: 10336.96 | DJ121: 2746.16 | DK121: 1282.71 | DL121: n.d. | DM121: n.d. | DN121: n.d. | DO121: n.d. | DP121: n.d. | DQ121: n.d. | DR121: n.d. | DS121: n.d. | DT121: n.d. | DU121: n.d. | DV121: n.d. | DW121: n.d. | DX121: n.d. | DY121: n.d. | DZ121: n.d. | EA121: n.d. | EB121: n.d. | EC121: n.d.
